Workbook

Sheet Bienvenida
B8: Esta herramienta se enmarca en el proyecto Barrios Productores
B22: Se ha desarrollado por Economistas sin Fronteras (EsF) y ha sido adaptada
B23: por EsF, Tangente y Heliconia para el Ayuntamiento de Madrid

Sheet 0.INTRUCCIONES de USO
B1: Ir al índice
B3: INSTRUCCIONES BASICAS
A5: 1 | B5: Al abrir la herramienta, será necesario tanto habilitar las macros como activar los cambios. Ambas opciones aparecen como "warnings" en la parter superior de la herramienta al abrir la hoja Excel.
A7: 2 | B7: Para ejecutar muchos de los procedimientos de la herramienta , necesitamos configurar excel en modo "programador". Para ello , seguir los siguientes pasos antes de empezar a rellenar los formularios:
B8: 2.1 | C8: Seleccionar "Archivo",
B9: 2.2 | C9: Seleccionar "Opciones",
B10: 2.3 | C10: En el menu de Opciones, seleccionar " Personalizar cinta de opciones",
B11: 2.4 | C11: Activar las casillas "Programador" y "Complementos".
A13: 3 | B13: Se recomienda utilizar excel online o con la herramienta Excel local , no con herramientas libreoffice ni utilizarlo en google drive.
B17: ANEXOS a cumplimentar ( pestañas verdes)
A19: 1 | B19: Completar los datos cualitativos del proyecto en la pestaña "proyecto". Las casillas a rellenar estan sombreadas en gris.
A20: 2 | B20: La herramienta incluye diferentes pestañas de un plan economico financiero. Se rellenan las pestañas de color verde que se llaman ANEXOS.El resto de pestañas en color rojo nos devuelven información para analizar y son imprimibles para entrega.
A22: 3 | B22: En general , el método para seleccionar un elemento de cualquier lista será:
B23: 3.1 | C23: Listas fijas: "anexo inversión" por ejemplo, que ofrecen ciertas categorías con la opción de 3 nuevas líneas para categorías extra . Se rellenan de forma directa las casillas grises de la tabla. No se tiene la opción de modificar los conceptos.
B24: 3.2 | C24: Listas desplegables: "anexo ingresos" por ejemplo, que tienen un bloque de acción dos botones de acción:
C25: Crear nuevo: Crea una nueva fila en la que se rellenan las casillas grises . La casilla gris tiene un botón de desplegable que despliega una lista de la que elegir opciones . Se tiene la opción de modificar manualmente el concepto.
A26: 4 | B26: Los elementos numéricos a introducir se incluirán directamente seleccionando la casilla e introduciendo manualmente la cantidad ( casillas GRISES ) , en casillas blancas no rellenar que son fórmulas o datos. Hay casillas en color verde claro que son fórmulas que se pueden borrar , por si interesa al usuario poner un dato concreto.
C27: En las casillas grises: se introducen manualmente los datos: números o texto.
C28: En las casillas verdes: hay fórmulas que calculan datos de referencia, si el usuario tiene el dato, puede borrarlas e introducir el dato numérico.
C29: En las casillas blancas: estan fórmulas o datos no editables.
A30: 5 | B30: Consultar la pestaña "1.indice" para navegar por la herramienta, completando los datos a incluir y consultando las pestañas informativas en caso de necesidad
A31: 6 | B31: Una vez completada una pestaña , marcar la opcion "Pestaña completa" en la parte superior de la pestaña .
B35: RESULTADOS ( pestañas rojas)
A37: 1 | B37: Una vez cumplimentados todos los inputs en los respectivos anexos , se podrán consultar todos los resultados imprimibles en las diferentes pestañas.
A38: 2 | B38: Estas pestañas de resultados estarán fijadas en función de los datos introducidos en los anexos y no se podrán modificar.
A39: 3 | B39: Pulsando el botón "imprimir resultados" de la pestaña de "2.proyecto" se podrán imprimir directamente en formato PDF los anexos en rojo. Si se quiere imprimir otras pestañas u otra configuración se deberá seleccionar "archivo" , luego "imprimir" y ahí configurar la opción deseada.

Sheet 1.INDICE
A1: INDICE
B7: PESTAÑA | C7: NOMBRE | D7: Checklist | E7: DEFINICIÓN | F7: INSTRUCCIONES | G7: Checklist
B8: 0 | C8: INSTRUCCIONES DE USO | E8: Son las instrucciones generales , que conviene leer antes de completar cualquier dato de cara a entender el funcionamiento y aprovechar el tiempo al máximo.
B9: 1 | C9: ÍNDICE | E9: Esta pestaña.
B10: 2 | C10: PROYECTO | D10: FALSE | E10: Son los datos iniciales que tenemos que complementar sobre el proyecto. | F10: Hay que completar la fecha inicial en la que empezaría el proyecto (sobre esta información se rellenan las tablas automaticamente). Asi mismo con el nombre del proyecto y la descripcion. Si no sabemos la forma juridica con la que vamos a empezar se recomienda poner en "Tipo Impositivo" (como en el impuesto sobre beneficios/excedentes) el valor correspondiente a 25% . | G10: =IF(D10=TRUE,"COMPLETADO","PENDIENTE") -> PENDIENTE
B11: 3 | C11: INVERSIÓN_FINANCIACIÓN | E11: Es el resumen de lo que hemos completado en la pestaña "3.1 Anexo inversión" y en la pestña "3.2 Anexo financiación" de tal manera quepara poder comenar el proyecto la inversión tiene que ser igual a la financiación.
C12: 3.1 ANEXO INVERSIÓN | D12: FALSE | E12: Nos referimos a la inversión incial. Consiste en listar y calcular en euros, que elementos vamos a necesitar para comenzar el proyecto. | F12: Incluimos todos los importes en euros sin IVA, y en la columna IVA el % (si queremos consultar el IVA nos vamos a la pestaña tablas de referencia) 1.Incluir los diferentes gastos de establecimiento para cada una de las categorías o para las 3 lineas extra disponibles. 2.Incluir los diferentes activos no corrientes de la inversión inicial asi como si es Inmovilizado Material (tangible) o Inmovilizado Inmaterial (intangible). 3.Para cada activo fijo (no corriente) de la inversión inicial , se calcula la parte amortizada a final de cada año con fórmula (si se quiere amortizar otra cantidad , se pueden quitar las fórmulas). 4. Para cada activo corriente: hay que incluirlos en su fila correspondiente si son existencias (productos para vender) o dinero líquido, tesorería (efectivo). | G12: =IF(D12=TRUE,"COMPLETADO","PENDIENTE") -> PENDIENTE
C13: 3.2 ANEXO FINANCIACIÓN | D13: FALSE | E13: Nos referimos a la financiación inicial. Consiste en listar y calcular en euros, las fuentes de financiación vamos a utilizar para costear la inversión inicial. Tanto financiación propia como ajena al proyecto. | F13: 1.Incluir las cantidades deseadas para fondos propios , financiacion ajena a corto plazo (menos de un año) y a largo plazo (mas de un año) 2.En caso de querer simular un prestamo: incluir capital inicial , periodo de devolución , tipo de interes y gastos de establecimiento. | G13: PENDIENTE
B14: 4 | C14: INGRESOS | E14: Esta pestaña es resumen de lo que hemos incluido en la pestaña "4.1 anexo ingresos".
C15: 4.1 ANEXO INGRESOS | D15: FALSE | E15: Nos referimos a los ingresos que obtenemos en el proyecto por vender productos u ofrecer servicios o ambas cosas. En los cultivos depende mucho de la productividad por ello se ha incorporado una tabla específica. Se han separado en dos tablas de Ingresos por ventas/servicios o Otros ingresos, por si quien use la tabla desea verlo separado pero todos los ingresos se podrían introducir simplemente en la primera tabla. | F15: 1.En las tablas de ingresos por ventas de productos o servicios, incluir el producto o servicio y su precio estimado SIN IVA. Incluir el porcentaje de IVA (podemos consultar tablas de referencia). Despues, incluir la cantidad esperada de ventas en cada uno de los meses. Los productos que cultivemos en la tabla de ingresos por ventas de productos o servicios: si es un producto que cultivamos, indicarlo en el desplegable seleccionando SI o NO.El limite de filas es de 30 (osea ese será el limite de productos a introducir). 2.En la tabla de otros ingresos , incluir el resto de ingresos no especificados con el mismo metodo. El limite de filas es de 10 (osea ese será el limite de productos a introducir). 3. Calculadora de productividad (ojo no sirve para planificacion de cultivos los caluclos de superficie y de productividad habria que hacerlos con otra herramienta de planificación que tenga en cuenta, técnicos de cultivo, asociaciones, rotaciones y marcos de plantación). Para completarla , en cada producto incluido en el deslegable o introducirlo a mano y el porcentaje de la parcela destinado a el . Los datos de productividad por cultivo provienen de los datos de producción medios de la Comunidad de Madrid en agricultura convencional en 2018. Se pueden editar la "Productividad kg/m2/ciclo" y los "Ciclos anuales de producción" en el cuadro de productividad. 4. Relación entre los productos cultivados y los productos vendidos .Si cultivamos mas o menos cantidad en kilogramos de lo que vendemos nos saldrá un aviso. | G15: PENDIENTE
B16: 5 | C16: GASTOS FIJOS | E16: Esta pestaña es resumen de lo que hemos incluido en la pestaña "5.1 anexo gastos fijos".
C17: 5.1 ANEXO GASTOS FIJOS | D17: FALSE | E17: Nos referimos a aquellos gastos que tenemos que pagar todos los meses y no dependen del volumen de ingresos (es decir que aunque vendamos mas o vendamos menos los tenemos que pagar). | F17: 1.Para cada nuevo gasto fijo seleccionado , incluir los gastos fijos de cada mes del primer año. 2.En la tabla de otros gastos incluir los gastos fijos extra para cada uno de los meses. | G17: PENDIENTE
B18: 6 | C18: GASTOS VARIABLES | E18: Esta pestaña es resumen de lo que hemos incluido en la pestaña "6.1 anexo gastos variables".
C19: 6.1 ANEXO GASTOS VARIABLES | D19: FALSE | E19: Nos referimos a aquellos gastos que dependen directamente del volumen de ingresos (es decir que si tenemos mas ingresos , tenemos mas gastos variables y si tenemos menos ingresos , tenemos menos gastos variables). | F19: 1.Completar , para cada tipo de producto o servicio , con los gastos unitarios correspondientes a cada una de las categorias de la tabla. | G19: PENDIENTE
B20: 7 | C20: CUENTA DE RESULTADOS | E20: Es la tabla resumen de ingresos y gastos (tanto fijos como variables).
B21: 8 | C21: IMPUESTOS | E21: Nos referimos a IVA y a IRPF estimado que tendriamos que pagar (soportar) o recibir (devengar).
B22: 9 | C22: PLAN TESORERÍA | E22: Esta pestaña es reumen de "anexo 9.1 tesorería".
C23: 9.1 ANEXO TESORERÍA | D23: FALSE | E23: Es una tabla complementraia al resto. Nos referimos a plan de tesorería que consiste en planificar por un lado a los cobros (el dinero que recibimos) y a los pagos (el dinero saliente) con el objetivo de no tener un flujo negativo (que nos falte dinero para hacer frente a los pagos). | F23: En este caso los resultados son completamente modificables ( van en gris ) pero se han dejado una formula de referencia por si aun no sabemos la informacion dejarlo con la hipóteis .de que los cobros son iguales a los ingresos (todo se cobra al contado) y que los pagos son iguales a los gastos (todo se abona al contado). En caso de tener otros datos, se puede modificar. | G23: PENDIENTE
B24: 10 | C24: BALANCE | E24: Es una tabla complementaria al resto. Nos referimos a Balance de Situación a final de cada año. Nos sirve para saber cuanto valor tiene en euros el activo (aquello que posee la organización) y como se distribuye entre activo fijo y activo circulante. Y por otro lado como es su estructura de pasivo (que recursos propios ajenos cuenta la organizacion para cubrir el activo). Son datos aproximados.
C25: TABLAS REFERENCIA | E25: Hemos incluidos diversas tablas que tienen que ver con las amortizaciones contables,Impuesto de Valor Añadido, productividad, que son datos que conviene revisar a modo de consulta.

Sheet 2.PROYECTO
A2: Volver al Indice
B7: DATOS GENERALES PROYECTO
B10: Fecha de inicio del proyecto (DIA/MES/AÑO) | D10: Tipo de empresa | F10: Tipo impositivo: Gravamen (%) sobre beneficios/excedentes
B14: Nombre emprendimiento
B17: Breve descripción emprendimiento
B25: Nombre de la persona que rellena la tabla
B28: Rol dentro del proyecto
B31: Fecha en la que se completa la tabla (DIA/MES/AÑO)
B34: Web del proyecto y RRSS (si la tiene)
B37: Superficie de la parcela (en m²) | D37: % dedicado a cultivo | F37: Superficie cultivada (en m²)
F38: =+B38*D38 -> 0
B40: =IF(B38/2<F38,"","La superficie cultivada tiene que ser al menos la mitad de la superficie total") -> La superficie cultivada tiene que ser al menos la mitad de la superficie total

Sheet ANEXO INVERSIÓN
B1: Volver al Indice
B2: Volver a resultados
C7: ANEXO INVERSION INICIAL
E9: Importe | F9: Importe con IVA
C10: IVA | D10: GASTOS DE ESTABLECIMIENTO | E10: =SUM(E11:E20) -> 0 | F10: =SUM(F11:F20) -> 0
C11: =VLOOKUP(D11,'TABLAS REFERENCIA '!$H$8:$I$160,2,FALSE) -> 0 | D11: Licencia Actividad | F11: =IF(E11="","",E11*C11+E11) -> 
C12: =VLOOKUP(D12,'TABLAS REFERENCIA '!$H$8:$I$160,2,FALSE) -> 0.21 | D12: Permisos | F12: =IF(E12="","",E12*C12+E12) -> 
C13: =VLOOKUP(D13,'TABLAS REFERENCIA '!$H$8:$I$160,2,FALSE) -> 0.21 | D13: Gastos Constitución
C14: =VLOOKUP(D14,'TABLAS REFERENCIA '!$H$8:$I$160,2,FALSE) -> 0.21 | D14: Obras y reformas
C15: =VLOOKUP(D15,'TABLAS REFERENCIA '!$H$8:$I$160,2,FALSE) -> 0 | D15: Fianza o Aval Alquiler Local
C16: 0.21 | D16: Asesoramiento inicial
I17: AMORTIZACIONES DE LA INVERSION INICIAL | O17: INVERSIONES POSTERIORES A LA INVERSIÓN INICIAL
I20: TIPO DE INVERSION | J20: AMORTIZACION DE LA INVERSION INICIAL (DATOS INFORMATIVOS) | N20: AMORTIZACION ACUMULADA | O20: TIPO DE INVERSION | P20: INVERSIONES POSTERIORES A LA INVERSIÓN INICIAL
B21: Clasificar: tangible / intangible | C21: IVA | D21: ACTIVO NO CORRIENTE | E21: =+SUM(E22:E38) -> 0 | F21: =+SUM(F22:F38) -> 0 | J21: AÑO 1 | K21: AÑO 2 | L21: AÑO 3 | M21: AÑO 4 | N21: Amortizacion anual % | P21: AÑO 1 | Q21: AÑO 2 | R21: AÑO 3 | S21: AÑO 4
B22: Inmovilizado Material (tangible) | C22: =VLOOKUP(D22,'TABLAS REFERENCIA '!$H$8:$I$160,2,FALSE) -> 0.21 | D22: Terrenos y bienes naturales | F22: =IF(E22<>"",E22*C22+E22,"") ->  | I22: =D22 -> Terrenos y bienes naturales | J22: =+E22*N22 -> 0 | K22: =+E22*N22 -> 0 | L22: =+E22*N22 -> 0 | M22: =+N22*E22 -> 0 | N22: 0.03 | O22: =I22 -> Terrenos y bienes naturales
B23: Inmovilizado Material (tangible) | C23: =VLOOKUP(D23,'TABLAS REFERENCIA '!$H$8:$I$160,2,FALSE) -> 0.21 | D23: Construcciones | F23: =IF(E23<>"",E23*C23+E23,"") ->  | I23: Construcciones | J23: 0 | K23: 0 | L23: 0 | M23: 0 | N23: =VLOOKUP(I23,'TABLAS REFERENCIA '!C9:D19,2,1) -> 0.1 | O23: =I23 -> Construcciones
B24: Inmovilizado Material (tangible) | C24: =VLOOKUP(D24,'TABLAS REFERENCIA '!$H$8:$I$160,2,FALSE) -> 0.21 | D24: Maquinaria | I24: Maquinaria | J24: 0 | K24: 0 | L24: 0 | M24: 0 | N24: 0.13 | O24: Maquinaria
B25: Inmovilizado Material (tangible) | C25: =VLOOKUP(D25,'TABLAS REFERENCIA '!$H$8:$I$160,2,FALSE) -> 0.21 | D25: Utillaje y herramienta | I25: Utillaje y herramienta | J25: 0 | K25: 0 | L25: 0 | M25: 0 | N25: 0.2 | O25: Utillaje y herramienta
B26: Inmovilizado Material (tangible) | C26: 0.21 | D26: Instalación de riego | E26: =+'TABLAS REFERENCIA '!$Q$8*'2.PROYECTO'!$F$38 -> 0 | F26: 0 | I26: Instalación de riego | J26: 0 | K26: 0 | L26: 0 | M26: 0 | N26: 0.1 | O26: Instalación de riego
B27: Inmovilizado Material (tangible) | C27: 0.21 | D27: Otras instalaciones | I27: Otras instalaciones | J27: 0 | K27: 0 | L27: 0 | M27: 0 | N27: 0.1 | O27: Otras instalaciones
B28: Inmovilizado Material (tangible) | C28: =VLOOKUP(D28,'TABLAS REFERENCIA '!$H$8:$I$160,2,FALSE) -> 0.21 | D28: Mobiliario | I28: Mobiliario | J28: 0 | K28: 0 | L28: 0 | M28: 0 | N28: 0.1 | O28: Mobiliario
B29: Inmovilizado Material (tangible) | C29: =VLOOKUP(D29,'TABLAS REFERENCIA '!$H$8:$I$160,2,FALSE) -> 0.21 | D29: Equipos para proceso de información | I29: Equipos para proceso de información | J29: 0 | K29: 0 | L29: 0 | M29: 0 | N29: 0.25 | O29: Equipos para proceso de información
B30: Inmovilizado Material (tangible) | C30: =VLOOKUP(D30,'TABLAS REFERENCIA '!$H$8:$I$160,2,FALSE) -> 0.21 | D30: Elementos de transporte | I30: Elementos de transporte | J30: 0 | K30: 0 | L30: 0 | M30: 0 | N30: 0.15 | O30: Elementos de transporte
B31: Inmovilizado Inmaterial (intangible) | C31: =VLOOKUP(D31,'TABLAS REFERENCIA '!$H$8:$I$160,2,FALSE) -> 0.21 | D31: Gastos de inv.y des., pro. intelectual y derechos de traspaso | I31: Gastos de inv.y des., pro. intelectual y derechos de traspaso | J31: 0 | K31: 0 | L31: 0 | M31: 0 | N31: 0.2 | O31: Gastos de inv.y des., pro. intelectual y derechos de traspaso
B32: Inmovilizado Inmaterial (intangible) | C32: =VLOOKUP(D32,'TABLAS REFERENCIA '!$H$8:$I$160,2,FALSE) -> 0.21 | D32: Aplicaciones informáticas | I32: Aplicaciones informáticas | J32: 0 | K32: 0 | L32: 0 | M32: 0 | N32: 0.1 | O32: Aplicaciones informáticas
B33: Inmovilizado Inmaterial (intangible) | C33: 0.21 | D33: Imagen corporativa
B39: Clasificar: Existencias / Efectivo | C39: IVA | D39: ACTIVO CORRIENTE | E39: =+SUM(E40:E45) -> 0 | F39: =+SUM(F40:F45) -> 0 | J39: =+SUM(J22:J38) -> 0 | K39: =+SUM(K22:K38) -> 0 | L39: =+SUM(L22:L38) -> 0 | M39: =+SUM(M22:M38) -> 0 | P39: =+SUM(P22:P38) -> 0 | Q39: =+SUM(Q22:Q38) -> 0 | R39: =+SUM(R22:R38) -> 0 | S39: =+SUM(S22:S38) -> 0
B40: Existencias | C40: =VLOOKUP(D40,'TABLAS REFERENCIA '!$H$8:$I$160,2,FALSE) -> 0.21 | D40: Stock Inicial de material para la venta | F40: =IF(E40<>"",E40*C40+E40,"") -> 
B41: Efectivo | C41: =VLOOKUP(D41,'TABLAS REFERENCIA '!$H$8:$I$160,2,FALSE) -> 0 | D41: Tesorería | F41: =IF(E41<>"",E41*C41+E41,"") -> 
F42: =IF(E42<>"",E42*C45+E42,"") -> 
F45: =IF(E45<>"",E45*C46+E45,"") -> 
C46: TOTAL INVERSIÓN INICIAL | D46: TOTALES | E46: =E10+E21+E39 -> 0 | F46: =F39+F21+F10 -> 0

Sheet ANEXO FINANCIACIÓN
B2: Volver al Indice
B3: Volver a resultados
B5: CUADRO FINANCIACIÓN | F5: CALCULADORA DE PRÉSTAMOS
B8: FINANCIACIÓN | F8: EJEMPLO DE PRESTAMO 1
F10: CANTIDAD A SOLICITAR (EUROS): | I10: =+C29 -> FINANCIACIÓN EXACTA
B11: FONDOS PROPIOS | C11: =SUM(C12:C15) -> 0 | F11: PERIODO DE DEVOLUCION (AÑOS)
B12: Capital Social | F12: TIPO DE INTERES (%)
B13: Subvenciones | F13: COSTES DE LA OPERACIÓN (%)
B14: Otros fondos propios
B15: . | F15: CUADRO DE AMORTIZACION | G15: AÑO 1 | H15: AÑO 2 | I15: AÑO 3 | J15: AÑO 4
B16: FINANCIACIÓN AJENA A L/P | C16: =SUM(C17:C19) -> 0 | F16: Intereses (EUROS) | G16: =+SUM(H24:H35) -> 0 | H16: =SUM(H36:H47) -> 0 | I16: =SUM(H48:H59) -> 0 | J16: =SUM(H60:H71) -> 0
B17: Deudas con entidades de crédito a largo plazo | C17: =+G10 -> 0 | F17: Devolución del principal (EUROS) | G17: =SUM(I24:I35) -> 0 | H17: =SUM(I36:I47) -> 0 | I17: =SUM(I48:I59) -> 0 | J17: =SUM(I60:I71) -> 0
B18: Otras deudas a largo plazo | F18: Importe total de las cuotas (EUROS) | G18: =+G16+G17 -> 0 | H18: =+H16+H17 -> 0 | I18: =+I16+I17 -> 0 | J18: =J16+J17 -> 0
B19: . | F19: Comisiones apertura (EUROS) | G19: =+G10*G13 -> 0
B20: FINANCIACIÓN AJENA A C/P | C20: =+SUM(C21:C24) -> 0
B21: Proveedores
B22: Deudas con entidades de crédito a corto plazo | F22: Periodo | G22: Cuota mensual | H22: Intereses | I22: Amortizado | J22: Capital amortizado acumulado | K22: Capital pendiente
B23: Deudas con las Administraciones Públicas
B24: Otras deudas a corto plazo | E24: 1 | F24: =IF($G$11*12>=E24,E24,"") ->  | G24: =IF(F24="","",($G$10*$G$12/12)/(1-(1+($G$12/12))^(-$G$11*12))) ->  | H24: =IF(F24="","",$G$10*$G$12/12) ->  | I24: =IF(F24="","",G24-H24) ->  | J24: =IF(F24="","",I24) ->  | K24: =IF(F24="","",$G$10-J24) -> 
E25: 2 | F25: =IF($G$11*12>=E25,E25,"") ->  | G25: =IF(F25="","",($G$10*$G$12/12)/(1-(1+($G$12/12))^(-$G$11*12))) ->  | H25: =IF(F25="","",K24*$G$12/12) ->  | I25: =IF(F25="","",G25-H25) ->  | J25: =IF(F25="","",I25+J24) ->  | K25: =IF(F25="","",$G$10-J25) -> 
B26: TOTAL FINANCIACION | C26: =+C11+C16+C20 -> 0 | E26: 3 | H26: =IF(F26="","",K25*$G$12/12) ->  | J26: =IF(F26="","",I26+J25) -> 
E27: 4
E28: 5
B29: =IF(C29=0,"","Inversión y financiación no coinciden") -> Inversión y financiación no coinciden | C29: =+IF(C26<'ANEXO INVERSIÓN'!F46,"FALTA DE FINANCIACIÓN",IF(C26>'ANEXO INVERSIÓN'!F46,"EXCESO DE FINANCIACIÓN","FINANCIACIÓN EXACTA")) -> FINANCIACIÓN EXACTA | E29: 6
E30: 7
E31: =+E30+1 -> 8
E32: 9
E33: 10
E34: 11
E35: 12
E36: 13
E37: 14
E38: 15
E39: 16
E40: 17
E41: 18
E42: 19
E43: 20
E44: 21
E45: 22
E46: 23
E47: 24
E48: 25
E49: 26
E50: 27
E51: 28
E52: 29
E53: 30
E54: 31
E55: 32
E56: 33
E57: 34
E58: 35
E59: 36
E60: 37
E61: 38
E62: 39
E63: 40
E64: 41
E65: 42
E66: 43
E67: 44
E68: 45
E69: 46
E70: 47
E71: 48
E72: 49
E73: 50
E74: 51
E75: 52
E76: 53
E77: 54
E78: 55
E79: 56
E80: 57
E81: 58
E82: 59
E83: 60
E84: 61
E85: 62
E86: 63
E87: 64
E88: 65
E89: 66 | F89: =IF($G$11*12>=E89,E89,"") ->  | G89: =IF(F89="","",($G$10*$G$12/12)/(1-(1+($G$12/12))^(-$G$11*12))) ->  | I89: =IF(F89="","",G89-H89) ->  | K89: =IF(F89="","",$G$10-J89) -> 
E90: 67 | H90: =IF(F90="","",K89*$G$12/12) ->  | J90: =IF(F90="","",I90+J89) -> 
E91: 68
E92: 69
E93: 70
E94: 71
E95: =+E94+1 -> 72
E96: 73
E97: 74
E98: 75
E99: 76
E100: 77
E101: 78
E102: 79
E103: 80
E104: 81
E105: 82
E106: 83
E107: 84
E108: 85
E109: 86
E110: 87
E111: 88
E112: 89
E113: 90
E114: 91
E115: 92
E116: 93
E117: 94
E118: 95
E119: 96
E120: 97
E121: 98
E122: 99
E123: 100
E124: 101
E125: 102
E126: 103
E127: 104
E128: 105
E129: 106
E130: 107
E131: 108
E132: 109
E133: 110
E134: 111
E135: 112
E136: 113
E137: 114
E138: 115
E139: 116
E140: 117
E141: 118
E142: 119
E143: 120
E144: 121
E145: 122
E146: 123
E147: 124
E148: 125
E149: 126
E150: 127
E151: 128
E152: 129
E153: 130 | F153: =IF($G$11*12>=E153,E153,"") ->  | G153: =IF(F153="","",($G$10*$G$12/12)/(1-(1+($G$12/12))^(-$G$11*12))) ->  | I153: =IF(F153="","",G153-H153) ->  | K153: =IF(F153="","",$G$10-J153) -> 
E154: 131 | H154: =IF(F154="","",K153*$G$12/12) ->  | J154: =IF(F154="","",I154+J153) -> 
E155: 132
E156: 133
E157: 134
E158: 135
E159: =+E158+1 -> 136
E160: 137
E161: 138
E162: 139
E163: 140
E164: 141
E165: 142
E166: 143
E167: 144
E168: 145
E169: 146
E170: 147
E171: 148
E172: 149
E173: 150
E174: 151
E175: 152
E176: 153
E177: 154
E178: 155
E179: 156
E180: 157
E181: 158
E182: 159
E183: 160
E184: 161
E185: 162
E186: 163
E187: 164
E188: 165
E189: 166
E190: 167
E191: 168
E192: 169
E193: 170
E194: 171
E195: 172
E196: 173
E197: 174
E198: 175
E199: 176
E200: 177
E201: 178
E202: 179
E203: 180
E204: 181
E205: 182
... 166 more rows

Sheet ANEXO INGRESOS
B2: Volver al Indice
B3: Volver a ingresos
B4: Consultar tablas referencia
C6: INGRESOS POR VENTAS DE PRODUCTOS O SERVICIOS
C7: INCREMENTO/REDUCCION DE INGRESOS INTERANUAL (EN %)
C8: DE AÑO 1 A AÑO 2 | D8: DE AÑO 2 A AÑO 3 | E8: DE AÑO 3 A AÑO 4
C11: Unidades vendidas
C12: Columna1 | D12: Columna2 | E12: Columna22 | F12: Columna3 | G12: Columna4 | H12: ='7.CUENTA DE RESULTADOS '!C20 -> 1900enero | I12: ='7.CUENTA DE RESULTADOS '!D20 -> 1900enero | J12: ='7.CUENTA DE RESULTADOS '!E20 -> 1900febrero | K12: ='7.CUENTA DE RESULTADOS '!F20 -> 1900marzo | L12: ='7.CUENTA DE RESULTADOS '!G20 -> 1900abril | M12: ='7.CUENTA DE RESULTADOS '!H20 -> 1900mayo | N12: ='7.CUENTA DE RESULTADOS '!I20 -> 1900junio | O12: ='7.CUENTA DE RESULTADOS '!J20 -> 1900julio | P12: ='7.CUENTA DE RESULTADOS '!K20 -> 1900agosto | Q12: ='7.CUENTA DE RESULTADOS '!L20 -> 1900septiembre | R12: ='7.CUENTA DE RESULTADOS '!M20 -> 1900octubre | S12: ='7.CUENTA DE RESULTADOS '!N20 -> 1900noviembre
B13: ¿Es un producto que también cultivamos? Seleccionar del desplegable: SI o NO del desplegable. Si el producto es cesta indicar No en el desplegable. | C13: IVA % | D13: Producto/Servicio | E13: Especificar tipo de unidad: kilogramos, litros, numero de formaciones, números de cestas | F13: Precio unidad estimado | G13: Precio unidad estimado (con IVA) | H13: Mes 1 | I13: Mes 2 | J13: Mes 3 | K13: Mes 4 | L13: Mes 5 | M13: Mes 6 | N13: Mes 7 | O13: Mes 8 | P13: Mes 9 | Q13: Mes 10 | R13: Mes 11 | S13: Mes 12 | T13: TOTALES POR AÑO / PRODUCTO
B14: SI | C14: =IF('ANEXO INGRESOS'!$D14="","",VLOOKUP('ANEXO INGRESOS'!$D14,'TABLAS REFERENCIA '!$H$8:$I$43,2,0)) ->  | G14: =IF(F14<>"",F14*C14+F14,"") ->  | T14: =SUM(H14:S14) -> 0
B15: SI | C15: =IF('ANEXO INGRESOS'!$D15="","",VLOOKUP('ANEXO INGRESOS'!$D15,'TABLAS REFERENCIA '!$H$8:$I$43,2,0)) ->  | T15: 0
B16: SI | C16: =IF('ANEXO INGRESOS'!$D16="","",VLOOKUP('ANEXO INGRESOS'!$D16,'TABLAS REFERENCIA '!$H$8:$I$43,2,0)) ->  | T16: 0
B17: SI | C17: =IF('ANEXO INGRESOS'!$D17="","",VLOOKUP('ANEXO INGRESOS'!$D17,'TABLAS REFERENCIA '!$H$8:$I$43,2,0)) ->  | T17: 0
B18: SI | C18: =IF('ANEXO INGRESOS'!$D18="","",VLOOKUP('ANEXO INGRESOS'!$D18,'TABLAS REFERENCIA '!$H$8:$I$43,2,0)) ->  | T18: 0
B19: SI | C19: =IF('ANEXO INGRESOS'!$D19="","",VLOOKUP('ANEXO INGRESOS'!$D19,'TABLAS REFERENCIA '!$H$8:$I$43,2,0)) ->  | T19: 0
B20: SI | C20: =IF('ANEXO INGRESOS'!$D20="","",VLOOKUP('ANEXO INGRESOS'!$D20,'TABLAS REFERENCIA '!$H$8:$I$43,2,0)) ->  | T20: 0
B21: SI | C21: =IF('ANEXO INGRESOS'!$D21="","",VLOOKUP('ANEXO INGRESOS'!$D21,'TABLAS REFERENCIA '!$H$8:$I$43,2,0)) ->  | T21: 0
B22: SI | C22: =IF('ANEXO INGRESOS'!$D22="","",VLOOKUP('ANEXO INGRESOS'!$D22,'TABLAS REFERENCIA '!$H$8:$I$43,2,0)) ->  | T22: 0
B23: SI | C23: =IF('ANEXO INGRESOS'!$D23="","",VLOOKUP('ANEXO INGRESOS'!$D23,'TABLAS REFERENCIA '!$H$8:$I$43,2,0)) ->  | T23: 0
B24: NO | C24: =IF('ANEXO INGRESOS'!$D24="","",VLOOKUP('ANEXO INGRESOS'!$D24,'TABLAS REFERENCIA '!$H$8:$I$43,2,0)) ->  | T24: 0
B25: NO | C25: =IF('ANEXO INGRESOS'!$D25="","",VLOOKUP('ANEXO INGRESOS'!$D25,'TABLAS REFERENCIA '!$H$8:$I$43,2,0)) ->  | T25: =SUM(H25:S25) -> 0
C26: =IF('ANEXO INGRESOS'!$D26="","",VLOOKUP('ANEXO INGRESOS'!$D26,'TABLAS REFERENCIA '!$H$8:$I$43,2,0)) ->  | T26: 0
C27: =IF('ANEXO INGRESOS'!$D27="","",VLOOKUP('ANEXO INGRESOS'!$D27,'TABLAS REFERENCIA '!$H$8:$I$43,2,0)) ->  | T27: 0
C28: =IF('ANEXO INGRESOS'!$D28="","",VLOOKUP('ANEXO INGRESOS'!$D28,'TABLAS REFERENCIA '!$H$8:$I$43,2,0)) ->  | T28: 0
C29: =IF('ANEXO INGRESOS'!$D29="","",VLOOKUP('ANEXO INGRESOS'!$D29,'TABLAS REFERENCIA '!$H$8:$I$43,2,0)) ->  | T29: =SUM(H29:S29) -> 0
C30: =IF('ANEXO INGRESOS'!$D30="","",VLOOKUP('ANEXO INGRESOS'!$D30,'TABLAS REFERENCIA '!$H$8:$I$43,2,0)) ->  | T30: =SUM(H30:S30) -> 0
C31: =IF('ANEXO INGRESOS'!$D31="","",VLOOKUP('ANEXO INGRESOS'!$D31,'TABLAS REFERENCIA '!$H$8:$I$43,2,0)) ->  | G31: =IF(F31<>"",F31*C31+F31,"") ->  | T31: =SUM(H31:S31) -> 0
C32: =IF('ANEXO INGRESOS'!$D32="","",VLOOKUP('ANEXO INGRESOS'!$D32,'TABLAS REFERENCIA '!$H$8:$I$43,2,0)) ->  | G32: =IF(F32<>"",F32*C32+F32,"") ->  | T32: =SUM(H32:S32) -> 0
E33: TOTAL INGRESOS POR VENTAS | F33: =SUM(unidades_vendidas[[Precio unidad estimado ]]) -> 0 | G33: =SUM(unidades_vendidas[Precio unidad estimado (con IVA)]) -> 0 | H33: =SUM(unidades_vendidas[Mes 1]) -> 0 | I33: =SUM(unidades_vendidas[Mes 2]) -> 0 | J33: =SUM(unidades_vendidas[Mes 3]) -> 0 | K33: =SUM(unidades_vendidas[Mes 4]) -> 0 | L33: =SUM(unidades_vendidas[Mes 5]) -> 0 | M33: =SUM(unidades_vendidas[Mes 6]) -> 0 | N33: =SUM(unidades_vendidas[Mes 7]) -> 0 | O33: =SUM(unidades_vendidas[Mes 8]) -> 0 | P33: =SUM(unidades_vendidas[Mes 9]) -> 0 | Q33: =SUM(unidades_vendidas[Mes 10]) -> 0 | R33: =SUM(unidades_vendidas[Mes 11]) -> 0 | S33: =SUM(unidades_vendidas[Mes 12]) -> 0
C47: OTROS INGRESOS
H49: =H12 -> 1900enero | I49: 1900enero | J49: 1900febrero | K49: 1900marzo | L49: 1900abril | M49: 1900mayo | N49: 1900junio | O49: 1900julio | P49: 1900agosto | Q49: 1900septiembre | R49: 1900octubre | S49: 1900noviembre | T49: TOTALES
C50: IVA % | D50: OTROS INGRESOS ( en euros ) | E50: Especificar tipo de unidad: kilogramos, litros, numero de formaciones, números de cestas | F50: Precio unidad estimado | G50: Precio unidad estimado (con IVA) | H50: Mes 1 | I50: Mes 2 | J50: Mes 3 | K50: Mes 4 | L50: Mes 5 | M50: Mes 6 | N50: Mes 7 | O50: Mes 8 | P50: Mes 9 | Q50: Mes 10 | R50: Mes 11 | S50: Mes 12 | T50: AÑO
G51: =IF('ANEXO INGRESOS'!$D51="","",'ANEXO INGRESOS'!$F51+'ANEXO INGRESOS'!$F51*'ANEXO INGRESOS'!$C51) ->  | T51: =SUM(H51:S51) -> 0
G52: =IF('ANEXO INGRESOS'!$D52="","",'ANEXO INGRESOS'!$F52+'ANEXO INGRESOS'!$F52*'ANEXO INGRESOS'!$C52) ->  | T52: 0
G53: =IF('ANEXO INGRESOS'!$D53="","",'ANEXO INGRESOS'!$F53+'ANEXO INGRESOS'!$F53*'ANEXO INGRESOS'!$C53) ->  | T53: 0
G54: =IF('ANEXO INGRESOS'!$D54="","",'ANEXO INGRESOS'!$F54+'ANEXO INGRESOS'!$F54*'ANEXO INGRESOS'!$C54) ->  | T54: 0
G55: =IF('ANEXO INGRESOS'!$D55="","",'ANEXO INGRESOS'!$F55+'ANEXO INGRESOS'!$F55*'ANEXO INGRESOS'!$C55) ->  | T55: =SUM(H55:S55) -> 0
G56: =IF('ANEXO INGRESOS'!$D56="","",'ANEXO INGRESOS'!$F56+'ANEXO INGRESOS'!$F56*'ANEXO INGRESOS'!$C56) ->  | T56: =SUM(H56:S56) -> 0
E57: TOTAL OTROS INGRESOS | F57: =SUM(otros_ingresos[[Precio unidad estimado ]]) -> 0 | G57: =SUM(otros_ingresos[Precio unidad estimado (con IVA)]) -> 0 | H57: =SUM(otros_ingresos[Mes 1]) -> 0 | I57: =SUM(otros_ingresos[Mes 2]) -> 0 | J57: =SUM(otros_ingresos[Mes 3]) -> 0 | K57: =SUM(otros_ingresos[Mes 4]) -> 0 | L57: =SUM(otros_ingresos[Mes 5]) -> 0 | M57: =SUM(otros_ingresos[Mes 6]) -> 0 | N57: =SUM(otros_ingresos[Mes 7]) -> 0 | O57: =SUM(otros_ingresos[Mes 8]) -> 0 | P57: =SUM(otros_ingresos[Mes 9]) -> 0 | Q57: =SUM(otros_ingresos[Mes 10]) -> 0 | R57: =SUM(otros_ingresos[Mes 11]) -> 0 | S57: =SUM(otros_ingresos[Mes 12]) -> 0
C73: CALCULADORA DE PRODUCTIVIDAD
C74: Seleccionar cultivo con desplegable y apareceran sus datos en el resto de columnas - también consultar pestaña tabla de referencia la tabla "d. Tabla de productividad y ciclos anuales por producto"-. En caso de que no este en la tabla el usuario tendrá que investigar este dato. El usuario tendrá que introducir el porcentaje de parcela utilizado en todos los casos. Ten en cuenta que esta calculadora de productividad, no es una calculadora de planificación de cultivos. La planificación de cultivos deberá hacerse a parte de esta herramienta de viabilidad económica. | J74: Consultar tabla de referencia
C76: Productividad (KILOS CULTIVADOS)
C77: Cultivo | D77: porcentaje parcela cultivado | E77: productividad Kg/m2/ciclo | F77: ciclos anuales de produccion | G77: TOTALES kg/ CICLO | H77: TOTAL anual kg
C78: Acelga | D78: 0.2 | E78: =IF('ANEXO INGRESOS'!$C78="","",VLOOKUP('ANEXO INGRESOS'!$C78,'TABLAS REFERENCIA '!$K$7:$M$63,2,0)) -> 2.1 | F78: =IF('ANEXO INGRESOS'!$C78="","",VLOOKUP('ANEXO INGRESOS'!$C78,'TABLAS REFERENCIA '!$K$7:$M$63,3,FALSE)) -> 2 | G78: =IF(C78="","",'2.PROYECTO'!$F$38*Productividad[[#This Row],[porcentaje parcela cultivado]]*Productividad[[#This Row],[productividad Kg/m2/ciclo ]]) -> 0 | H78: =IF(OR('ANEXO INGRESOS'!$D78="",'ANEXO INGRESOS'!$C78=""),"",G78*F78) -> 0
C79: Ajo tierno | D79: 0.2 | E79: =IF('ANEXO INGRESOS'!$C79="","",VLOOKUP('ANEXO INGRESOS'!$C79,'TABLAS REFERENCIA '!$K$7:$M$63,2,0)) -> 1.4 | F79: =IF('ANEXO INGRESOS'!$C79="","",VLOOKUP('ANEXO INGRESOS'!$C79,'TABLAS REFERENCIA '!$K$7:$M$63,3,FALSE)) -> 1 | G79: =IF(C79="","",'2.PROYECTO'!$F$38*Productividad[[#This Row],[porcentaje parcela cultivado]]*Productividad[[#This Row],[productividad Kg/m2/ciclo ]]) -> 0 | H79: =IF(OR('ANEXO INGRESOS'!$D79="",'ANEXO INGRESOS'!$C79=""),"",G79*F79) -> 0
C80: Cebolla tierna | D80: 0.1 | E80: =IF('ANEXO INGRESOS'!$C80="","",VLOOKUP('ANEXO INGRESOS'!$C80,'TABLAS REFERENCIA '!$K$7:$M$63,2,0)) -> 1.6 | F80: =IF('ANEXO INGRESOS'!$C80="","",VLOOKUP('ANEXO INGRESOS'!$C80,'TABLAS REFERENCIA '!$K$7:$M$63,3,FALSE)) -> 2 | G80: =IF(C80="","",'2.PROYECTO'!$F$38*Productividad[[#This Row],[porcentaje parcela cultivado]]*Productividad[[#This Row],[productividad Kg/m2/ciclo ]]) -> 0 | H80: =IF(OR('ANEXO INGRESOS'!$D80="",'ANEXO INGRESOS'!$C80=""),"",G80*F80) -> 0
C81: Alcachofa | D81: 0.3 | E81: =IF('ANEXO INGRESOS'!$C81="","",VLOOKUP('ANEXO INGRESOS'!$C81,'TABLAS REFERENCIA '!$K$7:$M$63,2,0)) -> 1.3 | F81: =IF('ANEXO INGRESOS'!$C81="","",VLOOKUP('ANEXO INGRESOS'!$C81,'TABLAS REFERENCIA '!$K$7:$M$63,3,FALSE)) -> 1 | G81: =IF(C81="","",'2.PROYECTO'!$F$38*Productividad[[#This Row],[porcentaje parcela cultivado]]*Productividad[[#This Row],[productividad Kg/m2/ciclo ]]) -> 0 | H81: =IF(OR('ANEXO INGRESOS'!$D81="",'ANEXO INGRESOS'!$C81=""),"",G81*F81) -> 0
C82: Coliflor | D82: 0.09 | E82: =IF('ANEXO INGRESOS'!$C82="","",VLOOKUP('ANEXO INGRESOS'!$C82,'TABLAS REFERENCIA '!$K$7:$M$63,2,0)) -> 1.9 | F82: =IF('ANEXO INGRESOS'!$C82="","",VLOOKUP('ANEXO INGRESOS'!$C82,'TABLAS REFERENCIA '!$K$7:$M$63,3,FALSE)) -> 1 | G82: =IF(C82="","",'2.PROYECTO'!$F$38*Productividad[[#This Row],[porcentaje parcela cultivado]]*Productividad[[#This Row],[productividad Kg/m2/ciclo ]]) -> 0 | H82: =IF(OR('ANEXO INGRESOS'!$D82="",'ANEXO INGRESOS'!$C82=""),"",G82*F82) -> 0
C83: Col de Bruselas | D83: 0.01 | E83: =IF('ANEXO INGRESOS'!$C83="","",VLOOKUP('ANEXO INGRESOS'!$C83,'TABLAS REFERENCIA '!$K$7:$M$63,2,0)) -> 2.9 | F83: =IF('ANEXO INGRESOS'!$C83="","",VLOOKUP('ANEXO INGRESOS'!$C83,'TABLAS REFERENCIA '!$K$7:$M$63,3,FALSE)) -> 1 | G83: =IF(C83="","",'2.PROYECTO'!$F$38*Productividad[[#This Row],[porcentaje parcela cultivado]]*Productividad[[#This Row],[productividad Kg/m2/ciclo ]]) -> 0 | H83: =IF(OR('ANEXO INGRESOS'!$D83="",'ANEXO INGRESOS'!$C83=""),"",G83*F83) -> 0
C84: Espinaca | D84: 0.1 | E84: =IF('ANEXO INGRESOS'!$C84="","",VLOOKUP('ANEXO INGRESOS'!$C84,'TABLAS REFERENCIA '!$K$7:$M$63,2,0)) -> 1.9 | F84: =IF('ANEXO INGRESOS'!$C84="","",VLOOKUP('ANEXO INGRESOS'!$C84,'TABLAS REFERENCIA '!$K$7:$M$63,3,FALSE)) -> 2 | G84: =IF(C84="","",'2.PROYECTO'!$F$38*Productividad[[#This Row],[porcentaje parcela cultivado]]*Productividad[[#This Row],[productividad Kg/m2/ciclo ]]) -> 0 | H84: =IF(OR('ANEXO INGRESOS'!$D84="",'ANEXO INGRESOS'!$C84=""),"",G84*F84) -> 0
C85: Puerro | D85: 0.2 | E85: =IF('ANEXO INGRESOS'!$C85="","",VLOOKUP('ANEXO INGRESOS'!$C85,'TABLAS REFERENCIA '!$K$7:$M$63,2,0)) -> 2.8 | F85: =IF('ANEXO INGRESOS'!$C85="","",VLOOKUP('ANEXO INGRESOS'!$C85,'TABLAS REFERENCIA '!$K$7:$M$63,3,FALSE)) -> 1 | G85: =IF(C85="","",'2.PROYECTO'!$F$38*Productividad[[#This Row],[porcentaje parcela cultivado]]*Productividad[[#This Row],[productividad Kg/m2/ciclo ]]) -> 0 | H85: =IF(OR('ANEXO INGRESOS'!$D85="",'ANEXO INGRESOS'!$C85=""),"",G85*F85) -> 0
C86: Zanahoria | D86: 0.2 | E86: =IF('ANEXO INGRESOS'!$C86="","",VLOOKUP('ANEXO INGRESOS'!$C86,'TABLAS REFERENCIA '!$K$7:$M$63,2,0)) -> 3.2 | F86: =IF('ANEXO INGRESOS'!$C86="","",VLOOKUP('ANEXO INGRESOS'!$C86,'TABLAS REFERENCIA '!$K$7:$M$63,3,FALSE)) -> 2 | G86: =IF(C86="","",'2.PROYECTO'!$F$38*Productividad[[#This Row],[porcentaje parcela cultivado]]*Productividad[[#This Row],[productividad Kg/m2/ciclo ]]) -> 0 | H86: =IF(OR('ANEXO INGRESOS'!$D86="",'ANEXO INGRESOS'!$C86=""),"",G86*F86) -> 0
E87: =IF('ANEXO INGRESOS'!$C87="","",VLOOKUP('ANEXO INGRESOS'!$C87,'TABLAS REFERENCIA '!$K$7:$M$63,2,0)) ->  | F87: =IF('ANEXO INGRESOS'!$C87="","",VLOOKUP('ANEXO INGRESOS'!$C87,'TABLAS REFERENCIA '!$K$7:$M$63,3,FALSE)) ->  | G87: =IF(C87="","",'2.PROYECTO'!$F$38*Productividad[[#This Row],[porcentaje parcela cultivado]]*Productividad[[#This Row],[productividad Kg/m2/ciclo ]]) ->  | H87: =IF(OR('ANEXO INGRESOS'!$D87="",'ANEXO INGRESOS'!$C87=""),"",G87*F87) -> 
G88: TOTAL ANUAL kgs | H88: =SUM('ANEXO INGRESOS'!$H$77:$H$87) -> 0
C91: Relación entre los productos cultivados y los productos vendidos | F91: =IF(G93>D93,"SE CULTIVA MAS DE LO QUE SE VENDE","SE CULTIVA MENOS DE LO QUE SE VENDE") -> SE CULTIVA MENOS DE LO QUE SE VENDE
C92: El total de productos cultivados es mayor o menor que el total de productos vendidos.
C93: Total kg de productos vendidos | D93: =+C186 -> 0 | F93: Total kg productos cultivados | G93: =+H88 -> 0
C95: 1) Si se cultiva menos de lo que se vende: se puede compensar por ejemplo comprando a otros proyectos o bien reducir la estimacion de productos vendidos.
C96: 2) Si se cultiva más de lo que se vende: modifica la estimación de venta o de cultivo (calculadora de productividad).
C99: Comentar al cálculo de los ingresos
B186: =+IF(B14="SI ",T14,0) -> 0 | C186: =+SUM(B186:B295) -> 0
B187: 0
B188: 0
B189: 0
B190: 0
B191: 0
B192: 0
B193: 0
B194: 0
B195: 0
B196: 0
B197: 0
B198: 0
B199: 0
B200: 0
B201: 0
B202: 0
B203: =+IF(B33="SI ",T33,0) -> 0
B204: 0
B205: 0
B206: 0
B207: 0
B208: 0
B209: 0
B210: 0
B211: 0
B212: 0
B213: 0
B214: 0
B215: 0
B216: 0
B217: 0
B218: 0
B219: 0
B220: 0
B221: 0

Sheet ANEXO GASTOS FIJOS
A2: Volver al Indice
A3: Volver a gastos fijos
B6: GASTOS FIJOS
B8: INCREMENTO/REDUCCION DE GASTOS FIJOS INTERANUAL (EN %) | E8: DE AÑO 1 A AÑO 2 | F8: DE AÑO 2 A AÑO 3 | G8: DE AÑO 3 A AÑO 4
C11: =AVERAGE(Prevision_mensual_gastos_fijos[IVA]) -> 0.1360869565 | D11: ='7.CUENTA DE RESULTADOS '!C20 -> 1900enero | E11: ='7.CUENTA DE RESULTADOS '!D20 -> 1900enero | F11: ='7.CUENTA DE RESULTADOS '!E20 -> 1900febrero | G11: ='7.CUENTA DE RESULTADOS '!F20 -> 1900marzo | H11: ='7.CUENTA DE RESULTADOS '!G20 -> 1900abril | I11: ='7.CUENTA DE RESULTADOS '!H20 -> 1900mayo | J11: ='7.CUENTA DE RESULTADOS '!I20 -> 1900junio | K11: ='7.CUENTA DE RESULTADOS '!J20 -> 1900julio | L11: ='7.CUENTA DE RESULTADOS '!K20 -> 1900agosto | M11: ='7.CUENTA DE RESULTADOS '!L20 -> 1900septiembre | N11: ='7.CUENTA DE RESULTADOS '!M20 -> 1900octubre | O11: ='7.CUENTA DE RESULTADOS '!N20 -> 1900noviembre
B12: PREVISIÓN MENSUAL DE GASTOS FIJOS | C12: IVA | D12: Mes 1 | E12: Mes 2 | F12: Mes 3 | G12: Mes 4 | H12: Mes 5 | I12: Mes 6 | J12: Mes 7 | K12: Mes 8 | L12: Mes 9 | M12: Mes 10 | N12: Mes 11 | O12: Mes 12 | P12: TOTAL anual | R12: TOTAL anual
B13: Amortizaciones | C13: =IF('ANEXO GASTOS FIJOS'!$B13="","",VLOOKUP('ANEXO GASTOS FIJOS'!$B13,'TABLAS REFERENCIA '!$H$88:$I$110,2,0)) -> 0.21 | D13: =+'ANEXO INVERSIÓN'!$J$39/12 -> 0 | E13: =+D13 -> 0 | F13: 0 | G13: 0 | H13: 0 | I13: 0 | J13: 0 | K13: 0 | L13: 0 | M13: 0 | N13: 0 | O13: 0 | P13: =+SUM(D13:O13) -> 0 | R13: =IF(Prevision_mensual_gastos_fijos[[#This Row],[TOTAL anual]]<>0,Prevision_mensual_gastos_fijos[[#This Row],[TOTAL anual]],NA()) -> 
B14: Alquileres y cánones | C14: =IF('ANEXO GASTOS FIJOS'!$B14="","",VLOOKUP('ANEXO GASTOS FIJOS'!$B14,'TABLAS REFERENCIA '!$H$88:$I$110,2,0)) -> 0.21 | E14: =Prevision_mensual_gastos_fijos[[#This Row],[Mes 1 ]] -> 0 | F14: =Prevision_mensual_gastos_fijos[[#This Row],[Mes 2]] -> 0 | G14: =Prevision_mensual_gastos_fijos[[#This Row],[Mes 3 ]] -> 0 | H14: =Prevision_mensual_gastos_fijos[[#This Row],[Mes 4 ]] -> 0 | I14: =Prevision_mensual_gastos_fijos[[#This Row],[Mes 5 ]] -> 0 | J14: =Prevision_mensual_gastos_fijos[[#This Row],[Mes 6 ]] -> 0 | K14: =Prevision_mensual_gastos_fijos[[#This Row],[Mes 7 ]] -> 0 | L14: =Prevision_mensual_gastos_fijos[[#This Row],[Mes 8 ]] -> 0 | M14: =Prevision_mensual_gastos_fijos[[#This Row],[Mes 9 ]] -> 0 | N14: =Prevision_mensual_gastos_fijos[[#This Row],[Mes 10 ]] -> 0 | O14: =Prevision_mensual_gastos_fijos[[#This Row],[Mes 11 ]] -> 0 | P14: 0 | R14: =IF(Prevision_mensual_gastos_fijos[[#This Row],[TOTAL anual]]<>0,Prevision_mensual_gastos_fijos[[#This Row],[TOTAL anual]],NA()) -> 
B15: Renting | C15: =IF('ANEXO GASTOS FIJOS'!$B15="","",VLOOKUP('ANEXO GASTOS FIJOS'!$B15,'TABLAS REFERENCIA '!$H$88:$I$110,2,0)) -> 0.21 | E15: =Prevision_mensual_gastos_fijos[[#This Row],[Mes 1 ]] -> 0 | F15: =Prevision_mensual_gastos_fijos[[#This Row],[Mes 2]] -> 0 | G15: =Prevision_mensual_gastos_fijos[[#This Row],[Mes 3 ]] -> 0 | H15: =Prevision_mensual_gastos_fijos[[#This Row],[Mes 4 ]] -> 0 | I15: =Prevision_mensual_gastos_fijos[[#This Row],[Mes 5 ]] -> 0 | J15: =Prevision_mensual_gastos_fijos[[#This Row],[Mes 6 ]] -> 0 | K15: =Prevision_mensual_gastos_fijos[[#This Row],[Mes 7 ]] -> 0 | L15: =Prevision_mensual_gastos_fijos[[#This Row],[Mes 8 ]] -> 0 | M15: =Prevision_mensual_gastos_fijos[[#This Row],[Mes 9 ]] -> 0 | N15: =Prevision_mensual_gastos_fijos[[#This Row],[Mes 10 ]] -> 0 | O15: =Prevision_mensual_gastos_fijos[[#This Row],[Mes 11 ]] -> 0 | P15: 0 | R15: =IF(Prevision_mensual_gastos_fijos[[#This Row],[TOTAL anual]]<>0,Prevision_mensual_gastos_fijos[[#This Row],[TOTAL anual]],NA()) -> 
B16: Conservación (Mantenimiento y reparaciones) | C16: =IF('ANEXO GASTOS FIJOS'!$B16="","",VLOOKUP('ANEXO GASTOS FIJOS'!$B16,'TABLAS REFERENCIA '!$H$88:$I$110,2,0)) -> 0.21 | E16: =Prevision_mensual_gastos_fijos[[#This Row],[Mes 1 ]] -> 0 | F16: =Prevision_mensual_gastos_fijos[[#This Row],[Mes 2]] -> 0 | G16: =Prevision_mensual_gastos_fijos[[#This Row],[Mes 3 ]] -> 0 | H16: =Prevision_mensual_gastos_fijos[[#This Row],[Mes 4 ]] -> 0 | I16: =Prevision_mensual_gastos_fijos[[#This Row],[Mes 5 ]] -> 0 | J16: =Prevision_mensual_gastos_fijos[[#This Row],[Mes 6 ]] -> 0 | K16: =Prevision_mensual_gastos_fijos[[#This Row],[Mes 7 ]] -> 0 | L16: =Prevision_mensual_gastos_fijos[[#This Row],[Mes 8 ]] -> 0 | M16: =Prevision_mensual_gastos_fijos[[#This Row],[Mes 9 ]] -> 0 | N16: =Prevision_mensual_gastos_fijos[[#This Row],[Mes 10 ]] -> 0 | O16: =Prevision_mensual_gastos_fijos[[#This Row],[Mes 11 ]] -> 0 | P16: 0 | R16: =IF(Prevision_mensual_gastos_fijos[[#This Row],[TOTAL anual]]<>0,Prevision_mensual_gastos_fijos[[#This Row],[TOTAL anual]],NA()) -> 
B17: Servicios profesionales | C17: =IF('ANEXO GASTOS FIJOS'!$B17="","",VLOOKUP('ANEXO GASTOS FIJOS'!$B17,'TABLAS REFERENCIA '!$H$88:$I$110,2,0)) -> 0.21 | E17: =Prevision_mensual_gastos_fijos[[#This Row],[Mes 1 ]] -> 0 | F17: =Prevision_mensual_gastos_fijos[[#This Row],[Mes 2]] -> 0 | G17: =Prevision_mensual_gastos_fijos[[#This Row],[Mes 3 ]] -> 0 | H17: =Prevision_mensual_gastos_fijos[[#This Row],[Mes 4 ]] -> 0 | I17: =Prevision_mensual_gastos_fijos[[#This Row],[Mes 5 ]] -> 0 | J17: =Prevision_mensual_gastos_fijos[[#This Row],[Mes 6 ]] -> 0 | K17: =Prevision_mensual_gastos_fijos[[#This Row],[Mes 7 ]] -> 0 | L17: =Prevision_mensual_gastos_fijos[[#This Row],[Mes 8 ]] -> 0 | M17: =Prevision_mensual_gastos_fijos[[#This Row],[Mes 9 ]] -> 0 | N17: =Prevision_mensual_gastos_fijos[[#This Row],[Mes 10 ]] -> 0 | O17: =Prevision_mensual_gastos_fijos[[#This Row],[Mes 11 ]] -> 0 | P17: =+SUM(D17:O17) -> 0 | R17: =IF(Prevision_mensual_gastos_fijos[[#This Row],[TOTAL anual]]<>0,Prevision_mensual_gastos_fijos[[#This Row],[TOTAL anual]],NA()) -> 
B18: Transporte | C18: =IF('ANEXO GASTOS FIJOS'!$B18="","",VLOOKUP('ANEXO GASTOS FIJOS'!$B18,'TABLAS REFERENCIA '!$H$88:$I$110,2,0)) -> 0.21 | E18: =Prevision_mensual_gastos_fijos[[#This Row],[Mes 1 ]] -> 0 | F18: =Prevision_mensual_gastos_fijos[[#This Row],[Mes 2]] -> 0 | G18: =Prevision_mensual_gastos_fijos[[#This Row],[Mes 3 ]] -> 0 | H18: =Prevision_mensual_gastos_fijos[[#This Row],[Mes 4 ]] -> 0 | I18: =Prevision_mensual_gastos_fijos[[#This Row],[Mes 5 ]] -> 0 | J18: =Prevision_mensual_gastos_fijos[[#This Row],[Mes 6 ]] -> 0 | K18: =Prevision_mensual_gastos_fijos[[#This Row],[Mes 7 ]] -> 0 | L18: =Prevision_mensual_gastos_fijos[[#This Row],[Mes 8 ]] -> 0 | M18: =Prevision_mensual_gastos_fijos[[#This Row],[Mes 9 ]] -> 0 | N18: =Prevision_mensual_gastos_fijos[[#This Row],[Mes 10 ]] -> 0 | O18: =Prevision_mensual_gastos_fijos[[#This Row],[Mes 11 ]] -> 0 | P18: 0 | R18: =IF(Prevision_mensual_gastos_fijos[[#This Row],[TOTAL anual]]<>0,Prevision_mensual_gastos_fijos[[#This Row],[TOTAL anual]],NA()) -> 
B19: Seguros | C19: =IF('ANEXO GASTOS FIJOS'!$B19="","",VLOOKUP('ANEXO GASTOS FIJOS'!$B19,'TABLAS REFERENCIA '!$H$88:$I$110,2,0)) -> 0 | E19: =Prevision_mensual_gastos_fijos[[#This Row],[Mes 1 ]] -> 0 | F19: =Prevision_mensual_gastos_fijos[[#This Row],[Mes 2]] -> 0 | G19: =Prevision_mensual_gastos_fijos[[#This Row],[Mes 3 ]] -> 0 | H19: =Prevision_mensual_gastos_fijos[[#This Row],[Mes 4 ]] -> 0 | I19: =Prevision_mensual_gastos_fijos[[#This Row],[Mes 5 ]] -> 0 | J19: =Prevision_mensual_gastos_fijos[[#This Row],[Mes 6 ]] -> 0 | K19: =Prevision_mensual_gastos_fijos[[#This Row],[Mes 7 ]] -> 0 | L19: =Prevision_mensual_gastos_fijos[[#This Row],[Mes 8 ]] -> 0 | M19: =Prevision_mensual_gastos_fijos[[#This Row],[Mes 9 ]] -> 0 | N19: =Prevision_mensual_gastos_fijos[[#This Row],[Mes 10 ]] -> 0 | O19: =Prevision_mensual_gastos_fijos[[#This Row],[Mes 11 ]] -> 0 | P19: =+SUM(D19:O19) -> 0 | R19: =IF(Prevision_mensual_gastos_fijos[[#This Row],[TOTAL anual]]<>0,Prevision_mensual_gastos_fijos[[#This Row],[TOTAL anual]],NA()) -> 
B20: Gastos bancarios | C20: =IF('ANEXO GASTOS FIJOS'!$B20="","",VLOOKUP('ANEXO GASTOS FIJOS'!$B20,'TABLAS REFERENCIA '!$H$88:$I$110,2,0)) -> 0.21 | E20: =Prevision_mensual_gastos_fijos[[#This Row],[Mes 1 ]] -> 0 | F20: =Prevision_mensual_gastos_fijos[[#This Row],[Mes 2]] -> 0 | G20: =Prevision_mensual_gastos_fijos[[#This Row],[Mes 3 ]] -> 0 | H20: =Prevision_mensual_gastos_fijos[[#This Row],[Mes 4 ]] -> 0 | I20: =Prevision_mensual_gastos_fijos[[#This Row],[Mes 5 ]] -> 0 | J20: =Prevision_mensual_gastos_fijos[[#This Row],[Mes 6 ]] -> 0 | K20: =Prevision_mensual_gastos_fijos[[#This Row],[Mes 7 ]] -> 0 | L20: =Prevision_mensual_gastos_fijos[[#This Row],[Mes 8 ]] -> 0 | M20: =Prevision_mensual_gastos_fijos[[#This Row],[Mes 9 ]] -> 0 | N20: =Prevision_mensual_gastos_fijos[[#This Row],[Mes 10 ]] -> 0 | O20: =Prevision_mensual_gastos_fijos[[#This Row],[Mes 11 ]] -> 0 | P20: 0 | R20: =IF(Prevision_mensual_gastos_fijos[[#This Row],[TOTAL anual]]<>0,Prevision_mensual_gastos_fijos[[#This Row],[TOTAL anual]],NA()) -> 
B21: Publicidad y comunicación | C21: =IF('ANEXO GASTOS FIJOS'!$B21="","",VLOOKUP('ANEXO GASTOS FIJOS'!$B21,'TABLAS REFERENCIA '!$H$88:$I$110,2,0)) -> 0.21 | E21: =Prevision_mensual_gastos_fijos[[#This Row],[Mes 1 ]] -> 0 | F21: =Prevision_mensual_gastos_fijos[[#This Row],[Mes 2]] -> 0 | G21: =Prevision_mensual_gastos_fijos[[#This Row],[Mes 3 ]] -> 0 | H21: =Prevision_mensual_gastos_fijos[[#This Row],[Mes 4 ]] -> 0 | I21: =Prevision_mensual_gastos_fijos[[#This Row],[Mes 5 ]] -> 0 | J21: =Prevision_mensual_gastos_fijos[[#This Row],[Mes 6 ]] -> 0 | K21: =Prevision_mensual_gastos_fijos[[#This Row],[Mes 7 ]] -> 0 | L21: =Prevision_mensual_gastos_fijos[[#This Row],[Mes 8 ]] -> 0 | M21: =Prevision_mensual_gastos_fijos[[#This Row],[Mes 9 ]] -> 0 | N21: =Prevision_mensual_gastos_fijos[[#This Row],[Mes 10 ]] -> 0 | O21: =Prevision_mensual_gastos_fijos[[#This Row],[Mes 11 ]] -> 0 | P21: 0 | R21: =IF(Prevision_mensual_gastos_fijos[[#This Row],[TOTAL anual]]<>0,Prevision_mensual_gastos_fijos[[#This Row],[TOTAL anual]],NA()) -> 
B22: Electricidad | C22: =IF('ANEXO GASTOS FIJOS'!$B22="","",VLOOKUP('ANEXO GASTOS FIJOS'!$B22,'TABLAS REFERENCIA '!$H$88:$I$110,2,0)) -> 0.1 | E22: =Prevision_mensual_gastos_fijos[[#This Row],[Mes 1 ]] -> 0 | F22: =Prevision_mensual_gastos_fijos[[#This Row],[Mes 2]] -> 0 | G22: =Prevision_mensual_gastos_fijos[[#This Row],[Mes 3 ]] -> 0 | H22: =Prevision_mensual_gastos_fijos[[#This Row],[Mes 4 ]] -> 0 | I22: =Prevision_mensual_gastos_fijos[[#This Row],[Mes 5 ]] -> 0 | J22: =Prevision_mensual_gastos_fijos[[#This Row],[Mes 6 ]] -> 0 | K22: =Prevision_mensual_gastos_fijos[[#This Row],[Mes 7 ]] -> 0 | L22: =Prevision_mensual_gastos_fijos[[#This Row],[Mes 8 ]] -> 0 | M22: =Prevision_mensual_gastos_fijos[[#This Row],[Mes 9 ]] -> 0 | N22: =Prevision_mensual_gastos_fijos[[#This Row],[Mes 10 ]] -> 0 | O22: =Prevision_mensual_gastos_fijos[[#This Row],[Mes 11 ]] -> 0 | P22: 0 | R22: =IF(Prevision_mensual_gastos_fijos[[#This Row],[TOTAL anual]]<>0,Prevision_mensual_gastos_fijos[[#This Row],[TOTAL anual]],NA()) -> 
B23: Consumo de agua | C23: =IF('ANEXO GASTOS FIJOS'!$B23="","",VLOOKUP('ANEXO GASTOS FIJOS'!$B23,'TABLAS REFERENCIA '!$H$88:$I$110,2,0)) -> 0.1 | D23: =+G60/12 -> 0 | E23: =+Prevision_mensual_gastos_fijos[[#This Row],[Mes 1 ]] -> 0 | F23: =+Prevision_mensual_gastos_fijos[[#This Row],[Mes 1 ]] -> 0 | G23: =+Prevision_mensual_gastos_fijos[[#This Row],[Mes 1 ]] -> 0 | H23: =+Prevision_mensual_gastos_fijos[[#This Row],[Mes 1 ]] -> 0 | I23: =+Prevision_mensual_gastos_fijos[[#This Row],[Mes 1 ]] -> 0 | J23: =+Prevision_mensual_gastos_fijos[[#This Row],[Mes 1 ]] -> 0 | K23: =+Prevision_mensual_gastos_fijos[[#This Row],[Mes 1 ]] -> 0 | L23: =+Prevision_mensual_gastos_fijos[[#This Row],[Mes 1 ]] -> 0 | M23: =+Prevision_mensual_gastos_fijos[[#This Row],[Mes 1 ]] -> 0 | N23: =+Prevision_mensual_gastos_fijos[[#This Row],[Mes 1 ]] -> 0 | O23: =+Prevision_mensual_gastos_fijos[[#This Row],[Mes 1 ]] -> 0 | P23: 0 | R23: =IF(Prevision_mensual_gastos_fijos[[#This Row],[TOTAL anual]]<>0,Prevision_mensual_gastos_fijos[[#This Row],[TOTAL anual]],NA()) -> 
B24: Telefonia Movil / Fija | C24: =IF('ANEXO GASTOS FIJOS'!$B24="","",VLOOKUP('ANEXO GASTOS FIJOS'!$B24,'TABLAS REFERENCIA '!$H$88:$I$110,2,0)) -> 0.21 | E24: =Prevision_mensual_gastos_fijos[[#This Row],[Mes 1 ]] -> 0 | F24: =Prevision_mensual_gastos_fijos[[#This Row],[Mes 2]] -> 0 | G24: =Prevision_mensual_gastos_fijos[[#This Row],[Mes 3 ]] -> 0 | H24: =Prevision_mensual_gastos_fijos[[#This Row],[Mes 4 ]] -> 0 | I24: =Prevision_mensual_gastos_fijos[[#This Row],[Mes 5 ]] -> 0 | J24: =Prevision_mensual_gastos_fijos[[#This Row],[Mes 6 ]] -> 0 | K24: =Prevision_mensual_gastos_fijos[[#This Row],[Mes 7 ]] -> 0 | L24: =Prevision_mensual_gastos_fijos[[#This Row],[Mes 8 ]] -> 0 | M24: =Prevision_mensual_gastos_fijos[[#This Row],[Mes 9 ]] -> 0 | N24: =Prevision_mensual_gastos_fijos[[#This Row],[Mes 10 ]] -> 0 | O24: =Prevision_mensual_gastos_fijos[[#This Row],[Mes 11 ]] -> 0 | P24: 0 | R24: =IF(Prevision_mensual_gastos_fijos[[#This Row],[TOTAL anual]]<>0,Prevision_mensual_gastos_fijos[[#This Row],[TOTAL anual]],NA()) -> 
B25: Internet | C25: =IF('ANEXO GASTOS FIJOS'!$B25="","",VLOOKUP('ANEXO GASTOS FIJOS'!$B25,'TABLAS REFERENCIA '!$H$88:$I$110,2,0)) -> 0.21 | E25: =Prevision_mensual_gastos_fijos[[#This Row],[Mes 1 ]] -> 0 | F25: =Prevision_mensual_gastos_fijos[[#This Row],[Mes 2]] -> 0 | G25: =Prevision_mensual_gastos_fijos[[#This Row],[Mes 3 ]] -> 0 | H25: =Prevision_mensual_gastos_fijos[[#This Row],[Mes 4 ]] -> 0 | I25: =Prevision_mensual_gastos_fijos[[#This Row],[Mes 5 ]] -> 0 | J25: =Prevision_mensual_gastos_fijos[[#This Row],[Mes 6 ]] -> 0 | K25: =Prevision_mensual_gastos_fijos[[#This Row],[Mes 7 ]] -> 0 | L25: =Prevision_mensual_gastos_fijos[[#This Row],[Mes 8 ]] -> 0 | M25: =Prevision_mensual_gastos_fijos[[#This Row],[Mes 9 ]] -> 0 | N25: =Prevision_mensual_gastos_fijos[[#This Row],[Mes 10 ]] -> 0 | O25: =Prevision_mensual_gastos_fijos[[#This Row],[Mes 11 ]] -> 0 | P25: 0 | R25: =IF(Prevision_mensual_gastos_fijos[[#This Row],[TOTAL anual]]<>0,Prevision_mensual_gastos_fijos[[#This Row],[TOTAL anual]],NA()) -> 
B26: Material de Oficina | C26: =IF('ANEXO GASTOS FIJOS'!$B26="","",VLOOKUP('ANEXO GASTOS FIJOS'!$B26,'TABLAS REFERENCIA '!$H$88:$I$110,2,0)) -> 0.21 | E26: =Prevision_mensual_gastos_fijos[[#This Row],[Mes 1 ]] -> 0 | F26: =Prevision_mensual_gastos_fijos[[#This Row],[Mes 2]] -> 0 | G26: =Prevision_mensual_gastos_fijos[[#This Row],[Mes 3 ]] -> 0 | H26: =Prevision_mensual_gastos_fijos[[#This Row],[Mes 4 ]] -> 0 | I26: =Prevision_mensual_gastos_fijos[[#This Row],[Mes 5 ]] -> 0 | J26: =Prevision_mensual_gastos_fijos[[#This Row],[Mes 6 ]] -> 0 | K26: =Prevision_mensual_gastos_fijos[[#This Row],[Mes 7 ]] -> 0 | L26: =Prevision_mensual_gastos_fijos[[#This Row],[Mes 8 ]] -> 0 | M26: =Prevision_mensual_gastos_fijos[[#This Row],[Mes 9 ]] -> 0 | N26: =Prevision_mensual_gastos_fijos[[#This Row],[Mes 10 ]] -> 0 | O26: =Prevision_mensual_gastos_fijos[[#This Row],[Mes 11 ]] -> 0 | P26: 0 | R26: =IF(Prevision_mensual_gastos_fijos[[#This Row],[TOTAL anual]]<>0,Prevision_mensual_gastos_fijos[[#This Row],[TOTAL anual]],NA()) -> 
B27: Sueldo bruto de los trabajadores autónomos | C27: =IF('ANEXO GASTOS FIJOS'!$B27="","",VLOOKUP('ANEXO GASTOS FIJOS'!$B27,'TABLAS REFERENCIA '!$H$88:$I$110,2,0)) -> 0 | E27: =Prevision_mensual_gastos_fijos[[#This Row],[Mes 1 ]] -> 0 | F27: =Prevision_mensual_gastos_fijos[[#This Row],[Mes 2]] -> 0 | G27: =Prevision_mensual_gastos_fijos[[#This Row],[Mes 3 ]] -> 0 | H27: =Prevision_mensual_gastos_fijos[[#This Row],[Mes 4 ]] -> 0 | I27: =Prevision_mensual_gastos_fijos[[#This Row],[Mes 5 ]] -> 0 | J27: =Prevision_mensual_gastos_fijos[[#This Row],[Mes 6 ]] -> 0 | K27: =Prevision_mensual_gastos_fijos[[#This Row],[Mes 7 ]] -> 0 | L27: =Prevision_mensual_gastos_fijos[[#This Row],[Mes 8 ]] -> 0 | M27: =Prevision_mensual_gastos_fijos[[#This Row],[Mes 9 ]] -> 0 | N27: =Prevision_mensual_gastos_fijos[[#This Row],[Mes 10 ]] -> 0 | O27: =Prevision_mensual_gastos_fijos[[#This Row],[Mes 11 ]] -> 0 | P27: 0 | R27: =IF(Prevision_mensual_gastos_fijos[[#This Row],[TOTAL anual]]<>0,Prevision_mensual_gastos_fijos[[#This Row],[TOTAL anual]],NA()) -> 
B28: Cotización a la Seguridad Social de los trabajadores autónomos | C28: =IF('ANEXO GASTOS FIJOS'!$B28="","",VLOOKUP('ANEXO GASTOS FIJOS'!$B28,'TABLAS REFERENCIA '!$H$88:$I$110,2,0)) -> 0 | E28: =Prevision_mensual_gastos_fijos[[#This Row],[Mes 1 ]] -> 0 | F28: =Prevision_mensual_gastos_fijos[[#This Row],[Mes 2]] -> 0 | G28: =Prevision_mensual_gastos_fijos[[#This Row],[Mes 3 ]] -> 0 | H28: =Prevision_mensual_gastos_fijos[[#This Row],[Mes 4 ]] -> 0 | I28: =Prevision_mensual_gastos_fijos[[#This Row],[Mes 5 ]] -> 0 | J28: =Prevision_mensual_gastos_fijos[[#This Row],[Mes 6 ]] -> 0 | K28: =Prevision_mensual_gastos_fijos[[#This Row],[Mes 7 ]] -> 0 | L28: =Prevision_mensual_gastos_fijos[[#This Row],[Mes 8 ]] -> 0 | M28: =Prevision_mensual_gastos_fijos[[#This Row],[Mes 9 ]] -> 0 | N28: =Prevision_mensual_gastos_fijos[[#This Row],[Mes 10 ]] -> 0 | O28: =Prevision_mensual_gastos_fijos[[#This Row],[Mes 11 ]] -> 0 | P28: 0 | R28: =IF(Prevision_mensual_gastos_fijos[[#This Row],[TOTAL anual]]<>0,Prevision_mensual_gastos_fijos[[#This Row],[TOTAL anual]],NA()) -> 
B29: Sueldo bruto de los trabajadores en régimen general | C29: =IF('ANEXO GASTOS FIJOS'!$B29="","",VLOOKUP('ANEXO GASTOS FIJOS'!$B29,'TABLAS REFERENCIA '!$H$88:$I$110,2,0)) -> 0 | E29: =Prevision_mensual_gastos_fijos[[#This Row],[Mes 1 ]] -> 0 | F29: =Prevision_mensual_gastos_fijos[[#This Row],[Mes 2]] -> 0 | G29: =Prevision_mensual_gastos_fijos[[#This Row],[Mes 3 ]] -> 0 | H29: =Prevision_mensual_gastos_fijos[[#This Row],[Mes 4 ]] -> 0 | I29: =Prevision_mensual_gastos_fijos[[#This Row],[Mes 5 ]] -> 0 | J29: =Prevision_mensual_gastos_fijos[[#This Row],[Mes 6 ]] -> 0 | K29: =Prevision_mensual_gastos_fijos[[#This Row],[Mes 7 ]] -> 0 | L29: =Prevision_mensual_gastos_fijos[[#This Row],[Mes 8 ]] -> 0 | M29: =Prevision_mensual_gastos_fijos[[#This Row],[Mes 9 ]] -> 0 | N29: =Prevision_mensual_gastos_fijos[[#This Row],[Mes 10 ]] -> 0 | O29: =Prevision_mensual_gastos_fijos[[#This Row],[Mes 11 ]] -> 0 | P29: =+SUM(D29:O29) -> 0 | R29: =IF(Prevision_mensual_gastos_fijos[[#This Row],[TOTAL anual]]<>0,Prevision_mensual_gastos_fijos[[#This Row],[TOTAL anual]],NA()) -> 
B30: Cotización a la Seguridad Social de los trabajadores en régimen general | C30: =IF('ANEXO GASTOS FIJOS'!$B30="","",VLOOKUP('ANEXO GASTOS FIJOS'!$B30,'TABLAS REFERENCIA '!$H$88:$I$110,2,0)) -> 0 | E30: =Prevision_mensual_gastos_fijos[[#This Row],[Mes 1 ]] -> 0 | F30: =Prevision_mensual_gastos_fijos[[#This Row],[Mes 2]] -> 0 | G30: =Prevision_mensual_gastos_fijos[[#This Row],[Mes 3 ]] -> 0 | H30: =Prevision_mensual_gastos_fijos[[#This Row],[Mes 4 ]] -> 0 | I30: =Prevision_mensual_gastos_fijos[[#This Row],[Mes 5 ]] -> 0 | J30: =Prevision_mensual_gastos_fijos[[#This Row],[Mes 6 ]] -> 0 | K30: =Prevision_mensual_gastos_fijos[[#This Row],[Mes 7 ]] -> 0 | L30: =Prevision_mensual_gastos_fijos[[#This Row],[Mes 8 ]] -> 0 | M30: =Prevision_mensual_gastos_fijos[[#This Row],[Mes 9 ]] -> 0 | N30: =Prevision_mensual_gastos_fijos[[#This Row],[Mes 10 ]] -> 0 | O30: =Prevision_mensual_gastos_fijos[[#This Row],[Mes 11 ]] -> 0 | P30: 0 | R30: =IF(Prevision_mensual_gastos_fijos[[#This Row],[TOTAL anual]]<>0,Prevision_mensual_gastos_fijos[[#This Row],[TOTAL anual]],NA()) -> 
B31: Retenciones IRPF | C31: =IF('ANEXO GASTOS FIJOS'!$B31="","",VLOOKUP('ANEXO GASTOS FIJOS'!$B31,'TABLAS REFERENCIA '!$H$88:$I$110,2,0)) -> 0 | E31: =Prevision_mensual_gastos_fijos[[#This Row],[Mes 1 ]] -> 0 | F31: =Prevision_mensual_gastos_fijos[[#This Row],[Mes 2]] -> 0 | G31: =Prevision_mensual_gastos_fijos[[#This Row],[Mes 3 ]] -> 0 | H31: =Prevision_mensual_gastos_fijos[[#This Row],[Mes 4 ]] -> 0 | I31: =Prevision_mensual_gastos_fijos[[#This Row],[Mes 5 ]] -> 0 | J31: =Prevision_mensual_gastos_fijos[[#This Row],[Mes 6 ]] -> 0 | K31: =Prevision_mensual_gastos_fijos[[#This Row],[Mes 7 ]] -> 0 | L31: =Prevision_mensual_gastos_fijos[[#This Row],[Mes 8 ]] -> 0 | M31: =Prevision_mensual_gastos_fijos[[#This Row],[Mes 9 ]] -> 0 | N31: =Prevision_mensual_gastos_fijos[[#This Row],[Mes 10 ]] -> 0 | O31: =Prevision_mensual_gastos_fijos[[#This Row],[Mes 11 ]] -> 0 | P31: 0 | R31: =IF(Prevision_mensual_gastos_fijos[[#This Row],[TOTAL anual]]<>0,Prevision_mensual_gastos_fijos[[#This Row],[TOTAL anual]],NA()) -> 
B32: Mantenimiento del riego | C32: =IF('ANEXO GASTOS FIJOS'!$B32="","",VLOOKUP('ANEXO GASTOS FIJOS'!$B32,'TABLAS REFERENCIA '!$H$88:$I$110,2,0)) -> 0.21 | D32: =+G59/12 -> 0 | E32: 0 | F32: =Prevision_mensual_gastos_fijos[[#This Row],[Mes 2]] -> 0 | G32: =Prevision_mensual_gastos_fijos[[#This Row],[Mes 3 ]] -> 0 | H32: =Prevision_mensual_gastos_fijos[[#This Row],[Mes 4 ]] -> 0 | I32: =Prevision_mensual_gastos_fijos[[#This Row],[Mes 5 ]] -> 0 | J32: =Prevision_mensual_gastos_fijos[[#This Row],[Mes 6 ]] -> 0 | K32: =Prevision_mensual_gastos_fijos[[#This Row],[Mes 7 ]] -> 0 | L32: =Prevision_mensual_gastos_fijos[[#This Row],[Mes 8 ]] -> 0 | M32: =Prevision_mensual_gastos_fijos[[#This Row],[Mes 9 ]] -> 0 | N32: =Prevision_mensual_gastos_fijos[[#This Row],[Mes 10 ]] -> 0 | O32: =Prevision_mensual_gastos_fijos[[#This Row],[Mes 11 ]] -> 0 | P32: 0 | R32: =IF(Prevision_mensual_gastos_fijos[[#This Row],[TOTAL anual]]<>0,Prevision_mensual_gastos_fijos[[#This Row],[TOTAL anual]],NA()) -> 
B33: Plantel | C33: =IF('ANEXO GASTOS FIJOS'!$B33="","",VLOOKUP('ANEXO GASTOS FIJOS'!$B33,'TABLAS REFERENCIA '!$H$88:$I$110,2,0)) -> 0.1 | D33: =+G61/12 -> 0 | E33: 0 | F33: =Prevision_mensual_gastos_fijos[[#This Row],[Mes 2]] -> 0 | G33: =Prevision_mensual_gastos_fijos[[#This Row],[Mes 3 ]] -> 0 | H33: =Prevision_mensual_gastos_fijos[[#This Row],[Mes 4 ]] -> 0 | I33: =Prevision_mensual_gastos_fijos[[#This Row],[Mes 5 ]] -> 0 | J33: =Prevision_mensual_gastos_fijos[[#This Row],[Mes 6 ]] -> 0 | K33: =Prevision_mensual_gastos_fijos[[#This Row],[Mes 7 ]] -> 0 | L33: =Prevision_mensual_gastos_fijos[[#This Row],[Mes 8 ]] -> 0 | M33: =Prevision_mensual_gastos_fijos[[#This Row],[Mes 9 ]] -> 0 | N33: =Prevision_mensual_gastos_fijos[[#This Row],[Mes 10 ]] -> 0 | O33: =Prevision_mensual_gastos_fijos[[#This Row],[Mes 11 ]] -> 0 | P33: 0 | R33: =IF(Prevision_mensual_gastos_fijos[[#This Row],[TOTAL anual]]<>0,Prevision_mensual_gastos_fijos[[#This Row],[TOTAL anual]],NA()) -> 
B34: Fitosanitarios | C34: =IF('ANEXO GASTOS FIJOS'!$B34="","",VLOOKUP('ANEXO GASTOS FIJOS'!$B34,'TABLAS REFERENCIA '!$H$88:$I$110,2,0)) -> 0.1 | D34: =+G62/12 -> 0 | E34: 0 | F34: =Prevision_mensual_gastos_fijos[[#This Row],[Mes 2]] -> 0 | G34: =Prevision_mensual_gastos_fijos[[#This Row],[Mes 3 ]] -> 0 | H34: =Prevision_mensual_gastos_fijos[[#This Row],[Mes 4 ]] -> 0 | I34: =Prevision_mensual_gastos_fijos[[#This Row],[Mes 5 ]] -> 0 | J34: =Prevision_mensual_gastos_fijos[[#This Row],[Mes 6 ]] -> 0 | K34: =Prevision_mensual_gastos_fijos[[#This Row],[Mes 7 ]] -> 0 | L34: =Prevision_mensual_gastos_fijos[[#This Row],[Mes 8 ]] -> 0 | M34: =Prevision_mensual_gastos_fijos[[#This Row],[Mes 9 ]] -> 0 | N34: =Prevision_mensual_gastos_fijos[[#This Row],[Mes 10 ]] -> 0 | O34: =Prevision_mensual_gastos_fijos[[#This Row],[Mes 11 ]] -> 0 | P34: 0 | R34: =IF(Prevision_mensual_gastos_fijos[[#This Row],[TOTAL anual]]<>0,Prevision_mensual_gastos_fijos[[#This Row],[TOTAL anual]],NA()) -> 
B35: Fertilizantes | C35: =IF('ANEXO GASTOS FIJOS'!$B35="","",VLOOKUP('ANEXO GASTOS FIJOS'!$B35,'TABLAS REFERENCIA '!$H$88:$I$110,2,0)) -> 0.21 | D35: =+G63/12 -> 0 | E35: 0 | F35: =Prevision_mensual_gastos_fijos[[#This Row],[Mes 2]] -> 0 | G35: =Prevision_mensual_gastos_fijos[[#This Row],[Mes 3 ]] -> 0 | H35: =Prevision_mensual_gastos_fijos[[#This Row],[Mes 4 ]] -> 0 | I35: =Prevision_mensual_gastos_fijos[[#This Row],[Mes 5 ]] -> 0 | J35: =Prevision_mensual_gastos_fijos[[#This Row],[Mes 6 ]] -> 0 | K35: =Prevision_mensual_gastos_fijos[[#This Row],[Mes 7 ]] -> 0 | L35: =Prevision_mensual_gastos_fijos[[#This Row],[Mes 8 ]] -> 0 | M35: =Prevision_mensual_gastos_fijos[[#This Row],[Mes 9 ]] -> 0 | N35: =Prevision_mensual_gastos_fijos[[#This Row],[Mes 10 ]] -> 0 | O35: =Prevision_mensual_gastos_fijos[[#This Row],[Mes 11 ]] -> 0 | P35: 0 | R35: =IF(Prevision_mensual_gastos_fijos[[#This Row],[TOTAL anual]]<>0,Prevision_mensual_gastos_fijos[[#This Row],[TOTAL anual]],NA()) -> 
P36: 0 | R36: =IF(Prevision_mensual_gastos_fijos[[#This Row],[TOTAL anual]]<>0,Prevision_mensual_gastos_fijos[[#This Row],[TOTAL anual]],NA()) -> 
P37: 0 | R37: =IF(Prevision_mensual_gastos_fijos[[#This Row],[TOTAL anual]]<>0,Prevision_mensual_gastos_fijos[[#This Row],[TOTAL anual]],NA()) -> 
C38: =IF('ANEXO GASTOS FIJOS'!$B38="","",VLOOKUP('ANEXO GASTOS FIJOS'!$B38,'TABLAS REFERENCIA '!$H$42:$I$49,2,1)) ->  | P38: 0 | R38: =IF(Prevision_mensual_gastos_fijos[[#This Row],[TOTAL anual]]<>0,Prevision_mensual_gastos_fijos[[#This Row],[TOTAL anual]],NA()) -> 
B41: iva promedio
B42: Total Base Gastos Fijos | D42: =SUM(Prevision_mensual_gastos_fijos[[Mes 1 ]]) -> 0 | E42: =SUM(Prevision_mensual_gastos_fijos[Mes 2]) -> 0 | F42: =SUM(Prevision_mensual_gastos_fijos[[Mes 3 ]]) -> 0 | G42: =SUM(Prevision_mensual_gastos_fijos[[Mes 4 ]]) -> 0 | H42: =SUM(Prevision_mensual_gastos_fijos[[Mes 5 ]]) -> 0 | I42: =SUM(Prevision_mensual_gastos_fijos[[Mes 6 ]]) -> 0 | J42: =SUM(Prevision_mensual_gastos_fijos[[Mes 7 ]]) -> 0 | K42: =SUM(Prevision_mensual_gastos_fijos[[Mes 8 ]]) -> 0 | L42: =SUM(Prevision_mensual_gastos_fijos[[Mes 9 ]]) -> 0 | M42: =SUM(Prevision_mensual_gastos_fijos[[Mes 10 ]]) -> 0 | N42: =SUM(Prevision_mensual_gastos_fijos[[Mes 11 ]]) -> 0 | O42: =SUM(Prevision_mensual_gastos_fijos[[Mes 12 ]]) -> 0 | P42: =SUM(D42:O42) -> 0
B43: Iva Gastos Fijos | D43: =SUMPRODUCT($C$13:$C$38,Prevision_mensual_gastos_fijos[[Mes 1 ]]) -> 0 | E43: =SUMPRODUCT($C$13:$C$38,Prevision_mensual_gastos_fijos[Mes 2]) -> 0 | F43: =SUMPRODUCT($C$13:$C$38,Prevision_mensual_gastos_fijos[[Mes 3 ]]) -> 0 | G43: =SUMPRODUCT($C$13:$C$38,Prevision_mensual_gastos_fijos[[Mes 4 ]]) -> 0 | H43: =SUMPRODUCT($C$13:$C$38,Prevision_mensual_gastos_fijos[[Mes 5 ]]) -> 0 | I43: =SUMPRODUCT($C$13:$C$38,Prevision_mensual_gastos_fijos[[Mes 5 ]]) -> 0 | J43: =SUMPRODUCT($C$13:$C$38,Prevision_mensual_gastos_fijos[[Mes 7 ]]) -> 0 | K43: =SUMPRODUCT($C$13:$C$38,Prevision_mensual_gastos_fijos[[Mes 8 ]]) -> 0 | L43: =SUMPRODUCT($C$13:$C$38,Prevision_mensual_gastos_fijos[[Mes 9 ]]) -> 0 | M43: =SUMPRODUCT($C$13:$C$38,Prevision_mensual_gastos_fijos[[Mes 10 ]]) -> 0 | N43: =SUMPRODUCT($C$13:$C$38,Prevision_mensual_gastos_fijos[[Mes 11 ]]) -> 0 | O43: =SUMPRODUCT($C$13:$C$38,Prevision_mensual_gastos_fijos[[Mes 12 ]]) -> 0 | P43: =P$42*$C$41 -> 0
B44: Total Importe Gastos Fijos | D44: =D42+D43 -> 0 | E44: 0 | F44: 0 | G44: 0 | H44: 0 | I44: 0 | J44: 0 | K44: 0 | L44: 0 | M44: 0 | N44: 0 | O44: 0 | P44: 0
B54: CALCULADORA GASTOS CORRIENTES RELACIONADOS CON EL CULTIVO
B57: Concepto | D57: Valor de referencia . Fuente de los valores de referencia de Mantenimiento de riego; Plantel; Fitosanitarios y Fertilizantes: media del gasto real de 5 proyectos productivos agroecológicos de la zona centro peninsular de 2 ha de media. En caso de tener una superficie menor los valores de referencia serán mayores. | F57: Valores reales .Si tienes otros valores, distintos a estos de referencia que hemos incluido, puedes anotarlos en esta columna.
C58: Superficie utilizada | D58: PRECIO x m² sin IVA | E58: TOTALES | F58: PRECIO x m² sin IVA | G58: TOTALES anuales
B59: Mantenimiento del riego | C59: ='2.PROYECTO'!$F$38 -> 0 | D59: =+'TABLAS REFERENCIA '!U9 -> 0.12 | E59: =D59*C59 -> 0 | F59: 0.023 | G59: =+F59*C59 -> 0
B60: Consumo de agua | C60: ='2.PROYECTO'!$F$38 -> 0 | D60: =+'TABLAS REFERENCIA '!U8 -> 1.26 | E60: =D60*C60 -> 0 | F60: 0.01 | G60: =+F60*C60 -> 0
B61: Plantel | C61: ='2.PROYECTO'!$F$38 -> 0 | D61: =+'TABLAS REFERENCIA '!U10 -> 0.15 | E61: =D61*C61 -> 0 | F61: 0.15 | G61: =+F61*C61 -> 0
B62: Fitosanitarios | C62: ='2.PROYECTO'!$F$38 -> 0 | D62: =+'TABLAS REFERENCIA '!U11 -> 0.08 | E62: =D62*C62 -> 0 | F62: 0.08 | G62: =+F62*C62 -> 0
B63: Fertilizantes | C63: ='2.PROYECTO'!$F$38 -> 0 | D63: =+'TABLAS REFERENCIA '!U12 -> 0.05 | E63: =D63*C63 -> 0 | F63: 0.05 | G63: =+F63*C63 -> 0
D64: TOTAL AÑO 1 | E64: =SUM(E59:E63) -> 0 | F64: TOTAL AÑO 1 | G64: =SUM(G59:G63) -> 0

Sheet ANEXO GASTOS VARIABLES
A2: Volver al Indice
B5: GASTOS VARIABLES
B9: INCREMENTO/REDUCCION DE GASTOS VARIABLES (EN %)
B10: DE AÑO 1 A AÑO 2 | C10: DE AÑO 2 A AÑO 3 | D10: DE AÑO 3 A AÑO 4
B15: Coste Variable por unidad vendida (en euros)
A16: IVA | B16: Producto/Servicio | C16: Mercancía y Mat. Prima | D16: Coste de producción | E16: Coste de transporte | F16: Comisiones comerciales | G16: Comisiones bancarias | H16: Mermas y deterioro | I16: Envasado | J16: Otros costes | K16: Coste variable unitario
A17: =+IF('ANEXO INGRESOS'!D14="","",'ANEXO INGRESOS'!C14) ->  | B17: =IF('ANEXO INGRESOS'!D14="","",'ANEXO INGRESOS'!D14) ->  | K17: =SUM(C17:J17) -> 0
A18: =+IF('ANEXO INGRESOS'!D15="","",'ANEXO INGRESOS'!C15) ->  | B18: =IF('ANEXO INGRESOS'!D15="","",'ANEXO INGRESOS'!D15) ->  | K18: =SUM(C18:J18) -> 0
A19: =+IF('ANEXO INGRESOS'!D16="","",'ANEXO INGRESOS'!C16) ->  | B19: =IF('ANEXO INGRESOS'!D16="","",'ANEXO INGRESOS'!D16) ->  | K19: =SUM(C19:J19) -> 0
A20: =+IF('ANEXO INGRESOS'!D17="","",'ANEXO INGRESOS'!C17) ->  | B20: =IF('ANEXO INGRESOS'!D17="","",'ANEXO INGRESOS'!D17) ->  | K20: =SUM(C20:J20) -> 0
A21: =+IF('ANEXO INGRESOS'!D18="","",'ANEXO INGRESOS'!C18) ->  | B21: =IF('ANEXO INGRESOS'!D18="","",'ANEXO INGRESOS'!D18) ->  | K21: =SUM(C21:J21) -> 0
A22: =+IF('ANEXO INGRESOS'!D19="","",'ANEXO INGRESOS'!C19) ->  | B22: =IF('ANEXO INGRESOS'!D19="","",'ANEXO INGRESOS'!D19) ->  | K22: =SUM(C22:J22) -> 0
A23: =+IF('ANEXO INGRESOS'!D20="","",'ANEXO INGRESOS'!C20) ->  | B23: =IF('ANEXO INGRESOS'!D20="","",'ANEXO INGRESOS'!D20) ->  | K23: 0
A24: =+IF('ANEXO INGRESOS'!D21="","",'ANEXO INGRESOS'!C21) ->  | B24: =IF('ANEXO INGRESOS'!D21="","",'ANEXO INGRESOS'!D21) ->  | K24: 0
A25: =+IF('ANEXO INGRESOS'!D22="","",'ANEXO INGRESOS'!C22) ->  | B25: =IF('ANEXO INGRESOS'!D22="","",'ANEXO INGRESOS'!D22) ->  | K25: 0
A26: =+IF('ANEXO INGRESOS'!D23="","",'ANEXO INGRESOS'!C23) ->  | B26: =IF('ANEXO INGRESOS'!D23="","",'ANEXO INGRESOS'!D23) ->  | K26: 0
A27: =+IF('ANEXO INGRESOS'!D24="","",'ANEXO INGRESOS'!C24) ->  | B27: =IF('ANEXO INGRESOS'!D24="","",'ANEXO INGRESOS'!D24) ->  | K27: 0
A28: =+IF('ANEXO INGRESOS'!D25="","",'ANEXO INGRESOS'!C25) ->  | B28: =IF('ANEXO INGRESOS'!D25="","",'ANEXO INGRESOS'!D25) ->  | K28: 0
A29: =+IF('ANEXO INGRESOS'!D26="","",'ANEXO INGRESOS'!C26) ->  | B29: =IF('ANEXO INGRESOS'!D26="","",'ANEXO INGRESOS'!D26) ->  | K29: 0
A30: =+IF('ANEXO INGRESOS'!D27="","",'ANEXO INGRESOS'!C27) ->  | B30: =IF('ANEXO INGRESOS'!D27="","",'ANEXO INGRESOS'!D27) ->  | K30: 0
A31: =+IF('ANEXO INGRESOS'!D28="","",'ANEXO INGRESOS'!C28) ->  | B31: =IF('ANEXO INGRESOS'!D28="","",'ANEXO INGRESOS'!D28) ->  | K31: 0
A32: =+IF('ANEXO INGRESOS'!D29="","",'ANEXO INGRESOS'!C29) ->  | B32: =IF('ANEXO INGRESOS'!D29="","",'ANEXO INGRESOS'!D29) ->  | K32: 0
A33: =+IF('ANEXO INGRESOS'!D30="","",'ANEXO INGRESOS'!C30) ->  | B33: =IF('ANEXO INGRESOS'!D30="","",'ANEXO INGRESOS'!D30) ->  | K33: =SUM(C33:J33) -> 0
A34: =+IF('ANEXO INGRESOS'!D31="","",'ANEXO INGRESOS'!C31) ->  | B34: =IF('ANEXO INGRESOS'!D31="","",'ANEXO INGRESOS'!D31) ->  | K34: 0
A35: =+IF('ANEXO INGRESOS'!D32="","",'ANEXO INGRESOS'!C32) ->  | B35: =IF('ANEXO INGRESOS'!D32="","",'ANEXO INGRESOS'!D32) ->  | K35: 0
A36: =+IF('ANEXO INGRESOS'!D33="","",'ANEXO INGRESOS'!C33) ->  | B36: =IF('ANEXO INGRESOS'!D33="","",'ANEXO INGRESOS'!D33) ->  | K36: 0
A37: =+IF('ANEXO INGRESOS'!D34="","",'ANEXO INGRESOS'!C34) ->  | B37: =IF('ANEXO INGRESOS'!D34="","",'ANEXO INGRESOS'!D34) ->  | K37: 0
A38: =+IF('ANEXO INGRESOS'!D35="","",'ANEXO INGRESOS'!C35) ->  | B38: =IF('ANEXO INGRESOS'!D35="","",'ANEXO INGRESOS'!D35) ->  | K38: =SUM(C38:J38) -> 0
A39: =+IF('ANEXO INGRESOS'!D36="","",'ANEXO INGRESOS'!C36) ->  | B39: =IF('ANEXO INGRESOS'!D36="","",'ANEXO INGRESOS'!D36) ->  | K39: =SUM(C39:J39) -> 0
A40: =+IF('ANEXO INGRESOS'!D37="","",'ANEXO INGRESOS'!C37) ->  | B40: =IF('ANEXO INGRESOS'!D37="","",'ANEXO INGRESOS'!D37) ->  | K40: 0
A41: =+IF('ANEXO INGRESOS'!D38="","",'ANEXO INGRESOS'!C38) ->  | B41: =IF('ANEXO INGRESOS'!D38="","",'ANEXO INGRESOS'!D38) ->  | K41: 0
A42: =+IF('ANEXO INGRESOS'!D39="","",'ANEXO INGRESOS'!C39) ->  | B42: =IF('ANEXO INGRESOS'!D39="","",'ANEXO INGRESOS'!D39) ->  | K42: 0
A43: =+IF('ANEXO INGRESOS'!D40="","",'ANEXO INGRESOS'!C40) ->  | B43: =IF('ANEXO INGRESOS'!D40="","",'ANEXO INGRESOS'!D40) ->  | K43: 0
A44: =+IF('ANEXO INGRESOS'!D41="","",'ANEXO INGRESOS'!C41) ->  | B44: =IF('ANEXO INGRESOS'!D41="","",'ANEXO INGRESOS'!D41) ->  | K44: 0
A45: =+IF('ANEXO INGRESOS'!D42="","",'ANEXO INGRESOS'!C42) ->  | B45: =IF('ANEXO INGRESOS'!D42="","",'ANEXO INGRESOS'!D42) ->  | K45: 0
A46: =+IF('ANEXO INGRESOS'!D43="","",'ANEXO INGRESOS'!C43) ->  | B46: =IF('ANEXO INGRESOS'!D43="","",'ANEXO INGRESOS'!D43) ->  | K46: 0
A47: =+IF('ANEXO INGRESOS'!D44="","",'ANEXO INGRESOS'!C44) ->  | B47: =IF('ANEXO INGRESOS'!D44="","",'ANEXO INGRESOS'!D44) ->  | K47: 0
A48: =+IF('ANEXO INGRESOS'!D45="","",'ANEXO INGRESOS'!C45) ->  | B48: =IF('ANEXO INGRESOS'!D45="","",'ANEXO INGRESOS'!D45) ->  | K48: =SUM(C48:J48) -> 0
B52: Coste Variable por unidad vendida (en euros)
A53: IVA | B53: Producto/Servicio | C53: Mercancía y Mat. Prima | D53: Coste de producción | E53: Coste de transporte | F53: Comisiones comerciales | G53: Comisiones bancarias | H53: Mermas y deterioro | I53: Envasado | J53: Otros costes | K53: Coste variable unitario
A54: =+IF('ANEXO INGRESOS'!D51="","",'ANEXO INGRESOS'!C51) ->  | B54: =IF('ANEXO INGRESOS'!D51="","",'ANEXO INGRESOS'!D51) ->  | K54: =SUM(C54:J54) -> 0
A55: =+IF('ANEXO INGRESOS'!D52="","",'ANEXO INGRESOS'!C52) ->  | B55: =IF('ANEXO INGRESOS'!D52="","",'ANEXO INGRESOS'!D52) ->  | K55: =SUM(C55:J55) -> 0
A56: =+IF('ANEXO INGRESOS'!D53="","",'ANEXO INGRESOS'!C53) ->  | B56: =IF('ANEXO INGRESOS'!D53="","",'ANEXO INGRESOS'!D53) ->  | K56: =SUM(C56:J56) -> 0
A57: =+IF('ANEXO INGRESOS'!D54="","",'ANEXO INGRESOS'!C54) ->  | B57: =IF('ANEXO INGRESOS'!D54="","",'ANEXO INGRESOS'!D54) ->  | K57: =SUM(C57:J57) -> 0
A58: =+IF('ANEXO INGRESOS'!D55="","",'ANEXO INGRESOS'!C55) ->  | B58: =IF('ANEXO INGRESOS'!D55="","",'ANEXO INGRESOS'!D55) ->  | K58: =SUM(C58:J58) -> 0
A59: =+IF('ANEXO INGRESOS'!D56="","",'ANEXO INGRESOS'!C56) ->  | B59: =IF('ANEXO INGRESOS'!D56="","",'ANEXO INGRESOS'!D56) ->  | K59: =SUM(C59:J59) -> 0
A60: =+IF('ANEXO INGRESOS'!D57="","",'ANEXO INGRESOS'!C57) ->  | B60: =IF('ANEXO INGRESOS'!D57="","",'ANEXO INGRESOS'!D57) ->  | K60: 0
A61: =+IF('ANEXO INGRESOS'!D58="","",'ANEXO INGRESOS'!C58) ->  | B61: =IF('ANEXO INGRESOS'!D58="","",'ANEXO INGRESOS'!D58) ->  | K61: 0
A62: =+IF('ANEXO INGRESOS'!D59="","",'ANEXO INGRESOS'!C59) ->  | B62: =IF('ANEXO INGRESOS'!D59="","",'ANEXO INGRESOS'!D59) ->  | K62: 0
A63: =+IF('ANEXO INGRESOS'!D60="","",'ANEXO INGRESOS'!C60) ->  | B63: =IF('ANEXO INGRESOS'!D60="","",'ANEXO INGRESOS'!D60) ->  | K63: 0
A64: =+IF('ANEXO INGRESOS'!D61="","",'ANEXO INGRESOS'!C61) ->  | B64: =IF('ANEXO INGRESOS'!D61="","",'ANEXO INGRESOS'!D61) ->  | K64: 0

Sheet ANEXO TESORERIA
B2: Volver al Indice
B9: INGRESOS PRODUCTOS / SERVICIOS ( sin IVA )
E11: ='7.CUENTA DE RESULTADOS '!C20 -> 1900enero | F11: ='7.CUENTA DE RESULTADOS '!D20 -> 1900enero | G11: ='7.CUENTA DE RESULTADOS '!E20 -> 1900febrero | H11: ='7.CUENTA DE RESULTADOS '!F20 -> 1900marzo | I11: ='7.CUENTA DE RESULTADOS '!G20 -> 1900abril | J11: ='7.CUENTA DE RESULTADOS '!H20 -> 1900mayo | K11: ='7.CUENTA DE RESULTADOS '!I20 -> 1900junio | L11: ='7.CUENTA DE RESULTADOS '!J20 -> 1900julio | M11: ='7.CUENTA DE RESULTADOS '!K20 -> 1900agosto | N11: ='7.CUENTA DE RESULTADOS '!L20 -> 1900septiembre | O11: ='7.CUENTA DE RESULTADOS '!M20 -> 1900octubre | P11: ='7.CUENTA DE RESULTADOS '!N20 -> 1900noviembre | Q11: TOTALES
D12: =IF('4.INGRESOS'!C22="","",'4.INGRESOS'!C22) ->  | E12: =IF($D12="","",'4.INGRESOS'!D22) ->  | F12: =IF($D12="","",'4.INGRESOS'!E22) ->  | G12: =IF($D12="","",'4.INGRESOS'!F22) ->  | H12: =IF($D12="","",'4.INGRESOS'!G22) ->  | I12: =IF($D12="","",'4.INGRESOS'!H22) ->  | J12: =IF($D12="","",'4.INGRESOS'!I22) ->  | K12: =IF($D12="","",'4.INGRESOS'!J22) ->  | L12: =IF($D12="","",'4.INGRESOS'!K22) ->  | M12: =IF($D12="","",'4.INGRESOS'!L22) ->  | N12: =IF($D12="","",'4.INGRESOS'!M22) ->  | O12: =IF($D12="","",'4.INGRESOS'!N22) ->  | P12: =IF($D12="","",'4.INGRESOS'!O22) ->  | Q12: =IF(D12="","",SUM(E12:P12)) -> 
D13: =IF('4.INGRESOS'!C23="","",'4.INGRESOS'!C23) ->  | E13: =IF($D13="","",'4.INGRESOS'!D23) ->  | F13: =IF($D13="","",'4.INGRESOS'!E23) ->  | G13: =IF($D13="","",'4.INGRESOS'!F23) ->  | H13: =IF($D13="","",'4.INGRESOS'!G23) ->  | I13: =IF($D13="","",'4.INGRESOS'!H23) ->  | J13: =IF($D13="","",'4.INGRESOS'!I23) ->  | K13: =IF($D13="","",'4.INGRESOS'!J23) ->  | L13: =IF($D13="","",'4.INGRESOS'!K23) ->  | M13: =IF($D13="","",'4.INGRESOS'!L23) ->  | N13: =IF($D13="","",'4.INGRESOS'!M23) ->  | O13: =IF($D13="","",'4.INGRESOS'!N23) ->  | P13: =IF($D13="","",'4.INGRESOS'!O23) ->  | Q13: =IF(D13="","",SUM(E13:P13)) -> 
D14: =IF('4.INGRESOS'!C24="","",'4.INGRESOS'!C24) ->  | E14: =IF($D14="","",'4.INGRESOS'!D24) ->  | F14: =IF($D14="","",'4.INGRESOS'!E24) ->  | G14: =IF($D14="","",'4.INGRESOS'!F24) ->  | H14: =IF($D14="","",'4.INGRESOS'!G24) ->  | I14: =IF($D14="","",'4.INGRESOS'!H24) ->  | J14: =IF($D14="","",'4.INGRESOS'!I24) ->  | K14: =IF($D14="","",'4.INGRESOS'!J24) ->  | L14: =IF($D14="","",'4.INGRESOS'!K24) ->  | M14: =IF($D14="","",'4.INGRESOS'!L24) ->  | N14: =IF($D14="","",'4.INGRESOS'!M24) ->  | O14: =IF($D14="","",'4.INGRESOS'!N24) ->  | P14: =IF($D14="","",'4.INGRESOS'!O24) -> 
D15: =IF('4.INGRESOS'!C25="","",'4.INGRESOS'!C25) ->  | E15: =IF($D15="","",'4.INGRESOS'!D25) ->  | F15: =IF($D15="","",'4.INGRESOS'!E25) ->  | G15: =IF($D15="","",'4.INGRESOS'!F25) ->  | H15: =IF($D15="","",'4.INGRESOS'!G25) ->  | I15: =IF($D15="","",'4.INGRESOS'!H25) ->  | J15: =IF($D15="","",'4.INGRESOS'!I25) ->  | K15: =IF($D15="","",'4.INGRESOS'!J25) ->  | L15: =IF($D15="","",'4.INGRESOS'!K25) ->  | M15: =IF($D15="","",'4.INGRESOS'!L25) ->  | N15: =IF($D15="","",'4.INGRESOS'!M25) ->  | O15: =IF($D15="","",'4.INGRESOS'!N25) ->  | P15: =IF($D15="","",'4.INGRESOS'!O25) -> 
D16: =IF('4.INGRESOS'!C26="","",'4.INGRESOS'!C26) ->  | E16: =IF($D16="","",'4.INGRESOS'!D26) ->  | F16: =IF($D16="","",'4.INGRESOS'!E26) ->  | G16: =IF($D16="","",'4.INGRESOS'!F26) ->  | H16: =IF($D16="","",'4.INGRESOS'!G26) ->  | I16: =IF($D16="","",'4.INGRESOS'!H26) ->  | J16: =IF($D16="","",'4.INGRESOS'!I26) ->  | K16: =IF($D16="","",'4.INGRESOS'!J26) ->  | L16: =IF($D16="","",'4.INGRESOS'!K26) ->  | M16: =IF($D16="","",'4.INGRESOS'!L26) ->  | N16: =IF($D16="","",'4.INGRESOS'!M26) ->  | O16: =IF($D16="","",'4.INGRESOS'!N26) ->  | P16: =IF($D16="","",'4.INGRESOS'!O26) -> 
D17: =IF('4.INGRESOS'!C27="","",'4.INGRESOS'!C27) ->  | E17: =IF($D17="","",'4.INGRESOS'!D27) ->  | F17: =IF($D17="","",'4.INGRESOS'!E27) ->  | G17: =IF($D17="","",'4.INGRESOS'!F27) ->  | H17: =IF($D17="","",'4.INGRESOS'!G27) ->  | I17: =IF($D17="","",'4.INGRESOS'!H27) ->  | J17: =IF($D17="","",'4.INGRESOS'!I27) ->  | K17: =IF($D17="","",'4.INGRESOS'!J27) ->  | L17: =IF($D17="","",'4.INGRESOS'!K27) ->  | M17: =IF($D17="","",'4.INGRESOS'!L27) ->  | N17: =IF($D17="","",'4.INGRESOS'!M27) ->  | O17: =IF($D17="","",'4.INGRESOS'!N27) ->  | P17: =IF($D17="","",'4.INGRESOS'!O27) -> 
D18: =IF('4.INGRESOS'!C28="","",'4.INGRESOS'!C28) ->  | E18: =IF($D18="","",'4.INGRESOS'!D28) ->  | F18: =IF($D18="","",'4.INGRESOS'!E28) ->  | G18: =IF($D18="","",'4.INGRESOS'!F28) ->  | H18: =IF($D18="","",'4.INGRESOS'!G28) ->  | I18: =IF($D18="","",'4.INGRESOS'!H28) ->  | J18: =IF($D18="","",'4.INGRESOS'!I28) ->  | K18: =IF($D18="","",'4.INGRESOS'!J28) ->  | L18: =IF($D18="","",'4.INGRESOS'!K28) ->  | M18: =IF($D18="","",'4.INGRESOS'!L28) ->  | N18: =IF($D18="","",'4.INGRESOS'!M28) ->  | O18: =IF($D18="","",'4.INGRESOS'!N28) ->  | P18: =IF($D18="","",'4.INGRESOS'!O28) -> 
D19: =IF('4.INGRESOS'!C29="","",'4.INGRESOS'!C29) ->  | E19: =IF('4.INGRESOS'!D29="","",'4.INGRESOS'!D29) ->  | F19: =IF('4.INGRESOS'!E29="","",'4.INGRESOS'!E29) ->  | G19: =IF('4.INGRESOS'!F29="","",'4.INGRESOS'!F29) ->  | H19: =IF('4.INGRESOS'!G29="","",'4.INGRESOS'!G29) ->  | I19: =IF('4.INGRESOS'!H29="","",'4.INGRESOS'!H29) ->  | J19: =IF('4.INGRESOS'!I29="","",'4.INGRESOS'!I29) ->  | K19: =IF('4.INGRESOS'!J29="","",'4.INGRESOS'!J29) ->  | L19: =IF('4.INGRESOS'!K29="","",'4.INGRESOS'!K29) ->  | M19: =IF('4.INGRESOS'!L29="","",'4.INGRESOS'!L29) ->  | N19: =IF('4.INGRESOS'!M29="","",'4.INGRESOS'!M29) ->  | O19: =IF('4.INGRESOS'!N29="","",'4.INGRESOS'!N29) ->  | P19: =IF('4.INGRESOS'!O29="","",'4.INGRESOS'!O29) -> 
D20: =IF('4.INGRESOS'!C30="","",'4.INGRESOS'!C30) ->  | E20: =IF('4.INGRESOS'!D30="","",'4.INGRESOS'!D30) ->  | F20: =IF('4.INGRESOS'!E30="","",'4.INGRESOS'!E30) ->  | G20: =IF('4.INGRESOS'!F30="","",'4.INGRESOS'!F30) ->  | H20: =IF('4.INGRESOS'!G30="","",'4.INGRESOS'!G30) ->  | I20: =IF('4.INGRESOS'!H30="","",'4.INGRESOS'!H30) ->  | J20: =IF('4.INGRESOS'!I30="","",'4.INGRESOS'!I30) ->  | K20: =IF('4.INGRESOS'!J30="","",'4.INGRESOS'!J30) ->  | L20: =IF('4.INGRESOS'!K30="","",'4.INGRESOS'!K30) ->  | M20: =IF('4.INGRESOS'!L30="","",'4.INGRESOS'!L30) ->  | N20: =IF('4.INGRESOS'!M30="","",'4.INGRESOS'!M30) ->  | O20: =IF('4.INGRESOS'!N30="","",'4.INGRESOS'!N30) ->  | P20: =IF('4.INGRESOS'!O30="","",'4.INGRESOS'!O30) -> 
D21: =IF('4.INGRESOS'!C31="","",'4.INGRESOS'!C31) ->  | E21: =IF('4.INGRESOS'!D31="","",'4.INGRESOS'!D31) ->  | F21: =IF('4.INGRESOS'!E31="","",'4.INGRESOS'!E31) ->  | G21: =IF('4.INGRESOS'!F31="","",'4.INGRESOS'!F31) ->  | H21: =IF('4.INGRESOS'!G31="","",'4.INGRESOS'!G31) ->  | I21: =IF('4.INGRESOS'!H31="","",'4.INGRESOS'!H31) ->  | J21: =IF('4.INGRESOS'!I31="","",'4.INGRESOS'!I31) ->  | K21: =IF('4.INGRESOS'!J31="","",'4.INGRESOS'!J31) ->  | L21: =IF('4.INGRESOS'!K31="","",'4.INGRESOS'!K31) ->  | M21: =IF('4.INGRESOS'!L31="","",'4.INGRESOS'!L31) ->  | N21: =IF('4.INGRESOS'!M31="","",'4.INGRESOS'!M31) ->  | O21: =IF('4.INGRESOS'!N31="","",'4.INGRESOS'!N31) ->  | P21: =IF('4.INGRESOS'!O31="","",'4.INGRESOS'!O31) -> 
D22: =IF('4.INGRESOS'!C32="","",'4.INGRESOS'!C32) ->  | E22: =IF('4.INGRESOS'!D32="","",'4.INGRESOS'!D32) ->  | F22: =IF('4.INGRESOS'!E32="","",'4.INGRESOS'!E32) ->  | G22: =IF('4.INGRESOS'!F32="","",'4.INGRESOS'!F32) ->  | H22: =IF('4.INGRESOS'!G32="","",'4.INGRESOS'!G32) ->  | I22: =IF('4.INGRESOS'!H32="","",'4.INGRESOS'!H32) ->  | J22: =IF('4.INGRESOS'!I32="","",'4.INGRESOS'!I32) ->  | K22: =IF('4.INGRESOS'!J32="","",'4.INGRESOS'!J32) ->  | L22: =IF('4.INGRESOS'!K32="","",'4.INGRESOS'!K32) ->  | M22: =IF('4.INGRESOS'!L32="","",'4.INGRESOS'!L32) ->  | N22: =IF('4.INGRESOS'!M32="","",'4.INGRESOS'!M32) ->  | O22: =IF('4.INGRESOS'!N32="","",'4.INGRESOS'!N32) ->  | P22: =IF('4.INGRESOS'!O32="","",'4.INGRESOS'!O32) -> 
D23: =IF('4.INGRESOS'!C33="","",'4.INGRESOS'!C33) ->  | E23: =IF('4.INGRESOS'!D33="","",'4.INGRESOS'!D33) ->  | F23: =IF('4.INGRESOS'!E33="","",'4.INGRESOS'!E33) ->  | G23: =IF('4.INGRESOS'!F33="","",'4.INGRESOS'!F33) ->  | H23: =IF('4.INGRESOS'!G33="","",'4.INGRESOS'!G33) ->  | I23: =IF('4.INGRESOS'!H33="","",'4.INGRESOS'!H33) ->  | J23: =IF('4.INGRESOS'!I33="","",'4.INGRESOS'!I33) ->  | K23: =IF('4.INGRESOS'!J33="","",'4.INGRESOS'!J33) ->  | L23: =IF('4.INGRESOS'!K33="","",'4.INGRESOS'!K33) ->  | M23: =IF('4.INGRESOS'!L33="","",'4.INGRESOS'!L33) ->  | N23: =IF('4.INGRESOS'!M33="","",'4.INGRESOS'!M33) ->  | O23: =IF('4.INGRESOS'!N33="","",'4.INGRESOS'!N33) ->  | P23: =IF('4.INGRESOS'!O33="","",'4.INGRESOS'!O33) -> 
D24: =IF('4.INGRESOS'!C34="","",'4.INGRESOS'!C34) ->  | E24: =IF('4.INGRESOS'!D34="","",'4.INGRESOS'!D34) ->  | F24: =IF('4.INGRESOS'!E34="","",'4.INGRESOS'!E34) ->  | G24: =IF('4.INGRESOS'!F34="","",'4.INGRESOS'!F34) ->  | H24: =IF('4.INGRESOS'!G34="","",'4.INGRESOS'!G34) ->  | I24: =IF('4.INGRESOS'!H34="","",'4.INGRESOS'!H34) ->  | J24: =IF('4.INGRESOS'!I34="","",'4.INGRESOS'!I34) ->  | K24: =IF('4.INGRESOS'!J34="","",'4.INGRESOS'!J34) ->  | L24: =IF('4.INGRESOS'!K34="","",'4.INGRESOS'!K34) ->  | M24: =IF('4.INGRESOS'!L34="","",'4.INGRESOS'!L34) ->  | N24: =IF('4.INGRESOS'!M34="","",'4.INGRESOS'!M34) ->  | O24: =IF('4.INGRESOS'!N34="","",'4.INGRESOS'!N34) ->  | P24: =IF('4.INGRESOS'!O34="","",'4.INGRESOS'!O34) -> 
D25: =IF('4.INGRESOS'!C35="","",'4.INGRESOS'!C35) ->  | E25: =IF('4.INGRESOS'!D35="","",'4.INGRESOS'!D35) ->  | F25: =IF('4.INGRESOS'!E35="","",'4.INGRESOS'!E35) ->  | G25: =IF('4.INGRESOS'!F35="","",'4.INGRESOS'!F35) ->  | H25: =IF('4.INGRESOS'!G35="","",'4.INGRESOS'!G35) ->  | I25: =IF('4.INGRESOS'!H35="","",'4.INGRESOS'!H35) ->  | J25: =IF('4.INGRESOS'!I35="","",'4.INGRESOS'!I35) ->  | K25: =IF('4.INGRESOS'!J35="","",'4.INGRESOS'!J35) ->  | L25: =IF('4.INGRESOS'!K35="","",'4.INGRESOS'!K35) ->  | M25: =IF('4.INGRESOS'!L35="","",'4.INGRESOS'!L35) ->  | N25: =IF('4.INGRESOS'!M35="","",'4.INGRESOS'!M35) ->  | O25: =IF('4.INGRESOS'!N35="","",'4.INGRESOS'!N35) ->  | P25: =IF('4.INGRESOS'!O35="","",'4.INGRESOS'!O35) -> 
D26: =IF('4.INGRESOS'!C36="","",'4.INGRESOS'!C36) ->  | E26: =IF('4.INGRESOS'!D36="","",'4.INGRESOS'!D36) ->  | F26: =IF('4.INGRESOS'!E36="","",'4.INGRESOS'!E36) ->  | G26: =IF('4.INGRESOS'!F36="","",'4.INGRESOS'!F36) ->  | H26: =IF('4.INGRESOS'!G36="","",'4.INGRESOS'!G36) ->  | I26: =IF('4.INGRESOS'!H36="","",'4.INGRESOS'!H36) ->  | J26: =IF('4.INGRESOS'!I36="","",'4.INGRESOS'!I36) ->  | K26: =IF('4.INGRESOS'!J36="","",'4.INGRESOS'!J36) ->  | L26: =IF('4.INGRESOS'!K36="","",'4.INGRESOS'!K36) ->  | M26: =IF('4.INGRESOS'!L36="","",'4.INGRESOS'!L36) ->  | N26: =IF('4.INGRESOS'!M36="","",'4.INGRESOS'!M36) ->  | O26: =IF('4.INGRESOS'!N36="","",'4.INGRESOS'!N36) ->  | P26: =IF('4.INGRESOS'!O36="","",'4.INGRESOS'!O36) -> 
D27: =IF('4.INGRESOS'!C37="","",'4.INGRESOS'!C37) ->  | E27: =IF('4.INGRESOS'!D37="","",'4.INGRESOS'!D37) ->  | F27: =IF('4.INGRESOS'!E37="","",'4.INGRESOS'!E37) ->  | G27: =IF('4.INGRESOS'!F37="","",'4.INGRESOS'!F37) ->  | H27: =IF('4.INGRESOS'!G37="","",'4.INGRESOS'!G37) ->  | I27: =IF('4.INGRESOS'!H37="","",'4.INGRESOS'!H37) ->  | J27: =IF('4.INGRESOS'!I37="","",'4.INGRESOS'!I37) ->  | K27: =IF('4.INGRESOS'!J37="","",'4.INGRESOS'!J37) ->  | L27: =IF('4.INGRESOS'!K37="","",'4.INGRESOS'!K37) ->  | M27: =IF('4.INGRESOS'!L37="","",'4.INGRESOS'!L37) ->  | N27: =IF('4.INGRESOS'!M37="","",'4.INGRESOS'!M37) ->  | O27: =IF('4.INGRESOS'!N37="","",'4.INGRESOS'!N37) ->  | P27: =IF('4.INGRESOS'!O37="","",'4.INGRESOS'!O37) -> 
D28: =IF('4.INGRESOS'!C38="","",'4.INGRESOS'!C38) ->  | E28: =IF('4.INGRESOS'!D38="","",'4.INGRESOS'!D38) ->  | F28: =IF('4.INGRESOS'!E38="","",'4.INGRESOS'!E38) ->  | G28: =IF('4.INGRESOS'!F38="","",'4.INGRESOS'!F38) ->  | H28: =IF('4.INGRESOS'!G38="","",'4.INGRESOS'!G38) ->  | I28: =IF('4.INGRESOS'!H38="","",'4.INGRESOS'!H38) ->  | J28: =IF('4.INGRESOS'!I38="","",'4.INGRESOS'!I38) ->  | K28: =IF('4.INGRESOS'!J38="","",'4.INGRESOS'!J38) ->  | L28: =IF('4.INGRESOS'!K38="","",'4.INGRESOS'!K38) ->  | M28: =IF('4.INGRESOS'!L38="","",'4.INGRESOS'!L38) ->  | N28: =IF('4.INGRESOS'!M38="","",'4.INGRESOS'!M38) ->  | O28: =IF('4.INGRESOS'!N38="","",'4.INGRESOS'!N38) ->  | P28: =IF('4.INGRESOS'!O38="","",'4.INGRESOS'!O38) -> 
D29: =IF('4.INGRESOS'!C39="","",'4.INGRESOS'!C39) ->  | E29: =IF('4.INGRESOS'!D39="","",'4.INGRESOS'!D39) ->  | F29: =IF('4.INGRESOS'!E39="","",'4.INGRESOS'!E39) ->  | G29: =IF('4.INGRESOS'!F39="","",'4.INGRESOS'!F39) ->  | H29: =IF('4.INGRESOS'!G39="","",'4.INGRESOS'!G39) ->  | I29: =IF('4.INGRESOS'!H39="","",'4.INGRESOS'!H39) ->  | J29: =IF('4.INGRESOS'!I39="","",'4.INGRESOS'!I39) ->  | K29: =IF('4.INGRESOS'!J39="","",'4.INGRESOS'!J39) ->  | L29: =IF('4.INGRESOS'!K39="","",'4.INGRESOS'!K39) ->  | M29: =IF('4.INGRESOS'!L39="","",'4.INGRESOS'!L39) ->  | N29: =IF('4.INGRESOS'!M39="","",'4.INGRESOS'!M39) ->  | O29: =IF('4.INGRESOS'!N39="","",'4.INGRESOS'!N39) ->  | P29: =IF('4.INGRESOS'!O39="","",'4.INGRESOS'!O39) -> 
D30: =IF('4.INGRESOS'!C40="","",'4.INGRESOS'!C40) ->  | E30: =IF('4.INGRESOS'!D40="","",'4.INGRESOS'!D40) ->  | F30: =IF('4.INGRESOS'!E40="","",'4.INGRESOS'!E40) ->  | G30: =IF('4.INGRESOS'!F40="","",'4.INGRESOS'!F40) ->  | H30: =IF('4.INGRESOS'!G40="","",'4.INGRESOS'!G40) ->  | I30: =IF('4.INGRESOS'!H40="","",'4.INGRESOS'!H40) ->  | J30: =IF('4.INGRESOS'!I40="","",'4.INGRESOS'!I40) ->  | K30: =IF('4.INGRESOS'!J40="","",'4.INGRESOS'!J40) ->  | L30: =IF('4.INGRESOS'!K40="","",'4.INGRESOS'!K40) ->  | M30: =IF('4.INGRESOS'!L40="","",'4.INGRESOS'!L40) ->  | N30: =IF('4.INGRESOS'!M40="","",'4.INGRESOS'!M40) ->  | O30: =IF('4.INGRESOS'!N40="","",'4.INGRESOS'!N40) ->  | P30: =IF('4.INGRESOS'!O40="","",'4.INGRESOS'!O40) -> 
D31: =IF('4.INGRESOS'!C41="","",'4.INGRESOS'!C41) ->  | E31: =IF('4.INGRESOS'!D41="","",'4.INGRESOS'!D41) ->  | F31: =IF('4.INGRESOS'!E41="","",'4.INGRESOS'!E41) ->  | G31: =IF('4.INGRESOS'!F41="","",'4.INGRESOS'!F41) ->  | H31: =IF('4.INGRESOS'!G41="","",'4.INGRESOS'!G41) ->  | I31: =IF('4.INGRESOS'!H41="","",'4.INGRESOS'!H41) ->  | J31: =IF('4.INGRESOS'!I41="","",'4.INGRESOS'!I41) ->  | K31: =IF('4.INGRESOS'!J41="","",'4.INGRESOS'!J41) ->  | L31: =IF('4.INGRESOS'!K41="","",'4.INGRESOS'!K41) ->  | M31: =IF('4.INGRESOS'!L41="","",'4.INGRESOS'!L41) ->  | N31: =IF('4.INGRESOS'!M41="","",'4.INGRESOS'!M41) ->  | O31: =IF('4.INGRESOS'!N41="","",'4.INGRESOS'!N41) ->  | P31: =IF('4.INGRESOS'!O41="","",'4.INGRESOS'!O41) -> 
D32: =IF('4.INGRESOS'!C42="","",'4.INGRESOS'!C42) ->  | E32: =IF('4.INGRESOS'!D42="","",'4.INGRESOS'!D42) ->  | F32: =IF('4.INGRESOS'!E42="","",'4.INGRESOS'!E42) ->  | G32: =IF('4.INGRESOS'!F42="","",'4.INGRESOS'!F42) ->  | H32: =IF('4.INGRESOS'!G42="","",'4.INGRESOS'!G42) ->  | I32: =IF('4.INGRESOS'!H42="","",'4.INGRESOS'!H42) ->  | J32: =IF('4.INGRESOS'!I42="","",'4.INGRESOS'!I42) ->  | K32: =IF('4.INGRESOS'!J42="","",'4.INGRESOS'!J42) ->  | L32: =IF('4.INGRESOS'!K42="","",'4.INGRESOS'!K42) ->  | M32: =IF('4.INGRESOS'!L42="","",'4.INGRESOS'!L42) ->  | N32: =IF('4.INGRESOS'!M42="","",'4.INGRESOS'!M42) ->  | O32: =IF('4.INGRESOS'!N42="","",'4.INGRESOS'!N42) ->  | P32: =IF('4.INGRESOS'!O42="","",'4.INGRESOS'!O42) -> 
D39: =IF('4.INGRESOS'!C43="","",'4.INGRESOS'!C43) ->  | E39: =IF('4.INGRESOS'!D43="","",'4.INGRESOS'!D43) ->  | F39: =IF('4.INGRESOS'!E43="","",'4.INGRESOS'!E43) ->  | G39: =IF('4.INGRESOS'!F43="","",'4.INGRESOS'!F43) ->  | H39: =IF('4.INGRESOS'!G43="","",'4.INGRESOS'!G43) ->  | I39: =IF('4.INGRESOS'!H43="","",'4.INGRESOS'!H43) ->  | J39: =IF('4.INGRESOS'!I43="","",'4.INGRESOS'!I43) ->  | K39: =IF('4.INGRESOS'!J43="","",'4.INGRESOS'!J43) ->  | L39: =IF('4.INGRESOS'!K43="","",'4.INGRESOS'!K43) ->  | M39: =IF('4.INGRESOS'!L43="","",'4.INGRESOS'!L43) ->  | N39: =IF('4.INGRESOS'!M43="","",'4.INGRESOS'!M43) ->  | O39: =IF('4.INGRESOS'!N43="","",'4.INGRESOS'!N43) ->  | P39: =IF('4.INGRESOS'!O43="","",'4.INGRESOS'!O43) -> 
D40: =IF('4.INGRESOS'!C44="","",'4.INGRESOS'!C44) ->  | E40: =IF('4.INGRESOS'!D44="","",'4.INGRESOS'!D44) ->  | F40: =IF('4.INGRESOS'!E44="","",'4.INGRESOS'!E44) ->  | G40: =IF('4.INGRESOS'!F44="","",'4.INGRESOS'!F44) ->  | H40: =IF('4.INGRESOS'!G44="","",'4.INGRESOS'!G44) ->  | I40: =IF('4.INGRESOS'!H44="","",'4.INGRESOS'!H44) ->  | J40: =IF('4.INGRESOS'!I44="","",'4.INGRESOS'!I44) ->  | K40: =IF('4.INGRESOS'!J44="","",'4.INGRESOS'!J44) ->  | L40: =IF('4.INGRESOS'!K44="","",'4.INGRESOS'!K44) ->  | M40: =IF('4.INGRESOS'!L44="","",'4.INGRESOS'!L44) ->  | N40: =IF('4.INGRESOS'!M44="","",'4.INGRESOS'!M44) ->  | O40: =IF('4.INGRESOS'!N44="","",'4.INGRESOS'!N44) ->  | P40: =IF('4.INGRESOS'!O44="","",'4.INGRESOS'!O44) -> 
D41: =IF('4.INGRESOS'!C45="","",'4.INGRESOS'!C45) ->  | E41: =IF('4.INGRESOS'!D45="","",'4.INGRESOS'!D45) ->  | F41: =IF('4.INGRESOS'!E45="","",'4.INGRESOS'!E45) ->  | G41: =IF('4.INGRESOS'!F45="","",'4.INGRESOS'!F45) ->  | H41: =IF('4.INGRESOS'!G45="","",'4.INGRESOS'!G45) ->  | I41: =IF('4.INGRESOS'!H45="","",'4.INGRESOS'!H45) ->  | J41: =IF('4.INGRESOS'!I45="","",'4.INGRESOS'!I45) ->  | K41: =IF('4.INGRESOS'!J45="","",'4.INGRESOS'!J45) ->  | L41: =IF('4.INGRESOS'!K45="","",'4.INGRESOS'!K45) ->  | M41: =IF('4.INGRESOS'!L45="","",'4.INGRESOS'!L45) ->  | N41: =IF('4.INGRESOS'!M45="","",'4.INGRESOS'!M45) ->  | O41: =IF('4.INGRESOS'!N45="","",'4.INGRESOS'!N45) ->  | P41: =IF('4.INGRESOS'!O45="","",'4.INGRESOS'!O45) -> 
D42: =IF('4.INGRESOS'!C46="","",'4.INGRESOS'!C46) ->  | E42: =IF('4.INGRESOS'!D46="","",'4.INGRESOS'!D46) ->  | F42: =IF('4.INGRESOS'!E46="","",'4.INGRESOS'!E46) ->  | G42: =IF('4.INGRESOS'!F46="","",'4.INGRESOS'!F46) ->  | H42: =IF('4.INGRESOS'!G46="","",'4.INGRESOS'!G46) ->  | I42: =IF('4.INGRESOS'!H46="","",'4.INGRESOS'!H46) ->  | J42: =IF('4.INGRESOS'!I46="","",'4.INGRESOS'!I46) ->  | K42: =IF('4.INGRESOS'!J46="","",'4.INGRESOS'!J46) ->  | L42: =IF('4.INGRESOS'!K46="","",'4.INGRESOS'!K46) ->  | M42: =IF('4.INGRESOS'!L46="","",'4.INGRESOS'!L46) ->  | N42: =IF('4.INGRESOS'!M46="","",'4.INGRESOS'!M46) ->  | O42: =IF('4.INGRESOS'!N46="","",'4.INGRESOS'!N46) ->  | P42: =IF('4.INGRESOS'!O46="","",'4.INGRESOS'!O46) -> 
D43: TOTALES /MES | E43: =+SUM(E12:E42) -> 0 | F43: =+SUM(F12:F42) -> 0 | G43: 0 | H43: 0 | I43: 0 | J43: 0 | K43: 0 | L43: 0 | M43: 0 | N43: 0 | O43: 0 | P43: 0 | Q43: 0
D45: otros ingresos | E45: =E11 -> 1900enero | F45: 1900enero | G45: 1900febrero | H45: 1900marzo | I45: 1900abril | J45: 1900mayo | K45: 1900junio | L45: 1900julio | M45: 1900agosto | N45: 1900septiembre | O45: 1900octubre | P45: 1900noviembre | Q45: TOTALES
D46: =IF('4.INGRESOS'!C53="","",'4.INGRESOS'!C53) ->  | E46: =IF($D46="","",'4.INGRESOS'!D53) ->  | F46: =IF($D46="","",'4.INGRESOS'!E53) ->  | G46: =IF($D46="","",'4.INGRESOS'!F53) ->  | H46: =IF($D46="","",'4.INGRESOS'!G53) ->  | I46: =IF($D46="","",'4.INGRESOS'!H53) ->  | J46: =IF($D46="","",'4.INGRESOS'!I53) ->  | K46: =IF($D46="","",'4.INGRESOS'!J53) ->  | L46: =IF($D46="","",'4.INGRESOS'!K53) ->  | M46: =IF($D46="","",'4.INGRESOS'!L53) ->  | N46: =IF($D46="","",'4.INGRESOS'!M53) ->  | O46: =IF($D46="","",'4.INGRESOS'!N53) ->  | P46: =IF($D46="","",'4.INGRESOS'!O53) ->  | Q46: =IF(D46="","",SUM(E46:P46)) -> 
D47: =IF('4.INGRESOS'!C54="","",'4.INGRESOS'!C54) ->  | E47: =IF($D47="","",'4.INGRESOS'!D54) ->  | F47: =IF($D47="","",'4.INGRESOS'!E54) ->  | G47: =IF($D47="","",'4.INGRESOS'!F54) ->  | H47: =IF($D47="","",'4.INGRESOS'!G54) ->  | I47: =IF($D47="","",'4.INGRESOS'!H54) ->  | J47: =IF($D47="","",'4.INGRESOS'!I54) ->  | K47: =IF($D47="","",'4.INGRESOS'!J54) ->  | L47: =IF($D47="","",'4.INGRESOS'!K54) ->  | M47: =IF($D47="","",'4.INGRESOS'!L54) ->  | N47: =IF($D47="","",'4.INGRESOS'!M54) ->  | O47: =IF($D47="","",'4.INGRESOS'!N54) ->  | P47: =IF($D47="","",'4.INGRESOS'!O54) ->  | Q47: =IF(D47="","",SUM(E47:P47)) -> 
D48: =IF('4.INGRESOS'!C55="","",'4.INGRESOS'!C55) ->  | E48: =IF($D48="","",'4.INGRESOS'!D55) ->  | F48: =IF($D48="","",'4.INGRESOS'!E55) ->  | G48: =IF($D48="","",'4.INGRESOS'!F55) ->  | H48: =IF($D48="","",'4.INGRESOS'!G55) ->  | I48: =IF($D48="","",'4.INGRESOS'!H55) ->  | J48: =IF($D48="","",'4.INGRESOS'!I55) ->  | K48: =IF($D48="","",'4.INGRESOS'!J55) ->  | L48: =IF($D48="","",'4.INGRESOS'!K55) ->  | M48: =IF($D48="","",'4.INGRESOS'!L55) ->  | N48: =IF($D48="","",'4.INGRESOS'!M55) ->  | O48: =IF($D48="","",'4.INGRESOS'!N55) ->  | P48: =IF($D48="","",'4.INGRESOS'!O55) -> 
D49: =IF('4.INGRESOS'!C56="","",'4.INGRESOS'!C56) ->  | E49: =IF($D49="","",'4.INGRESOS'!D56) ->  | F49: =IF($D49="","",'4.INGRESOS'!E56) ->  | G49: =IF($D49="","",'4.INGRESOS'!F56) ->  | H49: =IF($D49="","",'4.INGRESOS'!G56) ->  | I49: =IF($D49="","",'4.INGRESOS'!H56) ->  | J49: =IF($D49="","",'4.INGRESOS'!I56) ->  | K49: =IF($D49="","",'4.INGRESOS'!J56) ->  | L49: =IF($D49="","",'4.INGRESOS'!K56) ->  | M49: =IF($D49="","",'4.INGRESOS'!L56) ->  | N49: =IF($D49="","",'4.INGRESOS'!M56) ->  | O49: =IF($D49="","",'4.INGRESOS'!N56) ->  | P49: =IF($D49="","",'4.INGRESOS'!O56) ->  | Q49: =IF(D49="","",SUM(E49:P49)) -> 
D50: =IF('4.INGRESOS'!C57="","",'4.INGRESOS'!C57) ->  | E50: =IF($D50="","",'4.INGRESOS'!D57) ->  | F50: =IF($D50="","",'4.INGRESOS'!E57) ->  | G50: =IF($D50="","",'4.INGRESOS'!F57) ->  | H50: =IF($D50="","",'4.INGRESOS'!G57) ->  | I50: =IF($D50="","",'4.INGRESOS'!H57) ->  | J50: =IF($D50="","",'4.INGRESOS'!I57) ->  | K50: =IF($D50="","",'4.INGRESOS'!J57) ->  | L50: =IF($D50="","",'4.INGRESOS'!K57) ->  | M50: =IF($D50="","",'4.INGRESOS'!L57) ->  | N50: =IF($D50="","",'4.INGRESOS'!M57) ->  | O50: =IF($D50="","",'4.INGRESOS'!N57) ->  | P50: =IF($D50="","",'4.INGRESOS'!O57) -> 
D51: =IF('4.INGRESOS'!C58="","",'4.INGRESOS'!C58) ->  | E51: =IF($D51="","",'4.INGRESOS'!D58) ->  | F51: =IF($D51="","",'4.INGRESOS'!E58) ->  | G51: =IF($D51="","",'4.INGRESOS'!F58) ->  | H51: =IF($D51="","",'4.INGRESOS'!G58) ->  | I51: =IF($D51="","",'4.INGRESOS'!H58) ->  | J51: =IF($D51="","",'4.INGRESOS'!I58) ->  | K51: =IF($D51="","",'4.INGRESOS'!J58) ->  | L51: =IF($D51="","",'4.INGRESOS'!K58) ->  | M51: =IF($D51="","",'4.INGRESOS'!L58) ->  | N51: =IF($D51="","",'4.INGRESOS'!M58) ->  | O51: =IF($D51="","",'4.INGRESOS'!N58) ->  | P51: =IF($D51="","",'4.INGRESOS'!O58) -> 
D52: =IF('4.INGRESOS'!C59="","",'4.INGRESOS'!C59) ->  | E52: =IF($D52="","",'4.INGRESOS'!D59) ->  | F52: =IF($D52="","",'4.INGRESOS'!E59) ->  | G52: =IF($D52="","",'4.INGRESOS'!F59) ->  | H52: =IF($D52="","",'4.INGRESOS'!G59) ->  | I52: =IF($D52="","",'4.INGRESOS'!H59) ->  | J52: =IF($D52="","",'4.INGRESOS'!I59) ->  | K52: =IF($D52="","",'4.INGRESOS'!J59) ->  | L52: =IF($D52="","",'4.INGRESOS'!K59) ->  | M52: =IF($D52="","",'4.INGRESOS'!L59) ->  | N52: =IF($D52="","",'4.INGRESOS'!M59) ->  | O52: =IF($D52="","",'4.INGRESOS'!N59) ->  | P52: =IF($D52="","",'4.INGRESOS'!O59) -> 
D53: =IF('4.INGRESOS'!C60="","",'4.INGRESOS'!C60) ->  | E53: =IF($D53="","",'4.INGRESOS'!D60) ->  | F53: =IF($D53="","",'4.INGRESOS'!E60) ->  | G53: =IF($D53="","",'4.INGRESOS'!F60) ->  | H53: =IF($D53="","",'4.INGRESOS'!G60) ->  | I53: =IF($D53="","",'4.INGRESOS'!H60) ->  | J53: =IF($D53="","",'4.INGRESOS'!I60) ->  | K53: =IF($D53="","",'4.INGRESOS'!J60) ->  | L53: =IF($D53="","",'4.INGRESOS'!K60) ->  | M53: =IF($D53="","",'4.INGRESOS'!L60) ->  | N53: =IF($D53="","",'4.INGRESOS'!M60) ->  | O53: =IF($D53="","",'4.INGRESOS'!N60) ->  | P53: =IF($D53="","",'4.INGRESOS'!O60) -> 
D54: =IF('4.INGRESOS'!C61="","",'4.INGRESOS'!C61) ->  | E54: =IF($D54="","",'4.INGRESOS'!D61) ->  | F54: =IF($D54="","",'4.INGRESOS'!E61) ->  | G54: =IF($D54="","",'4.INGRESOS'!F61) ->  | H54: =IF($D54="","",'4.INGRESOS'!G61) ->  | I54: =IF($D54="","",'4.INGRESOS'!H61) ->  | J54: =IF($D54="","",'4.INGRESOS'!I61) ->  | K54: =IF($D54="","",'4.INGRESOS'!J61) ->  | L54: =IF($D54="","",'4.INGRESOS'!K61) ->  | M54: =IF($D54="","",'4.INGRESOS'!L61) ->  | N54: =IF($D54="","",'4.INGRESOS'!M61) ->  | O54: =IF($D54="","",'4.INGRESOS'!N61) ->  | P54: =IF($D54="","",'4.INGRESOS'!O61) -> 
D55: =IF('4.INGRESOS'!C62="","",'4.INGRESOS'!C62) ->  | E55: =IF($D55="","",'4.INGRESOS'!D62) ->  | F55: =IF($D55="","",'4.INGRESOS'!E62) ->  | G55: =IF($D55="","",'4.INGRESOS'!F62) ->  | H55: =IF($D55="","",'4.INGRESOS'!G62) ->  | I55: =IF($D55="","",'4.INGRESOS'!H62) ->  | J55: =IF($D55="","",'4.INGRESOS'!I62) ->  | K55: =IF($D55="","",'4.INGRESOS'!J62) ->  | L55: =IF($D55="","",'4.INGRESOS'!K62) ->  | M55: =IF($D55="","",'4.INGRESOS'!L62) ->  | N55: =IF($D55="","",'4.INGRESOS'!M62) ->  | O55: =IF($D55="","",'4.INGRESOS'!N62) ->  | P55: =IF($D55="","",'4.INGRESOS'!O62) -> 
D56: TOTAL /MES | E56: =SUM(E46:E55) -> 0 | F56: 0 | G56: 0 | H56: 0 | I56: 0 | J56: 0 | K56: 0 | L56: 0 | M56: 0 | N56: 0 | O56: 0 | P56: 0 | Q56: 0
B59: GASTOS FIJOS
E61: =E96 -> 1900enero | F61: =F96 -> 1900enero | G61: 1900febrero | H61: 1900marzo | I61: 1900abril | J61: 1900mayo | K61: 1900junio | L61: 1900julio | M61: 1900agosto | N61: 1900septiembre | O61: 1900octubre | P61: 1900noviembre | Q61: TOTALES
D62: =IF('ANEXO GASTOS FIJOS'!B13="","",'ANEXO GASTOS FIJOS'!B13) -> Amortizaciones | E62: =IF('ANEXO GASTOS FIJOS'!D13="","",'ANEXO GASTOS FIJOS'!D13) -> 0 | F62: =IF('ANEXO GASTOS FIJOS'!E13="","",'ANEXO GASTOS FIJOS'!E13) -> 0 | G62: =IF('ANEXO GASTOS FIJOS'!F13="","",'ANEXO GASTOS FIJOS'!F13) -> 0 | H62: =IF('ANEXO GASTOS FIJOS'!G13="","",'ANEXO GASTOS FIJOS'!G13) -> 0 | I62: =IF('ANEXO GASTOS FIJOS'!H13="","",'ANEXO GASTOS FIJOS'!H13) -> 0 | J62: =IF('ANEXO GASTOS FIJOS'!I13="","",'ANEXO GASTOS FIJOS'!I13) -> 0 | K62: =IF('ANEXO GASTOS FIJOS'!J13="","",'ANEXO GASTOS FIJOS'!J13) -> 0 | L62: =IF('ANEXO GASTOS FIJOS'!K13="","",'ANEXO GASTOS FIJOS'!K13) -> 0 | M62: =IF('ANEXO GASTOS FIJOS'!L13="","",'ANEXO GASTOS FIJOS'!L13) -> 0 | N62: =IF('ANEXO GASTOS FIJOS'!M13="","",'ANEXO GASTOS FIJOS'!M13) -> 0 | O62: =IF('ANEXO GASTOS FIJOS'!N13="","",'ANEXO GASTOS FIJOS'!N13) -> 0 | P62: =IF('ANEXO GASTOS FIJOS'!O13="","",'ANEXO GASTOS FIJOS'!O13) -> 0 | Q62: =IF(D62="","",SUM(E62:P62)) -> 0
D63: =IF('ANEXO GASTOS FIJOS'!B14="","",'ANEXO GASTOS FIJOS'!B14) -> Alquileres y cánones | E63: =IF('ANEXO GASTOS FIJOS'!D14="","",'ANEXO GASTOS FIJOS'!D14) ->  | F63: =IF('ANEXO GASTOS FIJOS'!E14="","",'ANEXO GASTOS FIJOS'!E14) -> 0 | G63: =IF('ANEXO GASTOS FIJOS'!F14="","",'ANEXO GASTOS FIJOS'!F14) -> 0 | H63: =IF('ANEXO GASTOS FIJOS'!G14="","",'ANEXO GASTOS FIJOS'!G14) -> 0 | I63: =IF('ANEXO GASTOS FIJOS'!H14="","",'ANEXO GASTOS FIJOS'!H14) -> 0 | J63: =IF('ANEXO GASTOS FIJOS'!I14="","",'ANEXO GASTOS FIJOS'!I14) -> 0 | K63: =IF('ANEXO GASTOS FIJOS'!J14="","",'ANEXO GASTOS FIJOS'!J14) -> 0 | L63: =IF('ANEXO GASTOS FIJOS'!K14="","",'ANEXO GASTOS FIJOS'!K14) -> 0 | M63: =IF('ANEXO GASTOS FIJOS'!L14="","",'ANEXO GASTOS FIJOS'!L14) -> 0 | N63: =IF('ANEXO GASTOS FIJOS'!M14="","",'ANEXO GASTOS FIJOS'!M14) -> 0 | O63: =IF('ANEXO GASTOS FIJOS'!N14="","",'ANEXO GASTOS FIJOS'!N14) -> 0 | P63: =IF('ANEXO GASTOS FIJOS'!O14="","",'ANEXO GASTOS FIJOS'!O14) -> 0 | Q63: =IF(D63="","",SUM(E63:P63)) -> 0
D64: =IF('ANEXO GASTOS FIJOS'!B15="","",'ANEXO GASTOS FIJOS'!B15) -> Renting | E64: =IF('ANEXO GASTOS FIJOS'!D15="","",'ANEXO GASTOS FIJOS'!D15) ->  | F64: =IF('ANEXO GASTOS FIJOS'!E15="","",'ANEXO GASTOS FIJOS'!E15) -> 0 | G64: =IF('ANEXO GASTOS FIJOS'!F15="","",'ANEXO GASTOS FIJOS'!F15) -> 0 | H64: =IF('ANEXO GASTOS FIJOS'!G15="","",'ANEXO GASTOS FIJOS'!G15) -> 0 | I64: =IF('ANEXO GASTOS FIJOS'!H15="","",'ANEXO GASTOS FIJOS'!H15) -> 0 | J64: =IF('ANEXO GASTOS FIJOS'!I15="","",'ANEXO GASTOS FIJOS'!I15) -> 0 | K64: =IF('ANEXO GASTOS FIJOS'!J15="","",'ANEXO GASTOS FIJOS'!J15) -> 0 | L64: =IF('ANEXO GASTOS FIJOS'!K15="","",'ANEXO GASTOS FIJOS'!K15) -> 0 | M64: =IF('ANEXO GASTOS FIJOS'!L15="","",'ANEXO GASTOS FIJOS'!L15) -> 0 | N64: =IF('ANEXO GASTOS FIJOS'!M15="","",'ANEXO GASTOS FIJOS'!M15) -> 0 | O64: =IF('ANEXO GASTOS FIJOS'!N15="","",'ANEXO GASTOS FIJOS'!N15) -> 0 | P64: =IF('ANEXO GASTOS FIJOS'!O15="","",'ANEXO GASTOS FIJOS'!O15) -> 0 | Q64: 0
D65: =IF('ANEXO GASTOS FIJOS'!B16="","",'ANEXO GASTOS FIJOS'!B16) -> Conservación (Mantenimiento y reparaciones) | E65: =IF('ANEXO GASTOS FIJOS'!D16="","",'ANEXO GASTOS FIJOS'!D16) ->  | F65: =IF('ANEXO GASTOS FIJOS'!E16="","",'ANEXO GASTOS FIJOS'!E16) -> 0 | G65: =IF('ANEXO GASTOS FIJOS'!F16="","",'ANEXO GASTOS FIJOS'!F16) -> 0 | H65: =IF('ANEXO GASTOS FIJOS'!G16="","",'ANEXO GASTOS FIJOS'!G16) -> 0 | I65: =IF('ANEXO GASTOS FIJOS'!H16="","",'ANEXO GASTOS FIJOS'!H16) -> 0 | J65: =IF('ANEXO GASTOS FIJOS'!I16="","",'ANEXO GASTOS FIJOS'!I16) -> 0 | K65: =IF('ANEXO GASTOS FIJOS'!J16="","",'ANEXO GASTOS FIJOS'!J16) -> 0 | L65: =IF('ANEXO GASTOS FIJOS'!K16="","",'ANEXO GASTOS FIJOS'!K16) -> 0 | M65: =IF('ANEXO GASTOS FIJOS'!L16="","",'ANEXO GASTOS FIJOS'!L16) -> 0 | N65: =IF('ANEXO GASTOS FIJOS'!M16="","",'ANEXO GASTOS FIJOS'!M16) -> 0 | O65: =IF('ANEXO GASTOS FIJOS'!N16="","",'ANEXO GASTOS FIJOS'!N16) -> 0 | P65: =IF('ANEXO GASTOS FIJOS'!O16="","",'ANEXO GASTOS FIJOS'!O16) -> 0 | Q65: 0
D66: =IF('ANEXO GASTOS FIJOS'!B17="","",'ANEXO GASTOS FIJOS'!B17) -> Servicios profesionales | E66: =IF('ANEXO GASTOS FIJOS'!D17="","",'ANEXO GASTOS FIJOS'!D17) ->  | F66: =IF('ANEXO GASTOS FIJOS'!E17="","",'ANEXO GASTOS FIJOS'!E17) -> 0 | G66: =IF('ANEXO GASTOS FIJOS'!F17="","",'ANEXO GASTOS FIJOS'!F17) -> 0 | H66: =IF('ANEXO GASTOS FIJOS'!G17="","",'ANEXO GASTOS FIJOS'!G17) -> 0 | I66: =IF('ANEXO GASTOS FIJOS'!H17="","",'ANEXO GASTOS FIJOS'!H17) -> 0 | J66: =IF('ANEXO GASTOS FIJOS'!I17="","",'ANEXO GASTOS FIJOS'!I17) -> 0 | K66: =IF('ANEXO GASTOS FIJOS'!J17="","",'ANEXO GASTOS FIJOS'!J17) -> 0 | L66: =IF('ANEXO GASTOS FIJOS'!K17="","",'ANEXO GASTOS FIJOS'!K17) -> 0 | M66: =IF('ANEXO GASTOS FIJOS'!L17="","",'ANEXO GASTOS FIJOS'!L17) -> 0 | N66: =IF('ANEXO GASTOS FIJOS'!M17="","",'ANEXO GASTOS FIJOS'!M17) -> 0 | O66: =IF('ANEXO GASTOS FIJOS'!N17="","",'ANEXO GASTOS FIJOS'!N17) -> 0 | P66: =IF('ANEXO GASTOS FIJOS'!O17="","",'ANEXO GASTOS FIJOS'!O17) -> 0 | Q66: 0
D67: =IF('ANEXO GASTOS FIJOS'!B18="","",'ANEXO GASTOS FIJOS'!B18) -> Transporte | E67: =IF('ANEXO GASTOS FIJOS'!D18="","",'ANEXO GASTOS FIJOS'!D18) ->  | F67: =IF('ANEXO GASTOS FIJOS'!E18="","",'ANEXO GASTOS FIJOS'!E18) -> 0 | G67: =IF('ANEXO GASTOS FIJOS'!F18="","",'ANEXO GASTOS FIJOS'!F18) -> 0 | H67: =IF('ANEXO GASTOS FIJOS'!G18="","",'ANEXO GASTOS FIJOS'!G18) -> 0 | I67: =IF('ANEXO GASTOS FIJOS'!H18="","",'ANEXO GASTOS FIJOS'!H18) -> 0 | J67: =IF('ANEXO GASTOS FIJOS'!I18="","",'ANEXO GASTOS FIJOS'!I18) -> 0 | K67: =IF('ANEXO GASTOS FIJOS'!J18="","",'ANEXO GASTOS FIJOS'!J18) -> 0 | L67: =IF('ANEXO GASTOS FIJOS'!K18="","",'ANEXO GASTOS FIJOS'!K18) -> 0 | M67: =IF('ANEXO GASTOS FIJOS'!L18="","",'ANEXO GASTOS FIJOS'!L18) -> 0 | N67: =IF('ANEXO GASTOS FIJOS'!M18="","",'ANEXO GASTOS FIJOS'!M18) -> 0 | O67: =IF('ANEXO GASTOS FIJOS'!N18="","",'ANEXO GASTOS FIJOS'!N18) -> 0 | P67: =IF('ANEXO GASTOS FIJOS'!O18="","",'ANEXO GASTOS FIJOS'!O18) -> 0 | Q67: 0
D68: =IF('ANEXO GASTOS FIJOS'!B19="","",'ANEXO GASTOS FIJOS'!B19) -> Seguros | E68: =IF('ANEXO GASTOS FIJOS'!D19="","",'ANEXO GASTOS FIJOS'!D19) ->  | F68: =IF('ANEXO GASTOS FIJOS'!E19="","",'ANEXO GASTOS FIJOS'!E19) -> 0 | G68: =IF('ANEXO GASTOS FIJOS'!F19="","",'ANEXO GASTOS FIJOS'!F19) -> 0 | H68: =IF('ANEXO GASTOS FIJOS'!G19="","",'ANEXO GASTOS FIJOS'!G19) -> 0 | I68: =IF('ANEXO GASTOS FIJOS'!H19="","",'ANEXO GASTOS FIJOS'!H19) -> 0 | J68: =IF('ANEXO GASTOS FIJOS'!I19="","",'ANEXO GASTOS FIJOS'!I19) -> 0 | K68: =IF('ANEXO GASTOS FIJOS'!J19="","",'ANEXO GASTOS FIJOS'!J19) -> 0 | L68: =IF('ANEXO GASTOS FIJOS'!K19="","",'ANEXO GASTOS FIJOS'!K19) -> 0 | M68: =IF('ANEXO GASTOS FIJOS'!L19="","",'ANEXO GASTOS FIJOS'!L19) -> 0 | N68: =IF('ANEXO GASTOS FIJOS'!M19="","",'ANEXO GASTOS FIJOS'!M19) -> 0 | O68: =IF('ANEXO GASTOS FIJOS'!N19="","",'ANEXO GASTOS FIJOS'!N19) -> 0 | P68: =IF('ANEXO GASTOS FIJOS'!O19="","",'ANEXO GASTOS FIJOS'!O19) -> 0 | Q68: 0
D69: =IF('ANEXO GASTOS FIJOS'!B20="","",'ANEXO GASTOS FIJOS'!B20) -> Gastos bancarios | E69: =IF('ANEXO GASTOS FIJOS'!D20="","",'ANEXO GASTOS FIJOS'!D20) ->  | F69: =IF('ANEXO GASTOS FIJOS'!E20="","",'ANEXO GASTOS FIJOS'!E20) -> 0 | G69: =IF('ANEXO GASTOS FIJOS'!F20="","",'ANEXO GASTOS FIJOS'!F20) -> 0 | H69: =IF('ANEXO GASTOS FIJOS'!G20="","",'ANEXO GASTOS FIJOS'!G20) -> 0 | I69: =IF('ANEXO GASTOS FIJOS'!H20="","",'ANEXO GASTOS FIJOS'!H20) -> 0 | J69: =IF('ANEXO GASTOS FIJOS'!I20="","",'ANEXO GASTOS FIJOS'!I20) -> 0 | K69: =IF('ANEXO GASTOS FIJOS'!J20="","",'ANEXO GASTOS FIJOS'!J20) -> 0 | L69: =IF('ANEXO GASTOS FIJOS'!K20="","",'ANEXO GASTOS FIJOS'!K20) -> 0 | M69: =IF('ANEXO GASTOS FIJOS'!L20="","",'ANEXO GASTOS FIJOS'!L20) -> 0 | N69: =IF('ANEXO GASTOS FIJOS'!M20="","",'ANEXO GASTOS FIJOS'!M20) -> 0 | O69: =IF('ANEXO GASTOS FIJOS'!N20="","",'ANEXO GASTOS FIJOS'!N20) -> 0 | P69: =IF('ANEXO GASTOS FIJOS'!O20="","",'ANEXO GASTOS FIJOS'!O20) -> 0 | Q69: 0
D70: =IF('ANEXO GASTOS FIJOS'!B21="","",'ANEXO GASTOS FIJOS'!B21) -> Publicidad y comunicación | E70: =IF('ANEXO GASTOS FIJOS'!D21="","",'ANEXO GASTOS FIJOS'!D21) ->  | F70: =IF('ANEXO GASTOS FIJOS'!E21="","",'ANEXO GASTOS FIJOS'!E21) -> 0 | G70: =IF('ANEXO GASTOS FIJOS'!F21="","",'ANEXO GASTOS FIJOS'!F21) -> 0 | H70: =IF('ANEXO GASTOS FIJOS'!G21="","",'ANEXO GASTOS FIJOS'!G21) -> 0 | I70: =IF('ANEXO GASTOS FIJOS'!H21="","",'ANEXO GASTOS FIJOS'!H21) -> 0 | J70: =IF('ANEXO GASTOS FIJOS'!I21="","",'ANEXO GASTOS FIJOS'!I21) -> 0 | K70: =IF('ANEXO GASTOS FIJOS'!J21="","",'ANEXO GASTOS FIJOS'!J21) -> 0 | L70: =IF('ANEXO GASTOS FIJOS'!K21="","",'ANEXO GASTOS FIJOS'!K21) -> 0 | M70: =IF('ANEXO GASTOS FIJOS'!L21="","",'ANEXO GASTOS FIJOS'!L21) -> 0 | N70: =IF('ANEXO GASTOS FIJOS'!M21="","",'ANEXO GASTOS FIJOS'!M21) -> 0 | O70: =IF('ANEXO GASTOS FIJOS'!N21="","",'ANEXO GASTOS FIJOS'!N21) -> 0 | P70: =IF('ANEXO GASTOS FIJOS'!O21="","",'ANEXO GASTOS FIJOS'!O21) -> 0 | Q70: 0
D71: =IF('ANEXO GASTOS FIJOS'!B22="","",'ANEXO GASTOS FIJOS'!B22) -> Electricidad | E71: =IF('ANEXO GASTOS FIJOS'!D22="","",'ANEXO GASTOS FIJOS'!D22) ->  | F71: =IF('ANEXO GASTOS FIJOS'!E22="","",'ANEXO GASTOS FIJOS'!E22) -> 0 | G71: =IF('ANEXO GASTOS FIJOS'!F22="","",'ANEXO GASTOS FIJOS'!F22) -> 0 | H71: =IF('ANEXO GASTOS FIJOS'!G22="","",'ANEXO GASTOS FIJOS'!G22) -> 0 | I71: =IF('ANEXO GASTOS FIJOS'!H22="","",'ANEXO GASTOS FIJOS'!H22) -> 0 | J71: =IF('ANEXO GASTOS FIJOS'!I22="","",'ANEXO GASTOS FIJOS'!I22) -> 0 | K71: =IF('ANEXO GASTOS FIJOS'!J22="","",'ANEXO GASTOS FIJOS'!J22) -> 0 | L71: =IF('ANEXO GASTOS FIJOS'!K22="","",'ANEXO GASTOS FIJOS'!K22) -> 0 | M71: =IF('ANEXO GASTOS FIJOS'!L22="","",'ANEXO GASTOS FIJOS'!L22) -> 0 | N71: =IF('ANEXO GASTOS FIJOS'!M22="","",'ANEXO GASTOS FIJOS'!M22) -> 0 | O71: =IF('ANEXO GASTOS FIJOS'!N22="","",'ANEXO GASTOS FIJOS'!N22) -> 0 | P71: =IF('ANEXO GASTOS FIJOS'!O22="","",'ANEXO GASTOS FIJOS'!O22) -> 0 | Q71: 0
D72: =IF('ANEXO GASTOS FIJOS'!B23="","",'ANEXO GASTOS FIJOS'!B23) -> Consumo de agua | E72: =IF('ANEXO GASTOS FIJOS'!D23="","",'ANEXO GASTOS FIJOS'!D23) -> 0 | F72: =IF('ANEXO GASTOS FIJOS'!E23="","",'ANEXO GASTOS FIJOS'!E23) -> 0 | G72: =IF('ANEXO GASTOS FIJOS'!F23="","",'ANEXO GASTOS FIJOS'!F23) -> 0 | H72: =IF('ANEXO GASTOS FIJOS'!G23="","",'ANEXO GASTOS FIJOS'!G23) -> 0 | I72: =IF('ANEXO GASTOS FIJOS'!H23="","",'ANEXO GASTOS FIJOS'!H23) -> 0 | J72: =IF('ANEXO GASTOS FIJOS'!I23="","",'ANEXO GASTOS FIJOS'!I23) -> 0 | K72: =IF('ANEXO GASTOS FIJOS'!J23="","",'ANEXO GASTOS FIJOS'!J23) -> 0 | L72: =IF('ANEXO GASTOS FIJOS'!K23="","",'ANEXO GASTOS FIJOS'!K23) -> 0 | M72: =IF('ANEXO GASTOS FIJOS'!L23="","",'ANEXO GASTOS FIJOS'!L23) -> 0 | N72: =IF('ANEXO GASTOS FIJOS'!M23="","",'ANEXO GASTOS FIJOS'!M23) -> 0 | O72: =IF('ANEXO GASTOS FIJOS'!N23="","",'ANEXO GASTOS FIJOS'!N23) -> 0 | P72: =IF('ANEXO GASTOS FIJOS'!O23="","",'ANEXO GASTOS FIJOS'!O23) -> 0 | Q72: 0
D73: =IF('ANEXO GASTOS FIJOS'!B24="","",'ANEXO GASTOS FIJOS'!B24) -> Telefonia Movil / Fija | E73: =IF('ANEXO GASTOS FIJOS'!D24="","",'ANEXO GASTOS FIJOS'!D24) ->  | F73: =IF('ANEXO GASTOS FIJOS'!E24="","",'ANEXO GASTOS FIJOS'!E24) -> 0 | G73: =IF('ANEXO GASTOS FIJOS'!F24="","",'ANEXO GASTOS FIJOS'!F24) -> 0 | H73: =IF('ANEXO GASTOS FIJOS'!G24="","",'ANEXO GASTOS FIJOS'!G24) -> 0 | I73: =IF('ANEXO GASTOS FIJOS'!H24="","",'ANEXO GASTOS FIJOS'!H24) -> 0 | J73: =IF('ANEXO GASTOS FIJOS'!I24="","",'ANEXO GASTOS FIJOS'!I24) -> 0 | K73: =IF('ANEXO GASTOS FIJOS'!J24="","",'ANEXO GASTOS FIJOS'!J24) -> 0 | L73: =IF('ANEXO GASTOS FIJOS'!K24="","",'ANEXO GASTOS FIJOS'!K24) -> 0 | M73: =IF('ANEXO GASTOS FIJOS'!L24="","",'ANEXO GASTOS FIJOS'!L24) -> 0 | N73: =IF('ANEXO GASTOS FIJOS'!M24="","",'ANEXO GASTOS FIJOS'!M24) -> 0 | O73: =IF('ANEXO GASTOS FIJOS'!N24="","",'ANEXO GASTOS FIJOS'!N24) -> 0 | P73: =IF('ANEXO GASTOS FIJOS'!O24="","",'ANEXO GASTOS FIJOS'!O24) -> 0 | Q73: 0
D74: =IF('ANEXO GASTOS FIJOS'!B25="","",'ANEXO GASTOS FIJOS'!B25) -> Internet | E74: =IF('ANEXO GASTOS FIJOS'!D25="","",'ANEXO GASTOS FIJOS'!D25) ->  | F74: =IF('ANEXO GASTOS FIJOS'!E25="","",'ANEXO GASTOS FIJOS'!E25) -> 0 | G74: =IF('ANEXO GASTOS FIJOS'!F25="","",'ANEXO GASTOS FIJOS'!F25) -> 0 | H74: =IF('ANEXO GASTOS FIJOS'!G25="","",'ANEXO GASTOS FIJOS'!G25) -> 0 | I74: =IF('ANEXO GASTOS FIJOS'!H25="","",'ANEXO GASTOS FIJOS'!H25) -> 0 | J74: =IF('ANEXO GASTOS FIJOS'!I25="","",'ANEXO GASTOS FIJOS'!I25) -> 0 | K74: =IF('ANEXO GASTOS FIJOS'!J25="","",'ANEXO GASTOS FIJOS'!J25) -> 0 | L74: =IF('ANEXO GASTOS FIJOS'!K25="","",'ANEXO GASTOS FIJOS'!K25) -> 0 | M74: =IF('ANEXO GASTOS FIJOS'!L25="","",'ANEXO GASTOS FIJOS'!L25) -> 0 | N74: =IF('ANEXO GASTOS FIJOS'!M25="","",'ANEXO GASTOS FIJOS'!M25) -> 0 | O74: =IF('ANEXO GASTOS FIJOS'!N25="","",'ANEXO GASTOS FIJOS'!N25) -> 0 | P74: =IF('ANEXO GASTOS FIJOS'!O25="","",'ANEXO GASTOS FIJOS'!O25) -> 0 | Q74: 0
D75: =IF('ANEXO GASTOS FIJOS'!B26="","",'ANEXO GASTOS FIJOS'!B26) -> Material de Oficina | E75: =IF('ANEXO GASTOS FIJOS'!D26="","",'ANEXO GASTOS FIJOS'!D26) ->  | F75: =IF('ANEXO GASTOS FIJOS'!E26="","",'ANEXO GASTOS FIJOS'!E26) -> 0 | G75: =IF('ANEXO GASTOS FIJOS'!F26="","",'ANEXO GASTOS FIJOS'!F26) -> 0 | H75: =IF('ANEXO GASTOS FIJOS'!G26="","",'ANEXO GASTOS FIJOS'!G26) -> 0 | I75: =IF('ANEXO GASTOS FIJOS'!H26="","",'ANEXO GASTOS FIJOS'!H26) -> 0 | J75: =IF('ANEXO GASTOS FIJOS'!I26="","",'ANEXO GASTOS FIJOS'!I26) -> 0 | K75: =IF('ANEXO GASTOS FIJOS'!J26="","",'ANEXO GASTOS FIJOS'!J26) -> 0 | L75: =IF('ANEXO GASTOS FIJOS'!K26="","",'ANEXO GASTOS FIJOS'!K26) -> 0 | M75: =IF('ANEXO GASTOS FIJOS'!L26="","",'ANEXO GASTOS FIJOS'!L26) -> 0 | N75: =IF('ANEXO GASTOS FIJOS'!M26="","",'ANEXO GASTOS FIJOS'!M26) -> 0 | O75: =IF('ANEXO GASTOS FIJOS'!N26="","",'ANEXO GASTOS FIJOS'!N26) -> 0 | P75: =IF('ANEXO GASTOS FIJOS'!O26="","",'ANEXO GASTOS FIJOS'!O26) -> 0 | Q75: 0
D76: =IF('ANEXO GASTOS FIJOS'!B27="","",'ANEXO GASTOS FIJOS'!B27) -> Sueldo bruto de los trabajadores autónomos | E76: =IF('ANEXO GASTOS FIJOS'!D27="","",'ANEXO GASTOS FIJOS'!D27) ->  | F76: =IF('ANEXO GASTOS FIJOS'!E27="","",'ANEXO GASTOS FIJOS'!E27) -> 0 | G76: =IF('ANEXO GASTOS FIJOS'!F27="","",'ANEXO GASTOS FIJOS'!F27) -> 0 | H76: =IF('ANEXO GASTOS FIJOS'!G27="","",'ANEXO GASTOS FIJOS'!G27) -> 0 | I76: =IF('ANEXO GASTOS FIJOS'!H27="","",'ANEXO GASTOS FIJOS'!H27) -> 0 | J76: =IF('ANEXO GASTOS FIJOS'!I27="","",'ANEXO GASTOS FIJOS'!I27) -> 0 | K76: =IF('ANEXO GASTOS FIJOS'!J27="","",'ANEXO GASTOS FIJOS'!J27) -> 0 | L76: =IF('ANEXO GASTOS FIJOS'!K27="","",'ANEXO GASTOS FIJOS'!K27) -> 0 | M76: =IF('ANEXO GASTOS FIJOS'!L27="","",'ANEXO GASTOS FIJOS'!L27) -> 0 | N76: =IF('ANEXO GASTOS FIJOS'!M27="","",'ANEXO GASTOS FIJOS'!M27) -> 0 | O76: =IF('ANEXO GASTOS FIJOS'!N27="","",'ANEXO GASTOS FIJOS'!N27) -> 0 | P76: =IF('ANEXO GASTOS FIJOS'!O27="","",'ANEXO GASTOS FIJOS'!O27) -> 0 | Q76: 0
D77: =IF('ANEXO GASTOS FIJOS'!B28="","",'ANEXO GASTOS FIJOS'!B28) -> Cotización a la Seguridad Social de los trabajadores autónomos | E77: =IF('ANEXO GASTOS FIJOS'!D28="","",'ANEXO GASTOS FIJOS'!D28) ->  | F77: =IF('ANEXO GASTOS FIJOS'!E28="","",'ANEXO GASTOS FIJOS'!E28) -> 0 | G77: =IF('ANEXO GASTOS FIJOS'!F28="","",'ANEXO GASTOS FIJOS'!F28) -> 0 | H77: =IF('ANEXO GASTOS FIJOS'!G28="","",'ANEXO GASTOS FIJOS'!G28) -> 0 | I77: =IF('ANEXO GASTOS FIJOS'!H28="","",'ANEXO GASTOS FIJOS'!H28) -> 0 | J77: =IF('ANEXO GASTOS FIJOS'!I28="","",'ANEXO GASTOS FIJOS'!I28) -> 0 | K77: =IF('ANEXO GASTOS FIJOS'!J28="","",'ANEXO GASTOS FIJOS'!J28) -> 0 | L77: =IF('ANEXO GASTOS FIJOS'!K28="","",'ANEXO GASTOS FIJOS'!K28) -> 0 | M77: =IF('ANEXO GASTOS FIJOS'!L28="","",'ANEXO GASTOS FIJOS'!L28) -> 0 | N77: =IF('ANEXO GASTOS FIJOS'!M28="","",'ANEXO GASTOS FIJOS'!M28) -> 0 | O77: =IF('ANEXO GASTOS FIJOS'!N28="","",'ANEXO GASTOS FIJOS'!N28) -> 0 | P77: =IF('ANEXO GASTOS FIJOS'!O28="","",'ANEXO GASTOS FIJOS'!O28) -> 0 | Q77: 0
D78: =IF('ANEXO GASTOS FIJOS'!B29="","",'ANEXO GASTOS FIJOS'!B29) -> Sueldo bruto de los trabajadores en régimen general | E78: =IF('ANEXO GASTOS FIJOS'!D29="","",'ANEXO GASTOS FIJOS'!D29) ->  | F78: =IF('ANEXO GASTOS FIJOS'!E29="","",'ANEXO GASTOS FIJOS'!E29) -> 0 | G78: =IF('ANEXO GASTOS FIJOS'!F29="","",'ANEXO GASTOS FIJOS'!F29) -> 0 | H78: =IF('ANEXO GASTOS FIJOS'!G29="","",'ANEXO GASTOS FIJOS'!G29) -> 0 | I78: =IF('ANEXO GASTOS FIJOS'!H29="","",'ANEXO GASTOS FIJOS'!H29) -> 0 | J78: =IF('ANEXO GASTOS FIJOS'!I29="","",'ANEXO GASTOS FIJOS'!I29) -> 0 | K78: =IF('ANEXO GASTOS FIJOS'!J29="","",'ANEXO GASTOS FIJOS'!J29) -> 0 | L78: =IF('ANEXO GASTOS FIJOS'!K29="","",'ANEXO GASTOS FIJOS'!K29) -> 0 | M78: =IF('ANEXO GASTOS FIJOS'!L29="","",'ANEXO GASTOS FIJOS'!L29) -> 0 | N78: =IF('ANEXO GASTOS FIJOS'!M29="","",'ANEXO GASTOS FIJOS'!M29) -> 0 | O78: =IF('ANEXO GASTOS FIJOS'!N29="","",'ANEXO GASTOS FIJOS'!N29) -> 0 | P78: =IF('ANEXO GASTOS FIJOS'!O29="","",'ANEXO GASTOS FIJOS'!O29) -> 0 | Q78: 0
D79: =IF('ANEXO GASTOS FIJOS'!B30="","",'ANEXO GASTOS FIJOS'!B30) -> Cotización a la Seguridad Social de los trabajadores en régimen general | E79: =IF('ANEXO GASTOS FIJOS'!D30="","",'ANEXO GASTOS FIJOS'!D30) ->  | F79: =IF('ANEXO GASTOS FIJOS'!E30="","",'ANEXO GASTOS FIJOS'!E30) -> 0 | G79: =IF('ANEXO GASTOS FIJOS'!F30="","",'ANEXO GASTOS FIJOS'!F30) -> 0 | H79: =IF('ANEXO GASTOS FIJOS'!G30="","",'ANEXO GASTOS FIJOS'!G30) -> 0 | I79: =IF('ANEXO GASTOS FIJOS'!H30="","",'ANEXO GASTOS FIJOS'!H30) -> 0 | J79: =IF('ANEXO GASTOS FIJOS'!I30="","",'ANEXO GASTOS FIJOS'!I30) -> 0 | K79: =IF('ANEXO GASTOS FIJOS'!J30="","",'ANEXO GASTOS FIJOS'!J30) -> 0 | L79: =IF('ANEXO GASTOS FIJOS'!K30="","",'ANEXO GASTOS FIJOS'!K30) -> 0 | M79: =IF('ANEXO GASTOS FIJOS'!L30="","",'ANEXO GASTOS FIJOS'!L30) -> 0 | N79: =IF('ANEXO GASTOS FIJOS'!M30="","",'ANEXO GASTOS FIJOS'!M30) -> 0 | O79: =IF('ANEXO GASTOS FIJOS'!N30="","",'ANEXO GASTOS FIJOS'!N30) -> 0 | P79: =IF('ANEXO GASTOS FIJOS'!O30="","",'ANEXO GASTOS FIJOS'!O30) -> 0 | Q79: 0
D80: =IF('ANEXO GASTOS FIJOS'!B31="","",'ANEXO GASTOS FIJOS'!B31) -> Retenciones IRPF | E80: =IF('ANEXO GASTOS FIJOS'!D31="","",'ANEXO GASTOS FIJOS'!D31) ->  | F80: =IF('ANEXO GASTOS FIJOS'!E31="","",'ANEXO GASTOS FIJOS'!E31) -> 0 | G80: =IF('ANEXO GASTOS FIJOS'!F31="","",'ANEXO GASTOS FIJOS'!F31) -> 0 | H80: =IF('ANEXO GASTOS FIJOS'!G31="","",'ANEXO GASTOS FIJOS'!G31) -> 0 | I80: =IF('ANEXO GASTOS FIJOS'!H31="","",'ANEXO GASTOS FIJOS'!H31) -> 0 | J80: =IF('ANEXO GASTOS FIJOS'!I31="","",'ANEXO GASTOS FIJOS'!I31) -> 0 | K80: =IF('ANEXO GASTOS FIJOS'!J31="","",'ANEXO GASTOS FIJOS'!J31) -> 0 | L80: =IF('ANEXO GASTOS FIJOS'!K31="","",'ANEXO GASTOS FIJOS'!K31) -> 0 | M80: =IF('ANEXO GASTOS FIJOS'!L31="","",'ANEXO GASTOS FIJOS'!L31) -> 0 | N80: =IF('ANEXO GASTOS FIJOS'!M31="","",'ANEXO GASTOS FIJOS'!M31) -> 0 | O80: =IF('ANEXO GASTOS FIJOS'!N31="","",'ANEXO GASTOS FIJOS'!N31) -> 0 | P80: =IF('ANEXO GASTOS FIJOS'!O31="","",'ANEXO GASTOS FIJOS'!O31) -> 0 | Q80: 0
D81: =IF('ANEXO GASTOS FIJOS'!B32="","",'ANEXO GASTOS FIJOS'!B32) -> Mantenimiento del riego | E81: =IF('ANEXO GASTOS FIJOS'!D32="","",'ANEXO GASTOS FIJOS'!D32) -> 0 | F81: =IF('ANEXO GASTOS FIJOS'!E32="","",'ANEXO GASTOS FIJOS'!E32) -> 0 | G81: =IF('ANEXO GASTOS FIJOS'!F32="","",'ANEXO GASTOS FIJOS'!F32) -> 0 | H81: =IF('ANEXO GASTOS FIJOS'!G32="","",'ANEXO GASTOS FIJOS'!G32) -> 0 | I81: =IF('ANEXO GASTOS FIJOS'!H32="","",'ANEXO GASTOS FIJOS'!H32) -> 0 | J81: =IF('ANEXO GASTOS FIJOS'!I32="","",'ANEXO GASTOS FIJOS'!I32) -> 0 | K81: =IF('ANEXO GASTOS FIJOS'!J32="","",'ANEXO GASTOS FIJOS'!J32) -> 0 | L81: =IF('ANEXO GASTOS FIJOS'!K32="","",'ANEXO GASTOS FIJOS'!K32) -> 0 | M81: =IF('ANEXO GASTOS FIJOS'!L32="","",'ANEXO GASTOS FIJOS'!L32) -> 0 | N81: =IF('ANEXO GASTOS FIJOS'!M32="","",'ANEXO GASTOS FIJOS'!M32) -> 0 | O81: =IF('ANEXO GASTOS FIJOS'!N32="","",'ANEXO GASTOS FIJOS'!N32) -> 0 | P81: =IF('ANEXO GASTOS FIJOS'!O32="","",'ANEXO GASTOS FIJOS'!O32) -> 0 | Q81: 0
D82: =IF('ANEXO GASTOS FIJOS'!B33="","",'ANEXO GASTOS FIJOS'!B33) -> Plantel | E82: =IF('ANEXO GASTOS FIJOS'!D33="","",'ANEXO GASTOS FIJOS'!D33) -> 0 | F82: =IF('ANEXO GASTOS FIJOS'!E33="","",'ANEXO GASTOS FIJOS'!E33) -> 0 | G82: =IF('ANEXO GASTOS FIJOS'!F33="","",'ANEXO GASTOS FIJOS'!F33) -> 0 | H82: =IF('ANEXO GASTOS FIJOS'!G33="","",'ANEXO GASTOS FIJOS'!G33) -> 0 | I82: =IF('ANEXO GASTOS FIJOS'!H33="","",'ANEXO GASTOS FIJOS'!H33) -> 0 | J82: =IF('ANEXO GASTOS FIJOS'!I33="","",'ANEXO GASTOS FIJOS'!I33) -> 0 | K82: =IF('ANEXO GASTOS FIJOS'!J33="","",'ANEXO GASTOS FIJOS'!J33) -> 0 | L82: =IF('ANEXO GASTOS FIJOS'!K33="","",'ANEXO GASTOS FIJOS'!K33) -> 0 | M82: =IF('ANEXO GASTOS FIJOS'!L33="","",'ANEXO GASTOS FIJOS'!L33) -> 0 | N82: =IF('ANEXO GASTOS FIJOS'!M33="","",'ANEXO GASTOS FIJOS'!M33) -> 0 | O82: =IF('ANEXO GASTOS FIJOS'!N33="","",'ANEXO GASTOS FIJOS'!N33) -> 0 | P82: =IF('ANEXO GASTOS FIJOS'!O33="","",'ANEXO GASTOS FIJOS'!O33) -> 0 | Q82: 0
D83: =IF('ANEXO GASTOS FIJOS'!B34="","",'ANEXO GASTOS FIJOS'!B34) -> Fitosanitarios | E83: =IF('ANEXO GASTOS FIJOS'!D34="","",'ANEXO GASTOS FIJOS'!D34) -> 0 | F83: =IF('ANEXO GASTOS FIJOS'!E34="","",'ANEXO GASTOS FIJOS'!E34) -> 0 | G83: =IF('ANEXO GASTOS FIJOS'!F34="","",'ANEXO GASTOS FIJOS'!F34) -> 0 | H83: =IF('ANEXO GASTOS FIJOS'!G34="","",'ANEXO GASTOS FIJOS'!G34) -> 0 | I83: =IF('ANEXO GASTOS FIJOS'!H34="","",'ANEXO GASTOS FIJOS'!H34) -> 0 | J83: =IF('ANEXO GASTOS FIJOS'!I34="","",'ANEXO GASTOS FIJOS'!I34) -> 0 | K83: =IF('ANEXO GASTOS FIJOS'!J34="","",'ANEXO GASTOS FIJOS'!J34) -> 0 | L83: =IF('ANEXO GASTOS FIJOS'!K34="","",'ANEXO GASTOS FIJOS'!K34) -> 0 | M83: =IF('ANEXO GASTOS FIJOS'!L34="","",'ANEXO GASTOS FIJOS'!L34) -> 0 | N83: =IF('ANEXO GASTOS FIJOS'!M34="","",'ANEXO GASTOS FIJOS'!M34) -> 0 | O83: =IF('ANEXO GASTOS FIJOS'!N34="","",'ANEXO GASTOS FIJOS'!N34) -> 0 | P83: =IF('ANEXO GASTOS FIJOS'!O34="","",'ANEXO GASTOS FIJOS'!O34) -> 0 | Q83: 0
D84: =IF('ANEXO GASTOS FIJOS'!B35="","",'ANEXO GASTOS FIJOS'!B35) -> Fertilizantes | E84: =IF('ANEXO GASTOS FIJOS'!D35="","",'ANEXO GASTOS FIJOS'!D35) -> 0 | F84: =IF('ANEXO GASTOS FIJOS'!E35="","",'ANEXO GASTOS FIJOS'!E35) -> 0 | G84: =IF('ANEXO GASTOS FIJOS'!F35="","",'ANEXO GASTOS FIJOS'!F35) -> 0 | H84: =IF('ANEXO GASTOS FIJOS'!G35="","",'ANEXO GASTOS FIJOS'!G35) -> 0 | I84: =IF('ANEXO GASTOS FIJOS'!H35="","",'ANEXO GASTOS FIJOS'!H35) -> 0 | J84: =IF('ANEXO GASTOS FIJOS'!I35="","",'ANEXO GASTOS FIJOS'!I35) -> 0 | K84: =IF('ANEXO GASTOS FIJOS'!J35="","",'ANEXO GASTOS FIJOS'!J35) -> 0 | L84: =IF('ANEXO GASTOS FIJOS'!K35="","",'ANEXO GASTOS FIJOS'!K35) -> 0 | M84: =IF('ANEXO GASTOS FIJOS'!L35="","",'ANEXO GASTOS FIJOS'!L35) -> 0 | N84: =IF('ANEXO GASTOS FIJOS'!M35="","",'ANEXO GASTOS FIJOS'!M35) -> 0 | O84: =IF('ANEXO GASTOS FIJOS'!N35="","",'ANEXO GASTOS FIJOS'!N35) -> 0 | P84: =IF('ANEXO GASTOS FIJOS'!O35="","",'ANEXO GASTOS FIJOS'!O35) -> 0 | Q84: 0
D85: =IF('ANEXO GASTOS FIJOS'!B36="","",'ANEXO GASTOS FIJOS'!B36) ->  | E85: =IF('ANEXO GASTOS FIJOS'!D36="","",'ANEXO GASTOS FIJOS'!D36) ->  | F85: =IF('ANEXO GASTOS FIJOS'!E36="","",'ANEXO GASTOS FIJOS'!E36) ->  | G85: =IF('ANEXO GASTOS FIJOS'!F36="","",'ANEXO GASTOS FIJOS'!F36) ->  | H85: =IF('ANEXO GASTOS FIJOS'!G36="","",'ANEXO GASTOS FIJOS'!G36) ->  | I85: =IF('ANEXO GASTOS FIJOS'!H36="","",'ANEXO GASTOS FIJOS'!H36) ->  | J85: =IF('ANEXO GASTOS FIJOS'!I36="","",'ANEXO GASTOS FIJOS'!I36) ->  | K85: =IF('ANEXO GASTOS FIJOS'!J36="","",'ANEXO GASTOS FIJOS'!J36) ->  | L85: =IF('ANEXO GASTOS FIJOS'!K36="","",'ANEXO GASTOS FIJOS'!K36) ->  | M85: =IF('ANEXO GASTOS FIJOS'!L36="","",'ANEXO GASTOS FIJOS'!L36) ->  | N85: =IF('ANEXO GASTOS FIJOS'!M36="","",'ANEXO GASTOS FIJOS'!M36) ->  | O85: =IF('ANEXO GASTOS FIJOS'!N36="","",'ANEXO GASTOS FIJOS'!N36) ->  | P85: =IF('ANEXO GASTOS FIJOS'!O36="","",'ANEXO GASTOS FIJOS'!O36) -> 
D86: =IF('ANEXO GASTOS FIJOS'!B37="","",'ANEXO GASTOS FIJOS'!B37) ->  | E86: =IF('ANEXO GASTOS FIJOS'!D37="","",'ANEXO GASTOS FIJOS'!D37) ->  | F86: =IF('ANEXO GASTOS FIJOS'!E37="","",'ANEXO GASTOS FIJOS'!E37) ->  | G86: =IF('ANEXO GASTOS FIJOS'!F37="","",'ANEXO GASTOS FIJOS'!F37) ->  | H86: =IF('ANEXO GASTOS FIJOS'!G37="","",'ANEXO GASTOS FIJOS'!G37) ->  | I86: =IF('ANEXO GASTOS FIJOS'!H37="","",'ANEXO GASTOS FIJOS'!H37) ->  | J86: =IF('ANEXO GASTOS FIJOS'!I37="","",'ANEXO GASTOS FIJOS'!I37) ->  | K86: =IF('ANEXO GASTOS FIJOS'!J37="","",'ANEXO GASTOS FIJOS'!J37) ->  | L86: =IF('ANEXO GASTOS FIJOS'!K37="","",'ANEXO GASTOS FIJOS'!K37) ->  | M86: =IF('ANEXO GASTOS FIJOS'!L37="","",'ANEXO GASTOS FIJOS'!L37) ->  | N86: =IF('ANEXO GASTOS FIJOS'!M37="","",'ANEXO GASTOS FIJOS'!M37) ->  | O86: =IF('ANEXO GASTOS FIJOS'!N37="","",'ANEXO GASTOS FIJOS'!N37) ->  | P86: =IF('ANEXO GASTOS FIJOS'!O37="","",'ANEXO GASTOS FIJOS'!O37) -> 
D87: =IF('ANEXO GASTOS FIJOS'!B38="","",'ANEXO GASTOS FIJOS'!B38) ->  | E87: =IF('ANEXO GASTOS FIJOS'!D38="","",'ANEXO GASTOS FIJOS'!D38) ->  | F87: =IF('ANEXO GASTOS FIJOS'!E38="","",'ANEXO GASTOS FIJOS'!E38) ->  | G87: =IF('ANEXO GASTOS FIJOS'!F38="","",'ANEXO GASTOS FIJOS'!F38) ->  | H87: =IF('ANEXO GASTOS FIJOS'!G38="","",'ANEXO GASTOS FIJOS'!G38) ->  | I87: =IF('ANEXO GASTOS FIJOS'!H38="","",'ANEXO GASTOS FIJOS'!H38) ->  | J87: =IF('ANEXO GASTOS FIJOS'!I38="","",'ANEXO GASTOS FIJOS'!I38) ->  | K87: =IF('ANEXO GASTOS FIJOS'!J38="","",'ANEXO GASTOS FIJOS'!J38) ->  | L87: =IF('ANEXO GASTOS FIJOS'!K38="","",'ANEXO GASTOS FIJOS'!K38) ->  | M87: =IF('ANEXO GASTOS FIJOS'!L38="","",'ANEXO GASTOS FIJOS'!L38) ->  | N87: =IF('ANEXO GASTOS FIJOS'!M38="","",'ANEXO GASTOS FIJOS'!M38) ->  | O87: =IF('ANEXO GASTOS FIJOS'!N38="","",'ANEXO GASTOS FIJOS'!N38) ->  | P87: =IF('ANEXO GASTOS FIJOS'!O38="","",'ANEXO GASTOS FIJOS'!O38) -> 
D88: TOTALES / MES | E88: =SUM(E62:E87) -> 0 | F88: =SUM(F62:F87) -> 0 | G88: 0 | H88: 0 | I88: 0 | J88: 0 | K88: 0 | L88: 0 | M88: 0 | N88: 0 | O88: 0 | P88: 0 | Q88: =SUM(E88:P88) -> 0
B94: GASTOS VARIABLES
D96: TABLA A | E96: ='7.CUENTA DE RESULTADOS '!C20 -> 1900enero | F96: ='7.CUENTA DE RESULTADOS '!D20 -> 1900enero | G96: ='7.CUENTA DE RESULTADOS '!E20 -> 1900febrero | H96: ='7.CUENTA DE RESULTADOS '!F20 -> 1900marzo | I96: ='7.CUENTA DE RESULTADOS '!G20 -> 1900abril | J96: ='7.CUENTA DE RESULTADOS '!H20 -> 1900mayo | K96: ='7.CUENTA DE RESULTADOS '!I20 -> 1900junio | L96: ='7.CUENTA DE RESULTADOS '!J20 -> 1900julio | M96: ='7.CUENTA DE RESULTADOS '!K20 -> 1900agosto | N96: ='7.CUENTA DE RESULTADOS '!L20 -> 1900septiembre | O96: ='7.CUENTA DE RESULTADOS '!M20 -> 1900octubre | P96: ='7.CUENTA DE RESULTADOS '!N20 -> 1900noviembre | Q96: TOTALES
D97: =IF('6.GASTOS VARIABLES'!C25="TOTAL","",IF('6.GASTOS VARIABLES'!C25="","",'6.GASTOS VARIABLES'!C25)) ->  | E97: =IF($D97="","",IF('6.GASTOS VARIABLES'!D25="","",'6.GASTOS VARIABLES'!D25)) ->  | F97: =IF($D97="","",IF('6.GASTOS VARIABLES'!E25="","",'6.GASTOS VARIABLES'!E25)) ->  | G97: =IF($D97="","",IF('6.GASTOS VARIABLES'!F25="","",'6.GASTOS VARIABLES'!F25)) ->  | H97: =IF($D97="","",IF('6.GASTOS VARIABLES'!G25="","",'6.GASTOS VARIABLES'!G25)) ->  | I97: =IF($D97="","",IF('6.GASTOS VARIABLES'!H25="","",'6.GASTOS VARIABLES'!H25)) ->  | J97: =IF($D97="","",IF('6.GASTOS VARIABLES'!I25="","",'6.GASTOS VARIABLES'!I25)) ->  | K97: =IF($D97="","",IF('6.GASTOS VARIABLES'!J25="","",'6.GASTOS VARIABLES'!J25)) ->  | L97: =IF($D97="","",IF('6.GASTOS VARIABLES'!K25="","",'6.GASTOS VARIABLES'!K25)) ->  | M97: =IF($D97="","",IF('6.GASTOS VARIABLES'!L25="","",'6.GASTOS VARIABLES'!L25)) ->  | N97: =IF($D97="","",IF('6.GASTOS VARIABLES'!M25="","",'6.GASTOS VARIABLES'!M25)) ->  | O97: =IF($D97="","",IF('6.GASTOS VARIABLES'!N25="","",'6.GASTOS VARIABLES'!N25)) ->  | P97: =IF($D97="","",IF('6.GASTOS VARIABLES'!O25="","",'6.GASTOS VARIABLES'!O25)) ->  | Q97: =IF(D97="","",SUM(E97:P97)) -> 
D98: =IF('6.GASTOS VARIABLES'!C26="TOTAL","",IF('6.GASTOS VARIABLES'!C26="","",'6.GASTOS VARIABLES'!C26)) ->  | E98: =IF($D98="","",IF('6.GASTOS VARIABLES'!D26="","",'6.GASTOS VARIABLES'!D26)) ->  | F98: =IF($D98="","",IF('6.GASTOS VARIABLES'!E26="","",'6.GASTOS VARIABLES'!E26)) ->  | G98: =IF($D98="","",IF('6.GASTOS VARIABLES'!F26="","",'6.GASTOS VARIABLES'!F26)) ->  | H98: =IF($D98="","",IF('6.GASTOS VARIABLES'!G26="","",'6.GASTOS VARIABLES'!G26)) ->  | I98: =IF($D98="","",IF('6.GASTOS VARIABLES'!H26="","",'6.GASTOS VARIABLES'!H26)) ->  | J98: =IF($D98="","",IF('6.GASTOS VARIABLES'!I26="","",'6.GASTOS VARIABLES'!I26)) ->  | K98: =IF($D98="","",IF('6.GASTOS VARIABLES'!J26="","",'6.GASTOS VARIABLES'!J26)) ->  | L98: =IF($D98="","",IF('6.GASTOS VARIABLES'!K26="","",'6.GASTOS VARIABLES'!K26)) ->  | M98: =IF($D98="","",IF('6.GASTOS VARIABLES'!L26="","",'6.GASTOS VARIABLES'!L26)) ->  | N98: =IF($D98="","",IF('6.GASTOS VARIABLES'!M26="","",'6.GASTOS VARIABLES'!M26)) ->  | O98: =IF($D98="","",IF('6.GASTOS VARIABLES'!N26="","",'6.GASTOS VARIABLES'!N26)) ->  | P98: =IF($D98="","",IF('6.GASTOS VARIABLES'!O26="","",'6.GASTOS VARIABLES'!O26)) ->  | Q98: =IF(D98="","",SUM(E98:P98)) -> 
D99: =IF('6.GASTOS VARIABLES'!C27="TOTAL","",IF('6.GASTOS VARIABLES'!C27="","",'6.GASTOS VARIABLES'!C27)) ->  | E99: =IF($D99="","",IF('6.GASTOS VARIABLES'!D27="","",'6.GASTOS VARIABLES'!D27)) ->  | F99: =IF($D99="","",IF('6.GASTOS VARIABLES'!E27="","",'6.GASTOS VARIABLES'!E27)) ->  | G99: =IF($D99="","",IF('6.GASTOS VARIABLES'!F27="","",'6.GASTOS VARIABLES'!F27)) ->  | H99: =IF($D99="","",IF('6.GASTOS VARIABLES'!G27="","",'6.GASTOS VARIABLES'!G27)) ->  | I99: =IF($D99="","",IF('6.GASTOS VARIABLES'!H27="","",'6.GASTOS VARIABLES'!H27)) ->  | J99: =IF($D99="","",IF('6.GASTOS VARIABLES'!I27="","",'6.GASTOS VARIABLES'!I27)) ->  | K99: =IF($D99="","",IF('6.GASTOS VARIABLES'!J27="","",'6.GASTOS VARIABLES'!J27)) ->  | L99: =IF($D99="","",IF('6.GASTOS VARIABLES'!K27="","",'6.GASTOS VARIABLES'!K27)) ->  | M99: =IF($D99="","",IF('6.GASTOS VARIABLES'!L27="","",'6.GASTOS VARIABLES'!L27)) ->  | N99: =IF($D99="","",IF('6.GASTOS VARIABLES'!M27="","",'6.GASTOS VARIABLES'!M27)) ->  | O99: =IF($D99="","",IF('6.GASTOS VARIABLES'!N27="","",'6.GASTOS VARIABLES'!N27)) ->  | P99: =IF($D99="","",IF('6.GASTOS VARIABLES'!O27="","",'6.GASTOS VARIABLES'!O27)) -> 
D100: =IF('6.GASTOS VARIABLES'!C28="TOTAL","",IF('6.GASTOS VARIABLES'!C28="","",'6.GASTOS VARIABLES'!C28)) ->  | E100: =IF($D100="","",IF('6.GASTOS VARIABLES'!D28="","",'6.GASTOS VARIABLES'!D28)) ->  | F100: =IF($D100="","",IF('6.GASTOS VARIABLES'!E28="","",'6.GASTOS VARIABLES'!E28)) ->  | G100: =IF($D100="","",IF('6.GASTOS VARIABLES'!F28="","",'6.GASTOS VARIABLES'!F28)) ->  | H100: =IF($D100="","",IF('6.GASTOS VARIABLES'!G28="","",'6.GASTOS VARIABLES'!G28)) ->  | I100: =IF($D100="","",IF('6.GASTOS VARIABLES'!H28="","",'6.GASTOS VARIABLES'!H28)) ->  | J100: =IF($D100="","",IF('6.GASTOS VARIABLES'!I28="","",'6.GASTOS VARIABLES'!I28)) ->  | K100: =IF($D100="","",IF('6.GASTOS VARIABLES'!J28="","",'6.GASTOS VARIABLES'!J28)) ->  | L100: =IF($D100="","",IF('6.GASTOS VARIABLES'!K28="","",'6.GASTOS VARIABLES'!K28)) ->  | M100: =IF($D100="","",IF('6.GASTOS VARIABLES'!L28="","",'6.GASTOS VARIABLES'!L28)) ->  | N100: =IF($D100="","",IF('6.GASTOS VARIABLES'!M28="","",'6.GASTOS VARIABLES'!M28)) ->  | O100: =IF($D100="","",IF('6.GASTOS VARIABLES'!N28="","",'6.GASTOS VARIABLES'!N28)) ->  | P100: =IF($D100="","",IF('6.GASTOS VARIABLES'!O28="","",'6.GASTOS VARIABLES'!O28)) -> 
D101: =IF('6.GASTOS VARIABLES'!C29="TOTAL","",IF('6.GASTOS VARIABLES'!C29="","",'6.GASTOS VARIABLES'!C29)) ->  | E101: =IF($D101="","",IF('6.GASTOS VARIABLES'!D29="","",'6.GASTOS VARIABLES'!D29)) ->  | F101: =IF($D101="","",IF('6.GASTOS VARIABLES'!E29="","",'6.GASTOS VARIABLES'!E29)) ->  | G101: =IF($D101="","",IF('6.GASTOS VARIABLES'!F29="","",'6.GASTOS VARIABLES'!F29)) ->  | H101: =IF($D101="","",IF('6.GASTOS VARIABLES'!G29="","",'6.GASTOS VARIABLES'!G29)) ->  | I101: =IF($D101="","",IF('6.GASTOS VARIABLES'!H29="","",'6.GASTOS VARIABLES'!H29)) ->  | J101: =IF($D101="","",IF('6.GASTOS VARIABLES'!I29="","",'6.GASTOS VARIABLES'!I29)) ->  | K101: =IF($D101="","",IF('6.GASTOS VARIABLES'!J29="","",'6.GASTOS VARIABLES'!J29)) ->  | L101: =IF($D101="","",IF('6.GASTOS VARIABLES'!K29="","",'6.GASTOS VARIABLES'!K29)) ->  | M101: =IF($D101="","",IF('6.GASTOS VARIABLES'!L29="","",'6.GASTOS VARIABLES'!L29)) ->  | N101: =IF($D101="","",IF('6.GASTOS VARIABLES'!M29="","",'6.GASTOS VARIABLES'!M29)) ->  | O101: =IF($D101="","",IF('6.GASTOS VARIABLES'!N29="","",'6.GASTOS VARIABLES'!N29)) ->  | P101: =IF($D101="","",IF('6.GASTOS VARIABLES'!O29="","",'6.GASTOS VARIABLES'!O29)) ->  | Q101: =IF(D101="","",SUM(E101:P101)) -> 
D102: =IF('6.GASTOS VARIABLES'!C30="TOTAL","",IF('6.GASTOS VARIABLES'!C30="","",'6.GASTOS VARIABLES'!C30)) ->  | E102: =IF($D102="","",IF('6.GASTOS VARIABLES'!D30="","",'6.GASTOS VARIABLES'!D30)) ->  | F102: =IF($D102="","",IF('6.GASTOS VARIABLES'!E30="","",'6.GASTOS VARIABLES'!E30)) ->  | G102: =IF($D102="","",IF('6.GASTOS VARIABLES'!F30="","",'6.GASTOS VARIABLES'!F30)) ->  | H102: =IF($D102="","",IF('6.GASTOS VARIABLES'!G30="","",'6.GASTOS VARIABLES'!G30)) ->  | I102: =IF($D102="","",IF('6.GASTOS VARIABLES'!H30="","",'6.GASTOS VARIABLES'!H30)) ->  | J102: =IF($D102="","",IF('6.GASTOS VARIABLES'!I30="","",'6.GASTOS VARIABLES'!I30)) ->  | K102: =IF($D102="","",IF('6.GASTOS VARIABLES'!J30="","",'6.GASTOS VARIABLES'!J30)) ->  | L102: =IF($D102="","",IF('6.GASTOS VARIABLES'!K30="","",'6.GASTOS VARIABLES'!K30)) ->  | M102: =IF($D102="","",IF('6.GASTOS VARIABLES'!L30="","",'6.GASTOS VARIABLES'!L30)) ->  | N102: =IF($D102="","",IF('6.GASTOS VARIABLES'!M30="","",'6.GASTOS VARIABLES'!M30)) ->  | O102: =IF($D102="","",IF('6.GASTOS VARIABLES'!N30="","",'6.GASTOS VARIABLES'!N30)) ->  | P102: =IF($D102="","",IF('6.GASTOS VARIABLES'!O30="","",'6.GASTOS VARIABLES'!O30)) -> 
D103: =IF('6.GASTOS VARIABLES'!C31="TOTAL","",IF('6.GASTOS VARIABLES'!C31="","",'6.GASTOS VARIABLES'!C31)) ->  | E103: =IF($D103="","",IF('6.GASTOS VARIABLES'!D31="","",'6.GASTOS VARIABLES'!D31)) ->  | F103: =IF($D103="","",IF('6.GASTOS VARIABLES'!E31="","",'6.GASTOS VARIABLES'!E31)) ->  | G103: =IF($D103="","",IF('6.GASTOS VARIABLES'!F31="","",'6.GASTOS VARIABLES'!F31)) ->  | H103: =IF($D103="","",IF('6.GASTOS VARIABLES'!G31="","",'6.GASTOS VARIABLES'!G31)) ->  | I103: =IF($D103="","",IF('6.GASTOS VARIABLES'!H31="","",'6.GASTOS VARIABLES'!H31)) ->  | J103: =IF($D103="","",IF('6.GASTOS VARIABLES'!I31="","",'6.GASTOS VARIABLES'!I31)) ->  | K103: =IF($D103="","",IF('6.GASTOS VARIABLES'!J31="","",'6.GASTOS VARIABLES'!J31)) ->  | L103: =IF($D103="","",IF('6.GASTOS VARIABLES'!K31="","",'6.GASTOS VARIABLES'!K31)) ->  | M103: =IF($D103="","",IF('6.GASTOS VARIABLES'!L31="","",'6.GASTOS VARIABLES'!L31)) ->  | N103: =IF($D103="","",IF('6.GASTOS VARIABLES'!M31="","",'6.GASTOS VARIABLES'!M31)) ->  | O103: =IF($D103="","",IF('6.GASTOS VARIABLES'!N31="","",'6.GASTOS VARIABLES'!N31)) ->  | P103: =IF($D103="","",IF('6.GASTOS VARIABLES'!O31="","",'6.GASTOS VARIABLES'!O31)) -> 
D104: =IF('6.GASTOS VARIABLES'!C32="TOTAL","",IF('6.GASTOS VARIABLES'!C32="","",'6.GASTOS VARIABLES'!C32)) ->  | E104: =IF($D104="","",IF('6.GASTOS VARIABLES'!D32="","",'6.GASTOS VARIABLES'!D32)) ->  | F104: =IF($D104="","",IF('6.GASTOS VARIABLES'!E32="","",'6.GASTOS VARIABLES'!E32)) ->  | G104: =IF($D104="","",IF('6.GASTOS VARIABLES'!F32="","",'6.GASTOS VARIABLES'!F32)) ->  | H104: =IF($D104="","",IF('6.GASTOS VARIABLES'!G32="","",'6.GASTOS VARIABLES'!G32)) ->  | I104: =IF($D104="","",IF('6.GASTOS VARIABLES'!H32="","",'6.GASTOS VARIABLES'!H32)) ->  | J104: =IF($D104="","",IF('6.GASTOS VARIABLES'!I32="","",'6.GASTOS VARIABLES'!I32)) ->  | K104: =IF($D104="","",IF('6.GASTOS VARIABLES'!J32="","",'6.GASTOS VARIABLES'!J32)) ->  | L104: =IF($D104="","",IF('6.GASTOS VARIABLES'!K32="","",'6.GASTOS VARIABLES'!K32)) ->  | M104: =IF($D104="","",IF('6.GASTOS VARIABLES'!L32="","",'6.GASTOS VARIABLES'!L32)) ->  | N104: =IF($D104="","",IF('6.GASTOS VARIABLES'!M32="","",'6.GASTOS VARIABLES'!M32)) ->  | O104: =IF($D104="","",IF('6.GASTOS VARIABLES'!N32="","",'6.GASTOS VARIABLES'!N32)) ->  | P104: =IF($D104="","",IF('6.GASTOS VARIABLES'!O32="","",'6.GASTOS VARIABLES'!O32)) -> 
D105: =IF('6.GASTOS VARIABLES'!C33="TOTAL","",IF('6.GASTOS VARIABLES'!C33="","",'6.GASTOS VARIABLES'!C33)) ->  | E105: =IF($D105="","",IF('6.GASTOS VARIABLES'!D33="","",'6.GASTOS VARIABLES'!D33)) ->  | F105: =IF($D105="","",IF('6.GASTOS VARIABLES'!E33="","",'6.GASTOS VARIABLES'!E33)) ->  | G105: =IF($D105="","",IF('6.GASTOS VARIABLES'!F33="","",'6.GASTOS VARIABLES'!F33)) ->  | H105: =IF($D105="","",IF('6.GASTOS VARIABLES'!G33="","",'6.GASTOS VARIABLES'!G33)) ->  | I105: =IF($D105="","",IF('6.GASTOS VARIABLES'!H33="","",'6.GASTOS VARIABLES'!H33)) ->  | J105: =IF($D105="","",IF('6.GASTOS VARIABLES'!I33="","",'6.GASTOS VARIABLES'!I33)) ->  | K105: =IF($D105="","",IF('6.GASTOS VARIABLES'!J33="","",'6.GASTOS VARIABLES'!J33)) ->  | L105: =IF($D105="","",IF('6.GASTOS VARIABLES'!K33="","",'6.GASTOS VARIABLES'!K33)) ->  | M105: =IF($D105="","",IF('6.GASTOS VARIABLES'!L33="","",'6.GASTOS VARIABLES'!L33)) ->  | N105: =IF($D105="","",IF('6.GASTOS VARIABLES'!M33="","",'6.GASTOS VARIABLES'!M33)) ->  | O105: =IF($D105="","",IF('6.GASTOS VARIABLES'!N33="","",'6.GASTOS VARIABLES'!N33)) ->  | P105: =IF($D105="","",IF('6.GASTOS VARIABLES'!O33="","",'6.GASTOS VARIABLES'!O33)) -> 
D106: =IF('6.GASTOS VARIABLES'!C34="TOTAL","",IF('6.GASTOS VARIABLES'!C34="","",'6.GASTOS VARIABLES'!C34)) ->  | E106: =IF($D106="","",IF('6.GASTOS VARIABLES'!D34="","",'6.GASTOS VARIABLES'!D34)) ->  | F106: =IF($D106="","",IF('6.GASTOS VARIABLES'!E34="","",'6.GASTOS VARIABLES'!E34)) ->  | G106: =IF($D106="","",IF('6.GASTOS VARIABLES'!F34="","",'6.GASTOS VARIABLES'!F34)) ->  | H106: =IF($D106="","",IF('6.GASTOS VARIABLES'!G34="","",'6.GASTOS VARIABLES'!G34)) ->  | I106: =IF($D106="","",IF('6.GASTOS VARIABLES'!H34="","",'6.GASTOS VARIABLES'!H34)) ->  | J106: =IF($D106="","",IF('6.GASTOS VARIABLES'!I34="","",'6.GASTOS VARIABLES'!I34)) ->  | K106: =IF($D106="","",IF('6.GASTOS VARIABLES'!J34="","",'6.GASTOS VARIABLES'!J34)) ->  | L106: =IF($D106="","",IF('6.GASTOS VARIABLES'!K34="","",'6.GASTOS VARIABLES'!K34)) ->  | M106: =IF($D106="","",IF('6.GASTOS VARIABLES'!L34="","",'6.GASTOS VARIABLES'!L34)) ->  | N106: =IF($D106="","",IF('6.GASTOS VARIABLES'!M34="","",'6.GASTOS VARIABLES'!M34)) ->  | O106: =IF($D106="","",IF('6.GASTOS VARIABLES'!N34="","",'6.GASTOS VARIABLES'!N34)) ->  | P106: =IF($D106="","",IF('6.GASTOS VARIABLES'!O34="","",'6.GASTOS VARIABLES'!O34)) -> 
D107: =IF('6.GASTOS VARIABLES'!C35="TOTAL","",IF('6.GASTOS VARIABLES'!C35="","",'6.GASTOS VARIABLES'!C35)) ->  | E107: =IF($D107="","",IF('6.GASTOS VARIABLES'!D35="","",'6.GASTOS VARIABLES'!D35)) ->  | F107: =IF($D107="","",IF('6.GASTOS VARIABLES'!E35="","",'6.GASTOS VARIABLES'!E35)) ->  | G107: =IF($D107="","",IF('6.GASTOS VARIABLES'!F35="","",'6.GASTOS VARIABLES'!F35)) ->  | H107: =IF($D107="","",IF('6.GASTOS VARIABLES'!G35="","",'6.GASTOS VARIABLES'!G35)) ->  | I107: =IF($D107="","",IF('6.GASTOS VARIABLES'!H35="","",'6.GASTOS VARIABLES'!H35)) ->  | J107: =IF($D107="","",IF('6.GASTOS VARIABLES'!I35="","",'6.GASTOS VARIABLES'!I35)) ->  | K107: =IF($D107="","",IF('6.GASTOS VARIABLES'!J35="","",'6.GASTOS VARIABLES'!J35)) ->  | L107: =IF($D107="","",IF('6.GASTOS VARIABLES'!K35="","",'6.GASTOS VARIABLES'!K35)) ->  | M107: =IF($D107="","",IF('6.GASTOS VARIABLES'!L35="","",'6.GASTOS VARIABLES'!L35)) ->  | N107: =IF($D107="","",IF('6.GASTOS VARIABLES'!M35="","",'6.GASTOS VARIABLES'!M35)) ->  | O107: =IF($D107="","",IF('6.GASTOS VARIABLES'!N35="","",'6.GASTOS VARIABLES'!N35)) ->  | P107: =IF($D107="","",IF('6.GASTOS VARIABLES'!O35="","",'6.GASTOS VARIABLES'!O35)) -> 
D108: =IF('6.GASTOS VARIABLES'!C36="TOTAL","",IF('6.GASTOS VARIABLES'!C36="","",'6.GASTOS VARIABLES'!C36)) ->  | E108: =IF($D108="","",IF('6.GASTOS VARIABLES'!D36="","",'6.GASTOS VARIABLES'!D36)) ->  | F108: =IF($D108="","",IF('6.GASTOS VARIABLES'!E36="","",'6.GASTOS VARIABLES'!E36)) ->  | G108: =IF($D108="","",IF('6.GASTOS VARIABLES'!F36="","",'6.GASTOS VARIABLES'!F36)) ->  | H108: =IF($D108="","",IF('6.GASTOS VARIABLES'!G36="","",'6.GASTOS VARIABLES'!G36)) ->  | I108: =IF($D108="","",IF('6.GASTOS VARIABLES'!H36="","",'6.GASTOS VARIABLES'!H36)) ->  | J108: =IF($D108="","",IF('6.GASTOS VARIABLES'!I36="","",'6.GASTOS VARIABLES'!I36)) ->  | K108: =IF($D108="","",IF('6.GASTOS VARIABLES'!J36="","",'6.GASTOS VARIABLES'!J36)) ->  | L108: =IF($D108="","",IF('6.GASTOS VARIABLES'!K36="","",'6.GASTOS VARIABLES'!K36)) ->  | M108: =IF($D108="","",IF('6.GASTOS VARIABLES'!L36="","",'6.GASTOS VARIABLES'!L36)) ->  | N108: =IF($D108="","",IF('6.GASTOS VARIABLES'!M36="","",'6.GASTOS VARIABLES'!M36)) ->  | O108: =IF($D108="","",IF('6.GASTOS VARIABLES'!N36="","",'6.GASTOS VARIABLES'!N36)) ->  | P108: =IF($D108="","",IF('6.GASTOS VARIABLES'!O36="","",'6.GASTOS VARIABLES'!O36)) -> 
D109: =IF('6.GASTOS VARIABLES'!C37="TOTAL","",IF('6.GASTOS VARIABLES'!C37="","",'6.GASTOS VARIABLES'!C37)) ->  | E109: =IF($D109="","",IF('6.GASTOS VARIABLES'!D37="","",'6.GASTOS VARIABLES'!D37)) ->  | F109: =IF($D109="","",IF('6.GASTOS VARIABLES'!E37="","",'6.GASTOS VARIABLES'!E37)) ->  | G109: =IF($D109="","",IF('6.GASTOS VARIABLES'!F37="","",'6.GASTOS VARIABLES'!F37)) ->  | H109: =IF($D109="","",IF('6.GASTOS VARIABLES'!G37="","",'6.GASTOS VARIABLES'!G37)) ->  | I109: =IF($D109="","",IF('6.GASTOS VARIABLES'!H37="","",'6.GASTOS VARIABLES'!H37)) ->  | J109: =IF($D109="","",IF('6.GASTOS VARIABLES'!I37="","",'6.GASTOS VARIABLES'!I37)) ->  | K109: =IF($D109="","",IF('6.GASTOS VARIABLES'!J37="","",'6.GASTOS VARIABLES'!J37)) ->  | L109: =IF($D109="","",IF('6.GASTOS VARIABLES'!K37="","",'6.GASTOS VARIABLES'!K37)) ->  | M109: =IF($D109="","",IF('6.GASTOS VARIABLES'!L37="","",'6.GASTOS VARIABLES'!L37)) ->  | N109: =IF($D109="","",IF('6.GASTOS VARIABLES'!M37="","",'6.GASTOS VARIABLES'!M37)) ->  | O109: =IF($D109="","",IF('6.GASTOS VARIABLES'!N37="","",'6.GASTOS VARIABLES'!N37)) ->  | P109: =IF($D109="","",IF('6.GASTOS VARIABLES'!O37="","",'6.GASTOS VARIABLES'!O37)) -> 
D110: =IF('6.GASTOS VARIABLES'!C38="TOTAL","",IF('6.GASTOS VARIABLES'!C38="","",'6.GASTOS VARIABLES'!C38)) ->  | E110: =IF($D110="","",IF('6.GASTOS VARIABLES'!D38="","",'6.GASTOS VARIABLES'!D38)) ->  | F110: =IF($D110="","",IF('6.GASTOS VARIABLES'!E38="","",'6.GASTOS VARIABLES'!E38)) ->  | G110: =IF($D110="","",IF('6.GASTOS VARIABLES'!F38="","",'6.GASTOS VARIABLES'!F38)) ->  | H110: =IF($D110="","",IF('6.GASTOS VARIABLES'!G38="","",'6.GASTOS VARIABLES'!G38)) ->  | I110: =IF($D110="","",IF('6.GASTOS VARIABLES'!H38="","",'6.GASTOS VARIABLES'!H38)) ->  | J110: =IF($D110="","",IF('6.GASTOS VARIABLES'!I38="","",'6.GASTOS VARIABLES'!I38)) ->  | K110: =IF($D110="","",IF('6.GASTOS VARIABLES'!J38="","",'6.GASTOS VARIABLES'!J38)) ->  | L110: =IF($D110="","",IF('6.GASTOS VARIABLES'!K38="","",'6.GASTOS VARIABLES'!K38)) ->  | M110: =IF($D110="","",IF('6.GASTOS VARIABLES'!L38="","",'6.GASTOS VARIABLES'!L38)) ->  | N110: =IF($D110="","",IF('6.GASTOS VARIABLES'!M38="","",'6.GASTOS VARIABLES'!M38)) ->  | O110: =IF($D110="","",IF('6.GASTOS VARIABLES'!N38="","",'6.GASTOS VARIABLES'!N38)) ->  | P110: =IF($D110="","",IF('6.GASTOS VARIABLES'!O38="","",'6.GASTOS VARIABLES'!O38)) -> 
D111: =IF('6.GASTOS VARIABLES'!C39="TOTAL","",IF('6.GASTOS VARIABLES'!C39="","",'6.GASTOS VARIABLES'!C39)) ->  | E111: =IF($D111="","",IF('6.GASTOS VARIABLES'!D39="","",'6.GASTOS VARIABLES'!D39)) ->  | F111: =IF($D111="","",IF('6.GASTOS VARIABLES'!E39="","",'6.GASTOS VARIABLES'!E39)) ->  | G111: =IF($D111="","",IF('6.GASTOS VARIABLES'!F39="","",'6.GASTOS VARIABLES'!F39)) ->  | H111: =IF($D111="","",IF('6.GASTOS VARIABLES'!G39="","",'6.GASTOS VARIABLES'!G39)) ->  | I111: =IF($D111="","",IF('6.GASTOS VARIABLES'!H39="","",'6.GASTOS VARIABLES'!H39)) ->  | J111: =IF($D111="","",IF('6.GASTOS VARIABLES'!I39="","",'6.GASTOS VARIABLES'!I39)) ->  | K111: =IF($D111="","",IF('6.GASTOS VARIABLES'!J39="","",'6.GASTOS VARIABLES'!J39)) ->  | L111: =IF($D111="","",IF('6.GASTOS VARIABLES'!K39="","",'6.GASTOS VARIABLES'!K39)) ->  | M111: =IF($D111="","",IF('6.GASTOS VARIABLES'!L39="","",'6.GASTOS VARIABLES'!L39)) ->  | N111: =IF($D111="","",IF('6.GASTOS VARIABLES'!M39="","",'6.GASTOS VARIABLES'!M39)) ->  | O111: =IF($D111="","",IF('6.GASTOS VARIABLES'!N39="","",'6.GASTOS VARIABLES'!N39)) ->  | P111: =IF($D111="","",IF('6.GASTOS VARIABLES'!O39="","",'6.GASTOS VARIABLES'!O39)) -> 
D112: =IF('6.GASTOS VARIABLES'!C40="TOTAL","",IF('6.GASTOS VARIABLES'!C40="","",'6.GASTOS VARIABLES'!C40)) ->  | E112: =IF($D112="","",IF('6.GASTOS VARIABLES'!D40="","",'6.GASTOS VARIABLES'!D40)) ->  | F112: =IF($D112="","",IF('6.GASTOS VARIABLES'!E40="","",'6.GASTOS VARIABLES'!E40)) ->  | G112: =IF($D112="","",IF('6.GASTOS VARIABLES'!F40="","",'6.GASTOS VARIABLES'!F40)) ->  | H112: =IF($D112="","",IF('6.GASTOS VARIABLES'!G40="","",'6.GASTOS VARIABLES'!G40)) ->  | I112: =IF($D112="","",IF('6.GASTOS VARIABLES'!H40="","",'6.GASTOS VARIABLES'!H40)) ->  | J112: =IF($D112="","",IF('6.GASTOS VARIABLES'!I40="","",'6.GASTOS VARIABLES'!I40)) ->  | K112: =IF($D112="","",IF('6.GASTOS VARIABLES'!J40="","",'6.GASTOS VARIABLES'!J40)) ->  | L112: =IF($D112="","",IF('6.GASTOS VARIABLES'!K40="","",'6.GASTOS VARIABLES'!K40)) ->  | M112: =IF($D112="","",IF('6.GASTOS VARIABLES'!L40="","",'6.GASTOS VARIABLES'!L40)) ->  | N112: =IF($D112="","",IF('6.GASTOS VARIABLES'!M40="","",'6.GASTOS VARIABLES'!M40)) ->  | O112: =IF($D112="","",IF('6.GASTOS VARIABLES'!N40="","",'6.GASTOS VARIABLES'!N40)) ->  | P112: =IF($D112="","",IF('6.GASTOS VARIABLES'!O40="","",'6.GASTOS VARIABLES'!O40)) -> 
D113: =IF('6.GASTOS VARIABLES'!C41="TOTAL","",IF('6.GASTOS VARIABLES'!C41="","",'6.GASTOS VARIABLES'!C41)) ->  | E113: =IF($D113="","",IF('6.GASTOS VARIABLES'!D41="","",'6.GASTOS VARIABLES'!D41)) ->  | F113: =IF($D113="","",IF('6.GASTOS VARIABLES'!E41="","",'6.GASTOS VARIABLES'!E41)) ->  | G113: =IF($D113="","",IF('6.GASTOS VARIABLES'!F41="","",'6.GASTOS VARIABLES'!F41)) ->  | H113: =IF($D113="","",IF('6.GASTOS VARIABLES'!G41="","",'6.GASTOS VARIABLES'!G41)) ->  | I113: =IF($D113="","",IF('6.GASTOS VARIABLES'!H41="","",'6.GASTOS VARIABLES'!H41)) ->  | J113: =IF($D113="","",IF('6.GASTOS VARIABLES'!I41="","",'6.GASTOS VARIABLES'!I41)) ->  | K113: =IF($D113="","",IF('6.GASTOS VARIABLES'!J41="","",'6.GASTOS VARIABLES'!J41)) ->  | L113: =IF($D113="","",IF('6.GASTOS VARIABLES'!K41="","",'6.GASTOS VARIABLES'!K41)) ->  | M113: =IF($D113="","",IF('6.GASTOS VARIABLES'!L41="","",'6.GASTOS VARIABLES'!L41)) ->  | N113: =IF($D113="","",IF('6.GASTOS VARIABLES'!M41="","",'6.GASTOS VARIABLES'!M41)) ->  | O113: =IF($D113="","",IF('6.GASTOS VARIABLES'!N41="","",'6.GASTOS VARIABLES'!N41)) ->  | P113: =IF($D113="","",IF('6.GASTOS VARIABLES'!O41="","",'6.GASTOS VARIABLES'!O41)) -> 
D114: =IF('6.GASTOS VARIABLES'!C42="TOTAL","",IF('6.GASTOS VARIABLES'!C42="","",'6.GASTOS VARIABLES'!C42)) ->  | E114: =IF($D114="","",IF('6.GASTOS VARIABLES'!D42="","",'6.GASTOS VARIABLES'!D42)) ->  | F114: =IF($D114="","",IF('6.GASTOS VARIABLES'!E42="","",'6.GASTOS VARIABLES'!E42)) ->  | G114: =IF($D114="","",IF('6.GASTOS VARIABLES'!F42="","",'6.GASTOS VARIABLES'!F42)) ->  | H114: =IF($D114="","",IF('6.GASTOS VARIABLES'!G42="","",'6.GASTOS VARIABLES'!G42)) ->  | I114: =IF($D114="","",IF('6.GASTOS VARIABLES'!H42="","",'6.GASTOS VARIABLES'!H42)) ->  | J114: =IF($D114="","",IF('6.GASTOS VARIABLES'!I42="","",'6.GASTOS VARIABLES'!I42)) ->  | K114: =IF($D114="","",IF('6.GASTOS VARIABLES'!J42="","",'6.GASTOS VARIABLES'!J42)) ->  | L114: =IF($D114="","",IF('6.GASTOS VARIABLES'!K42="","",'6.GASTOS VARIABLES'!K42)) ->  | M114: =IF($D114="","",IF('6.GASTOS VARIABLES'!L42="","",'6.GASTOS VARIABLES'!L42)) ->  | N114: =IF($D114="","",IF('6.GASTOS VARIABLES'!M42="","",'6.GASTOS VARIABLES'!M42)) ->  | O114: =IF($D114="","",IF('6.GASTOS VARIABLES'!N42="","",'6.GASTOS VARIABLES'!N42)) ->  | P114: =IF($D114="","",IF('6.GASTOS VARIABLES'!O42="","",'6.GASTOS VARIABLES'!O42)) -> 
D115: =IF('6.GASTOS VARIABLES'!C43="TOTAL","",IF('6.GASTOS VARIABLES'!C43="","",'6.GASTOS VARIABLES'!C43)) ->  | E115: =IF($D115="","",IF('6.GASTOS VARIABLES'!D43="","",'6.GASTOS VARIABLES'!D43)) ->  | F115: =IF($D115="","",IF('6.GASTOS VARIABLES'!E43="","",'6.GASTOS VARIABLES'!E43)) ->  | G115: =IF($D115="","",IF('6.GASTOS VARIABLES'!F43="","",'6.GASTOS VARIABLES'!F43)) ->  | H115: =IF($D115="","",IF('6.GASTOS VARIABLES'!G43="","",'6.GASTOS VARIABLES'!G43)) ->  | I115: =IF($D115="","",IF('6.GASTOS VARIABLES'!H43="","",'6.GASTOS VARIABLES'!H43)) ->  | J115: =IF($D115="","",IF('6.GASTOS VARIABLES'!I43="","",'6.GASTOS VARIABLES'!I43)) ->  | K115: =IF($D115="","",IF('6.GASTOS VARIABLES'!J43="","",'6.GASTOS VARIABLES'!J43)) ->  | L115: =IF($D115="","",IF('6.GASTOS VARIABLES'!K43="","",'6.GASTOS VARIABLES'!K43)) ->  | M115: =IF($D115="","",IF('6.GASTOS VARIABLES'!L43="","",'6.GASTOS VARIABLES'!L43)) ->  | N115: =IF($D115="","",IF('6.GASTOS VARIABLES'!M43="","",'6.GASTOS VARIABLES'!M43)) ->  | O115: =IF($D115="","",IF('6.GASTOS VARIABLES'!N43="","",'6.GASTOS VARIABLES'!N43)) ->  | P115: =IF($D115="","",IF('6.GASTOS VARIABLES'!O43="","",'6.GASTOS VARIABLES'!O43)) -> 
D116: =IF('6.GASTOS VARIABLES'!C44="TOTAL","",IF('6.GASTOS VARIABLES'!C44="","",'6.GASTOS VARIABLES'!C44)) ->  | E116: =IF($D116="","",IF('6.GASTOS VARIABLES'!D44="","",'6.GASTOS VARIABLES'!D44)) ->  | F116: =IF($D116="","",IF('6.GASTOS VARIABLES'!E44="","",'6.GASTOS VARIABLES'!E44)) ->  | G116: =IF($D116="","",IF('6.GASTOS VARIABLES'!F44="","",'6.GASTOS VARIABLES'!F44)) ->  | H116: =IF($D116="","",IF('6.GASTOS VARIABLES'!G44="","",'6.GASTOS VARIABLES'!G44)) ->  | I116: =IF($D116="","",IF('6.GASTOS VARIABLES'!H44="","",'6.GASTOS VARIABLES'!H44)) ->  | J116: =IF($D116="","",IF('6.GASTOS VARIABLES'!I44="","",'6.GASTOS VARIABLES'!I44)) ->  | K116: =IF($D116="","",IF('6.GASTOS VARIABLES'!J44="","",'6.GASTOS VARIABLES'!J44)) ->  | L116: =IF($D116="","",IF('6.GASTOS VARIABLES'!K44="","",'6.GASTOS VARIABLES'!K44)) ->  | M116: =IF($D116="","",IF('6.GASTOS VARIABLES'!L44="","",'6.GASTOS VARIABLES'!L44)) ->  | N116: =IF($D116="","",IF('6.GASTOS VARIABLES'!M44="","",'6.GASTOS VARIABLES'!M44)) ->  | O116: =IF($D116="","",IF('6.GASTOS VARIABLES'!N44="","",'6.GASTOS VARIABLES'!N44)) ->  | P116: =IF($D116="","",IF('6.GASTOS VARIABLES'!O44="","",'6.GASTOS VARIABLES'!O44)) -> 
D117: =IF('6.GASTOS VARIABLES'!C45="TOTAL","",IF('6.GASTOS VARIABLES'!C45="","",'6.GASTOS VARIABLES'!C45)) ->  | E117: =IF($D117="","",IF('6.GASTOS VARIABLES'!D45="","",'6.GASTOS VARIABLES'!D45)) ->  | F117: =IF($D117="","",IF('6.GASTOS VARIABLES'!E45="","",'6.GASTOS VARIABLES'!E45)) ->  | G117: =IF($D117="","",IF('6.GASTOS VARIABLES'!F45="","",'6.GASTOS VARIABLES'!F45)) ->  | H117: =IF($D117="","",IF('6.GASTOS VARIABLES'!G45="","",'6.GASTOS VARIABLES'!G45)) ->  | I117: =IF($D117="","",IF('6.GASTOS VARIABLES'!H45="","",'6.GASTOS VARIABLES'!H45)) ->  | J117: =IF($D117="","",IF('6.GASTOS VARIABLES'!I45="","",'6.GASTOS VARIABLES'!I45)) ->  | K117: =IF($D117="","",IF('6.GASTOS VARIABLES'!J45="","",'6.GASTOS VARIABLES'!J45)) ->  | L117: =IF($D117="","",IF('6.GASTOS VARIABLES'!K45="","",'6.GASTOS VARIABLES'!K45)) ->  | M117: =IF($D117="","",IF('6.GASTOS VARIABLES'!L45="","",'6.GASTOS VARIABLES'!L45)) ->  | N117: =IF($D117="","",IF('6.GASTOS VARIABLES'!M45="","",'6.GASTOS VARIABLES'!M45)) ->  | O117: =IF($D117="","",IF('6.GASTOS VARIABLES'!N45="","",'6.GASTOS VARIABLES'!N45)) ->  | P117: =IF($D117="","",IF('6.GASTOS VARIABLES'!O45="","",'6.GASTOS VARIABLES'!O45)) -> 
D118: =IF('6.GASTOS VARIABLES'!C46="TOTAL","",IF('6.GASTOS VARIABLES'!C46="","",'6.GASTOS VARIABLES'!C46)) ->  | E118: =IF($D118="","",IF('6.GASTOS VARIABLES'!D46="","",'6.GASTOS VARIABLES'!D46)) ->  | F118: =IF($D118="","",IF('6.GASTOS VARIABLES'!E46="","",'6.GASTOS VARIABLES'!E46)) ->  | G118: =IF($D118="","",IF('6.GASTOS VARIABLES'!F46="","",'6.GASTOS VARIABLES'!F46)) ->  | H118: =IF($D118="","",IF('6.GASTOS VARIABLES'!G46="","",'6.GASTOS VARIABLES'!G46)) ->  | I118: =IF($D118="","",IF('6.GASTOS VARIABLES'!H46="","",'6.GASTOS VARIABLES'!H46)) ->  | J118: =IF($D118="","",IF('6.GASTOS VARIABLES'!I46="","",'6.GASTOS VARIABLES'!I46)) ->  | K118: =IF($D118="","",IF('6.GASTOS VARIABLES'!J46="","",'6.GASTOS VARIABLES'!J46)) ->  | L118: =IF($D118="","",IF('6.GASTOS VARIABLES'!K46="","",'6.GASTOS VARIABLES'!K46)) ->  | M118: =IF($D118="","",IF('6.GASTOS VARIABLES'!L46="","",'6.GASTOS VARIABLES'!L46)) ->  | N118: =IF($D118="","",IF('6.GASTOS VARIABLES'!M46="","",'6.GASTOS VARIABLES'!M46)) ->  | O118: =IF($D118="","",IF('6.GASTOS VARIABLES'!N46="","",'6.GASTOS VARIABLES'!N46)) ->  | P118: =IF($D118="","",IF('6.GASTOS VARIABLES'!O46="","",'6.GASTOS VARIABLES'!O46)) -> 
D119: =IF('6.GASTOS VARIABLES'!C47="TOTAL","",IF('6.GASTOS VARIABLES'!C47="","",'6.GASTOS VARIABLES'!C47)) ->  | E119: =IF($D119="","",IF('6.GASTOS VARIABLES'!D47="","",'6.GASTOS VARIABLES'!D47)) ->  | F119: =IF($D119="","",IF('6.GASTOS VARIABLES'!E47="","",'6.GASTOS VARIABLES'!E47)) ->  | G119: =IF($D119="","",IF('6.GASTOS VARIABLES'!F47="","",'6.GASTOS VARIABLES'!F47)) ->  | H119: =IF($D119="","",IF('6.GASTOS VARIABLES'!G47="","",'6.GASTOS VARIABLES'!G47)) ->  | I119: =IF($D119="","",IF('6.GASTOS VARIABLES'!H47="","",'6.GASTOS VARIABLES'!H47)) ->  | J119: =IF($D119="","",IF('6.GASTOS VARIABLES'!I47="","",'6.GASTOS VARIABLES'!I47)) ->  | K119: =IF($D119="","",IF('6.GASTOS VARIABLES'!J47="","",'6.GASTOS VARIABLES'!J47)) ->  | L119: =IF($D119="","",IF('6.GASTOS VARIABLES'!K47="","",'6.GASTOS VARIABLES'!K47)) ->  | M119: =IF($D119="","",IF('6.GASTOS VARIABLES'!L47="","",'6.GASTOS VARIABLES'!L47)) ->  | N119: =IF($D119="","",IF('6.GASTOS VARIABLES'!M47="","",'6.GASTOS VARIABLES'!M47)) ->  | O119: =IF($D119="","",IF('6.GASTOS VARIABLES'!N47="","",'6.GASTOS VARIABLES'!N47)) ->  | P119: =IF($D119="","",IF('6.GASTOS VARIABLES'!O47="","",'6.GASTOS VARIABLES'!O47)) -> 
D120: =IF('6.GASTOS VARIABLES'!C48="TOTAL","",IF('6.GASTOS VARIABLES'!C48="","",'6.GASTOS VARIABLES'!C48)) ->  | E120: =IF($D120="","",IF('6.GASTOS VARIABLES'!D48="","",'6.GASTOS VARIABLES'!D48)) ->  | F120: =IF($D120="","",IF('6.GASTOS VARIABLES'!E48="","",'6.GASTOS VARIABLES'!E48)) ->  | G120: =IF($D120="","",IF('6.GASTOS VARIABLES'!F48="","",'6.GASTOS VARIABLES'!F48)) ->  | H120: =IF($D120="","",IF('6.GASTOS VARIABLES'!G48="","",'6.GASTOS VARIABLES'!G48)) ->  | I120: =IF($D120="","",IF('6.GASTOS VARIABLES'!H48="","",'6.GASTOS VARIABLES'!H48)) ->  | J120: =IF($D120="","",IF('6.GASTOS VARIABLES'!I48="","",'6.GASTOS VARIABLES'!I48)) ->  | K120: =IF($D120="","",IF('6.GASTOS VARIABLES'!J48="","",'6.GASTOS VARIABLES'!J48)) ->  | L120: =IF($D120="","",IF('6.GASTOS VARIABLES'!K48="","",'6.GASTOS VARIABLES'!K48)) ->  | M120: =IF($D120="","",IF('6.GASTOS VARIABLES'!L48="","",'6.GASTOS VARIABLES'!L48)) ->  | N120: =IF($D120="","",IF('6.GASTOS VARIABLES'!M48="","",'6.GASTOS VARIABLES'!M48)) ->  | O120: =IF($D120="","",IF('6.GASTOS VARIABLES'!N48="","",'6.GASTOS VARIABLES'!N48)) ->  | P120: =IF($D120="","",IF('6.GASTOS VARIABLES'!O48="","",'6.GASTOS VARIABLES'!O48)) -> 
D121: =IF('6.GASTOS VARIABLES'!C49="TOTAL","",IF('6.GASTOS VARIABLES'!C49="","",'6.GASTOS VARIABLES'!C49)) ->  | E121: =IF($D121="","",IF('6.GASTOS VARIABLES'!D49="","",'6.GASTOS VARIABLES'!D49)) ->  | F121: =IF($D121="","",IF('6.GASTOS VARIABLES'!E49="","",'6.GASTOS VARIABLES'!E49)) ->  | G121: =IF($D121="","",IF('6.GASTOS VARIABLES'!F49="","",'6.GASTOS VARIABLES'!F49)) ->  | H121: =IF($D121="","",IF('6.GASTOS VARIABLES'!G49="","",'6.GASTOS VARIABLES'!G49)) ->  | I121: =IF($D121="","",IF('6.GASTOS VARIABLES'!H49="","",'6.GASTOS VARIABLES'!H49)) ->  | J121: =IF($D121="","",IF('6.GASTOS VARIABLES'!I49="","",'6.GASTOS VARIABLES'!I49)) ->  | K121: =IF($D121="","",IF('6.GASTOS VARIABLES'!J49="","",'6.GASTOS VARIABLES'!J49)) ->  | L121: =IF($D121="","",IF('6.GASTOS VARIABLES'!K49="","",'6.GASTOS VARIABLES'!K49)) ->  | M121: =IF($D121="","",IF('6.GASTOS VARIABLES'!L49="","",'6.GASTOS VARIABLES'!L49)) ->  | N121: =IF($D121="","",IF('6.GASTOS VARIABLES'!M49="","",'6.GASTOS VARIABLES'!M49)) ->  | O121: =IF($D121="","",IF('6.GASTOS VARIABLES'!N49="","",'6.GASTOS VARIABLES'!N49)) ->  | P121: =IF($D121="","",IF('6.GASTOS VARIABLES'!O49="","",'6.GASTOS VARIABLES'!O49)) -> 
D122: =IF('6.GASTOS VARIABLES'!C50="TOTAL","",IF('6.GASTOS VARIABLES'!C50="","",'6.GASTOS VARIABLES'!C50)) ->  | E122: =IF($D122="","",IF('6.GASTOS VARIABLES'!D50="","",'6.GASTOS VARIABLES'!D50)) ->  | F122: =IF($D122="","",IF('6.GASTOS VARIABLES'!E50="","",'6.GASTOS VARIABLES'!E50)) ->  | G122: =IF($D122="","",IF('6.GASTOS VARIABLES'!F50="","",'6.GASTOS VARIABLES'!F50)) ->  | H122: =IF($D122="","",IF('6.GASTOS VARIABLES'!G50="","",'6.GASTOS VARIABLES'!G50)) ->  | I122: =IF($D122="","",IF('6.GASTOS VARIABLES'!H50="","",'6.GASTOS VARIABLES'!H50)) ->  | J122: =IF($D122="","",IF('6.GASTOS VARIABLES'!I50="","",'6.GASTOS VARIABLES'!I50)) ->  | K122: =IF($D122="","",IF('6.GASTOS VARIABLES'!J50="","",'6.GASTOS VARIABLES'!J50)) ->  | L122: =IF($D122="","",IF('6.GASTOS VARIABLES'!K50="","",'6.GASTOS VARIABLES'!K50)) ->  | M122: =IF($D122="","",IF('6.GASTOS VARIABLES'!L50="","",'6.GASTOS VARIABLES'!L50)) ->  | N122: =IF($D122="","",IF('6.GASTOS VARIABLES'!M50="","",'6.GASTOS VARIABLES'!M50)) ->  | O122: =IF($D122="","",IF('6.GASTOS VARIABLES'!N50="","",'6.GASTOS VARIABLES'!N50)) ->  | P122: =IF($D122="","",IF('6.GASTOS VARIABLES'!O50="","",'6.GASTOS VARIABLES'!O50)) -> 
D123: =IF('6.GASTOS VARIABLES'!C52="TOTAL","",IF('6.GASTOS VARIABLES'!C52="","",'6.GASTOS VARIABLES'!C52)) ->  | E123: =IF($D123="","",IF('6.GASTOS VARIABLES'!D52="","",'6.GASTOS VARIABLES'!D52)) ->  | F123: =IF($D123="","",IF('6.GASTOS VARIABLES'!E52="","",'6.GASTOS VARIABLES'!E52)) ->  | G123: =IF($D123="","",IF('6.GASTOS VARIABLES'!F52="","",'6.GASTOS VARIABLES'!F52)) ->  | H123: =IF($D123="","",IF('6.GASTOS VARIABLES'!G52="","",'6.GASTOS VARIABLES'!G52)) ->  | I123: =IF($D123="","",IF('6.GASTOS VARIABLES'!H52="","",'6.GASTOS VARIABLES'!H52)) ->  | J123: =IF($D123="","",IF('6.GASTOS VARIABLES'!I52="","",'6.GASTOS VARIABLES'!I52)) ->  | K123: =IF($D123="","",IF('6.GASTOS VARIABLES'!J52="","",'6.GASTOS VARIABLES'!J52)) ->  | L123: =IF($D123="","",IF('6.GASTOS VARIABLES'!K52="","",'6.GASTOS VARIABLES'!K52)) ->  | M123: =IF($D123="","",IF('6.GASTOS VARIABLES'!L52="","",'6.GASTOS VARIABLES'!L52)) ->  | N123: =IF($D123="","",IF('6.GASTOS VARIABLES'!M52="","",'6.GASTOS VARIABLES'!M52)) ->  | O123: =IF($D123="","",IF('6.GASTOS VARIABLES'!N52="","",'6.GASTOS VARIABLES'!N52)) ->  | P123: =IF($D123="","",IF('6.GASTOS VARIABLES'!O52="","",'6.GASTOS VARIABLES'!O52)) -> 
D124: =IF('6.GASTOS VARIABLES'!C53="TOTAL","",IF('6.GASTOS VARIABLES'!C53="","",'6.GASTOS VARIABLES'!C53)) ->  | E124: =IF($D124="","",IF('6.GASTOS VARIABLES'!D53="","",'6.GASTOS VARIABLES'!D53)) ->  | F124: =IF($D124="","",IF('6.GASTOS VARIABLES'!E53="","",'6.GASTOS VARIABLES'!E53)) ->  | G124: =IF($D124="","",IF('6.GASTOS VARIABLES'!F53="","",'6.GASTOS VARIABLES'!F53)) ->  | H124: =IF($D124="","",IF('6.GASTOS VARIABLES'!G53="","",'6.GASTOS VARIABLES'!G53)) ->  | I124: =IF($D124="","",IF('6.GASTOS VARIABLES'!H53="","",'6.GASTOS VARIABLES'!H53)) ->  | J124: =IF($D124="","",IF('6.GASTOS VARIABLES'!I53="","",'6.GASTOS VARIABLES'!I53)) ->  | K124: =IF($D124="","",IF('6.GASTOS VARIABLES'!J53="","",'6.GASTOS VARIABLES'!J53)) ->  | L124: =IF($D124="","",IF('6.GASTOS VARIABLES'!K53="","",'6.GASTOS VARIABLES'!K53)) ->  | M124: =IF($D124="","",IF('6.GASTOS VARIABLES'!L53="","",'6.GASTOS VARIABLES'!L53)) ->  | N124: =IF($D124="","",IF('6.GASTOS VARIABLES'!M53="","",'6.GASTOS VARIABLES'!M53)) ->  | O124: =IF($D124="","",IF('6.GASTOS VARIABLES'!N53="","",'6.GASTOS VARIABLES'!N53)) ->  | P124: =IF($D124="","",IF('6.GASTOS VARIABLES'!O53="","",'6.GASTOS VARIABLES'!O53)) -> 
D125: =IF('6.GASTOS VARIABLES'!C54="TOTAL","",IF('6.GASTOS VARIABLES'!C54="","",'6.GASTOS VARIABLES'!C54)) ->  | E125: =IF($D125="","",IF('6.GASTOS VARIABLES'!D54="","",'6.GASTOS VARIABLES'!D54)) ->  | F125: =IF($D125="","",IF('6.GASTOS VARIABLES'!E54="","",'6.GASTOS VARIABLES'!E54)) ->  | G125: =IF($D125="","",IF('6.GASTOS VARIABLES'!F54="","",'6.GASTOS VARIABLES'!F54)) ->  | H125: =IF($D125="","",IF('6.GASTOS VARIABLES'!G54="","",'6.GASTOS VARIABLES'!G54)) ->  | I125: =IF($D125="","",IF('6.GASTOS VARIABLES'!H54="","",'6.GASTOS VARIABLES'!H54)) ->  | J125: =IF($D125="","",IF('6.GASTOS VARIABLES'!I54="","",'6.GASTOS VARIABLES'!I54)) ->  | K125: =IF($D125="","",IF('6.GASTOS VARIABLES'!J54="","",'6.GASTOS VARIABLES'!J54)) ->  | L125: =IF($D125="","",IF('6.GASTOS VARIABLES'!K54="","",'6.GASTOS VARIABLES'!K54)) ->  | M125: =IF($D125="","",IF('6.GASTOS VARIABLES'!L54="","",'6.GASTOS VARIABLES'!L54)) ->  | N125: =IF($D125="","",IF('6.GASTOS VARIABLES'!M54="","",'6.GASTOS VARIABLES'!M54)) ->  | O125: =IF($D125="","",IF('6.GASTOS VARIABLES'!N54="","",'6.GASTOS VARIABLES'!N54)) ->  | P125: =IF($D125="","",IF('6.GASTOS VARIABLES'!O54="","",'6.GASTOS VARIABLES'!O54)) -> 
D126: =IF('6.GASTOS VARIABLES'!C55="TOTAL","",IF('6.GASTOS VARIABLES'!C55="","",'6.GASTOS VARIABLES'!C55)) ->  | E126: =IF($D126="","",IF('6.GASTOS VARIABLES'!D55="","",'6.GASTOS VARIABLES'!D55)) ->  | F126: =IF($D126="","",IF('6.GASTOS VARIABLES'!E55="","",'6.GASTOS VARIABLES'!E55)) ->  | G126: =IF($D126="","",IF('6.GASTOS VARIABLES'!F55="","",'6.GASTOS VARIABLES'!F55)) ->  | H126: =IF($D126="","",IF('6.GASTOS VARIABLES'!G55="","",'6.GASTOS VARIABLES'!G55)) ->  | I126: =IF($D126="","",IF('6.GASTOS VARIABLES'!H55="","",'6.GASTOS VARIABLES'!H55)) ->  | J126: =IF($D126="","",IF('6.GASTOS VARIABLES'!I55="","",'6.GASTOS VARIABLES'!I55)) ->  | K126: =IF($D126="","",IF('6.GASTOS VARIABLES'!J55="","",'6.GASTOS VARIABLES'!J55)) ->  | L126: =IF($D126="","",IF('6.GASTOS VARIABLES'!K55="","",'6.GASTOS VARIABLES'!K55)) ->  | M126: =IF($D126="","",IF('6.GASTOS VARIABLES'!L55="","",'6.GASTOS VARIABLES'!L55)) ->  | N126: =IF($D126="","",IF('6.GASTOS VARIABLES'!M55="","",'6.GASTOS VARIABLES'!M55)) ->  | O126: =IF($D126="","",IF('6.GASTOS VARIABLES'!N55="","",'6.GASTOS VARIABLES'!N55)) ->  | P126: =IF($D126="","",IF('6.GASTOS VARIABLES'!O55="","",'6.GASTOS VARIABLES'!O55)) -> 
D127: =IF('6.GASTOS VARIABLES'!C56="TOTAL","",IF('6.GASTOS VARIABLES'!C56="","",'6.GASTOS VARIABLES'!C56)) ->  | E127: =IF($D127="","",IF('6.GASTOS VARIABLES'!D56="","",'6.GASTOS VARIABLES'!D56)) ->  | F127: =IF($D127="","",IF('6.GASTOS VARIABLES'!E56="","",'6.GASTOS VARIABLES'!E56)) ->  | G127: =IF($D127="","",IF('6.GASTOS VARIABLES'!F56="","",'6.GASTOS VARIABLES'!F56)) ->  | H127: =IF($D127="","",IF('6.GASTOS VARIABLES'!G56="","",'6.GASTOS VARIABLES'!G56)) ->  | I127: =IF($D127="","",IF('6.GASTOS VARIABLES'!H56="","",'6.GASTOS VARIABLES'!H56)) ->  | J127: =IF($D127="","",IF('6.GASTOS VARIABLES'!I56="","",'6.GASTOS VARIABLES'!I56)) ->  | K127: =IF($D127="","",IF('6.GASTOS VARIABLES'!J56="","",'6.GASTOS VARIABLES'!J56)) ->  | L127: =IF($D127="","",IF('6.GASTOS VARIABLES'!K56="","",'6.GASTOS VARIABLES'!K56)) ->  | M127: =IF($D127="","",IF('6.GASTOS VARIABLES'!L56="","",'6.GASTOS VARIABLES'!L56)) ->  | N127: =IF($D127="","",IF('6.GASTOS VARIABLES'!M56="","",'6.GASTOS VARIABLES'!M56)) ->  | O127: =IF($D127="","",IF('6.GASTOS VARIABLES'!N56="","",'6.GASTOS VARIABLES'!N56)) ->  | P127: =IF($D127="","",IF('6.GASTOS VARIABLES'!O56="","",'6.GASTOS VARIABLES'!O56)) -> 
D128: =IF('6.GASTOS VARIABLES'!C57="TOTAL","",IF('6.GASTOS VARIABLES'!C57="","",'6.GASTOS VARIABLES'!C57)) ->  | E128: =IF($D128="","",IF('6.GASTOS VARIABLES'!D57="","",'6.GASTOS VARIABLES'!D57)) ->  | F128: =IF($D128="","",IF('6.GASTOS VARIABLES'!E57="","",'6.GASTOS VARIABLES'!E57)) ->  | G128: =IF($D128="","",IF('6.GASTOS VARIABLES'!F57="","",'6.GASTOS VARIABLES'!F57)) ->  | H128: =IF($D128="","",IF('6.GASTOS VARIABLES'!G57="","",'6.GASTOS VARIABLES'!G57)) ->  | I128: =IF($D128="","",IF('6.GASTOS VARIABLES'!H57="","",'6.GASTOS VARIABLES'!H57)) ->  | J128: =IF($D128="","",IF('6.GASTOS VARIABLES'!I57="","",'6.GASTOS VARIABLES'!I57)) ->  | K128: =IF($D128="","",IF('6.GASTOS VARIABLES'!J57="","",'6.GASTOS VARIABLES'!J57)) ->  | L128: =IF($D128="","",IF('6.GASTOS VARIABLES'!K57="","",'6.GASTOS VARIABLES'!K57)) ->  | M128: =IF($D128="","",IF('6.GASTOS VARIABLES'!L57="","",'6.GASTOS VARIABLES'!L57)) ->  | N128: =IF($D128="","",IF('6.GASTOS VARIABLES'!M57="","",'6.GASTOS VARIABLES'!M57)) ->  | O128: =IF($D128="","",IF('6.GASTOS VARIABLES'!N57="","",'6.GASTOS VARIABLES'!N57)) ->  | P128: =IF($D128="","",IF('6.GASTOS VARIABLES'!O57="","",'6.GASTOS VARIABLES'!O57)) -> 
D130: ='6.GASTOS VARIABLES'!C52 -> TOTAL | E130: =+SUM(E97:E129) -> 0 | F130: =+SUM(F97:F129) -> 0 | G130: 0 | H130: 0 | I130: 0 | J130: 0 | K130: 0 | L130: 0 | M130: 0 | N130: 0 | O130: 0 | P130: 0 | Q130: 0
D134: TABLA B | E134: =E96 -> 1900enero | F134: =F96 -> 1900enero | G134: 1900febrero | H134: 1900marzo | I134: 1900abril | J134: 1900mayo | K134: 1900junio | L134: 1900julio | M134: 1900agosto | N134: 1900septiembre | O134: 1900octubre | P134: 1900noviembre | Q134: TOTALES
D135: =IF('ANEXO GASTOS VARIABLES'!B54="","",'ANEXO GASTOS VARIABLES'!B54) ->  | E135: =IF(D135="","",'6.GASTOS VARIABLES'!D135) ->  | F135: =IF(E135="","",'6.GASTOS VARIABLES'!E135) ->  | G135: =IF(F135="","",'6.GASTOS VARIABLES'!F135) ->  | H135: =IF(G135="","",'6.GASTOS VARIABLES'!G135) ->  | I135: =IF(H135="","",'6.GASTOS VARIABLES'!H135) ->  | J135: =IF(I135="","",'6.GASTOS VARIABLES'!I135) ->  | K135: =IF(J135="","",'6.GASTOS VARIABLES'!J135) ->  | L135: =IF(K135="","",'6.GASTOS VARIABLES'!K135) ->  | M135: =IF(L135="","",'6.GASTOS VARIABLES'!L135) ->  | N135: =IF(M135="","",'6.GASTOS VARIABLES'!M135) ->  | O135: =IF(N135="","",'6.GASTOS VARIABLES'!N135) ->  | P135: =IF(O135="","",'6.GASTOS VARIABLES'!O135) ->  | Q135: =IF(D135="","",SUM(E135:P135)) -> 
D136: =IF('ANEXO GASTOS VARIABLES'!B55="","",'ANEXO GASTOS VARIABLES'!B55) ->  | E136: =IF(D136="","",'6.GASTOS VARIABLES'!D136) ->  | F136: =IF(E136="","",'6.GASTOS VARIABLES'!E136) ->  | G136: =IF(F136="","",'6.GASTOS VARIABLES'!F136) ->  | H136: =IF(G136="","",'6.GASTOS VARIABLES'!G136) ->  | I136: =IF(H136="","",'6.GASTOS VARIABLES'!H136) ->  | J136: =IF(I136="","",'6.GASTOS VARIABLES'!I136) ->  | K136: =IF(J136="","",'6.GASTOS VARIABLES'!J136) ->  | L136: =IF(K136="","",'6.GASTOS VARIABLES'!K136) ->  | M136: =IF(L136="","",'6.GASTOS VARIABLES'!L136) ->  | N136: =IF(M136="","",'6.GASTOS VARIABLES'!M136) ->  | O136: =IF(N136="","",'6.GASTOS VARIABLES'!N136) ->  | P136: =IF(O136="","",'6.GASTOS VARIABLES'!O136) ->  | Q136: =IF(D136="","",SUM(E136:P136)) -> 
D137: =IF('ANEXO GASTOS VARIABLES'!B56="","",'ANEXO GASTOS VARIABLES'!B56) ->  | E137: =IF(D137="","",'6.GASTOS VARIABLES'!D137) ->  | F137: =IF(E137="","",'6.GASTOS VARIABLES'!E137) ->  | G137: =IF(F137="","",'6.GASTOS VARIABLES'!F137) ->  | H137: =IF(G137="","",'6.GASTOS VARIABLES'!G137) ->  | I137: =IF(H137="","",'6.GASTOS VARIABLES'!H137) ->  | J137: =IF(I137="","",'6.GASTOS VARIABLES'!I137) ->  | K137: =IF(J137="","",'6.GASTOS VARIABLES'!J137) ->  | L137: =IF(K137="","",'6.GASTOS VARIABLES'!K137) ->  | M137: =IF(L137="","",'6.GASTOS VARIABLES'!L137) ->  | N137: =IF(M137="","",'6.GASTOS VARIABLES'!M137) ->  | O137: =IF(N137="","",'6.GASTOS VARIABLES'!N137) ->  | P137: =IF(O137="","",'6.GASTOS VARIABLES'!O137) -> 
D138: =IF('ANEXO GASTOS VARIABLES'!B57="","",'ANEXO GASTOS VARIABLES'!B57) ->  | E138: =IF(D138="","",'6.GASTOS VARIABLES'!D138) ->  | F138: =IF(E138="","",'6.GASTOS VARIABLES'!E138) ->  | G138: =IF(F138="","",'6.GASTOS VARIABLES'!F138) ->  | H138: =IF(G138="","",'6.GASTOS VARIABLES'!G138) ->  | I138: =IF(H138="","",'6.GASTOS VARIABLES'!H138) ->  | J138: =IF(I138="","",'6.GASTOS VARIABLES'!I138) ->  | K138: =IF(J138="","",'6.GASTOS VARIABLES'!J138) ->  | L138: =IF(K138="","",'6.GASTOS VARIABLES'!K138) ->  | M138: =IF(L138="","",'6.GASTOS VARIABLES'!L138) ->  | N138: =IF(M138="","",'6.GASTOS VARIABLES'!M138) ->  | O138: =IF(N138="","",'6.GASTOS VARIABLES'!N138) ->  | P138: =IF(O138="","",'6.GASTOS VARIABLES'!O138) -> 
D139: =IF('ANEXO GASTOS VARIABLES'!B58="","",'ANEXO GASTOS VARIABLES'!B58) ->  | E139: =IF(D139="","",'6.GASTOS VARIABLES'!D139) ->  | F139: =IF(E139="","",'6.GASTOS VARIABLES'!E139) ->  | G139: =IF(F139="","",'6.GASTOS VARIABLES'!F139) ->  | H139: =IF(G139="","",'6.GASTOS VARIABLES'!G139) ->  | I139: =IF(H139="","",'6.GASTOS VARIABLES'!H139) ->  | J139: =IF(I139="","",'6.GASTOS VARIABLES'!I139) ->  | K139: =IF(J139="","",'6.GASTOS VARIABLES'!J139) ->  | L139: =IF(K139="","",'6.GASTOS VARIABLES'!K139) ->  | M139: =IF(L139="","",'6.GASTOS VARIABLES'!L139) ->  | N139: =IF(M139="","",'6.GASTOS VARIABLES'!M139) ->  | O139: =IF(N139="","",'6.GASTOS VARIABLES'!N139) ->  | P139: =IF(O139="","",'6.GASTOS VARIABLES'!O139) -> 
D140: =IF('ANEXO GASTOS VARIABLES'!B59="","",'ANEXO GASTOS VARIABLES'!B59) ->  | E140: =IF(D140="","",'6.GASTOS VARIABLES'!D140) ->  | F140: =IF(E140="","",'6.GASTOS VARIABLES'!E140) ->  | G140: =IF(F140="","",'6.GASTOS VARIABLES'!F140) ->  | H140: =IF(G140="","",'6.GASTOS VARIABLES'!G140) ->  | I140: =IF(H140="","",'6.GASTOS VARIABLES'!H140) ->  | J140: =IF(I140="","",'6.GASTOS VARIABLES'!I140) ->  | K140: =IF(J140="","",'6.GASTOS VARIABLES'!J140) ->  | L140: =IF(K140="","",'6.GASTOS VARIABLES'!K140) ->  | M140: =IF(L140="","",'6.GASTOS VARIABLES'!L140) ->  | N140: =IF(M140="","",'6.GASTOS VARIABLES'!M140) ->  | O140: =IF(N140="","",'6.GASTOS VARIABLES'!N140) ->  | P140: =IF(O140="","",'6.GASTOS VARIABLES'!O140) -> 
D141: =IF('ANEXO GASTOS VARIABLES'!B60="","",'ANEXO GASTOS VARIABLES'!B60) ->  | E141: =IF(D141="","",'6.GASTOS VARIABLES'!D141) ->  | F141: =IF(E141="","",'6.GASTOS VARIABLES'!E141) ->  | G141: =IF(F141="","",'6.GASTOS VARIABLES'!F141) ->  | H141: =IF(G141="","",'6.GASTOS VARIABLES'!G141) ->  | I141: =IF(H141="","",'6.GASTOS VARIABLES'!H141) ->  | J141: =IF(I141="","",'6.GASTOS VARIABLES'!I141) ->  | K141: =IF(J141="","",'6.GASTOS VARIABLES'!J141) ->  | L141: =IF(K141="","",'6.GASTOS VARIABLES'!K141) ->  | M141: =IF(L141="","",'6.GASTOS VARIABLES'!L141) ->  | N141: =IF(M141="","",'6.GASTOS VARIABLES'!M141) ->  | O141: =IF(N141="","",'6.GASTOS VARIABLES'!N141) ->  | P141: =IF(O141="","",'6.GASTOS VARIABLES'!O141) -> 
D142: =IF('ANEXO GASTOS VARIABLES'!B61="","",'ANEXO GASTOS VARIABLES'!B61) ->  | E142: =IF(D142="","",'6.GASTOS VARIABLES'!D142) ->  | F142: =IF(E142="","",'6.GASTOS VARIABLES'!E142) ->  | G142: =IF(F142="","",'6.GASTOS VARIABLES'!F142) ->  | H142: =IF(G142="","",'6.GASTOS VARIABLES'!G142) ->  | I142: =IF(H142="","",'6.GASTOS VARIABLES'!H142) ->  | J142: =IF(I142="","",'6.GASTOS VARIABLES'!I142) ->  | K142: =IF(J142="","",'6.GASTOS VARIABLES'!J142) ->  | L142: =IF(K142="","",'6.GASTOS VARIABLES'!K142) ->  | M142: =IF(L142="","",'6.GASTOS VARIABLES'!L142) ->  | N142: =IF(M142="","",'6.GASTOS VARIABLES'!M142) ->  | O142: =IF(N142="","",'6.GASTOS VARIABLES'!N142) ->  | P142: =IF(O142="","",'6.GASTOS VARIABLES'!O142) -> 
D143: =IF('ANEXO GASTOS VARIABLES'!B62="","",'ANEXO GASTOS VARIABLES'!B62) ->  | E143: =IF(D143="","",'6.GASTOS VARIABLES'!D143) ->  | F143: =IF(E143="","",'6.GASTOS VARIABLES'!E143) ->  | G143: =IF(F143="","",'6.GASTOS VARIABLES'!F143) ->  | H143: =IF(G143="","",'6.GASTOS VARIABLES'!G143) ->  | I143: =IF(H143="","",'6.GASTOS VARIABLES'!H143) ->  | J143: =IF(I143="","",'6.GASTOS VARIABLES'!I143) ->  | K143: =IF(J143="","",'6.GASTOS VARIABLES'!J143) ->  | L143: =IF(K143="","",'6.GASTOS VARIABLES'!K143) ->  | M143: =IF(L143="","",'6.GASTOS VARIABLES'!L143) ->  | N143: =IF(M143="","",'6.GASTOS VARIABLES'!M143) ->  | O143: =IF(N143="","",'6.GASTOS VARIABLES'!N143) ->  | P143: =IF(O143="","",'6.GASTOS VARIABLES'!O143) -> 
D144: =IF('ANEXO GASTOS VARIABLES'!B63="","",'ANEXO GASTOS VARIABLES'!B63) ->  | E144: =IF(D144="","",'6.GASTOS VARIABLES'!D144) ->  | F144: =IF(E144="","",'6.GASTOS VARIABLES'!E144) ->  | G144: =IF(F144="","",'6.GASTOS VARIABLES'!F144) ->  | H144: =IF(G144="","",'6.GASTOS VARIABLES'!G144) ->  | I144: =IF(H144="","",'6.GASTOS VARIABLES'!H144) ->  | J144: =IF(I144="","",'6.GASTOS VARIABLES'!I144) ->  | K144: =IF(J144="","",'6.GASTOS VARIABLES'!J144) ->  | L144: =IF(K144="","",'6.GASTOS VARIABLES'!K144) ->  | M144: =IF(L144="","",'6.GASTOS VARIABLES'!L144) ->  | N144: =IF(M144="","",'6.GASTOS VARIABLES'!M144) ->  | O144: =IF(N144="","",'6.GASTOS VARIABLES'!N144) ->  | P144: =IF(O144="","",'6.GASTOS VARIABLES'!O144) -> 
D145: =IF('ANEXO GASTOS VARIABLES'!B64="","",'ANEXO GASTOS VARIABLES'!B64) ->  | E145: =IF(D145="","",'6.GASTOS VARIABLES'!D145) ->  | F145: =IF(E145="","",'6.GASTOS VARIABLES'!E145) ->  | G145: =IF(F145="","",'6.GASTOS VARIABLES'!F145) ->  | H145: =IF(G145="","",'6.GASTOS VARIABLES'!G145) ->  | I145: =IF(H145="","",'6.GASTOS VARIABLES'!H145) ->  | J145: =IF(I145="","",'6.GASTOS VARIABLES'!I145) ->  | K145: =IF(J145="","",'6.GASTOS VARIABLES'!J145) ->  | L145: =IF(K145="","",'6.GASTOS VARIABLES'!K145) ->  | M145: =IF(L145="","",'6.GASTOS VARIABLES'!L145) ->  | N145: =IF(M145="","",'6.GASTOS VARIABLES'!M145) ->  | O145: =IF(N145="","",'6.GASTOS VARIABLES'!N145) ->  | P145: =IF(O145="","",'6.GASTOS VARIABLES'!O145) -> 
D146: TOTAL | E146: =+SUM(E135:E145) -> 0 | F146: =+SUM(F135:F145) -> 0 | G146: 0 | H146: 0 | I146: 0 | J146: 0 | K146: 0 | L146: 0 | M146: 0 | N146: 0 | O146: 0 | P146: 0 | Q146: 0
B152: Préstamos
D154: Cuota de préstamo | E154: =+E96 -> 1900enero | F154: 1900enero | G154: 1900febrero | H154: 1900marzo | I154: 1900abril | J154: 1900mayo | K154: 1900junio | L154: 1900julio | M154: 1900agosto | N154: 1900septiembre | O154: 1900octubre | P154: 1900noviembre | Q154: TOTALES
E155: =IF('ANEXO FINANCIACIÓN'!$G24="","",'ANEXO FINANCIACIÓN'!$G24) ->  | F155: =IF('ANEXO FINANCIACIÓN'!$G25="","",'ANEXO FINANCIACIÓN'!$G25) ->  | G155: =IF('ANEXO FINANCIACIÓN'!$G26="","",'ANEXO FINANCIACIÓN'!$G24) ->  | H155: =IF('ANEXO FINANCIACIÓN'!$G27="","",'ANEXO FINANCIACIÓN'!$G24) ->  | I155: =IF('ANEXO FINANCIACIÓN'!$G28="","",'ANEXO FINANCIACIÓN'!$G24) ->  | J155: =IF('ANEXO FINANCIACIÓN'!$G29="","",'ANEXO FINANCIACIÓN'!$G24) ->  | K155: =IF('ANEXO FINANCIACIÓN'!$G30="","",'ANEXO FINANCIACIÓN'!$G24) ->  | L155: =IF('ANEXO FINANCIACIÓN'!$G31="","",'ANEXO FINANCIACIÓN'!$G24) ->  | M155: =IF('ANEXO FINANCIACIÓN'!$G32="","",'ANEXO FINANCIACIÓN'!$G32) ->  | N155: =IF('ANEXO FINANCIACIÓN'!$G33="","",'ANEXO FINANCIACIÓN'!$G33) ->  | O155: =IF('ANEXO FINANCIACIÓN'!$G34="","",'ANEXO FINANCIACIÓN'!$G34) ->  | P155: =IF('ANEXO FINANCIACIÓN'!$G35="","",'ANEXO FINANCIACIÓN'!$G35) ->  | Q155: =SUM(Q107:Q126) -> 0
B158: Liquidacion de impuestos
D161: =+'8.IMPUESTOS '!B42 -> PAGOS IVA | E161: =+'8.IMPUESTOS '!C42 -> 1900enero | F161: =+'8.IMPUESTOS '!D42 -> 1900enero | G161: =+'8.IMPUESTOS '!E42 -> 1900febrero | H161: =+'8.IMPUESTOS '!F42 -> 1900marzo | I161: =+'8.IMPUESTOS '!G42 -> 1900abril | J161: =+'8.IMPUESTOS '!H42 -> 1900mayo | K161: =+'8.IMPUESTOS '!I42 -> 1900junio | L161: =+'8.IMPUESTOS '!J42 -> 1900julio | M161: =+'8.IMPUESTOS '!K42 -> 1900agosto | N161: =+'8.IMPUESTOS '!L42 -> 1900septiembre | O161: =+'8.IMPUESTOS '!M42 -> 1900octubre | P161: =+'8.IMPUESTOS '!N42 -> 1900noviembre | Q161: =+'8.IMPUESTOS '!O42 -> TOTAL
D162: =+'8.IMPUESTOS '!B43 -> LIQUIDACIÓN IVA | E162: =+'8.IMPUESTOS '!C43 -> LIQUIDACIÓN IVA | F162: =+'8.IMPUESTOS '!D43 -> 0 | G162: =+'8.IMPUESTOS '!E43 -> 0 | H162: =+'8.IMPUESTOS '!F43 -> 0 | I162: =+'8.IMPUESTOS '!G43 -> 0 | J162: =+'8.IMPUESTOS '!H43 -> 0 | K162: =+'8.IMPUESTOS '!I43 -> 0 | L162: =+'8.IMPUESTOS '!J43 -> 0 | M162: =+'8.IMPUESTOS '!K43 -> 0 | N162: =+'8.IMPUESTOS '!L43 -> 0 | O162: =+'8.IMPUESTOS '!M43 -> 0 | P162: =+'8.IMPUESTOS '!N43 -> 0 | Q162: =+'8.IMPUESTOS '!O43 -> 0
D164: =+'8.IMPUESTOS '!B45 -> PAGOS RETENCIONES IRPF | E164: =+'8.IMPUESTOS '!C45 -> 1900enero | F164: =+'8.IMPUESTOS '!D45 -> 1900enero | G164: =+'8.IMPUESTOS '!E45 -> 1900febrero | H164: =+'8.IMPUESTOS '!F45 -> 1900marzo | I164: =+'8.IMPUESTOS '!G45 -> 1900abril | J164: =+'8.IMPUESTOS '!H45 -> 1900mayo | K164: =+'8.IMPUESTOS '!I45 -> 1900junio | L164: =+'8.IMPUESTOS '!J45 -> 1900julio | M164: =+'8.IMPUESTOS '!K45 -> 1900agosto | N164: =+'8.IMPUESTOS '!L45 -> 1900septiembre | O164: =+'8.IMPUESTOS '!M45 -> 1900octubre | P164: =+'8.IMPUESTOS '!N45 -> 1900noviembre | Q164: =+'8.IMPUESTOS '!O45 -> TOTAL
D165: =+'8.IMPUESTOS '!B46 -> LIQUIDACION RETENCIONES IRPF | E165: =+'8.IMPUESTOS '!C46 -> RETENCIONES IRPF | F165: =+'8.IMPUESTOS '!D46 -> 0 | G165: =+'8.IMPUESTOS '!E46 -> 0 | H165: =+'8.IMPUESTOS '!F46 -> 0 | I165: =+'8.IMPUESTOS '!G46 -> 0 | J165: =+'8.IMPUESTOS '!H46 -> 0 | K165: =+'8.IMPUESTOS '!I46 -> 0 | L165: =+'8.IMPUESTOS '!J46 -> 0 | M165: =+'8.IMPUESTOS '!K46 -> 0 | N165: =+'8.IMPUESTOS '!L46 -> 0 | O165: =+'8.IMPUESTOS '!M46 -> 0 | P165: =+'8.IMPUESTOS '!N46 -> 0 | Q165: =+'8.IMPUESTOS '!O46 -> 0
D167: =+'8.IMPUESTOS '!B48 -> PAGO IMPUESTO BENEFICIOS (IRPF o IS) | E167: =+'8.IMPUESTOS '!C48 -> 1900enero | F167: =+'8.IMPUESTOS '!D48 -> 1900enero | G167: =+'8.IMPUESTOS '!E48 -> 1900febrero | H167: =+'8.IMPUESTOS '!F48 -> 1900marzo | I167: =+'8.IMPUESTOS '!G48 -> 1900abril | J167: =+'8.IMPUESTOS '!H48 -> 1900mayo | K167: =+'8.IMPUESTOS '!I48 -> 1900junio | L167: =+'8.IMPUESTOS '!J48 -> 1900julio | M167: =+'8.IMPUESTOS '!K48 -> 1900agosto | N167: =+'8.IMPUESTOS '!L48 -> 1900septiembre | O167: =+'8.IMPUESTOS '!M48 -> 1900octubre | P167: =+'8.IMPUESTOS '!N48 -> 1900noviembre | Q167: =+'8.IMPUESTOS '!O48 -> TOTAL
D168: =+'8.IMPUESTOS '!B49 -> LIQUIDACION IMPUESTO BENEFICIOS (IRPF o IS) | E168: =+'8.IMPUESTOS '!C49 -> RETENCIONES IRPF | F168: =+'8.IMPUESTOS '!D49 ->  | G168: =+'8.IMPUESTOS '!E49 -> 0 | H168: =+'8.IMPUESTOS '!F49 -> 0 | I168: =+'8.IMPUESTOS '!G49 ->  | J168: =+'8.IMPUESTOS '!H49 -> 0 | K168: =+'8.IMPUESTOS '!I49 -> 0 | L168: =+'8.IMPUESTOS '!J49 ->  | M168: =+'8.IMPUESTOS '!K49 -> 0 | N168: =+'8.IMPUESTOS '!L49 -> 0 | O168: =+'8.IMPUESTOS '!M49 ->  | P168: =+'8.IMPUESTOS '!N49 -> 0 | Q168: =+'8.IMPUESTOS '!O49 -> 

Sheet 3.INVERSION_FINANCIACION
B2: Volver al Indice
B3: Consultar anexo inversión inicial
B4: Consultar anexo financiación
C12: INVERSION INICIAL / FINANCIACIÓN
B16: CUADRO inversion inicial. / FINANCIACION
C18: GASTO | D18: GASTO CON IVA | G18: =IF(H20<D58,"FALTA DE FINANCIACIÓN",IF(H20>D58,"EXCESO DE FINANCIACIÓN","FINANCIACIÓN EXACTA")) -> FINANCIACIÓN EXACTA
B19: GASTOS DE ESTABLECIMIENTO | C19: ='ANEXO INVERSIÓN'!E10 -> 0 | D19: ='ANEXO INVERSIÓN'!F10 -> 0
B20: =IF('ANEXO INVERSIÓN'!D11="","",'ANEXO INVERSIÓN'!D11) -> Licencia Actividad | C20: ='ANEXO INVERSIÓN'!E11 -> 0 | D20: ='ANEXO INVERSIÓN'!F11 ->  | G20: TOTAL FINANCIACIÓN | H20: =SUM(H27,H31,H22) -> 0
B21: =IF('ANEXO INVERSIÓN'!D12="","",'ANEXO INVERSIÓN'!D12) -> Permisos | C21: ='ANEXO INVERSIÓN'!E12 -> 0 | D21: ='ANEXO INVERSIÓN'!F12 -> 
B22: =IF('ANEXO INVERSIÓN'!D13="","",'ANEXO INVERSIÓN'!D13) -> Gastos Constitución | C22: ='ANEXO INVERSIÓN'!E13 -> 0 | D22: ='ANEXO INVERSIÓN'!F13 ->  | G22: FONDOS PROPIOS | H22: =SUM(H23:H25) -> 0
B23: =IF('ANEXO INVERSIÓN'!D14="","",'ANEXO INVERSIÓN'!D14) -> Obras y reformas | C23: ='ANEXO INVERSIÓN'!E14 -> 0 | D23: ='ANEXO INVERSIÓN'!F14 ->  | G23: =+IF('ANEXO FINANCIACIÓN'!B12<>"",'ANEXO FINANCIACIÓN'!B12,"") -> Capital Social | H23: =+IF('ANEXO FINANCIACIÓN'!C12<>"",'ANEXO FINANCIACIÓN'!C12,"") -> 
B24: =IF('ANEXO INVERSIÓN'!D15="","",'ANEXO INVERSIÓN'!D15) -> Fianza o Aval Alquiler Local | C24: ='ANEXO INVERSIÓN'!E15 -> 0 | D24: ='ANEXO INVERSIÓN'!F15 ->  | G24: =+IF('ANEXO FINANCIACIÓN'!B13<>"",'ANEXO FINANCIACIÓN'!B13,"") -> Subvenciones | H24: =+IF('ANEXO FINANCIACIÓN'!C13<>"",'ANEXO FINANCIACIÓN'!C13,"") -> 
B25: =IF('ANEXO INVERSIÓN'!D16="","",'ANEXO INVERSIÓN'!D16) -> Asesoramiento inicial | C25: ='ANEXO INVERSIÓN'!E16 -> 0 | D25: ='ANEXO INVERSIÓN'!F16 ->  | G25: =+IF('ANEXO FINANCIACIÓN'!B14<>"",'ANEXO FINANCIACIÓN'!B14,"") -> Otros fondos propios | H25: =+IF('ANEXO FINANCIACIÓN'!C14<>"",'ANEXO FINANCIACIÓN'!C14,"") -> 
B26: =IF('ANEXO INVERSIÓN'!D17="","",'ANEXO INVERSIÓN'!D17) ->  | C26: =IF(B26="","",'ANEXO INVERSIÓN'!E17) ->  | D26: =IF(B26="","",'ANEXO INVERSIÓN'!F17) -> 
B27: =IF('ANEXO INVERSIÓN'!D18="","",'ANEXO INVERSIÓN'!D18) ->  | C27: =IF(B27="","",'ANEXO INVERSIÓN'!E18) ->  | D27: =IF(B27="","",'ANEXO INVERSIÓN'!F18) ->  | G27: FINANCIACION AJENA A L/P | H27: =SUM(H28:H29) -> 0
B28: =IF('ANEXO INVERSIÓN'!D19="","",'ANEXO INVERSIÓN'!D19) ->  | C28: =IF(B28="","",'ANEXO INVERSIÓN'!E19) ->  | D28: =IF(B28="","",'ANEXO INVERSIÓN'!F19) ->  | G28: =+IF('ANEXO FINANCIACIÓN'!B17<>"",'ANEXO FINANCIACIÓN'!B17,"") -> Deudas con entidades de crédito a largo plazo | H28: =+IF('ANEXO FINANCIACIÓN'!C17<>"",'ANEXO FINANCIACIÓN'!C17,"") -> 0
B29: =IF('ANEXO INVERSIÓN'!D20="","",'ANEXO INVERSIÓN'!D20) ->  | C29: =IF(B29="","",'ANEXO INVERSIÓN'!E20) ->  | D29: =IF(B29="","",'ANEXO INVERSIÓN'!F20) ->  | G29: =+IF('ANEXO FINANCIACIÓN'!B18<>"",'ANEXO FINANCIACIÓN'!B18,"") -> Otras deudas a largo plazo | H29: =+IF('ANEXO FINANCIACIÓN'!C18<>"",'ANEXO FINANCIACIÓN'!C18,"") -> 
B30: ='ANEXO INVERSIÓN'!D21 -> ACTIVO NO CORRIENTE | C30: ='ANEXO INVERSIÓN'!E21 -> 0 | D30: ='ANEXO INVERSIÓN'!F21 -> 0
B31: =IF('ANEXO INVERSIÓN'!D22="","",'ANEXO INVERSIÓN'!D22) -> Terrenos y bienes naturales | C31: ='ANEXO INVERSIÓN'!E22 -> 0 | D31: ='ANEXO INVERSIÓN'!F22 ->  | G31: FINANCIACIÓN AJENA A C/P | H31: =SUM(H32:H35) -> 0
B32: =IF('ANEXO INVERSIÓN'!D23="","",'ANEXO INVERSIÓN'!D23) -> Construcciones | C32: ='ANEXO INVERSIÓN'!E23 -> 0 | D32: ='ANEXO INVERSIÓN'!F23 ->  | G32: =+IF('ANEXO FINANCIACIÓN'!B21<>"",'ANEXO FINANCIACIÓN'!B21,"") -> Proveedores | H32: =+IF('ANEXO FINANCIACIÓN'!C21<>"",'ANEXO FINANCIACIÓN'!C21,"") -> 
B33: =IF('ANEXO INVERSIÓN'!D24="","",'ANEXO INVERSIÓN'!D24) -> Maquinaria | C33: ='ANEXO INVERSIÓN'!E24 -> 0 | D33: ='ANEXO INVERSIÓN'!F24 ->  | G33: =+IF('ANEXO FINANCIACIÓN'!B22<>"",'ANEXO FINANCIACIÓN'!B22,"") -> Deudas con entidades de crédito a corto plazo | H33: =+IF('ANEXO FINANCIACIÓN'!C22<>"",'ANEXO FINANCIACIÓN'!C22,"") -> 
B34: =IF('ANEXO INVERSIÓN'!D25="","",'ANEXO INVERSIÓN'!D25) -> Utillaje y herramienta | C34: ='ANEXO INVERSIÓN'!E25 -> 0 | D34: ='ANEXO INVERSIÓN'!F25 ->  | G34: =+IF('ANEXO FINANCIACIÓN'!B23<>"",'ANEXO FINANCIACIÓN'!B23,"") -> Deudas con las Administraciones Públicas | H34: =+IF('ANEXO FINANCIACIÓN'!C23<>"",'ANEXO FINANCIACIÓN'!C23,"") -> 
B35: =IF('ANEXO INVERSIÓN'!D26="","",'ANEXO INVERSIÓN'!D26) -> Instalación de riego | C35: ='ANEXO INVERSIÓN'!E26 -> 0 | D35: ='ANEXO INVERSIÓN'!F26 -> 0 | G35: =+IF('ANEXO FINANCIACIÓN'!B24<>"",'ANEXO FINANCIACIÓN'!B24,"") -> Otras deudas a corto plazo | H35: =+IF('ANEXO FINANCIACIÓN'!C24<>"",'ANEXO FINANCIACIÓN'!C24,"") -> 
B36: =IF('ANEXO INVERSIÓN'!D28="","",'ANEXO INVERSIÓN'!D28) -> Mobiliario | C36: ='ANEXO INVERSIÓN'!E28 -> 0 | D36: ='ANEXO INVERSIÓN'!F28 -> 
B37: =IF('ANEXO INVERSIÓN'!D29="","",'ANEXO INVERSIÓN'!D29) -> Equipos para proceso de información | C37: ='ANEXO INVERSIÓN'!E29 -> 0 | D37: ='ANEXO INVERSIÓN'!F29 -> 
B38: =IF('ANEXO INVERSIÓN'!D30="","",'ANEXO INVERSIÓN'!D30) -> Elementos de transporte | C38: ='ANEXO INVERSIÓN'!E30 -> 0 | D38: ='ANEXO INVERSIÓN'!F30 -> 
B39: =IF('ANEXO INVERSIÓN'!D31="","",'ANEXO INVERSIÓN'!D31) -> Gastos de inv.y des., pro. intelectual y derechos de traspaso | C39: ='ANEXO INVERSIÓN'!E31 -> 0 | D39: ='ANEXO INVERSIÓN'!F31 -> 
B40: =IF('ANEXO INVERSIÓN'!D32="","",'ANEXO INVERSIÓN'!D32) -> Aplicaciones informáticas | C40: ='ANEXO INVERSIÓN'!E32 -> 0 | D40: ='ANEXO INVERSIÓN'!F32 -> 
B41: =IF('ANEXO INVERSIÓN'!D33="","",'ANEXO INVERSIÓN'!D33) -> Imagen corporativa | C41: ='ANEXO INVERSIÓN'!E33 -> 0 | D41: ='ANEXO INVERSIÓN'!F33 -> 
B42: =IF('ANEXO INVERSIÓN'!D34="","",'ANEXO INVERSIÓN'!D34) ->  | C42: =IF(B42="","",'ANEXO INVERSIÓN'!E34) ->  | D42: =IF(B42="","",'ANEXO INVERSIÓN'!F34) -> 
B43: =IF('ANEXO INVERSIÓN'!D35="","",'ANEXO INVERSIÓN'!D35) ->  | C43: =IF(B43="","",'ANEXO INVERSIÓN'!E35) ->  | D43: =IF(B43="","",'ANEXO INVERSIÓN'!F35) -> 
B44: =IF('ANEXO INVERSIÓN'!D36="","",'ANEXO INVERSIÓN'!D36) ->  | C44: =IF(B44="","",'ANEXO INVERSIÓN'!E36) ->  | D44: =IF(B44="","",'ANEXO INVERSIÓN'!F36) -> 
B45: =IF('ANEXO INVERSIÓN'!D37="","",'ANEXO INVERSIÓN'!D37) ->  | C45: =IF(B45="","",'ANEXO INVERSIÓN'!E37) ->  | D45: =IF(B45="","",'ANEXO INVERSIÓN'!F37) -> 
B46: =IF('ANEXO INVERSIÓN'!D38="","",'ANEXO INVERSIÓN'!D38) ->  | C46: =IF(B46="","",'ANEXO INVERSIÓN'!E38) ->  | D46: =IF(B46="","",'ANEXO INVERSIÓN'!F38) -> 
B47: ='ANEXO INVERSIÓN'!D39 -> ACTIVO CORRIENTE | C47: ='ANEXO INVERSIÓN'!E39 -> 0 | D47: ='ANEXO INVERSIÓN'!F39 -> 0
B48: =IF('ANEXO INVERSIÓN'!D40="","",'ANEXO INVERSIÓN'!D40) -> Stock Inicial de material para la venta | C48: ='ANEXO INVERSIÓN'!E40 -> 0 | D48: ='ANEXO INVERSIÓN'!F40 -> 
B49: =IF('ANEXO INVERSIÓN'!B42="","",'ANEXO INVERSIÓN'!B42) ->  | C49: =IF(B49="","",'ANEXO INVERSIÓN'!E42) ->  | D49: =IF(B49="","",'ANEXO INVERSIÓN'!F42) -> 
B50: =IF('ANEXO INVERSIÓN'!B43="","",'ANEXO INVERSIÓN'!B43) ->  | C50: =IF(B50="","",'ANEXO INVERSIÓN'!E43) ->  | D50: =IF(B50="","",'ANEXO INVERSIÓN'!F43) -> 
B51: =IF('ANEXO INVERSIÓN'!B44="","",'ANEXO INVERSIÓN'!B44) ->  | C51: =IF(B51="","",'ANEXO INVERSIÓN'!E44) ->  | D51: =IF(B51="","",'ANEXO INVERSIÓN'!F44) -> 
B52: =IF('ANEXO INVERSIÓN'!B45="","",'ANEXO INVERSIÓN'!B45) ->  | C52: =IF(B52="","",'ANEXO INVERSIÓN'!E45) ->  | D52: =IF(B52="","",'ANEXO INVERSIÓN'!F45) -> 
B53: =IF('ANEXO INVERSIÓN'!D41="","",'ANEXO INVERSIÓN'!D41) -> Tesorería | C53: ='ANEXO INVERSIÓN'!E41 -> 0 | D53: ='ANEXO INVERSIÓN'!F41 -> 
B54: =IF('ANEXO INVERSIÓN'!D42="","",'ANEXO INVERSIÓN'!D42) ->  | C54: =IF(B54="","",'ANEXO INVERSIÓN'!E42) ->  | D54: =IF(B54="","",'ANEXO INVERSIÓN'!F42) -> 
B55: =IF('ANEXO INVERSIÓN'!D43="","",'ANEXO INVERSIÓN'!D43) ->  | C55: =IF(B55="","",'ANEXO INVERSIÓN'!E43) ->  | D55: =IF(B55="","",'ANEXO INVERSIÓN'!F43) -> 
B56: =IF('ANEXO INVERSIÓN'!D44="","",'ANEXO INVERSIÓN'!D44) ->  | C56: =IF(B56="","",'ANEXO INVERSIÓN'!E44) ->  | D56: =IF(B56="","",'ANEXO INVERSIÓN'!F44) -> 
B57: =IF('ANEXO INVERSIÓN'!D45="","",'ANEXO INVERSIÓN'!D45) ->  | C57: =IF(B57="","",'ANEXO INVERSIÓN'!E45) ->  | D57: =IF(B57="","",'ANEXO INVERSIÓN'!F45) -> 
B58: ='ANEXO INVERSIÓN'!D46 -> TOTALES | C58: ='ANEXO INVERSIÓN'!E46 -> 0 | D58: ='ANEXO INVERSIÓN'!F46 -> 0
B65: RESUMEN INVERSIÓN INICIAL / FINANCIACIÓN
B68: Resumen Cuadro Inversión / Financiación
B70: INVERSIÓN | C70: IVA incluido | G70: FINANCIACIÓN
B71: Gastos Establecimiento | C71: =D19 -> 0 | G71: Fondos Propios | H71: =H22 -> 0
B72: Activo No Corriente | C72: =D30 -> 0 | G72: Financiación Ajena L/P | H72: =H27 -> 0
B73: Activo Corriente | C73: =D47 -> 0 | G73: Financiación Ajena C/P | H73: =H31 -> 0
B74: TOTAL INVERSION | C74: =SUM(C71:C73) -> 0 | G74: TOTAL FINANCIACIÓN | H74: =SUM(H71:H73) -> 0
B80: Resumen estructura financiación
B82: Estructura de Financiación Necesaria
B83: FINANCIACIÓN | C83: % | D83: TOTAL
B84: F. Propia | C84: =+IFERROR(D84/$D$86,0) -> 0 | D84: =+H71 -> 0
B85: F. Ajena | C85: =+IFERROR(D85/$D$86,0) -> 0 | D85: =+D86-D84 -> 0
B86: TOTAL FINANCIACION | C86: =C85+C84 -> 0 | D86: =C74 -> 0
B91: Inversion inicial total | F91: Financiación inicial total
B129: Amortizaciones despues del primer año
B131: AMORTIZACION DESPUES DEL PRIMER AÑO | G131: AMORTIZACION ACUMULADA
B132: TIPO DE INVERSION | C132: AÑO 1 | D132: AÑO 2 | E132: AÑO 3 | F132: AÑO 4 | G132: Amortizacion anual % | H132: AÑO 1 | I132: AÑO 2 | J132: AÑO 3 | K132: AÑO 4
B133: =IF('ANEXO INVERSIÓN'!I22="","",'ANEXO INVERSIÓN'!I22) -> Terrenos y bienes naturales | C133: =IF('ANEXO INVERSIÓN'!J22<>"",'ANEXO INVERSIÓN'!J22,0) -> 0 | D133: =IF('ANEXO INVERSIÓN'!K22<>"",'ANEXO INVERSIÓN'!K23,0) -> 0 | E133: =IF('ANEXO INVERSIÓN'!L22<>"",'ANEXO INVERSIÓN'!L23,0) -> 0 | F133: =IF('ANEXO INVERSIÓN'!M22<>"",'ANEXO INVERSIÓN'!M22,0) -> 0 | G133: ='ANEXO INVERSIÓN'!N22 -> 0.03 | H133: =+C133 -> 0 | I133: =+H133+D133 -> 0 | J133: =+E133+D133 -> 0 | K133: =+F133+E133 -> 0
B134: =IF('ANEXO INVERSIÓN'!I23="","",'ANEXO INVERSIÓN'!I23) -> Construcciones | C134: =IF('ANEXO INVERSIÓN'!J23<>"",'ANEXO INVERSIÓN'!J23,0) -> 0 | D134: =IF('ANEXO INVERSIÓN'!K23<>"",'ANEXO INVERSIÓN'!K24,0) -> 0 | E134: =IF('ANEXO INVERSIÓN'!L23<>"",'ANEXO INVERSIÓN'!L24,0) -> 0 | F134: =IF('ANEXO INVERSIÓN'!M23<>"",'ANEXO INVERSIÓN'!M23,0) -> 0 | G134: ='ANEXO INVERSIÓN'!N23 -> 0.1 | H134: =+C134 -> 0 | I134: =+H134+D134 -> 0 | J134: =+E134+D134 -> 0 | K134: =+F134+E134 -> 0
B135: =IF('ANEXO INVERSIÓN'!I24="","",'ANEXO INVERSIÓN'!I24) -> Maquinaria | C135: =IF('ANEXO INVERSIÓN'!J24<>"",'ANEXO INVERSIÓN'!J24,0) -> 0 | D135: =IF('ANEXO INVERSIÓN'!K24<>"",'ANEXO INVERSIÓN'!K25,0) -> 0 | E135: =IF('ANEXO INVERSIÓN'!L24<>"",'ANEXO INVERSIÓN'!L25,0) -> 0 | F135: =IF('ANEXO INVERSIÓN'!M24<>"",'ANEXO INVERSIÓN'!M24,0) -> 0 | G135: ='ANEXO INVERSIÓN'!N24 -> 0.13 | H135: 0 | I135: 0 | J135: 0 | K135: 0
B136: =IF('ANEXO INVERSIÓN'!I25="","",'ANEXO INVERSIÓN'!I25) -> Utillaje y herramienta | C136: =IF('ANEXO INVERSIÓN'!J25<>"",'ANEXO INVERSIÓN'!J25,0) -> 0 | D136: =IF('ANEXO INVERSIÓN'!K25<>"",'ANEXO INVERSIÓN'!K26,0) -> 0 | E136: =IF('ANEXO INVERSIÓN'!L25<>"",'ANEXO INVERSIÓN'!L26,0) -> 0 | F136: =IF('ANEXO INVERSIÓN'!M25<>"",'ANEXO INVERSIÓN'!M25,0) -> 0 | G136: ='ANEXO INVERSIÓN'!N25 -> 0.2 | H136: 0 | I136: 0 | J136: 0 | K136: 0
B137: =IF('ANEXO INVERSIÓN'!I26="","",'ANEXO INVERSIÓN'!I26) -> Instalación de riego | C137: =IF('ANEXO INVERSIÓN'!J26<>"",'ANEXO INVERSIÓN'!J26,0) -> 0 | D137: =IF('ANEXO INVERSIÓN'!K26<>"",'ANEXO INVERSIÓN'!K28,0) -> 0 | E137: =IF('ANEXO INVERSIÓN'!L26<>"",'ANEXO INVERSIÓN'!L28,0) -> 0 | F137: =IF('ANEXO INVERSIÓN'!M26<>"",'ANEXO INVERSIÓN'!M26,0) -> 0 | G137: ='ANEXO INVERSIÓN'!N26 -> 0.1 | H137: 0 | I137: 0 | J137: 0 | K137: 0
B138: =IF('ANEXO INVERSIÓN'!I27="","",'ANEXO INVERSIÓN'!I27) -> Otras instalaciones | C138: =IF('ANEXO INVERSIÓN'!J27<>"",'ANEXO INVERSIÓN'!J27,0) -> 0 | D138: =IF('ANEXO INVERSIÓN'!K27<>"",'ANEXO INVERSIÓN'!K29,0) -> 0 | E138: =IF('ANEXO INVERSIÓN'!L27<>"",'ANEXO INVERSIÓN'!L29,0) -> 0 | F138: =IF('ANEXO INVERSIÓN'!M27<>"",'ANEXO INVERSIÓN'!M27,0) -> 0 | G138: ='ANEXO INVERSIÓN'!N27 -> 0.1 | H138: =+C138 -> 0 | I138: =+H138+D138 -> 0 | J138: =+E138+D138 -> 0 | K138: =+F138+E138 -> 0
B139: =IF('ANEXO INVERSIÓN'!I28="","",'ANEXO INVERSIÓN'!I28) -> Mobiliario | C139: =IF('ANEXO INVERSIÓN'!J28<>"",'ANEXO INVERSIÓN'!J28,0) -> 0 | D139: =IF('ANEXO INVERSIÓN'!K28<>"",'ANEXO INVERSIÓN'!K29,0) -> 0 | E139: =IF('ANEXO INVERSIÓN'!L28<>"",'ANEXO INVERSIÓN'!L29,0) -> 0 | F139: =IF('ANEXO INVERSIÓN'!M28<>"",'ANEXO INVERSIÓN'!M28,0) -> 0 | G139: ='ANEXO INVERSIÓN'!N28 -> 0.1 | H139: 0 | I139: 0 | J139: 0 | K139: 0
B140: =IF('ANEXO INVERSIÓN'!I29="","",'ANEXO INVERSIÓN'!I29) -> Equipos para proceso de información | C140: =IF('ANEXO INVERSIÓN'!J29<>"",'ANEXO INVERSIÓN'!J29,0) -> 0 | D140: =IF('ANEXO INVERSIÓN'!K29<>"",'ANEXO INVERSIÓN'!K30,0) -> 0 | E140: =IF('ANEXO INVERSIÓN'!L29<>"",'ANEXO INVERSIÓN'!L30,0) -> 0 | F140: =IF('ANEXO INVERSIÓN'!M29<>"",'ANEXO INVERSIÓN'!M29,0) -> 0 | G140: ='ANEXO INVERSIÓN'!N29 -> 0.25 | H140: 0 | I140: 0 | J140: 0 | K140: 0
B141: =IF('ANEXO INVERSIÓN'!I30="","",'ANEXO INVERSIÓN'!I30) -> Elementos de transporte | C141: =IF('ANEXO INVERSIÓN'!J30<>"",'ANEXO INVERSIÓN'!J30,0) -> 0 | D141: =IF('ANEXO INVERSIÓN'!K30<>"",'ANEXO INVERSIÓN'!K31,0) -> 0 | E141: =IF('ANEXO INVERSIÓN'!L30<>"",'ANEXO INVERSIÓN'!L31,0) -> 0 | F141: =IF('ANEXO INVERSIÓN'!M30<>"",'ANEXO INVERSIÓN'!M30,0) -> 0 | G141: ='ANEXO INVERSIÓN'!N30 -> 0.15 | H141: 0 | I141: 0 | J141: 0 | K141: 0
B142: =IF('ANEXO INVERSIÓN'!I31="","",'ANEXO INVERSIÓN'!I31) -> Gastos de inv.y des., pro. intelectual y derechos de traspaso | C142: =IF('ANEXO INVERSIÓN'!J31<>"",'ANEXO INVERSIÓN'!J31,0) -> 0 | D142: =IF('ANEXO INVERSIÓN'!K31<>"",'ANEXO INVERSIÓN'!K32,0) -> 0 | E142: =IF('ANEXO INVERSIÓN'!L31<>"",'ANEXO INVERSIÓN'!L32,0) -> 0 | F142: =IF('ANEXO INVERSIÓN'!M31<>"",'ANEXO INVERSIÓN'!M31,0) -> 0 | G142: ='ANEXO INVERSIÓN'!N31 -> 0.2 | H142: 0 | I142: 0 | J142: 0 | K142: 0
B143: =IF('ANEXO INVERSIÓN'!I32="","",'ANEXO INVERSIÓN'!I32) -> Aplicaciones informáticas | C143: =IF('ANEXO INVERSIÓN'!J32<>"",'ANEXO INVERSIÓN'!J32,0) -> 0 | D143: =IF('ANEXO INVERSIÓN'!K32<>"",'ANEXO INVERSIÓN'!K33,0) -> 0 | E143: =IF('ANEXO INVERSIÓN'!L32<>"",'ANEXO INVERSIÓN'!L33,0) -> 0 | F143: =IF('ANEXO INVERSIÓN'!M32<>"",'ANEXO INVERSIÓN'!M32,0) -> 0 | G143: ='ANEXO INVERSIÓN'!N32 -> 0.1 | H143: 0 | I143: 0 | J143: 0 | K143: 0
B144: =IF('ANEXO INVERSIÓN'!I33="","",'ANEXO INVERSIÓN'!I33) ->  | C144: =IF('ANEXO INVERSIÓN'!J33<>"",'ANEXO INVERSIÓN'!J33,0) -> 0 | D144: =IF('ANEXO INVERSIÓN'!K33<>"",'ANEXO INVERSIÓN'!K34,0) -> 0 | E144: =IF('ANEXO INVERSIÓN'!L33<>"",'ANEXO INVERSIÓN'!L34,0) -> 0 | F144: =IF('ANEXO INVERSIÓN'!M33<>"",'ANEXO INVERSIÓN'!M33,0) -> 0 | G144: ='ANEXO INVERSIÓN'!N33 -> 0 | H144: 0 | I144: 0 | J144: 0 | K144: 0
B145: =IF('ANEXO INVERSIÓN'!I34="","",'ANEXO INVERSIÓN'!I34) ->  | C145: =IF('ANEXO INVERSIÓN'!J34<>"",'ANEXO INVERSIÓN'!J34,0) -> 0 | D145: =IF('ANEXO INVERSIÓN'!K34<>"",'ANEXO INVERSIÓN'!K35,0) -> 0 | E145: =IF('ANEXO INVERSIÓN'!L34<>"",'ANEXO INVERSIÓN'!L35,0) -> 0 | F145: =IF('ANEXO INVERSIÓN'!M34<>"",'ANEXO INVERSIÓN'!M34,0) -> 0 | G145: ='ANEXO INVERSIÓN'!N34 -> 0 | H145: 0 | I145: 0 | J145: 0 | K145: 0
B146: =IF('ANEXO INVERSIÓN'!I35="","",'ANEXO INVERSIÓN'!I35) ->  | C146: =IF('ANEXO INVERSIÓN'!J35<>"",'ANEXO INVERSIÓN'!J35,0) -> 0 | D146: =IF('ANEXO INVERSIÓN'!K35<>"",'ANEXO INVERSIÓN'!K36,0) -> 0 | E146: =IF('ANEXO INVERSIÓN'!L35<>"",'ANEXO INVERSIÓN'!L36,0) -> 0 | F146: =IF('ANEXO INVERSIÓN'!M35<>"",'ANEXO INVERSIÓN'!M35,0) -> 0 | G146: ='ANEXO INVERSIÓN'!N35 -> 0 | H146: 0 | I146: 0 | J146: 0 | K146: 0
B147: TOTALES | C147: =SUM(C133:C146) -> 0 | D147: =SUM(D133:D146) -> 0 | E147: =SUM(E133:E146) -> 0 | F147: =SUM(F133:F146) -> 0 | H147: =SUM(H133:H146) -> 0 | I147: =SUM(I133:I146) -> 0 | J147: =SUM(J133:J146) -> 0 | K147: =SUM(K133:K146) -> 0
B150: Inversiones realizadas despues del primer año
B152: AMORTIZACION DESPUES DEL PRIMER AÑO
B153: TIPO DE INVERSION | C153: AÑO 1 | D153: AÑO 2 | E153: AÑO 3 | F153: AÑO 4
B154: =+B133 -> Terrenos y bienes naturales | C154: =+'ANEXO INVERSIÓN'!P22 -> 0 | D154: =+'ANEXO INVERSIÓN'!Q22 -> 0 | E154: =+'ANEXO INVERSIÓN'!R22 -> 0 | F154: =+'ANEXO INVERSIÓN'!S22 -> 0
B155: =+B134 -> Construcciones | C155: =+'ANEXO INVERSIÓN'!P23 -> 0 | D155: =+'ANEXO INVERSIÓN'!Q23 -> 0 | E155: =+'ANEXO INVERSIÓN'!R23 -> 0 | F155: =+'ANEXO INVERSIÓN'!S23 -> 0
B156: Maquinaria | C156: =+'ANEXO INVERSIÓN'!P24 -> 0 | D156: =+'ANEXO INVERSIÓN'!Q24 -> 0 | E156: =+'ANEXO INVERSIÓN'!R24 -> 0 | F156: =+'ANEXO INVERSIÓN'!S24 -> 0
B157: Utillaje y herramienta | C157: =+'ANEXO INVERSIÓN'!P25 -> 0 | D157: =+'ANEXO INVERSIÓN'!Q25 -> 0 | E157: =+'ANEXO INVERSIÓN'!R25 -> 0 | F157: =+'ANEXO INVERSIÓN'!S25 -> 0
B158: Instalación de riego | C158: =+'ANEXO INVERSIÓN'!P26 -> 0 | D158: =+'ANEXO INVERSIÓN'!Q26 -> 0 | E158: =+'ANEXO INVERSIÓN'!R26 -> 0 | F158: =+'ANEXO INVERSIÓN'!S26 -> 0
B159: Otras instalaciones | C159: =+'ANEXO INVERSIÓN'!P27 -> 0 | D159: =+'ANEXO INVERSIÓN'!Q27 -> 0 | E159: =+'ANEXO INVERSIÓN'!R27 -> 0 | F159: =+'ANEXO INVERSIÓN'!S27 -> 0
B160: Mobiliario | C160: =+'ANEXO INVERSIÓN'!P28 -> 0 | D160: =+'ANEXO INVERSIÓN'!Q28 -> 0 | E160: =+'ANEXO INVERSIÓN'!R28 -> 0 | F160: =+'ANEXO INVERSIÓN'!S28 -> 0
B161: Equipos para proceso de información | C161: =+'ANEXO INVERSIÓN'!P29 -> 0 | D161: =+'ANEXO INVERSIÓN'!Q29 -> 0 | E161: =+'ANEXO INVERSIÓN'!R29 -> 0 | F161: =+'ANEXO INVERSIÓN'!S29 -> 0
B162: Elementos de transporte | C162: =+'ANEXO INVERSIÓN'!P30 -> 0 | D162: =+'ANEXO INVERSIÓN'!Q30 -> 0 | E162: =+'ANEXO INVERSIÓN'!R30 -> 0 | F162: =+'ANEXO INVERSIÓN'!S30 -> 0
B163: Gastos de inv.y des., pro. intelectual y derechos de traspaso | C163: =+'ANEXO INVERSIÓN'!P31 -> 0 | D163: =+'ANEXO INVERSIÓN'!Q31 -> 0 | E163: =+'ANEXO INVERSIÓN'!R31 -> 0 | F163: =+'ANEXO INVERSIÓN'!S31 -> 0
B164: Aplicaciones informáticas | C164: =+'ANEXO INVERSIÓN'!P32 -> 0 | D164: =+'ANEXO INVERSIÓN'!Q32 -> 0 | E164: =+'ANEXO INVERSIÓN'!R32 -> 0 | F164: =+'ANEXO INVERSIÓN'!S32 -> 0
C165: =+'ANEXO INVERSIÓN'!P33 -> 0 | D165: =+'ANEXO INVERSIÓN'!Q33 -> 0 | E165: =+'ANEXO INVERSIÓN'!R33 -> 0 | F165: =+'ANEXO INVERSIÓN'!S33 -> 0
C166: =+'ANEXO INVERSIÓN'!P34 -> 0 | D166: =+'ANEXO INVERSIÓN'!Q34 -> 0 | E166: =+'ANEXO INVERSIÓN'!R34 -> 0 | F166: =+'ANEXO INVERSIÓN'!S34 -> 0
C167: =+'ANEXO INVERSIÓN'!P35 -> 0 | D167: =+'ANEXO INVERSIÓN'!Q35 -> 0 | E167: =+'ANEXO INVERSIÓN'!R35 -> 0 | F167: =+'ANEXO INVERSIÓN'!S35 -> 0
B168: TOTALES | C168: =SUM(C154:C167) -> 0 | D168: =SUM(D154:D167) -> 0 | E168: =SUM(E154:E167) -> 0 | F168: =SUM(F154:F167) -> 0

Sheet 4.INGRESOS
B2: Volver al Indice
B3: Consultar anexo ingresos
C8: INGRESOS POR VENTA DE PRODUCTOS O SERVICIOS Y OTROS INGRESOS ( sin IVA )
D11: Mes 1 | E11: Mes 2 | F11: Mes 3 | G11: Mes 4 | H11: Mes 5 | I11: Mes 6 | J11: Mes 7 | K11: Mes 8 | L11: Mes 9 | M11: Mes 10 | N11: Mes 11 | O11: Mes 12
D12: ='7.CUENTA DE RESULTADOS '!C20 -> 1900enero | E12: ='7.CUENTA DE RESULTADOS '!D20 -> 1900enero | F12: ='7.CUENTA DE RESULTADOS '!E20 -> 1900febrero | G12: ='7.CUENTA DE RESULTADOS '!F20 -> 1900marzo | H12: ='7.CUENTA DE RESULTADOS '!G20 -> 1900abril | I12: ='7.CUENTA DE RESULTADOS '!H20 -> 1900mayo | J12: ='7.CUENTA DE RESULTADOS '!I20 -> 1900junio | K12: ='7.CUENTA DE RESULTADOS '!J20 -> 1900julio | L12: ='7.CUENTA DE RESULTADOS '!K20 -> 1900agosto | M12: ='7.CUENTA DE RESULTADOS '!L20 -> 1900septiembre | N12: ='7.CUENTA DE RESULTADOS '!M20 -> 1900octubre | O12: ='7.CUENTA DE RESULTADOS '!N20 -> 1900noviembre | P12: TOTAL
C13: TOTAL INGRESOS POR VENTA DE PRODUCTOS/SERVICIOS | D13: =+D49 -> 0 | E13: 0 | F13: 0 | G13: 0 | H13: 0 | I13: 0 | J13: 0 | K13: 0 | L13: 0 | M13: 0 | N13: 0 | O13: 0 | P13: 0
C14: TOTAL OTROS INGRESOS | D14: =+D64 -> 0 | E14: 0 | F14: 0 | G14: 0 | H14: 0 | I14: 0 | J14: 0 | K14: 0 | L14: 0 | M14: 0 | N14: 0 | O14: 0 | P14: 0
C15: TOTAL IVA INGRESOS POR VENTA DE PRODUCTOS/SERVICIOS | D15: =+SUMPRODUCT($B$22:$B$48,D22:D48) -> 0 | E15: =+SUMPRODUCT($B$22:$B$48,E22:E48) -> 0 | F15: 0 | G15: 0 | H15: 0 | I15: 0 | J15: 0 | K15: 0 | L15: 0 | M15: 0 | N15: 0 | O15: 0 | P15: =+P65 -> 0
C16: TOTAL IVA OTROS INGRESOS | D16: =+SUMPRODUCT($B$53:$B$63,D53:D63) -> 0 | E16: =+SUMPRODUCT($B$53:$B$63,E53:E63) -> 0 | F16: 0 | G16: 0 | H16: 0 | I16: 0 | J16: 0 | K16: 0 | L16: 0 | M16: 0 | N16: 0 | O16: 0 | P16: =+P66 -> 0
C17: TOTAL INGRESOS | D17: =+D13+D14 -> 0 | E17: 0 | F17: 0 | G17: 0 | H17: 0 | I17: 0 | J17: 0 | K17: 0 | L17: 0 | M17: 0 | N17: 0 | O17: 0 | P17: =+P13+P14+P15+P16 -> 0
B20: Columna1 | D20: Mes 1 | E20: Mes 2 | F20: Mes 3 | G20: Mes 4 | H20: Mes 5 | I20: Mes 6 | J20: Mes 7 | K20: Mes 8 | L20: Mes 9 | M20: Mes 10 | N20: Mes 11 | O20: Mes 12 | P20: Columna3
B21: IVA % | C21: Ingresos por venta de productos o servicios | D21: ='7.CUENTA DE RESULTADOS '!C20 -> 1900enero | E21: ='7.CUENTA DE RESULTADOS '!D20 -> 1900enero | F21: ='7.CUENTA DE RESULTADOS '!E20 -> 1900febrero | G21: ='7.CUENTA DE RESULTADOS '!F20 -> 1900marzo | H21: ='7.CUENTA DE RESULTADOS '!G20 -> 1900abril | I21: ='7.CUENTA DE RESULTADOS '!H20 -> 1900mayo | J21: ='7.CUENTA DE RESULTADOS '!I20 -> 1900junio | K21: ='7.CUENTA DE RESULTADOS '!J20 -> 1900julio | L21: ='7.CUENTA DE RESULTADOS '!K20 -> 1900agosto | M21: ='7.CUENTA DE RESULTADOS '!L20 -> 1900septiembre | N21: ='7.CUENTA DE RESULTADOS '!M20 -> 1900octubre | O21: ='7.CUENTA DE RESULTADOS '!N20 -> 1900noviembre | P21: TOTAL
B22: =IF('ANEXO INGRESOS'!D14="","",'ANEXO INGRESOS'!C14) ->  | C22: =IF('ANEXO INGRESOS'!D14="","",'ANEXO INGRESOS'!D14) ->  | D22: =IF(Ingresos[[#This Row],[ ]]<>"",'ANEXO INGRESOS'!H14*'ANEXO INGRESOS'!$F14,"") ->  | E22: =IF(Ingresos[[#This Row],[ ]]<>"",'ANEXO INGRESOS'!I14*'ANEXO INGRESOS'!$F14,"") ->  | F22: =IF(Ingresos[[#This Row],[ ]]<>"",'ANEXO INGRESOS'!J14*'ANEXO INGRESOS'!$F14,"") ->  | G22: =IF(Ingresos[[#This Row],[ ]]<>"",'ANEXO INGRESOS'!K14*'ANEXO INGRESOS'!$F14,"") ->  | H22: =IF(Ingresos[[#This Row],[ ]]<>"",'ANEXO INGRESOS'!L14*'ANEXO INGRESOS'!$F14,"") ->  | I22: =IF(Ingresos[[#This Row],[ ]]<>"",'ANEXO INGRESOS'!M14*'ANEXO INGRESOS'!$F14,"") ->  | J22: =IF(Ingresos[[#This Row],[ ]]<>"",'ANEXO INGRESOS'!N14*'ANEXO INGRESOS'!$F14,"") ->  | K22: =IF(Ingresos[[#This Row],[ ]]<>"",'ANEXO INGRESOS'!O14*'ANEXO INGRESOS'!$F14,"") ->  | L22: =IF(Ingresos[[#This Row],[ ]]<>"",'ANEXO INGRESOS'!P14*'ANEXO INGRESOS'!$F14,"") ->  | M22: =IF(Ingresos[[#This Row],[ ]]<>"",'ANEXO INGRESOS'!Q14*'ANEXO INGRESOS'!$F14,"") ->  | N22: =IF(Ingresos[[#This Row],[ ]]<>"",'ANEXO INGRESOS'!R14*'ANEXO INGRESOS'!$F14,"") ->  | O22: =IF(Ingresos[[#This Row],[ ]]<>"",'ANEXO INGRESOS'!S14*'ANEXO INGRESOS'!$F14,"") ->  | P22: =IF(Ingresos[[#This Row],[ ]]="","",SUM(D22:O22)) -> 
B23: =IF('ANEXO INGRESOS'!D15="","",'ANEXO INGRESOS'!C15) ->  | C23: =IF('ANEXO INGRESOS'!D15="","",'ANEXO INGRESOS'!D15) ->  | D23: =IF(Ingresos[[#This Row],[ ]]<>"",'ANEXO INGRESOS'!H15*'ANEXO INGRESOS'!$F15,"") ->  | E23: =IF(Ingresos[[#This Row],[ ]]<>"",'ANEXO INGRESOS'!I15*'ANEXO INGRESOS'!$F15,"") ->  | F23: =IF(Ingresos[[#This Row],[ ]]<>"",'ANEXO INGRESOS'!J15*'ANEXO INGRESOS'!$F15,"") ->  | G23: =IF(Ingresos[[#This Row],[ ]]<>"",'ANEXO INGRESOS'!K15*'ANEXO INGRESOS'!$F15,"") ->  | H23: =IF(Ingresos[[#This Row],[ ]]<>"",'ANEXO INGRESOS'!L15*'ANEXO INGRESOS'!$F15,"") ->  | I23: =IF(Ingresos[[#This Row],[ ]]<>"",'ANEXO INGRESOS'!M15*'ANEXO INGRESOS'!$F15,"") ->  | J23: =IF(Ingresos[[#This Row],[ ]]<>"",'ANEXO INGRESOS'!N15*'ANEXO INGRESOS'!$F15,"") ->  | K23: =IF(Ingresos[[#This Row],[ ]]<>"",'ANEXO INGRESOS'!O15*'ANEXO INGRESOS'!$F15,"") ->  | L23: =IF(Ingresos[[#This Row],[ ]]<>"",'ANEXO INGRESOS'!P15*'ANEXO INGRESOS'!$F15,"") ->  | M23: =IF(Ingresos[[#This Row],[ ]]<>"",'ANEXO INGRESOS'!Q15*'ANEXO INGRESOS'!$F15,"") ->  | N23: =IF(Ingresos[[#This Row],[ ]]<>"",'ANEXO INGRESOS'!R15*'ANEXO INGRESOS'!$F15,"") ->  | O23: =IF(Ingresos[[#This Row],[ ]]<>"",'ANEXO INGRESOS'!S15*'ANEXO INGRESOS'!$F15,"") ->  | P23: =IF(Ingresos[[#This Row],[ ]]="","",SUM(D23:O23)) -> 
B24: =IF('ANEXO INGRESOS'!D16="","",'ANEXO INGRESOS'!C16) ->  | C24: =IF('ANEXO INGRESOS'!D16="","",'ANEXO INGRESOS'!D16) ->  | D24: =IF(Ingresos[[#This Row],[ ]]<>"",'ANEXO INGRESOS'!H16*'ANEXO INGRESOS'!$F16,"") ->  | E24: =IF(Ingresos[[#This Row],[ ]]<>"",'ANEXO INGRESOS'!I16*'ANEXO INGRESOS'!$F16,"") ->  | F24: =IF(Ingresos[[#This Row],[ ]]<>"",'ANEXO INGRESOS'!J16*'ANEXO INGRESOS'!$F16,"") ->  | G24: =IF(Ingresos[[#This Row],[ ]]<>"",'ANEXO INGRESOS'!K16*'ANEXO INGRESOS'!$F16,"") ->  | H24: =IF(Ingresos[[#This Row],[ ]]<>"",'ANEXO INGRESOS'!L16*'ANEXO INGRESOS'!$F16,"") ->  | I24: =IF(Ingresos[[#This Row],[ ]]<>"",'ANEXO INGRESOS'!M16*'ANEXO INGRESOS'!$F16,"") ->  | J24: =IF(Ingresos[[#This Row],[ ]]<>"",'ANEXO INGRESOS'!N16*'ANEXO INGRESOS'!$F16,"") ->  | K24: =IF(Ingresos[[#This Row],[ ]]<>"",'ANEXO INGRESOS'!O16*'ANEXO INGRESOS'!$F16,"") ->  | L24: =IF(Ingresos[[#This Row],[ ]]<>"",'ANEXO INGRESOS'!P16*'ANEXO INGRESOS'!$F16,"") ->  | M24: =IF(Ingresos[[#This Row],[ ]]<>"",'ANEXO INGRESOS'!Q16*'ANEXO INGRESOS'!$F16,"") ->  | N24: =IF(Ingresos[[#This Row],[ ]]<>"",'ANEXO INGRESOS'!R16*'ANEXO INGRESOS'!$F16,"") ->  | O24: =IF(Ingresos[[#This Row],[ ]]<>"",'ANEXO INGRESOS'!S16*'ANEXO INGRESOS'!$F16,"") ->  | P24: =IF(Ingresos[[#This Row],[ ]]="","",SUM(D24:O24)) -> 
B25: =IF('ANEXO INGRESOS'!D17="","",'ANEXO INGRESOS'!C17) ->  | C25: =IF('ANEXO INGRESOS'!D17="","",'ANEXO INGRESOS'!D17) ->  | D25: =IF(Ingresos[[#This Row],[ ]]<>"",'ANEXO INGRESOS'!H17*'ANEXO INGRESOS'!$F17,"") ->  | E25: =IF(Ingresos[[#This Row],[ ]]<>"",'ANEXO INGRESOS'!I17*'ANEXO INGRESOS'!$F17,"") ->  | F25: =IF(Ingresos[[#This Row],[ ]]<>"",'ANEXO INGRESOS'!J17*'ANEXO INGRESOS'!$F17,"") ->  | G25: =IF(Ingresos[[#This Row],[ ]]<>"",'ANEXO INGRESOS'!K17*'ANEXO INGRESOS'!$F17,"") ->  | H25: =IF(Ingresos[[#This Row],[ ]]<>"",'ANEXO INGRESOS'!L17*'ANEXO INGRESOS'!$F17,"") ->  | I25: =IF(Ingresos[[#This Row],[ ]]<>"",'ANEXO INGRESOS'!M17*'ANEXO INGRESOS'!$F17,"") ->  | J25: =IF(Ingresos[[#This Row],[ ]]<>"",'ANEXO INGRESOS'!N17*'ANEXO INGRESOS'!$F17,"") ->  | K25: =IF(Ingresos[[#This Row],[ ]]<>"",'ANEXO INGRESOS'!O17*'ANEXO INGRESOS'!$F17,"") ->  | L25: =IF(Ingresos[[#This Row],[ ]]<>"",'ANEXO INGRESOS'!P17*'ANEXO INGRESOS'!$F17,"") ->  | M25: =IF(Ingresos[[#This Row],[ ]]<>"",'ANEXO INGRESOS'!Q17*'ANEXO INGRESOS'!$F17,"") ->  | N25: =IF(Ingresos[[#This Row],[ ]]<>"",'ANEXO INGRESOS'!R17*'ANEXO INGRESOS'!$F17,"") ->  | O25: =IF(Ingresos[[#This Row],[ ]]<>"",'ANEXO INGRESOS'!S17*'ANEXO INGRESOS'!$F17,"") ->  | P25: =IF(Ingresos[[#This Row],[ ]]="","",SUM(D25:O25)) -> 
B26: =IF('ANEXO INGRESOS'!D18="","",'ANEXO INGRESOS'!C18) ->  | C26: =IF('ANEXO INGRESOS'!D18="","",'ANEXO INGRESOS'!D18) ->  | D26: =IF(Ingresos[[#This Row],[ ]]<>"",'ANEXO INGRESOS'!H18*'ANEXO INGRESOS'!$F18,"") ->  | E26: =IF(Ingresos[[#This Row],[ ]]<>"",'ANEXO INGRESOS'!I18*'ANEXO INGRESOS'!$F18,"") ->  | F26: =IF(Ingresos[[#This Row],[ ]]<>"",'ANEXO INGRESOS'!J18*'ANEXO INGRESOS'!$F18,"") ->  | G26: =IF(Ingresos[[#This Row],[ ]]<>"",'ANEXO INGRESOS'!K18*'ANEXO INGRESOS'!$F18,"") ->  | H26: =IF(Ingresos[[#This Row],[ ]]<>"",'ANEXO INGRESOS'!L18*'ANEXO INGRESOS'!$F18,"") ->  | I26: =IF(Ingresos[[#This Row],[ ]]<>"",'ANEXO INGRESOS'!M18*'ANEXO INGRESOS'!$F18,"") ->  | J26: =IF(Ingresos[[#This Row],[ ]]<>"",'ANEXO INGRESOS'!N18*'ANEXO INGRESOS'!$F18,"") ->  | K26: =IF(Ingresos[[#This Row],[ ]]<>"",'ANEXO INGRESOS'!O18*'ANEXO INGRESOS'!$F18,"") ->  | L26: =IF(Ingresos[[#This Row],[ ]]<>"",'ANEXO INGRESOS'!P18*'ANEXO INGRESOS'!$F18,"") ->  | M26: =IF(Ingresos[[#This Row],[ ]]<>"",'ANEXO INGRESOS'!Q18*'ANEXO INGRESOS'!$F18,"") ->  | N26: =IF(Ingresos[[#This Row],[ ]]<>"",'ANEXO INGRESOS'!R18*'ANEXO INGRESOS'!$F18,"") ->  | O26: =IF(Ingresos[[#This Row],[ ]]<>"",'ANEXO INGRESOS'!S18*'ANEXO INGRESOS'!$F18,"") ->  | P26: =IF(Ingresos[[#This Row],[ ]]="","",SUM(D26:O26)) -> 
B27: =IF('ANEXO INGRESOS'!D19="","",'ANEXO INGRESOS'!C19) ->  | C27: =IF('ANEXO INGRESOS'!D19="","",'ANEXO INGRESOS'!D19) ->  | D27: =IF(Ingresos[[#This Row],[ ]]<>"",'ANEXO INGRESOS'!H19*'ANEXO INGRESOS'!$F19,"") ->  | E27: =IF(Ingresos[[#This Row],[ ]]<>"",'ANEXO INGRESOS'!I19*'ANEXO INGRESOS'!$F19,"") ->  | F27: =IF(Ingresos[[#This Row],[ ]]<>"",'ANEXO INGRESOS'!J19*'ANEXO INGRESOS'!$F19,"") ->  | G27: =IF(Ingresos[[#This Row],[ ]]<>"",'ANEXO INGRESOS'!K19*'ANEXO INGRESOS'!$F19,"") ->  | H27: =IF(Ingresos[[#This Row],[ ]]<>"",'ANEXO INGRESOS'!L19*'ANEXO INGRESOS'!$F19,"") ->  | I27: =IF(Ingresos[[#This Row],[ ]]<>"",'ANEXO INGRESOS'!M19*'ANEXO INGRESOS'!$F19,"") ->  | J27: =IF(Ingresos[[#This Row],[ ]]<>"",'ANEXO INGRESOS'!N19*'ANEXO INGRESOS'!$F19,"") ->  | K27: =IF(Ingresos[[#This Row],[ ]]<>"",'ANEXO INGRESOS'!O19*'ANEXO INGRESOS'!$F19,"") ->  | L27: =IF(Ingresos[[#This Row],[ ]]<>"",'ANEXO INGRESOS'!P19*'ANEXO INGRESOS'!$F19,"") ->  | M27: =IF(Ingresos[[#This Row],[ ]]<>"",'ANEXO INGRESOS'!Q19*'ANEXO INGRESOS'!$F19,"") ->  | N27: =IF(Ingresos[[#This Row],[ ]]<>"",'ANEXO INGRESOS'!R19*'ANEXO INGRESOS'!$F19,"") ->  | O27: =IF(Ingresos[[#This Row],[ ]]<>"",'ANEXO INGRESOS'!S19*'ANEXO INGRESOS'!$F19,"") ->  | P27: =IF(Ingresos[[#This Row],[ ]]="","",SUM(D27:O27)) -> 
B28: =IF('ANEXO INGRESOS'!D20="","",'ANEXO INGRESOS'!C20) ->  | C28: =IF('ANEXO INGRESOS'!D20="","",'ANEXO INGRESOS'!D20) ->  | D28: =IF(Ingresos[[#This Row],[ ]]<>"",'ANEXO INGRESOS'!H20*'ANEXO INGRESOS'!$F20,"") ->  | E28: =IF(Ingresos[[#This Row],[ ]]<>"",'ANEXO INGRESOS'!I20*'ANEXO INGRESOS'!$F20,"") ->  | F28: =IF(Ingresos[[#This Row],[ ]]<>"",'ANEXO INGRESOS'!J20*'ANEXO INGRESOS'!$F20,"") ->  | G28: =IF(Ingresos[[#This Row],[ ]]<>"",'ANEXO INGRESOS'!K20*'ANEXO INGRESOS'!$F20,"") ->  | H28: =IF(Ingresos[[#This Row],[ ]]<>"",'ANEXO INGRESOS'!L20*'ANEXO INGRESOS'!$F20,"") ->  | I28: =IF(Ingresos[[#This Row],[ ]]<>"",'ANEXO INGRESOS'!M20*'ANEXO INGRESOS'!$F20,"") ->  | J28: =IF(Ingresos[[#This Row],[ ]]<>"",'ANEXO INGRESOS'!N20*'ANEXO INGRESOS'!$F20,"") ->  | K28: =IF(Ingresos[[#This Row],[ ]]<>"",'ANEXO INGRESOS'!O20*'ANEXO INGRESOS'!$F20,"") ->  | L28: =IF(Ingresos[[#This Row],[ ]]<>"",'ANEXO INGRESOS'!P20*'ANEXO INGRESOS'!$F20,"") ->  | M28: =IF(Ingresos[[#This Row],[ ]]<>"",'ANEXO INGRESOS'!Q20*'ANEXO INGRESOS'!$F20,"") ->  | N28: =IF(Ingresos[[#This Row],[ ]]<>"",'ANEXO INGRESOS'!R20*'ANEXO INGRESOS'!$F20,"") ->  | O28: =IF(Ingresos[[#This Row],[ ]]<>"",'ANEXO INGRESOS'!S20*'ANEXO INGRESOS'!$F20,"") ->  | P28: =IF(Ingresos[[#This Row],[ ]]="","",SUM(D28:O28)) -> 
B29: =IF('ANEXO INGRESOS'!D21="","",'ANEXO INGRESOS'!C21) ->  | C29: =IF('ANEXO INGRESOS'!D21="","",'ANEXO INGRESOS'!D21) ->  | D29: =IF(Ingresos[[#This Row],[ ]]<>"",'ANEXO INGRESOS'!H21*'ANEXO INGRESOS'!$F21,"") ->  | E29: =IF(Ingresos[[#This Row],[ ]]<>"",'ANEXO INGRESOS'!I21*'ANEXO INGRESOS'!$F21,"") ->  | F29: =IF(Ingresos[[#This Row],[ ]]<>"",'ANEXO INGRESOS'!J21*'ANEXO INGRESOS'!$F21,"") ->  | G29: =IF(Ingresos[[#This Row],[ ]]<>"",'ANEXO INGRESOS'!K21*'ANEXO INGRESOS'!$F21,"") ->  | H29: =IF(Ingresos[[#This Row],[ ]]<>"",'ANEXO INGRESOS'!L21*'ANEXO INGRESOS'!$F21,"") ->  | I29: =IF(Ingresos[[#This Row],[ ]]<>"",'ANEXO INGRESOS'!M21*'ANEXO INGRESOS'!$F21,"") ->  | J29: =IF(Ingresos[[#This Row],[ ]]<>"",'ANEXO INGRESOS'!N21*'ANEXO INGRESOS'!$F21,"") ->  | K29: =IF(Ingresos[[#This Row],[ ]]<>"",'ANEXO INGRESOS'!O21*'ANEXO INGRESOS'!$F21,"") ->  | L29: =IF(Ingresos[[#This Row],[ ]]<>"",'ANEXO INGRESOS'!P21*'ANEXO INGRESOS'!$F21,"") ->  | M29: =IF(Ingresos[[#This Row],[ ]]<>"",'ANEXO INGRESOS'!Q21*'ANEXO INGRESOS'!$F21,"") ->  | N29: =IF(Ingresos[[#This Row],[ ]]<>"",'ANEXO INGRESOS'!R21*'ANEXO INGRESOS'!$F21,"") ->  | O29: =IF(Ingresos[[#This Row],[ ]]<>"",'ANEXO INGRESOS'!S21*'ANEXO INGRESOS'!$F21,"") ->  | P29: =IF(Ingresos[[#This Row],[ ]]="","",SUM(D29:O29)) -> 
B30: =IF('ANEXO INGRESOS'!D22="","",'ANEXO INGRESOS'!C22) ->  | C30: =IF('ANEXO INGRESOS'!D22="","",'ANEXO INGRESOS'!D22) ->  | D30: =IF(Ingresos[[#This Row],[ ]]<>"",'ANEXO INGRESOS'!H22*'ANEXO INGRESOS'!$F22,"") ->  | E30: =IF(Ingresos[[#This Row],[ ]]<>"",'ANEXO INGRESOS'!I22*'ANEXO INGRESOS'!$F22,"") ->  | F30: =IF(Ingresos[[#This Row],[ ]]<>"",'ANEXO INGRESOS'!J22*'ANEXO INGRESOS'!$F22,"") ->  | G30: =IF(Ingresos[[#This Row],[ ]]<>"",'ANEXO INGRESOS'!K22*'ANEXO INGRESOS'!$F22,"") ->  | H30: =IF(Ingresos[[#This Row],[ ]]<>"",'ANEXO INGRESOS'!L22*'ANEXO INGRESOS'!$F22,"") ->  | I30: =IF(Ingresos[[#This Row],[ ]]<>"",'ANEXO INGRESOS'!M22*'ANEXO INGRESOS'!$F22,"") ->  | J30: =IF(Ingresos[[#This Row],[ ]]<>"",'ANEXO INGRESOS'!N22*'ANEXO INGRESOS'!$F22,"") ->  | K30: =IF(Ingresos[[#This Row],[ ]]<>"",'ANEXO INGRESOS'!O22*'ANEXO INGRESOS'!$F22,"") ->  | L30: =IF(Ingresos[[#This Row],[ ]]<>"",'ANEXO INGRESOS'!P22*'ANEXO INGRESOS'!$F22,"") ->  | M30: =IF(Ingresos[[#This Row],[ ]]<>"",'ANEXO INGRESOS'!Q22*'ANEXO INGRESOS'!$F22,"") ->  | N30: =IF(Ingresos[[#This Row],[ ]]<>"",'ANEXO INGRESOS'!R22*'ANEXO INGRESOS'!$F22,"") ->  | O30: =IF(Ingresos[[#This Row],[ ]]<>"",'ANEXO INGRESOS'!S22*'ANEXO INGRESOS'!$F22,"") ->  | P30: =IF(Ingresos[[#This Row],[ ]]="","",SUM(D30:O30)) -> 
B31: =IF('ANEXO INGRESOS'!D23="","",'ANEXO INGRESOS'!C23) ->  | C31: =IF('ANEXO INGRESOS'!D23="","",'ANEXO INGRESOS'!D23) ->  | D31: =IF(Ingresos[[#This Row],[ ]]<>"",'ANEXO INGRESOS'!H23*'ANEXO INGRESOS'!$F23,"") ->  | E31: =IF(Ingresos[[#This Row],[ ]]<>"",'ANEXO INGRESOS'!I23*'ANEXO INGRESOS'!$F23,"") ->  | F31: =IF(Ingresos[[#This Row],[ ]]<>"",'ANEXO INGRESOS'!J23*'ANEXO INGRESOS'!$F23,"") ->  | G31: =IF(Ingresos[[#This Row],[ ]]<>"",'ANEXO INGRESOS'!K23*'ANEXO INGRESOS'!$F23,"") ->  | H31: =IF(Ingresos[[#This Row],[ ]]<>"",'ANEXO INGRESOS'!L23*'ANEXO INGRESOS'!$F23,"") ->  | I31: =IF(Ingresos[[#This Row],[ ]]<>"",'ANEXO INGRESOS'!M23*'ANEXO INGRESOS'!$F23,"") ->  | J31: =IF(Ingresos[[#This Row],[ ]]<>"",'ANEXO INGRESOS'!N23*'ANEXO INGRESOS'!$F23,"") ->  | K31: =IF(Ingresos[[#This Row],[ ]]<>"",'ANEXO INGRESOS'!O23*'ANEXO INGRESOS'!$F23,"") ->  | L31: =IF(Ingresos[[#This Row],[ ]]<>"",'ANEXO INGRESOS'!P23*'ANEXO INGRESOS'!$F23,"") ->  | M31: =IF(Ingresos[[#This Row],[ ]]<>"",'ANEXO INGRESOS'!Q23*'ANEXO INGRESOS'!$F23,"") ->  | N31: =IF(Ingresos[[#This Row],[ ]]<>"",'ANEXO INGRESOS'!R23*'ANEXO INGRESOS'!$F23,"") ->  | O31: =IF(Ingresos[[#This Row],[ ]]<>"",'ANEXO INGRESOS'!S23*'ANEXO INGRESOS'!$F23,"") ->  | P31: =IF(Ingresos[[#This Row],[ ]]="","",SUM(D31:O31)) -> 
B32: =IF('ANEXO INGRESOS'!D24="","",'ANEXO INGRESOS'!C24) ->  | C32: =IF('ANEXO INGRESOS'!D24="","",'ANEXO INGRESOS'!D24) ->  | D32: =IF(Ingresos[[#This Row],[ ]]<>"",'ANEXO INGRESOS'!H24*'ANEXO INGRESOS'!$F24,"") ->  | E32: =IF(Ingresos[[#This Row],[ ]]<>"",'ANEXO INGRESOS'!I24*'ANEXO INGRESOS'!$F24,"") ->  | F32: =IF(Ingresos[[#This Row],[ ]]<>"",'ANEXO INGRESOS'!J24*'ANEXO INGRESOS'!$F24,"") ->  | G32: =IF(Ingresos[[#This Row],[ ]]<>"",'ANEXO INGRESOS'!K24*'ANEXO INGRESOS'!$F24,"") ->  | H32: =IF(Ingresos[[#This Row],[ ]]<>"",'ANEXO INGRESOS'!L24*'ANEXO INGRESOS'!$F24,"") ->  | I32: =IF(Ingresos[[#This Row],[ ]]<>"",'ANEXO INGRESOS'!M24*'ANEXO INGRESOS'!$F24,"") ->  | J32: =IF(Ingresos[[#This Row],[ ]]<>"",'ANEXO INGRESOS'!N24*'ANEXO INGRESOS'!$F24,"") ->  | K32: =IF(Ingresos[[#This Row],[ ]]<>"",'ANEXO INGRESOS'!O24*'ANEXO INGRESOS'!$F24,"") ->  | L32: =IF(Ingresos[[#This Row],[ ]]<>"",'ANEXO INGRESOS'!P24*'ANEXO INGRESOS'!$F24,"") ->  | M32: =IF(Ingresos[[#This Row],[ ]]<>"",'ANEXO INGRESOS'!Q24*'ANEXO INGRESOS'!$F24,"") ->  | N32: =IF(Ingresos[[#This Row],[ ]]<>"",'ANEXO INGRESOS'!R24*'ANEXO INGRESOS'!$F24,"") ->  | O32: =IF(Ingresos[[#This Row],[ ]]<>"",'ANEXO INGRESOS'!S24*'ANEXO INGRESOS'!$F24,"") ->  | P32: =IF(Ingresos[[#This Row],[ ]]="","",SUM(D32:O32)) -> 
B33: =IF('ANEXO INGRESOS'!D25="","",'ANEXO INGRESOS'!C25) ->  | C33: =IF('ANEXO INGRESOS'!D25="","",'ANEXO INGRESOS'!D25) ->  | D33: =IF(Ingresos[[#This Row],[ ]]<>"",'ANEXO INGRESOS'!H25*'ANEXO INGRESOS'!$F25,"") ->  | E33: =IF(Ingresos[[#This Row],[ ]]<>"",'ANEXO INGRESOS'!I25*'ANEXO INGRESOS'!$F25,"") ->  | F33: =IF(Ingresos[[#This Row],[ ]]<>"",'ANEXO INGRESOS'!J25*'ANEXO INGRESOS'!$F25,"") ->  | G33: =IF(Ingresos[[#This Row],[ ]]<>"",'ANEXO INGRESOS'!K25*'ANEXO INGRESOS'!$F25,"") ->  | H33: =IF(Ingresos[[#This Row],[ ]]<>"",'ANEXO INGRESOS'!L25*'ANEXO INGRESOS'!$F25,"") ->  | I33: =IF(Ingresos[[#This Row],[ ]]<>"",'ANEXO INGRESOS'!M25*'ANEXO INGRESOS'!$F25,"") ->  | J33: =IF(Ingresos[[#This Row],[ ]]<>"",'ANEXO INGRESOS'!N25*'ANEXO INGRESOS'!$F25,"") ->  | K33: =IF(Ingresos[[#This Row],[ ]]<>"",'ANEXO INGRESOS'!O25*'ANEXO INGRESOS'!$F25,"") ->  | L33: =IF(Ingresos[[#This Row],[ ]]<>"",'ANEXO INGRESOS'!P25*'ANEXO INGRESOS'!$F25,"") ->  | M33: =IF(Ingresos[[#This Row],[ ]]<>"",'ANEXO INGRESOS'!Q25*'ANEXO INGRESOS'!$F25,"") ->  | N33: =IF(Ingresos[[#This Row],[ ]]<>"",'ANEXO INGRESOS'!R25*'ANEXO INGRESOS'!$F25,"") ->  | O33: =IF(Ingresos[[#This Row],[ ]]<>"",'ANEXO INGRESOS'!S25*'ANEXO INGRESOS'!$F25,"") ->  | P33: =IF(Ingresos[[#This Row],[ ]]="","",SUM(D33:O33)) -> 
B34: =IF('ANEXO INGRESOS'!D26="","",'ANEXO INGRESOS'!C26) ->  | C34: =IF('ANEXO INGRESOS'!D26="","",'ANEXO INGRESOS'!D26) ->  | D34: =IF(Ingresos[[#This Row],[ ]]<>"",'ANEXO INGRESOS'!H26*'ANEXO INGRESOS'!$F26,"") ->  | E34: =IF(Ingresos[[#This Row],[ ]]<>"",'ANEXO INGRESOS'!I26*'ANEXO INGRESOS'!$F26,"") ->  | F34: =IF(Ingresos[[#This Row],[ ]]<>"",'ANEXO INGRESOS'!J26*'ANEXO INGRESOS'!$F26,"") ->  | G34: =IF(Ingresos[[#This Row],[ ]]<>"",'ANEXO INGRESOS'!K26*'ANEXO INGRESOS'!$F26,"") ->  | H34: =IF(Ingresos[[#This Row],[ ]]<>"",'ANEXO INGRESOS'!L26*'ANEXO INGRESOS'!$F26,"") ->  | I34: =IF(Ingresos[[#This Row],[ ]]<>"",'ANEXO INGRESOS'!M26*'ANEXO INGRESOS'!$F26,"") ->  | J34: =IF(Ingresos[[#This Row],[ ]]<>"",'ANEXO INGRESOS'!N26*'ANEXO INGRESOS'!$F26,"") ->  | K34: =IF(Ingresos[[#This Row],[ ]]<>"",'ANEXO INGRESOS'!O26*'ANEXO INGRESOS'!$F26,"") ->  | L34: =IF(Ingresos[[#This Row],[ ]]<>"",'ANEXO INGRESOS'!P26*'ANEXO INGRESOS'!$F26,"") ->  | M34: =IF(Ingresos[[#This Row],[ ]]<>"",'ANEXO INGRESOS'!Q26*'ANEXO INGRESOS'!$F26,"") ->  | N34: =IF(Ingresos[[#This Row],[ ]]<>"",'ANEXO INGRESOS'!R26*'ANEXO INGRESOS'!$F26,"") ->  | O34: =IF(Ingresos[[#This Row],[ ]]<>"",'ANEXO INGRESOS'!S26*'ANEXO INGRESOS'!$F26,"") ->  | P34: =IF(Ingresos[[#This Row],[ ]]="","",SUM(D34:O34)) -> 
B35: =IF('ANEXO INGRESOS'!D27="","",'ANEXO INGRESOS'!C27) ->  | C35: =IF('ANEXO INGRESOS'!D27="","",'ANEXO INGRESOS'!D27) ->  | D35: =IF(Ingresos[[#This Row],[ ]]<>"",'ANEXO INGRESOS'!H27*'ANEXO INGRESOS'!$F27,"") ->  | E35: =IF(Ingresos[[#This Row],[ ]]<>"",'ANEXO INGRESOS'!I27*'ANEXO INGRESOS'!$F27,"") ->  | F35: =IF(Ingresos[[#This Row],[ ]]<>"",'ANEXO INGRESOS'!J27*'ANEXO INGRESOS'!$F27,"") ->  | G35: =IF(Ingresos[[#This Row],[ ]]<>"",'ANEXO INGRESOS'!K27*'ANEXO INGRESOS'!$F27,"") ->  | H35: =IF(Ingresos[[#This Row],[ ]]<>"",'ANEXO INGRESOS'!L27*'ANEXO INGRESOS'!$F27,"") ->  | I35: =IF(Ingresos[[#This Row],[ ]]<>"",'ANEXO INGRESOS'!M27*'ANEXO INGRESOS'!$F27,"") ->  | J35: =IF(Ingresos[[#This Row],[ ]]<>"",'ANEXO INGRESOS'!N27*'ANEXO INGRESOS'!$F27,"") ->  | K35: =IF(Ingresos[[#This Row],[ ]]<>"",'ANEXO INGRESOS'!O27*'ANEXO INGRESOS'!$F27,"") ->  | L35: =IF(Ingresos[[#This Row],[ ]]<>"",'ANEXO INGRESOS'!P27*'ANEXO INGRESOS'!$F27,"") ->  | M35: =IF(Ingresos[[#This Row],[ ]]<>"",'ANEXO INGRESOS'!Q27*'ANEXO INGRESOS'!$F27,"") ->  | N35: =IF(Ingresos[[#This Row],[ ]]<>"",'ANEXO INGRESOS'!R27*'ANEXO INGRESOS'!$F27,"") ->  | O35: =IF(Ingresos[[#This Row],[ ]]<>"",'ANEXO INGRESOS'!S27*'ANEXO INGRESOS'!$F27,"") ->  | P35: =IF(Ingresos[[#This Row],[ ]]="","",SUM(D35:O35)) -> 
B36: =IF('ANEXO INGRESOS'!D28="","",'ANEXO INGRESOS'!C28) ->  | C36: =IF('ANEXO INGRESOS'!D28="","",'ANEXO INGRESOS'!D28) ->  | D36: =IF(Ingresos[[#This Row],[ ]]<>"",'ANEXO INGRESOS'!H28*'ANEXO INGRESOS'!$F28,"") ->  | E36: =IF(Ingresos[[#This Row],[ ]]<>"",'ANEXO INGRESOS'!I28*'ANEXO INGRESOS'!$F28,"") ->  | F36: =IF(Ingresos[[#This Row],[ ]]<>"",'ANEXO INGRESOS'!J28*'ANEXO INGRESOS'!$F28,"") ->  | G36: =IF(Ingresos[[#This Row],[ ]]<>"",'ANEXO INGRESOS'!K28*'ANEXO INGRESOS'!$F28,"") ->  | H36: =IF(Ingresos[[#This Row],[ ]]<>"",'ANEXO INGRESOS'!L28*'ANEXO INGRESOS'!$F28,"") ->  | I36: =IF(Ingresos[[#This Row],[ ]]<>"",'ANEXO INGRESOS'!M28*'ANEXO INGRESOS'!$F28,"") ->  | J36: =IF(Ingresos[[#This Row],[ ]]<>"",'ANEXO INGRESOS'!N28*'ANEXO INGRESOS'!$F28,"") ->  | K36: =IF(Ingresos[[#This Row],[ ]]<>"",'ANEXO INGRESOS'!O28*'ANEXO INGRESOS'!$F28,"") ->  | L36: =IF(Ingresos[[#This Row],[ ]]<>"",'ANEXO INGRESOS'!P28*'ANEXO INGRESOS'!$F28,"") ->  | M36: =IF(Ingresos[[#This Row],[ ]]<>"",'ANEXO INGRESOS'!Q28*'ANEXO INGRESOS'!$F28,"") ->  | N36: =IF(Ingresos[[#This Row],[ ]]<>"",'ANEXO INGRESOS'!R28*'ANEXO INGRESOS'!$F28,"") ->  | O36: =IF(Ingresos[[#This Row],[ ]]<>"",'ANEXO INGRESOS'!S28*'ANEXO INGRESOS'!$F28,"") ->  | P36: =IF(Ingresos[[#This Row],[ ]]="","",SUM(D36:O36)) -> 
B37: =IF('ANEXO INGRESOS'!D29="","",'ANEXO INGRESOS'!C29) ->  | C37: =IF('ANEXO INGRESOS'!D29="","",'ANEXO INGRESOS'!D29) ->  | D37: =IF(Ingresos[[#This Row],[ ]]<>"",'ANEXO INGRESOS'!H29*'ANEXO INGRESOS'!$F29,"") ->  | E37: =IF(Ingresos[[#This Row],[ ]]<>"",'ANEXO INGRESOS'!I29*'ANEXO INGRESOS'!$F29,"") ->  | F37: =IF(Ingresos[[#This Row],[ ]]<>"",'ANEXO INGRESOS'!J29*'ANEXO INGRESOS'!$F29,"") ->  | G37: =IF(Ingresos[[#This Row],[ ]]<>"",'ANEXO INGRESOS'!K29*'ANEXO INGRESOS'!$F29,"") ->  | H37: =IF(Ingresos[[#This Row],[ ]]<>"",'ANEXO INGRESOS'!L29*'ANEXO INGRESOS'!$F29,"") ->  | I37: =IF(Ingresos[[#This Row],[ ]]<>"",'ANEXO INGRESOS'!M29*'ANEXO INGRESOS'!$F29,"") ->  | J37: =IF(Ingresos[[#This Row],[ ]]<>"",'ANEXO INGRESOS'!N29*'ANEXO INGRESOS'!$F29,"") ->  | K37: =IF(Ingresos[[#This Row],[ ]]<>"",'ANEXO INGRESOS'!O29*'ANEXO INGRESOS'!$F29,"") ->  | L37: =IF(Ingresos[[#This Row],[ ]]<>"",'ANEXO INGRESOS'!P29*'ANEXO INGRESOS'!$F29,"") ->  | M37: =IF(Ingresos[[#This Row],[ ]]<>"",'ANEXO INGRESOS'!Q29*'ANEXO INGRESOS'!$F29,"") ->  | N37: =IF(Ingresos[[#This Row],[ ]]<>"",'ANEXO INGRESOS'!R29*'ANEXO INGRESOS'!$F29,"") ->  | O37: =IF(Ingresos[[#This Row],[ ]]<>"",'ANEXO INGRESOS'!S29*'ANEXO INGRESOS'!$F29,"") ->  | P37: =IF(Ingresos[[#This Row],[ ]]="","",SUM(D37:O37)) -> 
B38: =IF('ANEXO INGRESOS'!D30="","",'ANEXO INGRESOS'!C30) ->  | C38: =IF('ANEXO INGRESOS'!D30="","",'ANEXO INGRESOS'!D30) ->  | D38: =IF(Ingresos[[#This Row],[ ]]<>"",'ANEXO INGRESOS'!H30*'ANEXO INGRESOS'!$F30,"") ->  | E38: =IF(Ingresos[[#This Row],[ ]]<>"",'ANEXO INGRESOS'!I30*'ANEXO INGRESOS'!$F30,"") ->  | F38: =IF(Ingresos[[#This Row],[ ]]<>"",'ANEXO INGRESOS'!J30*'ANEXO INGRESOS'!$F30,"") ->  | G38: =IF(Ingresos[[#This Row],[ ]]<>"",'ANEXO INGRESOS'!K30*'ANEXO INGRESOS'!$F30,"") ->  | H38: =IF(Ingresos[[#This Row],[ ]]<>"",'ANEXO INGRESOS'!L30*'ANEXO INGRESOS'!$F30,"") ->  | I38: =IF(Ingresos[[#This Row],[ ]]<>"",'ANEXO INGRESOS'!M30*'ANEXO INGRESOS'!$F30,"") ->  | J38: =IF(Ingresos[[#This Row],[ ]]<>"",'ANEXO INGRESOS'!N30*'ANEXO INGRESOS'!$F30,"") ->  | K38: =IF(Ingresos[[#This Row],[ ]]<>"",'ANEXO INGRESOS'!O30*'ANEXO INGRESOS'!$F30,"") ->  | L38: =IF(Ingresos[[#This Row],[ ]]<>"",'ANEXO INGRESOS'!P30*'ANEXO INGRESOS'!$F30,"") ->  | M38: =IF(Ingresos[[#This Row],[ ]]<>"",'ANEXO INGRESOS'!Q30*'ANEXO INGRESOS'!$F30,"") ->  | N38: =IF(Ingresos[[#This Row],[ ]]<>"",'ANEXO INGRESOS'!R30*'ANEXO INGRESOS'!$F30,"") ->  | O38: =IF(Ingresos[[#This Row],[ ]]<>"",'ANEXO INGRESOS'!S30*'ANEXO INGRESOS'!$F30,"") ->  | P38: =IF(Ingresos[[#This Row],[ ]]="","",SUM(D38:O38)) -> 
B39: =IF('ANEXO INGRESOS'!D33="","",'ANEXO INGRESOS'!C33) ->  | C39: =IF('ANEXO INGRESOS'!D31="","",'ANEXO INGRESOS'!D31) ->  | D39: =IF(Ingresos[[#This Row],[ ]]<>"",'ANEXO INGRESOS'!H31*'ANEXO INGRESOS'!$F31,"") ->  | E39: =IF(Ingresos[[#This Row],[ ]]<>"",'ANEXO INGRESOS'!I31*'ANEXO INGRESOS'!$F31,"") ->  | F39: =IF(Ingresos[[#This Row],[ ]]<>"",'ANEXO INGRESOS'!J31*'ANEXO INGRESOS'!$F31,"") ->  | G39: =IF(Ingresos[[#This Row],[ ]]<>"",'ANEXO INGRESOS'!K31*'ANEXO INGRESOS'!$F31,"") ->  | H39: =IF(Ingresos[[#This Row],[ ]]<>"",'ANEXO INGRESOS'!L31*'ANEXO INGRESOS'!$F31,"") ->  | I39: =IF(Ingresos[[#This Row],[ ]]<>"",'ANEXO INGRESOS'!M31*'ANEXO INGRESOS'!$F31,"") ->  | J39: =IF(Ingresos[[#This Row],[ ]]<>"",'ANEXO INGRESOS'!N31*'ANEXO INGRESOS'!$F31,"") ->  | K39: =IF(Ingresos[[#This Row],[ ]]<>"",'ANEXO INGRESOS'!O31*'ANEXO INGRESOS'!$F31,"") ->  | L39: =IF(Ingresos[[#This Row],[ ]]<>"",'ANEXO INGRESOS'!P31*'ANEXO INGRESOS'!$F31,"") ->  | M39: =IF(Ingresos[[#This Row],[ ]]<>"",'ANEXO INGRESOS'!Q31*'ANEXO INGRESOS'!$F31,"") ->  | N39: =IF(Ingresos[[#This Row],[ ]]<>"",'ANEXO INGRESOS'!R31*'ANEXO INGRESOS'!$F31,"") ->  | O39: =IF(Ingresos[[#This Row],[ ]]<>"",'ANEXO INGRESOS'!S31*'ANEXO INGRESOS'!$F31,"") ->  | P39: =IF(Ingresos[[#This Row],[ ]]="","",SUM(D39:O39)) -> 
B40: =IF('ANEXO INGRESOS'!D34="","",'ANEXO INGRESOS'!C34) ->  | C40: =IF('ANEXO INGRESOS'!D32="","",'ANEXO INGRESOS'!D32) ->  | D40: =IF(Ingresos[[#This Row],[ ]]<>"",'ANEXO INGRESOS'!H32*'ANEXO INGRESOS'!$F32,"") ->  | E40: =IF(Ingresos[[#This Row],[ ]]<>"",'ANEXO INGRESOS'!I32*'ANEXO INGRESOS'!$F32,"") ->  | F40: =IF(Ingresos[[#This Row],[ ]]<>"",'ANEXO INGRESOS'!J32*'ANEXO INGRESOS'!$F32,"") ->  | G40: =IF(Ingresos[[#This Row],[ ]]<>"",'ANEXO INGRESOS'!K32*'ANEXO INGRESOS'!$F32,"") ->  | H40: =IF(Ingresos[[#This Row],[ ]]<>"",'ANEXO INGRESOS'!L32*'ANEXO INGRESOS'!$F32,"") ->  | I40: =IF(Ingresos[[#This Row],[ ]]<>"",'ANEXO INGRESOS'!M32*'ANEXO INGRESOS'!$F32,"") ->  | J40: =IF(Ingresos[[#This Row],[ ]]<>"",'ANEXO INGRESOS'!N32*'ANEXO INGRESOS'!$F32,"") ->  | K40: =IF(Ingresos[[#This Row],[ ]]<>"",'ANEXO INGRESOS'!O32*'ANEXO INGRESOS'!$F32,"") ->  | L40: =IF(Ingresos[[#This Row],[ ]]<>"",'ANEXO INGRESOS'!P32*'ANEXO INGRESOS'!$F32,"") ->  | M40: =IF(Ingresos[[#This Row],[ ]]<>"",'ANEXO INGRESOS'!Q32*'ANEXO INGRESOS'!$F32,"") ->  | N40: =IF(Ingresos[[#This Row],[ ]]<>"",'ANEXO INGRESOS'!R32*'ANEXO INGRESOS'!$F32,"") ->  | O40: =IF(Ingresos[[#This Row],[ ]]<>"",'ANEXO INGRESOS'!S32*'ANEXO INGRESOS'!$F32,"") ->  | P40: =IF(Ingresos[[#This Row],[ ]]="","",SUM(D40:O40)) -> 
B41: =IF('ANEXO INGRESOS'!D41="","",'ANEXO INGRESOS'!C41) ->  | C41: =IF('ANEXO INGRESOS'!D33="","",'ANEXO INGRESOS'!D33) ->  | D41: =IF(Ingresos[[#This Row],[ ]]<>"",'ANEXO INGRESOS'!H33*'ANEXO INGRESOS'!$F33,"") ->  | E41: =IF(Ingresos[[#This Row],[ ]]<>"",'ANEXO INGRESOS'!I33*'ANEXO INGRESOS'!$F33,"") ->  | F41: =IF(Ingresos[[#This Row],[ ]]<>"",'ANEXO INGRESOS'!J33*'ANEXO INGRESOS'!$F33,"") ->  | G41: =IF(Ingresos[[#This Row],[ ]]<>"",'ANEXO INGRESOS'!K33*'ANEXO INGRESOS'!$F33,"") ->  | H41: =IF(Ingresos[[#This Row],[ ]]<>"",'ANEXO INGRESOS'!L33*'ANEXO INGRESOS'!$F33,"") ->  | I41: =IF(Ingresos[[#This Row],[ ]]<>"",'ANEXO INGRESOS'!M33*'ANEXO INGRESOS'!$F33,"") ->  | J41: =IF(Ingresos[[#This Row],[ ]]<>"",'ANEXO INGRESOS'!N33*'ANEXO INGRESOS'!$F33,"") ->  | K41: =IF(Ingresos[[#This Row],[ ]]<>"",'ANEXO INGRESOS'!O33*'ANEXO INGRESOS'!$F33,"") ->  | L41: =IF(Ingresos[[#This Row],[ ]]<>"",'ANEXO INGRESOS'!P33*'ANEXO INGRESOS'!$F33,"") ->  | M41: =IF(Ingresos[[#This Row],[ ]]<>"",'ANEXO INGRESOS'!Q33*'ANEXO INGRESOS'!$F33,"") ->  | N41: =IF(Ingresos[[#This Row],[ ]]<>"",'ANEXO INGRESOS'!R33*'ANEXO INGRESOS'!$F33,"") ->  | O41: =IF(Ingresos[[#This Row],[ ]]<>"",'ANEXO INGRESOS'!S33*'ANEXO INGRESOS'!$F33,"") ->  | P41: =IF(Ingresos[[#This Row],[ ]]="","",SUM(D41:O41)) -> 
B42: =IF('ANEXO INGRESOS'!D42="","",'ANEXO INGRESOS'!C42) ->  | C42: =IF('ANEXO INGRESOS'!D34="","",'ANEXO INGRESOS'!D34) ->  | D42: =IF(Ingresos[[#This Row],[ ]]<>"",'ANEXO INGRESOS'!H34*'ANEXO INGRESOS'!$F34,"") ->  | E42: =IF(Ingresos[[#This Row],[ ]]<>"",'ANEXO INGRESOS'!I34*'ANEXO INGRESOS'!$F34,"") ->  | F42: =IF(Ingresos[[#This Row],[ ]]<>"",'ANEXO INGRESOS'!J34*'ANEXO INGRESOS'!$F34,"") ->  | G42: =IF(Ingresos[[#This Row],[ ]]<>"",'ANEXO INGRESOS'!K34*'ANEXO INGRESOS'!$F34,"") ->  | H42: =IF(Ingresos[[#This Row],[ ]]<>"",'ANEXO INGRESOS'!L34*'ANEXO INGRESOS'!$F34,"") ->  | I42: =IF(Ingresos[[#This Row],[ ]]<>"",'ANEXO INGRESOS'!M34*'ANEXO INGRESOS'!$F34,"") ->  | J42: =IF(Ingresos[[#This Row],[ ]]<>"",'ANEXO INGRESOS'!N34*'ANEXO INGRESOS'!$F34,"") ->  | K42: =IF(Ingresos[[#This Row],[ ]]<>"",'ANEXO INGRESOS'!O34*'ANEXO INGRESOS'!$F34,"") ->  | L42: =IF(Ingresos[[#This Row],[ ]]<>"",'ANEXO INGRESOS'!P34*'ANEXO INGRESOS'!$F34,"") ->  | M42: =IF(Ingresos[[#This Row],[ ]]<>"",'ANEXO INGRESOS'!Q34*'ANEXO INGRESOS'!$F34,"") ->  | N42: =IF(Ingresos[[#This Row],[ ]]<>"",'ANEXO INGRESOS'!R34*'ANEXO INGRESOS'!$F34,"") ->  | O42: =IF(Ingresos[[#This Row],[ ]]<>"",'ANEXO INGRESOS'!S34*'ANEXO INGRESOS'!$F34,"") ->  | P42: =IF(Ingresos[[#This Row],[ ]]="","",SUM(D42:O42)) -> 
B43: =IF('ANEXO INGRESOS'!D43="","",'ANEXO INGRESOS'!C43) ->  | C43: =IF('ANEXO INGRESOS'!D35="","",'ANEXO INGRESOS'!D35) ->  | D43: =IF(Ingresos[[#This Row],[ ]]<>"",'ANEXO INGRESOS'!H35*'ANEXO INGRESOS'!$F35,"") ->  | E43: =IF(Ingresos[[#This Row],[ ]]<>"",'ANEXO INGRESOS'!I35*'ANEXO INGRESOS'!$F35,"") ->  | F43: =IF(Ingresos[[#This Row],[ ]]<>"",'ANEXO INGRESOS'!J35*'ANEXO INGRESOS'!$F35,"") ->  | G43: =IF(Ingresos[[#This Row],[ ]]<>"",'ANEXO INGRESOS'!K35*'ANEXO INGRESOS'!$F35,"") ->  | H43: =IF(Ingresos[[#This Row],[ ]]<>"",'ANEXO INGRESOS'!L35*'ANEXO INGRESOS'!$F35,"") ->  | I43: =IF(Ingresos[[#This Row],[ ]]<>"",'ANEXO INGRESOS'!M35*'ANEXO INGRESOS'!$F35,"") ->  | J43: =IF(Ingresos[[#This Row],[ ]]<>"",'ANEXO INGRESOS'!N35*'ANEXO INGRESOS'!$F35,"") ->  | K43: =IF(Ingresos[[#This Row],[ ]]<>"",'ANEXO INGRESOS'!O35*'ANEXO INGRESOS'!$F35,"") ->  | L43: =IF(Ingresos[[#This Row],[ ]]<>"",'ANEXO INGRESOS'!P35*'ANEXO INGRESOS'!$F35,"") ->  | M43: =IF(Ingresos[[#This Row],[ ]]<>"",'ANEXO INGRESOS'!Q35*'ANEXO INGRESOS'!$F35,"") ->  | N43: =IF(Ingresos[[#This Row],[ ]]<>"",'ANEXO INGRESOS'!R35*'ANEXO INGRESOS'!$F35,"") ->  | O43: =IF(Ingresos[[#This Row],[ ]]<>"",'ANEXO INGRESOS'!S35*'ANEXO INGRESOS'!$F35,"") ->  | P43: =IF(Ingresos[[#This Row],[ ]]="","",SUM(D43:O43)) -> 
B44: =IF('ANEXO INGRESOS'!D44="","",'ANEXO INGRESOS'!C44) ->  | C44: =IF('ANEXO INGRESOS'!D36="","",'ANEXO INGRESOS'!D36) ->  | D44: =IF(Ingresos[[#This Row],[ ]]<>"",'ANEXO INGRESOS'!H36*'ANEXO INGRESOS'!$F36,"") ->  | E44: =IF(Ingresos[[#This Row],[ ]]<>"",'ANEXO INGRESOS'!I36*'ANEXO INGRESOS'!$F36,"") ->  | F44: =IF(Ingresos[[#This Row],[ ]]<>"",'ANEXO INGRESOS'!J36*'ANEXO INGRESOS'!$F36,"") ->  | G44: =IF(Ingresos[[#This Row],[ ]]<>"",'ANEXO INGRESOS'!K36*'ANEXO INGRESOS'!$F36,"") ->  | H44: =IF(Ingresos[[#This Row],[ ]]<>"",'ANEXO INGRESOS'!L36*'ANEXO INGRESOS'!$F36,"") ->  | I44: =IF(Ingresos[[#This Row],[ ]]<>"",'ANEXO INGRESOS'!M36*'ANEXO INGRESOS'!$F36,"") ->  | J44: =IF(Ingresos[[#This Row],[ ]]<>"",'ANEXO INGRESOS'!N36*'ANEXO INGRESOS'!$F36,"") ->  | K44: =IF(Ingresos[[#This Row],[ ]]<>"",'ANEXO INGRESOS'!O36*'ANEXO INGRESOS'!$F36,"") ->  | L44: =IF(Ingresos[[#This Row],[ ]]<>"",'ANEXO INGRESOS'!P36*'ANEXO INGRESOS'!$F36,"") ->  | M44: =IF(Ingresos[[#This Row],[ ]]<>"",'ANEXO INGRESOS'!Q36*'ANEXO INGRESOS'!$F36,"") ->  | N44: =IF(Ingresos[[#This Row],[ ]]<>"",'ANEXO INGRESOS'!R36*'ANEXO INGRESOS'!$F36,"") ->  | O44: =IF(Ingresos[[#This Row],[ ]]<>"",'ANEXO INGRESOS'!S36*'ANEXO INGRESOS'!$F36,"") ->  | P44: =IF(Ingresos[[#This Row],[ ]]="","",SUM(D44:O44)) -> 
B45: =IF('ANEXO INGRESOS'!D45="","",'ANEXO INGRESOS'!C45) ->  | C45: =IF('ANEXO INGRESOS'!D37="","",'ANEXO INGRESOS'!D37) ->  | D45: =IF(Ingresos[[#This Row],[ ]]<>"",'ANEXO INGRESOS'!H37*'ANEXO INGRESOS'!$F37,"") ->  | E45: =IF(Ingresos[[#This Row],[ ]]<>"",'ANEXO INGRESOS'!I37*'ANEXO INGRESOS'!$F37,"") ->  | F45: =IF(Ingresos[[#This Row],[ ]]<>"",'ANEXO INGRESOS'!J37*'ANEXO INGRESOS'!$F37,"") ->  | G45: =IF(Ingresos[[#This Row],[ ]]<>"",'ANEXO INGRESOS'!K37*'ANEXO INGRESOS'!$F37,"") ->  | H45: =IF(Ingresos[[#This Row],[ ]]<>"",'ANEXO INGRESOS'!L37*'ANEXO INGRESOS'!$F37,"") ->  | I45: =IF(Ingresos[[#This Row],[ ]]<>"",'ANEXO INGRESOS'!M37*'ANEXO INGRESOS'!$F37,"") ->  | J45: =IF(Ingresos[[#This Row],[ ]]<>"",'ANEXO INGRESOS'!N37*'ANEXO INGRESOS'!$F37,"") ->  | K45: =IF(Ingresos[[#This Row],[ ]]<>"",'ANEXO INGRESOS'!O37*'ANEXO INGRESOS'!$F37,"") ->  | L45: =IF(Ingresos[[#This Row],[ ]]<>"",'ANEXO INGRESOS'!P37*'ANEXO INGRESOS'!$F37,"") ->  | M45: =IF(Ingresos[[#This Row],[ ]]<>"",'ANEXO INGRESOS'!Q37*'ANEXO INGRESOS'!$F37,"") ->  | N45: =IF(Ingresos[[#This Row],[ ]]<>"",'ANEXO INGRESOS'!R37*'ANEXO INGRESOS'!$F37,"") ->  | O45: =IF(Ingresos[[#This Row],[ ]]<>"",'ANEXO INGRESOS'!S37*'ANEXO INGRESOS'!$F37,"") ->  | P45: =IF(Ingresos[[#This Row],[ ]]="","",SUM(D45:O45)) -> 
B46: =IF('ANEXO INGRESOS'!D46="","",'ANEXO INGRESOS'!C46) ->  | C46: =IF('ANEXO INGRESOS'!D38="","",'ANEXO INGRESOS'!D38) ->  | D46: =IF(Ingresos[[#This Row],[ ]]<>"",'ANEXO INGRESOS'!H38*'ANEXO INGRESOS'!$F38,"") ->  | E46: =IF(Ingresos[[#This Row],[ ]]<>"",'ANEXO INGRESOS'!I38*'ANEXO INGRESOS'!$F38,"") ->  | F46: =IF(Ingresos[[#This Row],[ ]]<>"",'ANEXO INGRESOS'!J38*'ANEXO INGRESOS'!$F38,"") ->  | G46: =IF(Ingresos[[#This Row],[ ]]<>"",'ANEXO INGRESOS'!K38*'ANEXO INGRESOS'!$F38,"") ->  | H46: =IF(Ingresos[[#This Row],[ ]]<>"",'ANEXO INGRESOS'!L38*'ANEXO INGRESOS'!$F38,"") ->  | I46: =IF(Ingresos[[#This Row],[ ]]<>"",'ANEXO INGRESOS'!M38*'ANEXO INGRESOS'!$F38,"") ->  | J46: =IF(Ingresos[[#This Row],[ ]]<>"",'ANEXO INGRESOS'!N38*'ANEXO INGRESOS'!$F38,"") ->  | K46: =IF(Ingresos[[#This Row],[ ]]<>"",'ANEXO INGRESOS'!O38*'ANEXO INGRESOS'!$F38,"") ->  | L46: =IF(Ingresos[[#This Row],[ ]]<>"",'ANEXO INGRESOS'!P38*'ANEXO INGRESOS'!$F38,"") ->  | M46: =IF(Ingresos[[#This Row],[ ]]<>"",'ANEXO INGRESOS'!Q38*'ANEXO INGRESOS'!$F38,"") ->  | N46: =IF(Ingresos[[#This Row],[ ]]<>"",'ANEXO INGRESOS'!R38*'ANEXO INGRESOS'!$F38,"") ->  | O46: =IF(Ingresos[[#This Row],[ ]]<>"",'ANEXO INGRESOS'!S38*'ANEXO INGRESOS'!$F38,"") ->  | P46: =IF(Ingresos[[#This Row],[ ]]="","",SUM(D46:O46)) -> 
B47: =IF('ANEXO INGRESOS'!D47="","",'ANEXO INGRESOS'!C47) ->  | C47: =IF('ANEXO INGRESOS'!D39="","",'ANEXO INGRESOS'!D39) ->  | D47: =IF(Ingresos[[#This Row],[ ]]<>"",'ANEXO INGRESOS'!H39*'ANEXO INGRESOS'!$F39,"") ->  | E47: =IF(Ingresos[[#This Row],[ ]]<>"",'ANEXO INGRESOS'!I39*'ANEXO INGRESOS'!$F39,"") ->  | F47: =IF(Ingresos[[#This Row],[ ]]<>"",'ANEXO INGRESOS'!J39*'ANEXO INGRESOS'!$F39,"") ->  | G47: =IF(Ingresos[[#This Row],[ ]]<>"",'ANEXO INGRESOS'!K39*'ANEXO INGRESOS'!$F39,"") ->  | H47: =IF(Ingresos[[#This Row],[ ]]<>"",'ANEXO INGRESOS'!L39*'ANEXO INGRESOS'!$F39,"") ->  | I47: =IF(Ingresos[[#This Row],[ ]]<>"",'ANEXO INGRESOS'!M39*'ANEXO INGRESOS'!$F39,"") ->  | J47: =IF(Ingresos[[#This Row],[ ]]<>"",'ANEXO INGRESOS'!N39*'ANEXO INGRESOS'!$F39,"") ->  | K47: =IF(Ingresos[[#This Row],[ ]]<>"",'ANEXO INGRESOS'!O39*'ANEXO INGRESOS'!$F39,"") ->  | L47: =IF(Ingresos[[#This Row],[ ]]<>"",'ANEXO INGRESOS'!P39*'ANEXO INGRESOS'!$F39,"") ->  | M47: =IF(Ingresos[[#This Row],[ ]]<>"",'ANEXO INGRESOS'!Q39*'ANEXO INGRESOS'!$F39,"") ->  | N47: =IF(Ingresos[[#This Row],[ ]]<>"",'ANEXO INGRESOS'!R39*'ANEXO INGRESOS'!$F39,"") ->  | O47: =IF(Ingresos[[#This Row],[ ]]<>"",'ANEXO INGRESOS'!S39*'ANEXO INGRESOS'!$F39,"") ->  | P47: =IF(Ingresos[[#This Row],[ ]]="","",SUM(D47:O47)) -> 
B48: =IF('ANEXO INGRESOS'!C41="","",'ANEXO INGRESOS'!C41) ->  | C48: =IF('ANEXO INGRESOS'!D40="","",'ANEXO INGRESOS'!D40) ->  | D48: =IF(Ingresos[[#This Row],[ ]]<>"",'ANEXO INGRESOS'!H40*'ANEXO INGRESOS'!$F40,"") ->  | E48: =IF(Ingresos[[#This Row],[ ]]<>"",'ANEXO INGRESOS'!I40*'ANEXO INGRESOS'!$F40,"") ->  | F48: =IF(Ingresos[[#This Row],[ ]]<>"",'ANEXO INGRESOS'!J40*'ANEXO INGRESOS'!$F40,"") ->  | G48: =IF(Ingresos[[#This Row],[ ]]<>"",'ANEXO INGRESOS'!K40*'ANEXO INGRESOS'!$F40,"") ->  | H48: =IF(Ingresos[[#This Row],[ ]]<>"",'ANEXO INGRESOS'!L40*'ANEXO INGRESOS'!$F40,"") ->  | I48: =IF(Ingresos[[#This Row],[ ]]<>"",'ANEXO INGRESOS'!M40*'ANEXO INGRESOS'!$F40,"") ->  | J48: =IF(Ingresos[[#This Row],[ ]]<>"",'ANEXO INGRESOS'!N40*'ANEXO INGRESOS'!$F40,"") ->  | K48: =IF(Ingresos[[#This Row],[ ]]<>"",'ANEXO INGRESOS'!O40*'ANEXO INGRESOS'!$F40,"") ->  | L48: =IF(Ingresos[[#This Row],[ ]]<>"",'ANEXO INGRESOS'!P40*'ANEXO INGRESOS'!$F40,"") ->  | M48: =IF(Ingresos[[#This Row],[ ]]<>"",'ANEXO INGRESOS'!Q40*'ANEXO INGRESOS'!$F40,"") ->  | N48: =IF(Ingresos[[#This Row],[ ]]<>"",'ANEXO INGRESOS'!R40*'ANEXO INGRESOS'!$F40,"") ->  | O48: =IF(Ingresos[[#This Row],[ ]]<>"",'ANEXO INGRESOS'!S40*'ANEXO INGRESOS'!$F40,"") ->  | P48: =IF(Ingresos[[#This Row],[ ]]="","",SUM(D48:O48)) -> 
C49: TOTAL INGRESOS | D49: =SUM('4.INGRESOS'!$D$21:$D$48) -> 0 | E49: =SUM('4.INGRESOS'!$E$21:$E$48) -> 0 | F49: =SUM('4.INGRESOS'!$F$21:$F$48) -> 0 | G49: =SUM('4.INGRESOS'!$G$21:$G$48) -> 0 | H49: =SUM('4.INGRESOS'!$H$21:$H$48) -> 0 | I49: =SUM('4.INGRESOS'!$I$21:$I$48) -> 0 | J49: =SUM('4.INGRESOS'!$J$21:$J$48) -> 0 | K49: =SUM('4.INGRESOS'!$K$21:$K$48) -> 0 | L49: =SUM('4.INGRESOS'!$L$21:$L$48) -> 0 | M49: =SUM('4.INGRESOS'!$M$21:$M$48) -> 0 | N49: =SUM('4.INGRESOS'!$N$21:$N$48) -> 0 | O49: =SUM('4.INGRESOS'!$O$21:$O$48) -> 0 | P49: =SUM('4.INGRESOS'!$P$21:$P$48) -> 0
B51: Columna1 | C51: Columna2 | D51: Mes 1 | E51: Mes 2 | F51: Mes 3 | G51: Mes 4 | H51: Mes 5 | I51: Mes 6 | J51: Mes 7 | K51: Mes 8 | L51: Mes 9 | M51: Mes 10 | N51: Mes 11 | O51: Mes 12 | P51: Columna3
B52: IVA % | C52: Otros Ingresos | D52: ='7.CUENTA DE RESULTADOS '!C20 -> 1900enero | E52: ='7.CUENTA DE RESULTADOS '!D20 -> 1900enero | F52: ='7.CUENTA DE RESULTADOS '!E20 -> 1900febrero | G52: ='7.CUENTA DE RESULTADOS '!F20 -> 1900marzo | H52: ='7.CUENTA DE RESULTADOS '!G20 -> 1900abril | I52: ='7.CUENTA DE RESULTADOS '!H20 -> 1900mayo | J52: ='7.CUENTA DE RESULTADOS '!I20 -> 1900junio | K52: ='7.CUENTA DE RESULTADOS '!J20 -> 1900julio | L52: ='7.CUENTA DE RESULTADOS '!K20 -> 1900agosto | M52: ='7.CUENTA DE RESULTADOS '!L20 -> 1900septiembre | N52: ='7.CUENTA DE RESULTADOS '!M20 -> 1900octubre | O52: ='7.CUENTA DE RESULTADOS '!N20 -> 1900noviembre | P52: =+P21 -> TOTAL
B53: =IF('ANEXO INGRESOS'!C51<>"",'ANEXO INGRESOS'!C51,"") ->  | C53: =IF('ANEXO INGRESOS'!D51<>"",'ANEXO INGRESOS'!D51,"") ->  | D53: =IF(Otros_ingresos_imprimir[[#This Row],[Columna2]]="","",'ANEXO INGRESOS'!H51*'ANEXO INGRESOS'!$F51) ->  | E53: =IF(Otros_ingresos_imprimir[[#This Row],[Mes 1]]="","",'ANEXO INGRESOS'!I51*'ANEXO INGRESOS'!$F51) ->  | F53: =IF(Otros_ingresos_imprimir[[#This Row],[Mes 2]]="","",'ANEXO INGRESOS'!J51*'ANEXO INGRESOS'!$F51) ->  | G53: =IF(Otros_ingresos_imprimir[[#This Row],[Mes 3]]="","",'ANEXO INGRESOS'!K51*'ANEXO INGRESOS'!$F51) ->  | H53: =IF(Otros_ingresos_imprimir[[#This Row],[Mes 4]]="","",'ANEXO INGRESOS'!L51*'ANEXO INGRESOS'!$F51) ->  | I53: =IF(Otros_ingresos_imprimir[[#This Row],[Mes 5]]="","",'ANEXO INGRESOS'!M51*'ANEXO INGRESOS'!$F51) ->  | J53: =IF(Otros_ingresos_imprimir[[#This Row],[Mes 6]]="","",'ANEXO INGRESOS'!N51*'ANEXO INGRESOS'!$F51) ->  | K53: =IF(Otros_ingresos_imprimir[[#This Row],[Mes 7]]="","",'ANEXO INGRESOS'!O51*'ANEXO INGRESOS'!$F51) ->  | L53: =IF(Otros_ingresos_imprimir[[#This Row],[Mes 8]]="","",'ANEXO INGRESOS'!P51*'ANEXO INGRESOS'!$F51) ->  | M53: =IF(Otros_ingresos_imprimir[[#This Row],[Mes 9]]="","",'ANEXO INGRESOS'!Q51*'ANEXO INGRESOS'!$F51) ->  | N53: =IF(Otros_ingresos_imprimir[[#This Row],[Mes 10]]="","",'ANEXO INGRESOS'!R51*'ANEXO INGRESOS'!$F51) ->  | O53: =IF(Otros_ingresos_imprimir[[#This Row],[Mes 11]]="","",'ANEXO INGRESOS'!S51*'ANEXO INGRESOS'!$F51) ->  | P53: =SUM(D53:O53) -> 0
B54: =IF('ANEXO INGRESOS'!C52<>"",'ANEXO INGRESOS'!C52,"") ->  | C54: =IF('ANEXO INGRESOS'!D52<>"",'ANEXO INGRESOS'!D52,"") ->  | D54: =IF(Otros_ingresos_imprimir[[#This Row],[Columna2]]="","",'ANEXO INGRESOS'!H52*'ANEXO INGRESOS'!$F52) ->  | E54: =IF(Otros_ingresos_imprimir[[#This Row],[Mes 1]]="","",'ANEXO INGRESOS'!I52*'ANEXO INGRESOS'!$F52) ->  | F54: =IF(Otros_ingresos_imprimir[[#This Row],[Mes 2]]="","",'ANEXO INGRESOS'!J52*'ANEXO INGRESOS'!$F52) ->  | G54: =IF(Otros_ingresos_imprimir[[#This Row],[Mes 3]]="","",'ANEXO INGRESOS'!K52*'ANEXO INGRESOS'!$F52) ->  | H54: =IF(Otros_ingresos_imprimir[[#This Row],[Mes 4]]="","",'ANEXO INGRESOS'!L52*'ANEXO INGRESOS'!$F52) ->  | I54: =IF(Otros_ingresos_imprimir[[#This Row],[Mes 5]]="","",'ANEXO INGRESOS'!M52*'ANEXO INGRESOS'!$F52) ->  | J54: =IF(Otros_ingresos_imprimir[[#This Row],[Mes 6]]="","",'ANEXO INGRESOS'!N52*'ANEXO INGRESOS'!$F52) ->  | K54: =IF(Otros_ingresos_imprimir[[#This Row],[Mes 7]]="","",'ANEXO INGRESOS'!O52*'ANEXO INGRESOS'!$F52) ->  | L54: =IF(Otros_ingresos_imprimir[[#This Row],[Mes 8]]="","",'ANEXO INGRESOS'!P52*'ANEXO INGRESOS'!$F52) ->  | M54: =IF(Otros_ingresos_imprimir[[#This Row],[Mes 9]]="","",'ANEXO INGRESOS'!Q52*'ANEXO INGRESOS'!$F52) ->  | N54: =IF(Otros_ingresos_imprimir[[#This Row],[Mes 10]]="","",'ANEXO INGRESOS'!R52*'ANEXO INGRESOS'!$F52) ->  | O54: =IF(Otros_ingresos_imprimir[[#This Row],[Mes 11]]="","",'ANEXO INGRESOS'!S52*'ANEXO INGRESOS'!$F52) ->  | P54: 0
B55: =IF('ANEXO INGRESOS'!C53<>"",'ANEXO INGRESOS'!C53,"") ->  | C55: =IF('ANEXO INGRESOS'!D53<>"",'ANEXO INGRESOS'!D53,"") ->  | D55: =IF(Otros_ingresos_imprimir[[#This Row],[Columna2]]="","",'ANEXO INGRESOS'!H53*'ANEXO INGRESOS'!$F53) ->  | E55: =IF(Otros_ingresos_imprimir[[#This Row],[Mes 1]]="","",'ANEXO INGRESOS'!I53*'ANEXO INGRESOS'!$F53) ->  | F55: =IF(Otros_ingresos_imprimir[[#This Row],[Mes 2]]="","",'ANEXO INGRESOS'!J53*'ANEXO INGRESOS'!$F53) ->  | G55: =IF(Otros_ingresos_imprimir[[#This Row],[Mes 3]]="","",'ANEXO INGRESOS'!K53*'ANEXO INGRESOS'!$F53) ->  | H55: =IF(Otros_ingresos_imprimir[[#This Row],[Mes 4]]="","",'ANEXO INGRESOS'!L53*'ANEXO INGRESOS'!$F53) ->  | I55: =IF(Otros_ingresos_imprimir[[#This Row],[Mes 5]]="","",'ANEXO INGRESOS'!M53*'ANEXO INGRESOS'!$F53) ->  | J55: =IF(Otros_ingresos_imprimir[[#This Row],[Mes 6]]="","",'ANEXO INGRESOS'!N53*'ANEXO INGRESOS'!$F53) ->  | K55: =IF(Otros_ingresos_imprimir[[#This Row],[Mes 7]]="","",'ANEXO INGRESOS'!O53*'ANEXO INGRESOS'!$F53) ->  | L55: =IF(Otros_ingresos_imprimir[[#This Row],[Mes 8]]="","",'ANEXO INGRESOS'!P53*'ANEXO INGRESOS'!$F53) ->  | M55: =IF(Otros_ingresos_imprimir[[#This Row],[Mes 9]]="","",'ANEXO INGRESOS'!Q53*'ANEXO INGRESOS'!$F53) ->  | N55: =IF(Otros_ingresos_imprimir[[#This Row],[Mes 10]]="","",'ANEXO INGRESOS'!R53*'ANEXO INGRESOS'!$F53) ->  | O55: =IF(Otros_ingresos_imprimir[[#This Row],[Mes 11]]="","",'ANEXO INGRESOS'!S53*'ANEXO INGRESOS'!$F53) ->  | P55: 0
B56: =IF('ANEXO INGRESOS'!C54<>"",'ANEXO INGRESOS'!C54,"") ->  | C56: =IF('ANEXO INGRESOS'!D54<>"",'ANEXO INGRESOS'!D54,"") ->  | D56: =IF(Otros_ingresos_imprimir[[#This Row],[Columna2]]="","",'ANEXO INGRESOS'!H54*'ANEXO INGRESOS'!$F54) ->  | E56: =IF(Otros_ingresos_imprimir[[#This Row],[Mes 1]]="","",'ANEXO INGRESOS'!I54*'ANEXO INGRESOS'!$F54) ->  | F56: =IF(Otros_ingresos_imprimir[[#This Row],[Mes 2]]="","",'ANEXO INGRESOS'!J54*'ANEXO INGRESOS'!$F54) ->  | G56: =IF(Otros_ingresos_imprimir[[#This Row],[Mes 3]]="","",'ANEXO INGRESOS'!K54*'ANEXO INGRESOS'!$F54) ->  | H56: =IF(Otros_ingresos_imprimir[[#This Row],[Mes 4]]="","",'ANEXO INGRESOS'!L54*'ANEXO INGRESOS'!$F54) ->  | I56: =IF(Otros_ingresos_imprimir[[#This Row],[Mes 5]]="","",'ANEXO INGRESOS'!M54*'ANEXO INGRESOS'!$F54) ->  | J56: =IF(Otros_ingresos_imprimir[[#This Row],[Mes 6]]="","",'ANEXO INGRESOS'!N54*'ANEXO INGRESOS'!$F54) ->  | K56: =IF(Otros_ingresos_imprimir[[#This Row],[Mes 7]]="","",'ANEXO INGRESOS'!O54*'ANEXO INGRESOS'!$F54) ->  | L56: =IF(Otros_ingresos_imprimir[[#This Row],[Mes 8]]="","",'ANEXO INGRESOS'!P54*'ANEXO INGRESOS'!$F54) ->  | M56: =IF(Otros_ingresos_imprimir[[#This Row],[Mes 9]]="","",'ANEXO INGRESOS'!Q54*'ANEXO INGRESOS'!$F54) ->  | N56: =IF(Otros_ingresos_imprimir[[#This Row],[Mes 10]]="","",'ANEXO INGRESOS'!R54*'ANEXO INGRESOS'!$F54) ->  | O56: =IF(Otros_ingresos_imprimir[[#This Row],[Mes 11]]="","",'ANEXO INGRESOS'!S54*'ANEXO INGRESOS'!$F54) ->  | P56: 0
B57: =IF('ANEXO INGRESOS'!C55<>"",'ANEXO INGRESOS'!C55,"") ->  | C57: =IF('ANEXO INGRESOS'!D55<>"",'ANEXO INGRESOS'!D55,"") ->  | D57: =IF(Otros_ingresos_imprimir[[#This Row],[Columna2]]="","",'ANEXO INGRESOS'!H55*'ANEXO INGRESOS'!$F55) ->  | E57: =IF(Otros_ingresos_imprimir[[#This Row],[Mes 1]]="","",'ANEXO INGRESOS'!I55*'ANEXO INGRESOS'!$F55) ->  | F57: =IF(Otros_ingresos_imprimir[[#This Row],[Mes 2]]="","",'ANEXO INGRESOS'!J55*'ANEXO INGRESOS'!$F55) ->  | G57: =IF(Otros_ingresos_imprimir[[#This Row],[Mes 3]]="","",'ANEXO INGRESOS'!K55*'ANEXO INGRESOS'!$F55) ->  | H57: =IF(Otros_ingresos_imprimir[[#This Row],[Mes 4]]="","",'ANEXO INGRESOS'!L55*'ANEXO INGRESOS'!$F55) ->  | I57: =IF(Otros_ingresos_imprimir[[#This Row],[Mes 5]]="","",'ANEXO INGRESOS'!M55*'ANEXO INGRESOS'!$F55) ->  | J57: =IF(Otros_ingresos_imprimir[[#This Row],[Mes 6]]="","",'ANEXO INGRESOS'!N55*'ANEXO INGRESOS'!$F55) ->  | K57: =IF(Otros_ingresos_imprimir[[#This Row],[Mes 7]]="","",'ANEXO INGRESOS'!O55*'ANEXO INGRESOS'!$F55) ->  | L57: =IF(Otros_ingresos_imprimir[[#This Row],[Mes 8]]="","",'ANEXO INGRESOS'!P55*'ANEXO INGRESOS'!$F55) ->  | M57: =IF(Otros_ingresos_imprimir[[#This Row],[Mes 9]]="","",'ANEXO INGRESOS'!Q55*'ANEXO INGRESOS'!$F55) ->  | N57: =IF(Otros_ingresos_imprimir[[#This Row],[Mes 10]]="","",'ANEXO INGRESOS'!R55*'ANEXO INGRESOS'!$F55) ->  | O57: =IF(Otros_ingresos_imprimir[[#This Row],[Mes 11]]="","",'ANEXO INGRESOS'!S55*'ANEXO INGRESOS'!$F55) ->  | P57: =SUM(D57:O57) -> 0
B58: =IF('ANEXO INGRESOS'!C56<>"",'ANEXO INGRESOS'!C56,"") ->  | C58: =IF('ANEXO INGRESOS'!D56<>"",'ANEXO INGRESOS'!D56,"") ->  | D58: =IF(Otros_ingresos_imprimir[[#This Row],[Columna2]]="","",'ANEXO INGRESOS'!H56*'ANEXO INGRESOS'!$F56) ->  | E58: =IF(Otros_ingresos_imprimir[[#This Row],[Mes 1]]="","",'ANEXO INGRESOS'!I56*'ANEXO INGRESOS'!$F56) ->  | F58: =IF(Otros_ingresos_imprimir[[#This Row],[Mes 2]]="","",'ANEXO INGRESOS'!J56*'ANEXO INGRESOS'!$F56) ->  | G58: =IF(Otros_ingresos_imprimir[[#This Row],[Mes 3]]="","",'ANEXO INGRESOS'!K56*'ANEXO INGRESOS'!$F56) ->  | H58: =IF(Otros_ingresos_imprimir[[#This Row],[Mes 4]]="","",'ANEXO INGRESOS'!L56*'ANEXO INGRESOS'!$F56) ->  | I58: =IF(Otros_ingresos_imprimir[[#This Row],[Mes 5]]="","",'ANEXO INGRESOS'!M56*'ANEXO INGRESOS'!$F56) ->  | J58: =IF(Otros_ingresos_imprimir[[#This Row],[Mes 6]]="","",'ANEXO INGRESOS'!N56*'ANEXO INGRESOS'!$F56) ->  | K58: =IF(Otros_ingresos_imprimir[[#This Row],[Mes 7]]="","",'ANEXO INGRESOS'!O56*'ANEXO INGRESOS'!$F56) ->  | L58: =IF(Otros_ingresos_imprimir[[#This Row],[Mes 8]]="","",'ANEXO INGRESOS'!P56*'ANEXO INGRESOS'!$F56) ->  | M58: =IF(Otros_ingresos_imprimir[[#This Row],[Mes 9]]="","",'ANEXO INGRESOS'!Q56*'ANEXO INGRESOS'!$F56) ->  | N58: =IF(Otros_ingresos_imprimir[[#This Row],[Mes 10]]="","",'ANEXO INGRESOS'!R56*'ANEXO INGRESOS'!$F56) ->  | O58: =IF(Otros_ingresos_imprimir[[#This Row],[Mes 11]]="","",'ANEXO INGRESOS'!S56*'ANEXO INGRESOS'!$F56) ->  | P58: =SUM(D58:O58) -> 0
B59: =IF('ANEXO INGRESOS'!C57<>"",'ANEXO INGRESOS'!C57,"") ->  | C59: =IF('ANEXO INGRESOS'!D57<>"",'ANEXO INGRESOS'!D57,"") ->  | D59: =IF(Otros_ingresos_imprimir[[#This Row],[Columna2]]="","",'ANEXO INGRESOS'!H57*'ANEXO INGRESOS'!$F57) ->  | E59: =IF(Otros_ingresos_imprimir[[#This Row],[Mes 1]]="","",'ANEXO INGRESOS'!I57*'ANEXO INGRESOS'!$F57) ->  | F59: =IF(Otros_ingresos_imprimir[[#This Row],[Mes 2]]="","",'ANEXO INGRESOS'!J57*'ANEXO INGRESOS'!$F57) ->  | G59: =IF(Otros_ingresos_imprimir[[#This Row],[Mes 3]]="","",'ANEXO INGRESOS'!K57*'ANEXO INGRESOS'!$F57) ->  | H59: =IF(Otros_ingresos_imprimir[[#This Row],[Mes 4]]="","",'ANEXO INGRESOS'!L57*'ANEXO INGRESOS'!$F57) ->  | I59: =IF(Otros_ingresos_imprimir[[#This Row],[Mes 5]]="","",'ANEXO INGRESOS'!M57*'ANEXO INGRESOS'!$F57) ->  | J59: =IF(Otros_ingresos_imprimir[[#This Row],[Mes 6]]="","",'ANEXO INGRESOS'!N57*'ANEXO INGRESOS'!$F57) ->  | K59: =IF(Otros_ingresos_imprimir[[#This Row],[Mes 7]]="","",'ANEXO INGRESOS'!O57*'ANEXO INGRESOS'!$F57) ->  | L59: =IF(Otros_ingresos_imprimir[[#This Row],[Mes 8]]="","",'ANEXO INGRESOS'!P57*'ANEXO INGRESOS'!$F57) ->  | M59: =IF(Otros_ingresos_imprimir[[#This Row],[Mes 9]]="","",'ANEXO INGRESOS'!Q57*'ANEXO INGRESOS'!$F57) ->  | N59: =IF(Otros_ingresos_imprimir[[#This Row],[Mes 10]]="","",'ANEXO INGRESOS'!R57*'ANEXO INGRESOS'!$F57) ->  | O59: =IF(Otros_ingresos_imprimir[[#This Row],[Mes 11]]="","",'ANEXO INGRESOS'!S57*'ANEXO INGRESOS'!$F57) ->  | P59: 0
B60: =IF('ANEXO INGRESOS'!C58<>"",'ANEXO INGRESOS'!C58,"") ->  | C60: =IF('ANEXO INGRESOS'!D58<>"",'ANEXO INGRESOS'!D58,"") ->  | D60: =IF(Otros_ingresos_imprimir[[#This Row],[Columna2]]="","",'ANEXO INGRESOS'!H58*'ANEXO INGRESOS'!$F58) ->  | E60: =IF(Otros_ingresos_imprimir[[#This Row],[Mes 1]]="","",'ANEXO INGRESOS'!I58*'ANEXO INGRESOS'!$F58) ->  | F60: =IF(Otros_ingresos_imprimir[[#This Row],[Mes 2]]="","",'ANEXO INGRESOS'!J58*'ANEXO INGRESOS'!$F58) ->  | G60: =IF(Otros_ingresos_imprimir[[#This Row],[Mes 3]]="","",'ANEXO INGRESOS'!K58*'ANEXO INGRESOS'!$F58) ->  | H60: =IF(Otros_ingresos_imprimir[[#This Row],[Mes 4]]="","",'ANEXO INGRESOS'!L58*'ANEXO INGRESOS'!$F58) ->  | I60: =IF(Otros_ingresos_imprimir[[#This Row],[Mes 5]]="","",'ANEXO INGRESOS'!M58*'ANEXO INGRESOS'!$F58) ->  | J60: =IF(Otros_ingresos_imprimir[[#This Row],[Mes 6]]="","",'ANEXO INGRESOS'!N58*'ANEXO INGRESOS'!$F58) ->  | K60: =IF(Otros_ingresos_imprimir[[#This Row],[Mes 7]]="","",'ANEXO INGRESOS'!O58*'ANEXO INGRESOS'!$F58) ->  | L60: =IF(Otros_ingresos_imprimir[[#This Row],[Mes 8]]="","",'ANEXO INGRESOS'!P58*'ANEXO INGRESOS'!$F58) ->  | M60: =IF(Otros_ingresos_imprimir[[#This Row],[Mes 9]]="","",'ANEXO INGRESOS'!Q58*'ANEXO INGRESOS'!$F58) ->  | N60: =IF(Otros_ingresos_imprimir[[#This Row],[Mes 10]]="","",'ANEXO INGRESOS'!R58*'ANEXO INGRESOS'!$F58) ->  | O60: =IF(Otros_ingresos_imprimir[[#This Row],[Mes 11]]="","",'ANEXO INGRESOS'!S58*'ANEXO INGRESOS'!$F58) ->  | P60: 0
B61: =IF('ANEXO INGRESOS'!C59<>"",'ANEXO INGRESOS'!C59,"") ->  | C61: =IF('ANEXO INGRESOS'!D59<>"",'ANEXO INGRESOS'!D59,"") ->  | D61: =IF(Otros_ingresos_imprimir[[#This Row],[Columna2]]="","",'ANEXO INGRESOS'!H59*'ANEXO INGRESOS'!$F59) ->  | E61: =IF(Otros_ingresos_imprimir[[#This Row],[Mes 1]]="","",'ANEXO INGRESOS'!I59*'ANEXO INGRESOS'!$F59) ->  | F61: =IF(Otros_ingresos_imprimir[[#This Row],[Mes 2]]="","",'ANEXO INGRESOS'!J59*'ANEXO INGRESOS'!$F59) ->  | G61: =IF(Otros_ingresos_imprimir[[#This Row],[Mes 3]]="","",'ANEXO INGRESOS'!K59*'ANEXO INGRESOS'!$F59) ->  | H61: =IF(Otros_ingresos_imprimir[[#This Row],[Mes 4]]="","",'ANEXO INGRESOS'!L59*'ANEXO INGRESOS'!$F59) ->  | I61: =IF(Otros_ingresos_imprimir[[#This Row],[Mes 5]]="","",'ANEXO INGRESOS'!M59*'ANEXO INGRESOS'!$F59) ->  | J61: =IF(Otros_ingresos_imprimir[[#This Row],[Mes 6]]="","",'ANEXO INGRESOS'!N59*'ANEXO INGRESOS'!$F59) ->  | K61: =IF(Otros_ingresos_imprimir[[#This Row],[Mes 7]]="","",'ANEXO INGRESOS'!O59*'ANEXO INGRESOS'!$F59) ->  | L61: =IF(Otros_ingresos_imprimir[[#This Row],[Mes 8]]="","",'ANEXO INGRESOS'!P59*'ANEXO INGRESOS'!$F59) ->  | M61: =IF(Otros_ingresos_imprimir[[#This Row],[Mes 9]]="","",'ANEXO INGRESOS'!Q59*'ANEXO INGRESOS'!$F59) ->  | N61: =IF(Otros_ingresos_imprimir[[#This Row],[Mes 10]]="","",'ANEXO INGRESOS'!R59*'ANEXO INGRESOS'!$F59) ->  | O61: =IF(Otros_ingresos_imprimir[[#This Row],[Mes 11]]="","",'ANEXO INGRESOS'!S59*'ANEXO INGRESOS'!$F59) ->  | P61: =SUM(D61:O61) -> 0
B62: =IF('ANEXO INGRESOS'!C60<>"",'ANEXO INGRESOS'!C60,"") ->  | C62: =IF('ANEXO INGRESOS'!D60<>"",'ANEXO INGRESOS'!D60,"") ->  | D62: =IF(Otros_ingresos_imprimir[[#This Row],[Columna2]]="","",'ANEXO INGRESOS'!H60*'ANEXO INGRESOS'!$F60) ->  | E62: =IF(Otros_ingresos_imprimir[[#This Row],[Mes 1]]="","",'ANEXO INGRESOS'!I60*'ANEXO INGRESOS'!$F60) ->  | F62: =IF(Otros_ingresos_imprimir[[#This Row],[Mes 2]]="","",'ANEXO INGRESOS'!J60*'ANEXO INGRESOS'!$F60) ->  | G62: =IF(Otros_ingresos_imprimir[[#This Row],[Mes 3]]="","",'ANEXO INGRESOS'!K60*'ANEXO INGRESOS'!$F60) ->  | H62: =IF(Otros_ingresos_imprimir[[#This Row],[Mes 4]]="","",'ANEXO INGRESOS'!L60*'ANEXO INGRESOS'!$F60) ->  | I62: =IF(Otros_ingresos_imprimir[[#This Row],[Mes 5]]="","",'ANEXO INGRESOS'!M60*'ANEXO INGRESOS'!$F60) ->  | J62: =IF(Otros_ingresos_imprimir[[#This Row],[Mes 6]]="","",'ANEXO INGRESOS'!N60*'ANEXO INGRESOS'!$F60) ->  | K62: =IF(Otros_ingresos_imprimir[[#This Row],[Mes 7]]="","",'ANEXO INGRESOS'!O60*'ANEXO INGRESOS'!$F60) ->  | L62: =IF(Otros_ingresos_imprimir[[#This Row],[Mes 8]]="","",'ANEXO INGRESOS'!P60*'ANEXO INGRESOS'!$F60) ->  | M62: =IF(Otros_ingresos_imprimir[[#This Row],[Mes 9]]="","",'ANEXO INGRESOS'!Q60*'ANEXO INGRESOS'!$F60) ->  | N62: =IF(Otros_ingresos_imprimir[[#This Row],[Mes 10]]="","",'ANEXO INGRESOS'!R60*'ANEXO INGRESOS'!$F60) ->  | O62: =IF(Otros_ingresos_imprimir[[#This Row],[Mes 11]]="","",'ANEXO INGRESOS'!S60*'ANEXO INGRESOS'!$F60) ->  | P62: =SUM(D62:O62) -> 0
B63: =IF('ANEXO INGRESOS'!C61<>"",'ANEXO INGRESOS'!C61,"") ->  | C63: =IF('ANEXO INGRESOS'!D61<>"",'ANEXO INGRESOS'!D61,"") ->  | D63: =IF(Otros_ingresos_imprimir[[#This Row],[Columna2]]="","",'ANEXO INGRESOS'!H61*'ANEXO INGRESOS'!$F61) ->  | E63: =IF(Otros_ingresos_imprimir[[#This Row],[Mes 1]]="","",'ANEXO INGRESOS'!I61*'ANEXO INGRESOS'!$F61) ->  | F63: =IF(Otros_ingresos_imprimir[[#This Row],[Mes 2]]="","",'ANEXO INGRESOS'!J61*'ANEXO INGRESOS'!$F61) ->  | G63: =IF(Otros_ingresos_imprimir[[#This Row],[Mes 3]]="","",'ANEXO INGRESOS'!K61*'ANEXO INGRESOS'!$F61) ->  | H63: =IF(Otros_ingresos_imprimir[[#This Row],[Mes 4]]="","",'ANEXO INGRESOS'!L61*'ANEXO INGRESOS'!$F61) ->  | I63: =IF(Otros_ingresos_imprimir[[#This Row],[Mes 5]]="","",'ANEXO INGRESOS'!M61*'ANEXO INGRESOS'!$F61) ->  | J63: =IF(Otros_ingresos_imprimir[[#This Row],[Mes 6]]="","",'ANEXO INGRESOS'!N61*'ANEXO INGRESOS'!$F61) ->  | K63: =IF(Otros_ingresos_imprimir[[#This Row],[Mes 7]]="","",'ANEXO INGRESOS'!O61*'ANEXO INGRESOS'!$F61) ->  | L63: =IF(Otros_ingresos_imprimir[[#This Row],[Mes 8]]="","",'ANEXO INGRESOS'!P61*'ANEXO INGRESOS'!$F61) ->  | M63: =IF(Otros_ingresos_imprimir[[#This Row],[Mes 9]]="","",'ANEXO INGRESOS'!Q61*'ANEXO INGRESOS'!$F61) ->  | N63: =IF(Otros_ingresos_imprimir[[#This Row],[Mes 10]]="","",'ANEXO INGRESOS'!R61*'ANEXO INGRESOS'!$F61) ->  | O63: =IF(Otros_ingresos_imprimir[[#This Row],[Mes 11]]="","",'ANEXO INGRESOS'!S61*'ANEXO INGRESOS'!$F61) ->  | P63: =SUM(D63:O63) -> 0
C64: TOTAL OTROS INGRESOS | D64: =+SUM(D53:D53) -> 0 | E64: 0 | F64: 0 | G64: 0 | H64: 0 | I64: 0 | J64: 0 | K64: 0 | L64: 0 | M64: 0 | N64: 0 | O64: 0 | P64: =+SUM(P53:P62) -> 0
E68: De año 1 a año 2 | F68: De año 2 a año 3 | G68: De año 3 a año 4
C69: INCREMENTO/REDUCCIÓN INGRESOS INTERANUAL EN % | E69: =+'ANEXO INGRESOS'!C9 -> 0 | F69: =+'ANEXO INGRESOS'!D9 -> 0 | G69: =+'ANEXO INGRESOS'!E9 -> 0
D71: TOTAL AÑO 1 | E71: TOTAL AÑO 2 | F71: TOTAL AÑO 3 | G71: TOTAL AÑO 4
C72: TOTAL VENTAS POR INGRESOS | D72: =P13 -> 0 | E72: =D72+$E$69*D72 -> 0 | F72: =D72+F69*D72 -> 0 | G72: =D72+G69*D72 -> 0
C73: TOTAL OTROS INGRESOS | D73: =P14 -> 0 | E73: =D73*E69+D73 -> 0 | F73: =D73*F69+D73 -> 0 | G73: =D73*G69+D73 -> 0
C74: TOTAL INGRESOS | D74: =P17 -> 0 | E74: =D74+E69*D74 -> 0 | F74: =D74+F69*D74 -> 0 | G74: =D74+G69*D74 -> 0

Sheet 5.GASTOS FIJOS
B2: Volver al Indice
B3: Consultar anexo gastos fijos
B7: GASTOS FIJOS
C10: ='7.CUENTA DE RESULTADOS '!C20 -> 1900enero | D10: ='7.CUENTA DE RESULTADOS '!D20 -> 1900enero | E10: ='7.CUENTA DE RESULTADOS '!E20 -> 1900febrero | F10: ='7.CUENTA DE RESULTADOS '!F20 -> 1900marzo | G10: ='7.CUENTA DE RESULTADOS '!G20 -> 1900abril | H10: ='7.CUENTA DE RESULTADOS '!H20 -> 1900mayo | I10: ='7.CUENTA DE RESULTADOS '!I20 -> 1900junio | J10: ='7.CUENTA DE RESULTADOS '!J20 -> 1900julio | K10: ='7.CUENTA DE RESULTADOS '!K20 -> 1900agosto | L10: ='7.CUENTA DE RESULTADOS '!L20 -> 1900septiembre | M10: ='7.CUENTA DE RESULTADOS '!M20 -> 1900octubre | N10: ='7.CUENTA DE RESULTADOS '!N20 -> 1900noviembre | O10: TOTAL
B11: Importe gastos fijos | C11: =SUM(Prevision_mensual_gastos_fijos[[Mes 1 ]]) -> 0 | D11: =SUM(Prevision_mensual_gastos_fijos[Mes 2]) -> 0 | E11: =SUM(Prevision_mensual_gastos_fijos[[Mes 3 ]]) -> 0 | F11: 0.25 | G11: =SUM(Prevision_mensual_gastos_fijos[[Mes 5 ]]) -> 0 | H11: =SUM(Prevision_mensual_gastos_fijos[[Mes 6 ]]) -> 0 | I11: =SUM(Prevision_mensual_gastos_fijos[[Mes 7 ]]) -> 0 | J11: =SUM(Prevision_mensual_gastos_fijos[[Mes 8 ]]) -> 0 | K11: =SUM(Prevision_mensual_gastos_fijos[[Mes 9 ]]) -> 0 | L11: =SUM(Prevision_mensual_gastos_fijos[[Mes 10 ]]) -> 0 | M11: =SUM(Prevision_mensual_gastos_fijos[[Mes 11 ]]) -> 0 | N11: =SUM(Prevision_mensual_gastos_fijos[[Mes 12 ]]) -> 0 | O11: =SUM(C11:N11) -> 0.25
B12: Iva Gastos Fijos | C12: =+'ANEXO GASTOS FIJOS'!D43 -> 0 | D12: =+'ANEXO GASTOS FIJOS'!E43 -> 0 | E12: =+'ANEXO GASTOS FIJOS'!F43 -> 0 | F12: =+'ANEXO GASTOS FIJOS'!G43 -> 0 | G12: =+'ANEXO GASTOS FIJOS'!H43 -> 0 | H12: =+'ANEXO GASTOS FIJOS'!I43 -> 0 | I12: =+'ANEXO GASTOS FIJOS'!J43 -> 0 | J12: =+'ANEXO GASTOS FIJOS'!K43 -> 0 | K12: =+'ANEXO GASTOS FIJOS'!L43 -> 0 | L12: =+'ANEXO GASTOS FIJOS'!M43 -> 0 | M12: =+'ANEXO GASTOS FIJOS'!N43 -> 0 | N12: =+'ANEXO GASTOS FIJOS'!O43 -> 0 | O12: =SUM(C12:N12) -> 0
B13: TOTAL GASTOS | C13: =+C11+C12 -> 0 | D13: =+D11+D12 -> 0 | E13: 0 | F13: 0.25 | G13: 0 | H13: 0 | I13: 0 | J13: 0 | K13: 0 | L13: 0 | M13: 0 | N13: 0 | O13: =+O11+O12 -> 0.25
F16: De año 1 a año 2 | G16: De año 2 a año 3 | H16: De año 3 a año 4
E17: INCREMENTO/REDUCCIÓN GASTOS FIJOS INTERANUAL EN % | F17: =+'ANEXO GASTOS FIJOS'!E9 -> 0 | G17: =+'ANEXO GASTOS FIJOS'!F9 -> 0 | H17: =+'ANEXO GASTOS FIJOS'!G9 -> 0

Sheet 6.GASTOS VARIABLES
B2: Volver al Indice
B3: Consultar anexo gastos variables
B8: 0.0233 | C8: GASTOS VARIABLES
D10: ='7.CUENTA DE RESULTADOS '!D20 -> 1900enero | E10: ='7.CUENTA DE RESULTADOS '!E20 -> 1900febrero | F10: ='7.CUENTA DE RESULTADOS '!F20 -> 1900marzo | G10: ='7.CUENTA DE RESULTADOS '!G20 -> 1900abril | H10: ='7.CUENTA DE RESULTADOS '!H20 -> 1900mayo | I10: ='7.CUENTA DE RESULTADOS '!I20 -> 1900junio | J10: ='7.CUENTA DE RESULTADOS '!J20 -> 1900julio | K10: ='7.CUENTA DE RESULTADOS '!K20 -> 1900agosto | L10: ='7.CUENTA DE RESULTADOS '!L20 -> 1900septiembre | M10: ='7.CUENTA DE RESULTADOS '!M20 -> 1900octubre | N10: ='7.CUENTA DE RESULTADOS '!N20 -> 1900noviembre | O10: ='7.CUENTA DE RESULTADOS '!O20 -> AÑO 1 | P10: TOTAL
C11: Importe gastos variables (Sin IVA) | D11: =+D52+D146 -> 0 | E11: =+E52+E146 -> 0 | F11: 0 | G11: 0 | H11: 0 | I11: 0 | J11: 0 | K11: 0 | L11: 0 | M11: 0 | N11: 0 | O11: 0 | P11: =SUM(D11:O11) -> 0
C12: Iva gastos variables por producto o servicio | D12: =+SUMPRODUCT($B$25:$B$51,D25:D51) -> 0 | E12: =+SUMPRODUCT($B$25:$B$51,E25:E51) -> 0 | F12: 0 | G12: 0 | H12: 0 | I12: 0 | J12: 0 | K12: 0 | L12: 0 | M12: 0 | N12: 0 | O12: 0 | P12: =SUM(D12:O12) -> 0
C13: Iva otros gastos variables | D13: =+SUMPRODUCT($B$135:$B$145,D135:D145) -> 0 | E13: =+SUMPRODUCT($B$135:$B$145,E135:E145) -> 0 | F13: 0 | G13: 0 | H13: 0 | I13: 0 | J13: 0 | K13: 0 | L13: 0 | M13: 0 | N13: 0 | O13: 0 | P13: =SUM(D13:O13) -> 0
C14: TOTAL GASTOS | D14: =+D11+D12+D13 -> 0 | E14: =+E11+E12+E13 -> 0 | F14: 0 | G14: 0 | H14: 0 | I14: 0 | J14: 0 | K14: 0 | L14: 0 | M14: 0 | N14: 0 | O14: 0 | P14: =+P11+P12 -> 0
B17: 45540
E18: De año 1 a año 2 | F18: De año 2 a año 3 | G18: De año 3 a año 4
C19: INCREMENTO/REDUCCIÓN GASTOS VARIABLE INTERANUAL EN % | E19: =+'ANEXO GASTOS VARIABLES'!B11 -> 0 | F19: =+'ANEXO GASTOS VARIABLES'!C11 -> 0 | G19: =+'ANEXO GASTOS VARIABLES'!D11 -> 0
B22: =MEDIA(B25:B51) -> 
C23: GASTOS VARIABLES POR PRODUCTO O SERVICIO (en euros) | D23: ='7.CUENTA DE RESULTADOS '!C20 -> 1900enero | E23: ='7.CUENTA DE RESULTADOS '!D20 -> 1900enero | F23: ='7.CUENTA DE RESULTADOS '!E20 -> 1900febrero | G23: ='7.CUENTA DE RESULTADOS '!F20 -> 1900marzo | H23: ='7.CUENTA DE RESULTADOS '!G20 -> 1900abril | I23: ='7.CUENTA DE RESULTADOS '!H20 -> 1900mayo | J23: ='7.CUENTA DE RESULTADOS '!I20 -> 1900junio | K23: ='7.CUENTA DE RESULTADOS '!J20 -> 1900julio | L23: ='7.CUENTA DE RESULTADOS '!K20 -> 1900agosto | M23: ='7.CUENTA DE RESULTADOS '!L20 -> 1900septiembre | N23: ='7.CUENTA DE RESULTADOS '!M20 -> 1900octubre | O23: ='7.CUENTA DE RESULTADOS '!N20 -> 1900noviembre
B24: IVA | C24: MES/PRODUCTO | D24: Mes 1 | E24: Mes 2 | F24: Mes 3 | G24: Mes 4 | H24: Mes 5 | I24: Mes 6 | J24: Mes 7 | K24: Mes 8 | L24: Mes 9 | M24: Mes 10 | N24: Mes 11 | O24: Mes 12 | P24: TOTAL
B25: =IF(Gastos_variables_producto[[#This Row],[MES/PRODUCTO]]="","",'ANEXO INGRESOS'!C14) ->  | C25: =IF('ANEXO INGRESOS'!D14="","",'ANEXO INGRESOS'!D14) ->  | D25: =IF('ANEXO INGRESOS'!$D14="","",'ANEXO INGRESOS'!H14*'ANEXO GASTOS VARIABLES'!$K$17) ->  | E25: =IF('ANEXO INGRESOS'!$D14="","",'ANEXO INGRESOS'!I14*'ANEXO GASTOS VARIABLES'!$K$17) ->  | F25: =IF('ANEXO INGRESOS'!$D14="","",'ANEXO INGRESOS'!J14*'ANEXO GASTOS VARIABLES'!$K$17) ->  | G25: =IF('ANEXO INGRESOS'!$D14="","",'ANEXO INGRESOS'!K14*'ANEXO GASTOS VARIABLES'!$K$17) ->  | H25: =IF('ANEXO INGRESOS'!$D14="","",'ANEXO INGRESOS'!L14*'ANEXO GASTOS VARIABLES'!$K$17) ->  | I25: =IF('ANEXO INGRESOS'!$D14="","",'ANEXO INGRESOS'!M14*'ANEXO GASTOS VARIABLES'!$K$17) ->  | J25: =IF('ANEXO INGRESOS'!$D14="","",'ANEXO INGRESOS'!N14*'ANEXO GASTOS VARIABLES'!$K$17) ->  | K25: =IF('ANEXO INGRESOS'!$D14="","",'ANEXO INGRESOS'!O14*'ANEXO GASTOS VARIABLES'!$K$17) ->  | L25: =IF('ANEXO INGRESOS'!$D14="","",'ANEXO INGRESOS'!P14*'ANEXO GASTOS VARIABLES'!$K$17) ->  | M25: =IF('ANEXO INGRESOS'!$D14="","",'ANEXO INGRESOS'!Q14*'ANEXO GASTOS VARIABLES'!$K$17) ->  | N25: =IF('ANEXO INGRESOS'!$D14="","",'ANEXO INGRESOS'!R14*'ANEXO GASTOS VARIABLES'!$K$17) ->  | O25: =IF('ANEXO INGRESOS'!$D14="","",'ANEXO INGRESOS'!S14*'ANEXO GASTOS VARIABLES'!$K$17) ->  | P25: =IF(Gastos_variables_producto[[#This Row],[MES/PRODUCTO]]="","",SUM('6.GASTOS VARIABLES'!$C25:$O25)) -> 
B26: =IF(Gastos_variables_producto[[#This Row],[MES/PRODUCTO]]="","",'ANEXO INGRESOS'!C15) ->  | C26: =IF('ANEXO INGRESOS'!D15="","",'ANEXO INGRESOS'!D15) ->  | D26: =IF('ANEXO INGRESOS'!$D15="","",'ANEXO INGRESOS'!H15*'ANEXO GASTOS VARIABLES'!$K$17) ->  | E26: =IF('ANEXO INGRESOS'!$D15="","",'ANEXO INGRESOS'!I15*'ANEXO GASTOS VARIABLES'!$K$17) ->  | F26: =IF('ANEXO INGRESOS'!$D15="","",'ANEXO INGRESOS'!J15*'ANEXO GASTOS VARIABLES'!$K$17) ->  | G26: =IF('ANEXO INGRESOS'!$D15="","",'ANEXO INGRESOS'!K15*'ANEXO GASTOS VARIABLES'!$K$17) ->  | H26: =IF('ANEXO INGRESOS'!$D15="","",'ANEXO INGRESOS'!L15*'ANEXO GASTOS VARIABLES'!$K$17) ->  | I26: =IF('ANEXO INGRESOS'!$D15="","",'ANEXO INGRESOS'!M15*'ANEXO GASTOS VARIABLES'!$K$17) ->  | J26: =IF('ANEXO INGRESOS'!$D15="","",'ANEXO INGRESOS'!N15*'ANEXO GASTOS VARIABLES'!$K$17) ->  | K26: =IF('ANEXO INGRESOS'!$D15="","",'ANEXO INGRESOS'!O15*'ANEXO GASTOS VARIABLES'!$K$17) ->  | L26: =IF('ANEXO INGRESOS'!$D15="","",'ANEXO INGRESOS'!P15*'ANEXO GASTOS VARIABLES'!$K$17) ->  | M26: =IF('ANEXO INGRESOS'!$D15="","",'ANEXO INGRESOS'!Q15*'ANEXO GASTOS VARIABLES'!$K$17) ->  | N26: =IF('ANEXO INGRESOS'!$D15="","",'ANEXO INGRESOS'!R15*'ANEXO GASTOS VARIABLES'!$K$17) ->  | O26: =IF('ANEXO INGRESOS'!$D15="","",'ANEXO INGRESOS'!S15*'ANEXO GASTOS VARIABLES'!$K$17) ->  | P26: =IF(Gastos_variables_producto[[#This Row],[MES/PRODUCTO]]="","",SUM('6.GASTOS VARIABLES'!$C26:$O26)) -> 
B27: =IF(Gastos_variables_producto[[#This Row],[MES/PRODUCTO]]="","",'ANEXO INGRESOS'!C16) ->  | C27: =IF('ANEXO INGRESOS'!D16="","",'ANEXO INGRESOS'!D16) ->  | D27: =IF('ANEXO INGRESOS'!$D16="","",'ANEXO INGRESOS'!H16*'ANEXO GASTOS VARIABLES'!$K$17) ->  | E27: =IF('ANEXO INGRESOS'!$D16="","",'ANEXO INGRESOS'!I16*'ANEXO GASTOS VARIABLES'!$K$17) ->  | F27: =IF('ANEXO INGRESOS'!$D16="","",'ANEXO INGRESOS'!J16*'ANEXO GASTOS VARIABLES'!$K$17) ->  | G27: =IF('ANEXO INGRESOS'!$D16="","",'ANEXO INGRESOS'!K16*'ANEXO GASTOS VARIABLES'!$K$17) ->  | H27: =IF('ANEXO INGRESOS'!$D16="","",'ANEXO INGRESOS'!L16*'ANEXO GASTOS VARIABLES'!$K$17) ->  | I27: =IF('ANEXO INGRESOS'!$D16="","",'ANEXO INGRESOS'!M16*'ANEXO GASTOS VARIABLES'!$K$17) ->  | J27: =IF('ANEXO INGRESOS'!$D16="","",'ANEXO INGRESOS'!N16*'ANEXO GASTOS VARIABLES'!$K$17) ->  | K27: =IF('ANEXO INGRESOS'!$D16="","",'ANEXO INGRESOS'!O16*'ANEXO GASTOS VARIABLES'!$K$17) ->  | L27: =IF('ANEXO INGRESOS'!$D16="","",'ANEXO INGRESOS'!P16*'ANEXO GASTOS VARIABLES'!$K$17) ->  | M27: =IF('ANEXO INGRESOS'!$D16="","",'ANEXO INGRESOS'!Q16*'ANEXO GASTOS VARIABLES'!$K$17) ->  | N27: =IF('ANEXO INGRESOS'!$D16="","",'ANEXO INGRESOS'!R16*'ANEXO GASTOS VARIABLES'!$K$17) ->  | O27: =IF('ANEXO INGRESOS'!$D16="","",'ANEXO INGRESOS'!S16*'ANEXO GASTOS VARIABLES'!$K$17) ->  | P27: =IF(Gastos_variables_producto[[#This Row],[MES/PRODUCTO]]="","",SUM('6.GASTOS VARIABLES'!$C27:$O27)) -> 
B28: =IF(Gastos_variables_producto[[#This Row],[MES/PRODUCTO]]="","",'ANEXO INGRESOS'!C17) ->  | C28: =IF('ANEXO INGRESOS'!D17="","",'ANEXO INGRESOS'!D17) ->  | D28: =IF('ANEXO INGRESOS'!$D17="","",'ANEXO INGRESOS'!H17*'ANEXO GASTOS VARIABLES'!$K$17) ->  | E28: =IF('ANEXO INGRESOS'!$D17="","",'ANEXO INGRESOS'!I17*'ANEXO GASTOS VARIABLES'!$K$17) ->  | F28: =IF('ANEXO INGRESOS'!$D17="","",'ANEXO INGRESOS'!J17*'ANEXO GASTOS VARIABLES'!$K$17) ->  | G28: =IF('ANEXO INGRESOS'!$D17="","",'ANEXO INGRESOS'!K17*'ANEXO GASTOS VARIABLES'!$K$17) ->  | H28: =IF('ANEXO INGRESOS'!$D17="","",'ANEXO INGRESOS'!L17*'ANEXO GASTOS VARIABLES'!$K$17) ->  | I28: =IF('ANEXO INGRESOS'!$D17="","",'ANEXO INGRESOS'!M17*'ANEXO GASTOS VARIABLES'!$K$17) ->  | J28: =IF('ANEXO INGRESOS'!$D17="","",'ANEXO INGRESOS'!N17*'ANEXO GASTOS VARIABLES'!$K$17) ->  | K28: =IF('ANEXO INGRESOS'!$D17="","",'ANEXO INGRESOS'!O17*'ANEXO GASTOS VARIABLES'!$K$17) ->  | L28: =IF('ANEXO INGRESOS'!$D17="","",'ANEXO INGRESOS'!P17*'ANEXO GASTOS VARIABLES'!$K$17) ->  | M28: =IF('ANEXO INGRESOS'!$D17="","",'ANEXO INGRESOS'!Q17*'ANEXO GASTOS VARIABLES'!$K$17) ->  | N28: =IF('ANEXO INGRESOS'!$D17="","",'ANEXO INGRESOS'!R17*'ANEXO GASTOS VARIABLES'!$K$17) ->  | O28: =IF('ANEXO INGRESOS'!$D17="","",'ANEXO INGRESOS'!S17*'ANEXO GASTOS VARIABLES'!$K$17) ->  | P28: =IF(Gastos_variables_producto[[#This Row],[MES/PRODUCTO]]="","",SUM('6.GASTOS VARIABLES'!$C28:$O28)) -> 
B29: =IF(Gastos_variables_producto[[#This Row],[MES/PRODUCTO]]="","",'ANEXO INGRESOS'!C18) ->  | C29: =IF('ANEXO INGRESOS'!D18="","",'ANEXO INGRESOS'!D18) ->  | D29: =IF('ANEXO INGRESOS'!$D18="","",'ANEXO INGRESOS'!H18*'ANEXO GASTOS VARIABLES'!$K$17) ->  | E29: =IF('ANEXO INGRESOS'!$D18="","",'ANEXO INGRESOS'!I18*'ANEXO GASTOS VARIABLES'!$K$17) ->  | F29: =IF('ANEXO INGRESOS'!$D18="","",'ANEXO INGRESOS'!J18*'ANEXO GASTOS VARIABLES'!$K$17) ->  | G29: =IF('ANEXO INGRESOS'!$D18="","",'ANEXO INGRESOS'!K18*'ANEXO GASTOS VARIABLES'!$K$17) ->  | H29: =IF('ANEXO INGRESOS'!$D18="","",'ANEXO INGRESOS'!L18*'ANEXO GASTOS VARIABLES'!$K$17) ->  | I29: =IF('ANEXO INGRESOS'!$D18="","",'ANEXO INGRESOS'!M18*'ANEXO GASTOS VARIABLES'!$K$17) ->  | J29: =IF('ANEXO INGRESOS'!$D18="","",'ANEXO INGRESOS'!N18*'ANEXO GASTOS VARIABLES'!$K$17) ->  | K29: =IF('ANEXO INGRESOS'!$D18="","",'ANEXO INGRESOS'!O18*'ANEXO GASTOS VARIABLES'!$K$17) ->  | L29: =IF('ANEXO INGRESOS'!$D18="","",'ANEXO INGRESOS'!P18*'ANEXO GASTOS VARIABLES'!$K$17) ->  | M29: =IF('ANEXO INGRESOS'!$D18="","",'ANEXO INGRESOS'!Q18*'ANEXO GASTOS VARIABLES'!$K$17) ->  | N29: =IF('ANEXO INGRESOS'!$D18="","",'ANEXO INGRESOS'!R18*'ANEXO GASTOS VARIABLES'!$K$17) ->  | O29: =IF('ANEXO INGRESOS'!$D18="","",'ANEXO INGRESOS'!S18*'ANEXO GASTOS VARIABLES'!$K$17) ->  | P29: =IF(Gastos_variables_producto[[#This Row],[MES/PRODUCTO]]="","",SUM('6.GASTOS VARIABLES'!$C29:$O29)) -> 
B30: =IF(Gastos_variables_producto[[#This Row],[MES/PRODUCTO]]="","",'ANEXO INGRESOS'!C19) ->  | C30: =IF('ANEXO INGRESOS'!D19="","",'ANEXO INGRESOS'!D19) ->  | D30: =IF('ANEXO INGRESOS'!$D19="","",'ANEXO INGRESOS'!H19*'ANEXO GASTOS VARIABLES'!$K$17) ->  | E30: =IF('ANEXO INGRESOS'!$D19="","",'ANEXO INGRESOS'!I19*'ANEXO GASTOS VARIABLES'!$K$17) ->  | F30: =IF('ANEXO INGRESOS'!$D19="","",'ANEXO INGRESOS'!J19*'ANEXO GASTOS VARIABLES'!$K$17) ->  | G30: =IF('ANEXO INGRESOS'!$D19="","",'ANEXO INGRESOS'!K19*'ANEXO GASTOS VARIABLES'!$K$17) ->  | H30: =IF('ANEXO INGRESOS'!$D19="","",'ANEXO INGRESOS'!L19*'ANEXO GASTOS VARIABLES'!$K$17) ->  | I30: =IF('ANEXO INGRESOS'!$D19="","",'ANEXO INGRESOS'!M19*'ANEXO GASTOS VARIABLES'!$K$17) ->  | J30: =IF('ANEXO INGRESOS'!$D19="","",'ANEXO INGRESOS'!N19*'ANEXO GASTOS VARIABLES'!$K$17) ->  | K30: =IF('ANEXO INGRESOS'!$D19="","",'ANEXO INGRESOS'!O19*'ANEXO GASTOS VARIABLES'!$K$17) ->  | L30: =IF('ANEXO INGRESOS'!$D19="","",'ANEXO INGRESOS'!P19*'ANEXO GASTOS VARIABLES'!$K$17) ->  | M30: =IF('ANEXO INGRESOS'!$D19="","",'ANEXO INGRESOS'!Q19*'ANEXO GASTOS VARIABLES'!$K$17) ->  | N30: =IF('ANEXO INGRESOS'!$D19="","",'ANEXO INGRESOS'!R19*'ANEXO GASTOS VARIABLES'!$K$17) ->  | O30: =IF('ANEXO INGRESOS'!$D19="","",'ANEXO INGRESOS'!S19*'ANEXO GASTOS VARIABLES'!$K$17) ->  | P30: =IF(Gastos_variables_producto[[#This Row],[MES/PRODUCTO]]="","",SUM('6.GASTOS VARIABLES'!$C30:$O30)) -> 
B31: =IF(Gastos_variables_producto[[#This Row],[MES/PRODUCTO]]="","",'ANEXO INGRESOS'!C20) ->  | C31: =IF('ANEXO INGRESOS'!D20="","",'ANEXO INGRESOS'!D20) ->  | D31: =IF('ANEXO INGRESOS'!$D20="","",'ANEXO INGRESOS'!H20*'ANEXO GASTOS VARIABLES'!$K$17) ->  | E31: =IF('ANEXO INGRESOS'!$D20="","",'ANEXO INGRESOS'!I20*'ANEXO GASTOS VARIABLES'!$K$17) ->  | F31: =IF('ANEXO INGRESOS'!$D20="","",'ANEXO INGRESOS'!J20*'ANEXO GASTOS VARIABLES'!$K$17) ->  | G31: =IF('ANEXO INGRESOS'!$D20="","",'ANEXO INGRESOS'!K20*'ANEXO GASTOS VARIABLES'!$K$17) ->  | H31: =IF('ANEXO INGRESOS'!$D20="","",'ANEXO INGRESOS'!L20*'ANEXO GASTOS VARIABLES'!$K$17) ->  | I31: =IF('ANEXO INGRESOS'!$D20="","",'ANEXO INGRESOS'!M20*'ANEXO GASTOS VARIABLES'!$K$17) ->  | J31: =IF('ANEXO INGRESOS'!$D20="","",'ANEXO INGRESOS'!N20*'ANEXO GASTOS VARIABLES'!$K$17) ->  | K31: =IF('ANEXO INGRESOS'!$D20="","",'ANEXO INGRESOS'!O20*'ANEXO GASTOS VARIABLES'!$K$17) ->  | L31: =IF('ANEXO INGRESOS'!$D20="","",'ANEXO INGRESOS'!P20*'ANEXO GASTOS VARIABLES'!$K$17) ->  | M31: =IF('ANEXO INGRESOS'!$D20="","",'ANEXO INGRESOS'!Q20*'ANEXO GASTOS VARIABLES'!$K$17) ->  | N31: =IF('ANEXO INGRESOS'!$D20="","",'ANEXO INGRESOS'!R20*'ANEXO GASTOS VARIABLES'!$K$17) ->  | O31: =IF('ANEXO INGRESOS'!$D20="","",'ANEXO INGRESOS'!S20*'ANEXO GASTOS VARIABLES'!$K$17) ->  | P31: =IF(Gastos_variables_producto[[#This Row],[MES/PRODUCTO]]="","",SUM('6.GASTOS VARIABLES'!$C31:$O31)) -> 
B32: =IF(Gastos_variables_producto[[#This Row],[MES/PRODUCTO]]="","",'ANEXO INGRESOS'!C21) ->  | C32: =IF('ANEXO INGRESOS'!D21="","",'ANEXO INGRESOS'!D21) ->  | D32: =IF('ANEXO INGRESOS'!$D21="","",'ANEXO INGRESOS'!H21*'ANEXO GASTOS VARIABLES'!$K$17) ->  | E32: =IF('ANEXO INGRESOS'!$D21="","",'ANEXO INGRESOS'!I21*'ANEXO GASTOS VARIABLES'!$K$17) ->  | F32: =IF('ANEXO INGRESOS'!$D21="","",'ANEXO INGRESOS'!J21*'ANEXO GASTOS VARIABLES'!$K$17) ->  | G32: =IF('ANEXO INGRESOS'!$D21="","",'ANEXO INGRESOS'!K21*'ANEXO GASTOS VARIABLES'!$K$17) ->  | H32: =IF('ANEXO INGRESOS'!$D21="","",'ANEXO INGRESOS'!L21*'ANEXO GASTOS VARIABLES'!$K$17) ->  | I32: =IF('ANEXO INGRESOS'!$D21="","",'ANEXO INGRESOS'!M21*'ANEXO GASTOS VARIABLES'!$K$17) ->  | J32: =IF('ANEXO INGRESOS'!$D21="","",'ANEXO INGRESOS'!N21*'ANEXO GASTOS VARIABLES'!$K$17) ->  | K32: =IF('ANEXO INGRESOS'!$D21="","",'ANEXO INGRESOS'!O21*'ANEXO GASTOS VARIABLES'!$K$17) ->  | L32: =IF('ANEXO INGRESOS'!$D21="","",'ANEXO INGRESOS'!P21*'ANEXO GASTOS VARIABLES'!$K$17) ->  | M32: =IF('ANEXO INGRESOS'!$D21="","",'ANEXO INGRESOS'!Q21*'ANEXO GASTOS VARIABLES'!$K$17) ->  | N32: =IF('ANEXO INGRESOS'!$D21="","",'ANEXO INGRESOS'!R21*'ANEXO GASTOS VARIABLES'!$K$17) ->  | O32: =IF('ANEXO INGRESOS'!$D21="","",'ANEXO INGRESOS'!S21*'ANEXO GASTOS VARIABLES'!$K$17) ->  | P32: =IF(Gastos_variables_producto[[#This Row],[MES/PRODUCTO]]="","",SUM('6.GASTOS VARIABLES'!$C32:$O32)) -> 
B33: =IF(Gastos_variables_producto[[#This Row],[MES/PRODUCTO]]="","",'ANEXO INGRESOS'!C22) ->  | C33: =IF('ANEXO INGRESOS'!D22="","",'ANEXO INGRESOS'!D22) ->  | D33: =IF('ANEXO INGRESOS'!$D22="","",'ANEXO INGRESOS'!H22*'ANEXO GASTOS VARIABLES'!$K$17) ->  | E33: =IF('ANEXO INGRESOS'!$D22="","",'ANEXO INGRESOS'!I22*'ANEXO GASTOS VARIABLES'!$K$17) ->  | F33: =IF('ANEXO INGRESOS'!$D22="","",'ANEXO INGRESOS'!J22*'ANEXO GASTOS VARIABLES'!$K$17) ->  | G33: =IF('ANEXO INGRESOS'!$D22="","",'ANEXO INGRESOS'!K22*'ANEXO GASTOS VARIABLES'!$K$17) ->  | H33: =IF('ANEXO INGRESOS'!$D22="","",'ANEXO INGRESOS'!L22*'ANEXO GASTOS VARIABLES'!$K$17) ->  | I33: =IF('ANEXO INGRESOS'!$D22="","",'ANEXO INGRESOS'!M22*'ANEXO GASTOS VARIABLES'!$K$17) ->  | J33: =IF('ANEXO INGRESOS'!$D22="","",'ANEXO INGRESOS'!N22*'ANEXO GASTOS VARIABLES'!$K$17) ->  | K33: =IF('ANEXO INGRESOS'!$D22="","",'ANEXO INGRESOS'!O22*'ANEXO GASTOS VARIABLES'!$K$17) ->  | L33: =IF('ANEXO INGRESOS'!$D22="","",'ANEXO INGRESOS'!P22*'ANEXO GASTOS VARIABLES'!$K$17) ->  | M33: =IF('ANEXO INGRESOS'!$D22="","",'ANEXO INGRESOS'!Q22*'ANEXO GASTOS VARIABLES'!$K$17) ->  | N33: =IF('ANEXO INGRESOS'!$D22="","",'ANEXO INGRESOS'!R22*'ANEXO GASTOS VARIABLES'!$K$17) ->  | O33: =IF('ANEXO INGRESOS'!$D22="","",'ANEXO INGRESOS'!S22*'ANEXO GASTOS VARIABLES'!$K$17) ->  | P33: =IF(Gastos_variables_producto[[#This Row],[MES/PRODUCTO]]="","",SUM('6.GASTOS VARIABLES'!$C33:$O33)) -> 
B34: =IF(Gastos_variables_producto[[#This Row],[MES/PRODUCTO]]="","",'ANEXO INGRESOS'!C23) ->  | C34: =IF('ANEXO INGRESOS'!D23="","",'ANEXO INGRESOS'!D23) ->  | D34: =IF('ANEXO INGRESOS'!$D23="","",'ANEXO INGRESOS'!H23*'ANEXO GASTOS VARIABLES'!$K$17) ->  | E34: =IF('ANEXO INGRESOS'!$D23="","",'ANEXO INGRESOS'!I23*'ANEXO GASTOS VARIABLES'!$K$17) ->  | F34: =IF('ANEXO INGRESOS'!$D23="","",'ANEXO INGRESOS'!J23*'ANEXO GASTOS VARIABLES'!$K$17) ->  | G34: =IF('ANEXO INGRESOS'!$D23="","",'ANEXO INGRESOS'!K23*'ANEXO GASTOS VARIABLES'!$K$17) ->  | H34: =IF('ANEXO INGRESOS'!$D23="","",'ANEXO INGRESOS'!L23*'ANEXO GASTOS VARIABLES'!$K$17) ->  | I34: =IF('ANEXO INGRESOS'!$D23="","",'ANEXO INGRESOS'!M23*'ANEXO GASTOS VARIABLES'!$K$17) ->  | J34: =IF('ANEXO INGRESOS'!$D23="","",'ANEXO INGRESOS'!N23*'ANEXO GASTOS VARIABLES'!$K$17) ->  | K34: =IF('ANEXO INGRESOS'!$D23="","",'ANEXO INGRESOS'!O23*'ANEXO GASTOS VARIABLES'!$K$17) ->  | L34: =IF('ANEXO INGRESOS'!$D23="","",'ANEXO INGRESOS'!P23*'ANEXO GASTOS VARIABLES'!$K$17) ->  | M34: =IF('ANEXO INGRESOS'!$D23="","",'ANEXO INGRESOS'!Q23*'ANEXO GASTOS VARIABLES'!$K$17) ->  | N34: =IF('ANEXO INGRESOS'!$D23="","",'ANEXO INGRESOS'!R23*'ANEXO GASTOS VARIABLES'!$K$17) ->  | O34: =IF('ANEXO INGRESOS'!$D23="","",'ANEXO INGRESOS'!S23*'ANEXO GASTOS VARIABLES'!$K$17) ->  | P34: =IF(Gastos_variables_producto[[#This Row],[MES/PRODUCTO]]="","",SUM('6.GASTOS VARIABLES'!$C34:$O34)) -> 
B35: =IF(Gastos_variables_producto[[#This Row],[MES/PRODUCTO]]="","",'ANEXO INGRESOS'!C24) ->  | C35: =IF('ANEXO INGRESOS'!D24="","",'ANEXO INGRESOS'!D24) ->  | D35: =IF('ANEXO INGRESOS'!$D24="","",'ANEXO INGRESOS'!H24*'ANEXO GASTOS VARIABLES'!$K$17) ->  | E35: =IF('ANEXO INGRESOS'!$D24="","",'ANEXO INGRESOS'!I24*'ANEXO GASTOS VARIABLES'!$K$17) ->  | F35: =IF('ANEXO INGRESOS'!$D24="","",'ANEXO INGRESOS'!J24*'ANEXO GASTOS VARIABLES'!$K$17) ->  | G35: =IF('ANEXO INGRESOS'!$D24="","",'ANEXO INGRESOS'!K24*'ANEXO GASTOS VARIABLES'!$K$17) ->  | H35: =IF('ANEXO INGRESOS'!$D24="","",'ANEXO INGRESOS'!L24*'ANEXO GASTOS VARIABLES'!$K$17) ->  | I35: =IF('ANEXO INGRESOS'!$D24="","",'ANEXO INGRESOS'!M24*'ANEXO GASTOS VARIABLES'!$K$17) ->  | J35: =IF('ANEXO INGRESOS'!$D24="","",'ANEXO INGRESOS'!N24*'ANEXO GASTOS VARIABLES'!$K$17) ->  | K35: =IF('ANEXO INGRESOS'!$D24="","",'ANEXO INGRESOS'!O24*'ANEXO GASTOS VARIABLES'!$K$17) ->  | L35: =IF('ANEXO INGRESOS'!$D24="","",'ANEXO INGRESOS'!P24*'ANEXO GASTOS VARIABLES'!$K$17) ->  | M35: =IF('ANEXO INGRESOS'!$D24="","",'ANEXO INGRESOS'!Q24*'ANEXO GASTOS VARIABLES'!$K$17) ->  | N35: =IF('ANEXO INGRESOS'!$D24="","",'ANEXO INGRESOS'!R24*'ANEXO GASTOS VARIABLES'!$K$17) ->  | O35: =IF('ANEXO INGRESOS'!$D24="","",'ANEXO INGRESOS'!S24*'ANEXO GASTOS VARIABLES'!$K$17) ->  | P35: =IF(Gastos_variables_producto[[#This Row],[MES/PRODUCTO]]="","",SUM('6.GASTOS VARIABLES'!$C35:$O35)) -> 
B36: =IF(Gastos_variables_producto[[#This Row],[MES/PRODUCTO]]="","",'ANEXO INGRESOS'!C25) ->  | C36: =IF('ANEXO INGRESOS'!D25="","",'ANEXO INGRESOS'!D25) ->  | D36: =IF('ANEXO INGRESOS'!$D25="","",'ANEXO INGRESOS'!H25*'ANEXO GASTOS VARIABLES'!$K$17) ->  | E36: =IF('ANEXO INGRESOS'!$D25="","",'ANEXO INGRESOS'!I25*'ANEXO GASTOS VARIABLES'!$K$17) ->  | F36: =IF('ANEXO INGRESOS'!$D25="","",'ANEXO INGRESOS'!J25*'ANEXO GASTOS VARIABLES'!$K$17) ->  | G36: =IF('ANEXO INGRESOS'!$D25="","",'ANEXO INGRESOS'!K25*'ANEXO GASTOS VARIABLES'!$K$17) ->  | H36: =IF('ANEXO INGRESOS'!$D25="","",'ANEXO INGRESOS'!L25*'ANEXO GASTOS VARIABLES'!$K$17) ->  | I36: =IF('ANEXO INGRESOS'!$D25="","",'ANEXO INGRESOS'!M25*'ANEXO GASTOS VARIABLES'!$K$17) ->  | J36: =IF('ANEXO INGRESOS'!$D25="","",'ANEXO INGRESOS'!N25*'ANEXO GASTOS VARIABLES'!$K$17) ->  | K36: =IF('ANEXO INGRESOS'!$D25="","",'ANEXO INGRESOS'!O25*'ANEXO GASTOS VARIABLES'!$K$17) ->  | L36: =IF('ANEXO INGRESOS'!$D25="","",'ANEXO INGRESOS'!P25*'ANEXO GASTOS VARIABLES'!$K$17) ->  | M36: =IF('ANEXO INGRESOS'!$D25="","",'ANEXO INGRESOS'!Q25*'ANEXO GASTOS VARIABLES'!$K$17) ->  | N36: =IF('ANEXO INGRESOS'!$D25="","",'ANEXO INGRESOS'!R25*'ANEXO GASTOS VARIABLES'!$K$17) ->  | O36: =IF('ANEXO INGRESOS'!$D25="","",'ANEXO INGRESOS'!S25*'ANEXO GASTOS VARIABLES'!$K$17) ->  | P36: =IF(Gastos_variables_producto[[#This Row],[MES/PRODUCTO]]="","",SUM('6.GASTOS VARIABLES'!$C36:$O36)) -> 
B37: =IF(Gastos_variables_producto[[#This Row],[MES/PRODUCTO]]="","",'ANEXO INGRESOS'!C26) ->  | C37: =IF('ANEXO INGRESOS'!D26="","",'ANEXO INGRESOS'!D26) ->  | D37: =IF('ANEXO INGRESOS'!$D26="","",'ANEXO INGRESOS'!H26*'ANEXO GASTOS VARIABLES'!$K$17) ->  | E37: =IF('ANEXO INGRESOS'!$D26="","",'ANEXO INGRESOS'!I26*'ANEXO GASTOS VARIABLES'!$K$17) ->  | F37: =IF('ANEXO INGRESOS'!$D26="","",'ANEXO INGRESOS'!J26*'ANEXO GASTOS VARIABLES'!$K$17) ->  | G37: =IF('ANEXO INGRESOS'!$D26="","",'ANEXO INGRESOS'!K26*'ANEXO GASTOS VARIABLES'!$K$17) ->  | H37: =IF('ANEXO INGRESOS'!$D26="","",'ANEXO INGRESOS'!L26*'ANEXO GASTOS VARIABLES'!$K$17) ->  | I37: =IF('ANEXO INGRESOS'!$D26="","",'ANEXO INGRESOS'!M26*'ANEXO GASTOS VARIABLES'!$K$17) ->  | J37: =IF('ANEXO INGRESOS'!$D26="","",'ANEXO INGRESOS'!N26*'ANEXO GASTOS VARIABLES'!$K$17) ->  | K37: =IF('ANEXO INGRESOS'!$D26="","",'ANEXO INGRESOS'!O26*'ANEXO GASTOS VARIABLES'!$K$17) ->  | L37: =IF('ANEXO INGRESOS'!$D26="","",'ANEXO INGRESOS'!P26*'ANEXO GASTOS VARIABLES'!$K$17) ->  | M37: =IF('ANEXO INGRESOS'!$D26="","",'ANEXO INGRESOS'!Q26*'ANEXO GASTOS VARIABLES'!$K$17) ->  | N37: =IF('ANEXO INGRESOS'!$D26="","",'ANEXO INGRESOS'!R26*'ANEXO GASTOS VARIABLES'!$K$17) ->  | O37: =IF('ANEXO INGRESOS'!$D26="","",'ANEXO INGRESOS'!S26*'ANEXO GASTOS VARIABLES'!$K$17) ->  | P37: =IF(Gastos_variables_producto[[#This Row],[MES/PRODUCTO]]="","",SUM('6.GASTOS VARIABLES'!$C37:$O37)) -> 
B38: =IF(Gastos_variables_producto[[#This Row],[MES/PRODUCTO]]="","",'ANEXO INGRESOS'!C27) ->  | C38: =IF('ANEXO INGRESOS'!D27="","",'ANEXO INGRESOS'!D27) ->  | D38: =IF('ANEXO INGRESOS'!$D27="","",'ANEXO INGRESOS'!H27*'ANEXO GASTOS VARIABLES'!$K$17) ->  | E38: =IF('ANEXO INGRESOS'!$D27="","",'ANEXO INGRESOS'!I27*'ANEXO GASTOS VARIABLES'!$K$17) ->  | F38: =IF('ANEXO INGRESOS'!$D27="","",'ANEXO INGRESOS'!J27*'ANEXO GASTOS VARIABLES'!$K$17) ->  | G38: =IF('ANEXO INGRESOS'!$D27="","",'ANEXO INGRESOS'!K27*'ANEXO GASTOS VARIABLES'!$K$17) ->  | H38: =IF('ANEXO INGRESOS'!$D27="","",'ANEXO INGRESOS'!L27*'ANEXO GASTOS VARIABLES'!$K$17) ->  | I38: =IF('ANEXO INGRESOS'!$D27="","",'ANEXO INGRESOS'!M27*'ANEXO GASTOS VARIABLES'!$K$17) ->  | J38: =IF('ANEXO INGRESOS'!$D27="","",'ANEXO INGRESOS'!N27*'ANEXO GASTOS VARIABLES'!$K$17) ->  | K38: =IF('ANEXO INGRESOS'!$D27="","",'ANEXO INGRESOS'!O27*'ANEXO GASTOS VARIABLES'!$K$17) ->  | L38: =IF('ANEXO INGRESOS'!$D27="","",'ANEXO INGRESOS'!P27*'ANEXO GASTOS VARIABLES'!$K$17) ->  | M38: =IF('ANEXO INGRESOS'!$D27="","",'ANEXO INGRESOS'!Q27*'ANEXO GASTOS VARIABLES'!$K$17) ->  | N38: =IF('ANEXO INGRESOS'!$D27="","",'ANEXO INGRESOS'!R27*'ANEXO GASTOS VARIABLES'!$K$17) ->  | O38: =IF('ANEXO INGRESOS'!$D27="","",'ANEXO INGRESOS'!S27*'ANEXO GASTOS VARIABLES'!$K$17) ->  | P38: =IF(Gastos_variables_producto[[#This Row],[MES/PRODUCTO]]="","",SUM('6.GASTOS VARIABLES'!$C38:$O38)) -> 
B39: =IF(Gastos_variables_producto[[#This Row],[MES/PRODUCTO]]="","",'ANEXO INGRESOS'!C28) ->  | C39: =IF('ANEXO INGRESOS'!D28="","",'ANEXO INGRESOS'!D28) ->  | D39: =IF('ANEXO INGRESOS'!$D28="","",'ANEXO INGRESOS'!H28*'ANEXO GASTOS VARIABLES'!$K$17) ->  | E39: =IF('ANEXO INGRESOS'!$D28="","",'ANEXO INGRESOS'!I28*'ANEXO GASTOS VARIABLES'!$K$17) ->  | F39: =IF('ANEXO INGRESOS'!$D28="","",'ANEXO INGRESOS'!J28*'ANEXO GASTOS VARIABLES'!$K$17) ->  | G39: =IF('ANEXO INGRESOS'!$D28="","",'ANEXO INGRESOS'!K28*'ANEXO GASTOS VARIABLES'!$K$17) ->  | H39: =IF('ANEXO INGRESOS'!$D28="","",'ANEXO INGRESOS'!L28*'ANEXO GASTOS VARIABLES'!$K$17) ->  | I39: =IF('ANEXO INGRESOS'!$D28="","",'ANEXO INGRESOS'!M28*'ANEXO GASTOS VARIABLES'!$K$17) ->  | J39: =IF('ANEXO INGRESOS'!$D28="","",'ANEXO INGRESOS'!N28*'ANEXO GASTOS VARIABLES'!$K$17) ->  | K39: =IF('ANEXO INGRESOS'!$D28="","",'ANEXO INGRESOS'!O28*'ANEXO GASTOS VARIABLES'!$K$17) ->  | L39: =IF('ANEXO INGRESOS'!$D28="","",'ANEXO INGRESOS'!P28*'ANEXO GASTOS VARIABLES'!$K$17) ->  | M39: =IF('ANEXO INGRESOS'!$D28="","",'ANEXO INGRESOS'!Q28*'ANEXO GASTOS VARIABLES'!$K$17) ->  | N39: =IF('ANEXO INGRESOS'!$D28="","",'ANEXO INGRESOS'!R28*'ANEXO GASTOS VARIABLES'!$K$17) ->  | O39: =IF('ANEXO INGRESOS'!$D28="","",'ANEXO INGRESOS'!S28*'ANEXO GASTOS VARIABLES'!$K$17) ->  | P39: =IF(Gastos_variables_producto[[#This Row],[MES/PRODUCTO]]="","",SUM('6.GASTOS VARIABLES'!$C39:$O39)) -> 
B40: =IF(Gastos_variables_producto[[#This Row],[MES/PRODUCTO]]="","",'ANEXO INGRESOS'!C29) ->  | C40: =IF('ANEXO INGRESOS'!D29="","",'ANEXO INGRESOS'!D29) ->  | D40: =IF('ANEXO INGRESOS'!$D29="","",'ANEXO INGRESOS'!H29*'ANEXO GASTOS VARIABLES'!$K$17) ->  | E40: =IF('ANEXO INGRESOS'!$D29="","",'ANEXO INGRESOS'!I29*'ANEXO GASTOS VARIABLES'!$K$17) ->  | F40: =IF('ANEXO INGRESOS'!$D29="","",'ANEXO INGRESOS'!J29*'ANEXO GASTOS VARIABLES'!$K$17) ->  | G40: =IF('ANEXO INGRESOS'!$D29="","",'ANEXO INGRESOS'!K29*'ANEXO GASTOS VARIABLES'!$K$17) ->  | H40: =IF('ANEXO INGRESOS'!$D29="","",'ANEXO INGRESOS'!L29*'ANEXO GASTOS VARIABLES'!$K$17) ->  | I40: =IF('ANEXO INGRESOS'!$D29="","",'ANEXO INGRESOS'!M29*'ANEXO GASTOS VARIABLES'!$K$17) ->  | J40: =IF('ANEXO INGRESOS'!$D29="","",'ANEXO INGRESOS'!N29*'ANEXO GASTOS VARIABLES'!$K$17) ->  | K40: =IF('ANEXO INGRESOS'!$D29="","",'ANEXO INGRESOS'!O29*'ANEXO GASTOS VARIABLES'!$K$17) ->  | L40: =IF('ANEXO INGRESOS'!$D29="","",'ANEXO INGRESOS'!P29*'ANEXO GASTOS VARIABLES'!$K$17) ->  | M40: =IF('ANEXO INGRESOS'!$D29="","",'ANEXO INGRESOS'!Q29*'ANEXO GASTOS VARIABLES'!$K$17) ->  | N40: =IF('ANEXO INGRESOS'!$D29="","",'ANEXO INGRESOS'!R29*'ANEXO GASTOS VARIABLES'!$K$17) ->  | O40: =IF('ANEXO INGRESOS'!$D29="","",'ANEXO INGRESOS'!S29*'ANEXO GASTOS VARIABLES'!$K$17) ->  | P40: =IF(Gastos_variables_producto[[#This Row],[MES/PRODUCTO]]="","",SUM('6.GASTOS VARIABLES'!$C40:$O40)) -> 
B41: =IF(Gastos_variables_producto[[#This Row],[MES/PRODUCTO]]="","",'ANEXO INGRESOS'!C30) ->  | C41: =IF('ANEXO INGRESOS'!D30="","",'ANEXO INGRESOS'!D30) ->  | D41: =IF('ANEXO INGRESOS'!$D30="","",'ANEXO INGRESOS'!H30*'ANEXO GASTOS VARIABLES'!$K$17) ->  | E41: =IF('ANEXO INGRESOS'!$D30="","",'ANEXO INGRESOS'!I30*'ANEXO GASTOS VARIABLES'!$K$17) ->  | F41: =IF('ANEXO INGRESOS'!$D30="","",'ANEXO INGRESOS'!J30*'ANEXO GASTOS VARIABLES'!$K$17) ->  | G41: =IF('ANEXO INGRESOS'!$D30="","",'ANEXO INGRESOS'!K30*'ANEXO GASTOS VARIABLES'!$K$17) ->  | H41: =IF('ANEXO INGRESOS'!$D30="","",'ANEXO INGRESOS'!L30*'ANEXO GASTOS VARIABLES'!$K$17) ->  | I41: =IF('ANEXO INGRESOS'!$D30="","",'ANEXO INGRESOS'!M30*'ANEXO GASTOS VARIABLES'!$K$17) ->  | J41: =IF('ANEXO INGRESOS'!$D30="","",'ANEXO INGRESOS'!N30*'ANEXO GASTOS VARIABLES'!$K$17) ->  | K41: =IF('ANEXO INGRESOS'!$D30="","",'ANEXO INGRESOS'!O30*'ANEXO GASTOS VARIABLES'!$K$17) ->  | L41: =IF('ANEXO INGRESOS'!$D30="","",'ANEXO INGRESOS'!P30*'ANEXO GASTOS VARIABLES'!$K$17) ->  | M41: =IF('ANEXO INGRESOS'!$D30="","",'ANEXO INGRESOS'!Q30*'ANEXO GASTOS VARIABLES'!$K$17) ->  | N41: =IF('ANEXO INGRESOS'!$D30="","",'ANEXO INGRESOS'!R30*'ANEXO GASTOS VARIABLES'!$K$17) ->  | O41: =IF('ANEXO INGRESOS'!$D30="","",'ANEXO INGRESOS'!S30*'ANEXO GASTOS VARIABLES'!$K$17) ->  | P41: =IF(Gastos_variables_producto[[#This Row],[MES/PRODUCTO]]="","",SUM('6.GASTOS VARIABLES'!$C41:$O41)) -> 
B42: =IF(Gastos_variables_producto[[#This Row],[MES/PRODUCTO]]="","",'ANEXO INGRESOS'!C31) ->  | C42: =IF('ANEXO INGRESOS'!D31="","",'ANEXO INGRESOS'!D31) ->  | D42: =IF('ANEXO INGRESOS'!$D31="","",'ANEXO INGRESOS'!H31*'ANEXO GASTOS VARIABLES'!$K$17) ->  | E42: =IF('ANEXO INGRESOS'!$D31="","",'ANEXO INGRESOS'!I31*'ANEXO GASTOS VARIABLES'!$K$17) ->  | F42: =IF('ANEXO INGRESOS'!$D31="","",'ANEXO INGRESOS'!J31*'ANEXO GASTOS VARIABLES'!$K$17) ->  | G42: =IF('ANEXO INGRESOS'!$D31="","",'ANEXO INGRESOS'!K31*'ANEXO GASTOS VARIABLES'!$K$17) ->  | H42: =IF('ANEXO INGRESOS'!$D31="","",'ANEXO INGRESOS'!L31*'ANEXO GASTOS VARIABLES'!$K$17) ->  | I42: =IF('ANEXO INGRESOS'!$D31="","",'ANEXO INGRESOS'!M31*'ANEXO GASTOS VARIABLES'!$K$17) ->  | J42: =IF('ANEXO INGRESOS'!$D31="","",'ANEXO INGRESOS'!N31*'ANEXO GASTOS VARIABLES'!$K$17) ->  | K42: =IF('ANEXO INGRESOS'!$D31="","",'ANEXO INGRESOS'!O31*'ANEXO GASTOS VARIABLES'!$K$17) ->  | L42: =IF('ANEXO INGRESOS'!$D31="","",'ANEXO INGRESOS'!P31*'ANEXO GASTOS VARIABLES'!$K$17) ->  | M42: =IF('ANEXO INGRESOS'!$D31="","",'ANEXO INGRESOS'!Q31*'ANEXO GASTOS VARIABLES'!$K$17) ->  | N42: =IF('ANEXO INGRESOS'!$D31="","",'ANEXO INGRESOS'!R31*'ANEXO GASTOS VARIABLES'!$K$17) ->  | O42: =IF('ANEXO INGRESOS'!$D31="","",'ANEXO INGRESOS'!S31*'ANEXO GASTOS VARIABLES'!$K$17) ->  | P42: =IF(Gastos_variables_producto[[#This Row],[MES/PRODUCTO]]="","",SUM('6.GASTOS VARIABLES'!$C42:$O42)) -> 
B43: =IF(Gastos_variables_producto[[#This Row],[MES/PRODUCTO]]="","",'ANEXO INGRESOS'!C32) ->  | C43: =IF('ANEXO INGRESOS'!D32="","",'ANEXO INGRESOS'!D32) ->  | D43: =IF('ANEXO INGRESOS'!$D32="","",'ANEXO INGRESOS'!H32*'ANEXO GASTOS VARIABLES'!$K$17) ->  | E43: =IF('ANEXO INGRESOS'!$D32="","",'ANEXO INGRESOS'!I32*'ANEXO GASTOS VARIABLES'!$K$17) ->  | F43: =IF('ANEXO INGRESOS'!$D32="","",'ANEXO INGRESOS'!J32*'ANEXO GASTOS VARIABLES'!$K$17) ->  | G43: =IF('ANEXO INGRESOS'!$D32="","",'ANEXO INGRESOS'!K32*'ANEXO GASTOS VARIABLES'!$K$17) ->  | H43: =IF('ANEXO INGRESOS'!$D32="","",'ANEXO INGRESOS'!L32*'ANEXO GASTOS VARIABLES'!$K$17) ->  | I43: =IF('ANEXO INGRESOS'!$D32="","",'ANEXO INGRESOS'!M32*'ANEXO GASTOS VARIABLES'!$K$17) ->  | J43: =IF('ANEXO INGRESOS'!$D32="","",'ANEXO INGRESOS'!N32*'ANEXO GASTOS VARIABLES'!$K$17) ->  | K43: =IF('ANEXO INGRESOS'!$D32="","",'ANEXO INGRESOS'!O32*'ANEXO GASTOS VARIABLES'!$K$17) ->  | L43: =IF('ANEXO INGRESOS'!$D32="","",'ANEXO INGRESOS'!P32*'ANEXO GASTOS VARIABLES'!$K$17) ->  | M43: =IF('ANEXO INGRESOS'!$D32="","",'ANEXO INGRESOS'!Q32*'ANEXO GASTOS VARIABLES'!$K$17) ->  | N43: =IF('ANEXO INGRESOS'!$D32="","",'ANEXO INGRESOS'!R32*'ANEXO GASTOS VARIABLES'!$K$17) ->  | O43: =IF('ANEXO INGRESOS'!$D32="","",'ANEXO INGRESOS'!S32*'ANEXO GASTOS VARIABLES'!$K$17) ->  | P43: =IF(Gastos_variables_producto[[#This Row],[MES/PRODUCTO]]="","",SUM('6.GASTOS VARIABLES'!$C43:$O43)) -> 
B44: =IF(Gastos_variables_producto[[#This Row],[MES/PRODUCTO]]="","",'ANEXO INGRESOS'!C33) ->  | C44: =IF('ANEXO INGRESOS'!D33="","",'ANEXO INGRESOS'!D33) ->  | D44: =IF('ANEXO INGRESOS'!$D33="","",'ANEXO INGRESOS'!H33*'ANEXO GASTOS VARIABLES'!$K$17) ->  | E44: =IF('ANEXO INGRESOS'!$D33="","",'ANEXO INGRESOS'!I33*'ANEXO GASTOS VARIABLES'!$K$17) ->  | F44: =IF('ANEXO INGRESOS'!$D33="","",'ANEXO INGRESOS'!J33*'ANEXO GASTOS VARIABLES'!$K$17) ->  | G44: =IF('ANEXO INGRESOS'!$D33="","",'ANEXO INGRESOS'!K33*'ANEXO GASTOS VARIABLES'!$K$17) ->  | H44: =IF('ANEXO INGRESOS'!$D33="","",'ANEXO INGRESOS'!L33*'ANEXO GASTOS VARIABLES'!$K$17) ->  | I44: =IF('ANEXO INGRESOS'!$D33="","",'ANEXO INGRESOS'!M33*'ANEXO GASTOS VARIABLES'!$K$17) ->  | J44: =IF('ANEXO INGRESOS'!$D33="","",'ANEXO INGRESOS'!N33*'ANEXO GASTOS VARIABLES'!$K$17) ->  | K44: =IF('ANEXO INGRESOS'!$D33="","",'ANEXO INGRESOS'!O33*'ANEXO GASTOS VARIABLES'!$K$17) ->  | L44: =IF('ANEXO INGRESOS'!$D33="","",'ANEXO INGRESOS'!P33*'ANEXO GASTOS VARIABLES'!$K$17) ->  | M44: =IF('ANEXO INGRESOS'!$D33="","",'ANEXO INGRESOS'!Q33*'ANEXO GASTOS VARIABLES'!$K$17) ->  | N44: =IF('ANEXO INGRESOS'!$D33="","",'ANEXO INGRESOS'!R33*'ANEXO GASTOS VARIABLES'!$K$17) ->  | O44: =IF('ANEXO INGRESOS'!$D33="","",'ANEXO INGRESOS'!S33*'ANEXO GASTOS VARIABLES'!$K$17) ->  | P44: =IF(Gastos_variables_producto[[#This Row],[MES/PRODUCTO]]="","",SUM('6.GASTOS VARIABLES'!$C44:$O44)) -> 
B45: =IF(Gastos_variables_producto[[#This Row],[MES/PRODUCTO]]="","",'ANEXO INGRESOS'!C34) ->  | C45: =IF('ANEXO INGRESOS'!D34="","",'ANEXO INGRESOS'!D34) ->  | D45: =IF('ANEXO INGRESOS'!$D34="","",'ANEXO INGRESOS'!H34*'ANEXO GASTOS VARIABLES'!$K$17) ->  | E45: =IF('ANEXO INGRESOS'!$D34="","",'ANEXO INGRESOS'!I34*'ANEXO GASTOS VARIABLES'!$K$17) ->  | F45: =IF('ANEXO INGRESOS'!$D34="","",'ANEXO INGRESOS'!J34*'ANEXO GASTOS VARIABLES'!$K$17) ->  | G45: =IF('ANEXO INGRESOS'!$D34="","",'ANEXO INGRESOS'!K34*'ANEXO GASTOS VARIABLES'!$K$17) ->  | H45: =IF('ANEXO INGRESOS'!$D34="","",'ANEXO INGRESOS'!L34*'ANEXO GASTOS VARIABLES'!$K$17) ->  | I45: =IF('ANEXO INGRESOS'!$D34="","",'ANEXO INGRESOS'!M34*'ANEXO GASTOS VARIABLES'!$K$17) ->  | J45: =IF('ANEXO INGRESOS'!$D34="","",'ANEXO INGRESOS'!N34*'ANEXO GASTOS VARIABLES'!$K$17) ->  | K45: =IF('ANEXO INGRESOS'!$D34="","",'ANEXO INGRESOS'!O34*'ANEXO GASTOS VARIABLES'!$K$17) ->  | L45: =IF('ANEXO INGRESOS'!$D34="","",'ANEXO INGRESOS'!P34*'ANEXO GASTOS VARIABLES'!$K$17) ->  | M45: =IF('ANEXO INGRESOS'!$D34="","",'ANEXO INGRESOS'!Q34*'ANEXO GASTOS VARIABLES'!$K$17) ->  | N45: =IF('ANEXO INGRESOS'!$D34="","",'ANEXO INGRESOS'!R34*'ANEXO GASTOS VARIABLES'!$K$17) ->  | O45: =IF('ANEXO INGRESOS'!$D34="","",'ANEXO INGRESOS'!S34*'ANEXO GASTOS VARIABLES'!$K$17) ->  | P45: =IF(Gastos_variables_producto[[#This Row],[MES/PRODUCTO]]="","",SUM('6.GASTOS VARIABLES'!$C45:$O45)) -> 
B46: =IF(Gastos_variables_producto[[#This Row],[MES/PRODUCTO]]="","",'ANEXO INGRESOS'!C35) ->  | C46: =IF('ANEXO INGRESOS'!D35="","",'ANEXO INGRESOS'!D35) ->  | D46: =IF('ANEXO INGRESOS'!$D35="","",'ANEXO INGRESOS'!H35*'ANEXO GASTOS VARIABLES'!$K$17) ->  | E46: =IF('ANEXO INGRESOS'!$D35="","",'ANEXO INGRESOS'!I35*'ANEXO GASTOS VARIABLES'!$K$17) ->  | F46: =IF('ANEXO INGRESOS'!$D35="","",'ANEXO INGRESOS'!J35*'ANEXO GASTOS VARIABLES'!$K$17) ->  | G46: =IF('ANEXO INGRESOS'!$D35="","",'ANEXO INGRESOS'!K35*'ANEXO GASTOS VARIABLES'!$K$17) ->  | H46: =IF('ANEXO INGRESOS'!$D35="","",'ANEXO INGRESOS'!L35*'ANEXO GASTOS VARIABLES'!$K$17) ->  | I46: =IF('ANEXO INGRESOS'!$D35="","",'ANEXO INGRESOS'!M35*'ANEXO GASTOS VARIABLES'!$K$17) ->  | J46: =IF('ANEXO INGRESOS'!$D35="","",'ANEXO INGRESOS'!N35*'ANEXO GASTOS VARIABLES'!$K$17) ->  | K46: =IF('ANEXO INGRESOS'!$D35="","",'ANEXO INGRESOS'!O35*'ANEXO GASTOS VARIABLES'!$K$17) ->  | L46: =IF('ANEXO INGRESOS'!$D35="","",'ANEXO INGRESOS'!P35*'ANEXO GASTOS VARIABLES'!$K$17) ->  | M46: =IF('ANEXO INGRESOS'!$D35="","",'ANEXO INGRESOS'!Q35*'ANEXO GASTOS VARIABLES'!$K$17) ->  | N46: =IF('ANEXO INGRESOS'!$D35="","",'ANEXO INGRESOS'!R35*'ANEXO GASTOS VARIABLES'!$K$17) ->  | O46: =IF('ANEXO INGRESOS'!$D35="","",'ANEXO INGRESOS'!S35*'ANEXO GASTOS VARIABLES'!$K$17) ->  | P46: =IF(Gastos_variables_producto[[#This Row],[MES/PRODUCTO]]="","",SUM('6.GASTOS VARIABLES'!$C46:$O46)) -> 
B47: =IF(Gastos_variables_producto[[#This Row],[MES/PRODUCTO]]="","",'ANEXO INGRESOS'!C36) ->  | C47: =IF('ANEXO INGRESOS'!D36="","",'ANEXO INGRESOS'!D36) ->  | D47: =IF('ANEXO INGRESOS'!$D36="","",'ANEXO INGRESOS'!H36*'ANEXO GASTOS VARIABLES'!$K$17) ->  | E47: =IF('ANEXO INGRESOS'!$D36="","",'ANEXO INGRESOS'!I36*'ANEXO GASTOS VARIABLES'!$K$17) ->  | F47: =IF('ANEXO INGRESOS'!$D36="","",'ANEXO INGRESOS'!J36*'ANEXO GASTOS VARIABLES'!$K$17) ->  | G47: =IF('ANEXO INGRESOS'!$D36="","",'ANEXO INGRESOS'!K36*'ANEXO GASTOS VARIABLES'!$K$17) ->  | H47: =IF('ANEXO INGRESOS'!$D36="","",'ANEXO INGRESOS'!L36*'ANEXO GASTOS VARIABLES'!$K$17) ->  | I47: =IF('ANEXO INGRESOS'!$D36="","",'ANEXO INGRESOS'!M36*'ANEXO GASTOS VARIABLES'!$K$17) ->  | J47: =IF('ANEXO INGRESOS'!$D36="","",'ANEXO INGRESOS'!N36*'ANEXO GASTOS VARIABLES'!$K$17) ->  | K47: =IF('ANEXO INGRESOS'!$D36="","",'ANEXO INGRESOS'!O36*'ANEXO GASTOS VARIABLES'!$K$17) ->  | L47: =IF('ANEXO INGRESOS'!$D36="","",'ANEXO INGRESOS'!P36*'ANEXO GASTOS VARIABLES'!$K$17) ->  | M47: =IF('ANEXO INGRESOS'!$D36="","",'ANEXO INGRESOS'!Q36*'ANEXO GASTOS VARIABLES'!$K$17) ->  | N47: =IF('ANEXO INGRESOS'!$D36="","",'ANEXO INGRESOS'!R36*'ANEXO GASTOS VARIABLES'!$K$17) ->  | O47: =IF('ANEXO INGRESOS'!$D36="","",'ANEXO INGRESOS'!S36*'ANEXO GASTOS VARIABLES'!$K$17) ->  | P47: =IF(Gastos_variables_producto[[#This Row],[MES/PRODUCTO]]="","",SUM('6.GASTOS VARIABLES'!$C47:$O47)) -> 
B48: =IF(Gastos_variables_producto[[#This Row],[MES/PRODUCTO]]="","",'ANEXO INGRESOS'!C37) ->  | C48: =IF('ANEXO INGRESOS'!D37="","",'ANEXO INGRESOS'!D37) ->  | D48: =IF('ANEXO INGRESOS'!$D37="","",'ANEXO INGRESOS'!H37*'ANEXO GASTOS VARIABLES'!$K$17) ->  | E48: =IF('ANEXO INGRESOS'!$D37="","",'ANEXO INGRESOS'!I37*'ANEXO GASTOS VARIABLES'!$K$17) ->  | F48: =IF('ANEXO INGRESOS'!$D37="","",'ANEXO INGRESOS'!J37*'ANEXO GASTOS VARIABLES'!$K$17) ->  | G48: =IF('ANEXO INGRESOS'!$D37="","",'ANEXO INGRESOS'!K37*'ANEXO GASTOS VARIABLES'!$K$17) ->  | H48: =IF('ANEXO INGRESOS'!$D37="","",'ANEXO INGRESOS'!L37*'ANEXO GASTOS VARIABLES'!$K$17) ->  | I48: =IF('ANEXO INGRESOS'!$D37="","",'ANEXO INGRESOS'!M37*'ANEXO GASTOS VARIABLES'!$K$17) ->  | J48: =IF('ANEXO INGRESOS'!$D37="","",'ANEXO INGRESOS'!N37*'ANEXO GASTOS VARIABLES'!$K$17) ->  | K48: =IF('ANEXO INGRESOS'!$D37="","",'ANEXO INGRESOS'!O37*'ANEXO GASTOS VARIABLES'!$K$17) ->  | L48: =IF('ANEXO INGRESOS'!$D37="","",'ANEXO INGRESOS'!P37*'ANEXO GASTOS VARIABLES'!$K$17) ->  | M48: =IF('ANEXO INGRESOS'!$D37="","",'ANEXO INGRESOS'!Q37*'ANEXO GASTOS VARIABLES'!$K$17) ->  | N48: =IF('ANEXO INGRESOS'!$D37="","",'ANEXO INGRESOS'!R37*'ANEXO GASTOS VARIABLES'!$K$17) ->  | O48: =IF('ANEXO INGRESOS'!$D37="","",'ANEXO INGRESOS'!S37*'ANEXO GASTOS VARIABLES'!$K$17) ->  | P48: =IF(Gastos_variables_producto[[#This Row],[MES/PRODUCTO]]="","",SUM('6.GASTOS VARIABLES'!$C48:$O48)) -> 
B49: =IF(Gastos_variables_producto[[#This Row],[MES/PRODUCTO]]="","",'ANEXO INGRESOS'!C38) ->  | C49: =IF('ANEXO INGRESOS'!D38="","",'ANEXO INGRESOS'!D38) ->  | D49: =IF('ANEXO INGRESOS'!$D38="","",'ANEXO INGRESOS'!H38*'ANEXO GASTOS VARIABLES'!$K$17) ->  | E49: =IF('ANEXO INGRESOS'!$D38="","",'ANEXO INGRESOS'!I38*'ANEXO GASTOS VARIABLES'!$K$17) ->  | F49: =IF('ANEXO INGRESOS'!$D38="","",'ANEXO INGRESOS'!J38*'ANEXO GASTOS VARIABLES'!$K$17) ->  | G49: =IF('ANEXO INGRESOS'!$D38="","",'ANEXO INGRESOS'!K38*'ANEXO GASTOS VARIABLES'!$K$17) ->  | H49: =IF('ANEXO INGRESOS'!$D38="","",'ANEXO INGRESOS'!L38*'ANEXO GASTOS VARIABLES'!$K$17) ->  | I49: =IF('ANEXO INGRESOS'!$D38="","",'ANEXO INGRESOS'!M38*'ANEXO GASTOS VARIABLES'!$K$17) ->  | J49: =IF('ANEXO INGRESOS'!$D38="","",'ANEXO INGRESOS'!N38*'ANEXO GASTOS VARIABLES'!$K$17) ->  | K49: =IF('ANEXO INGRESOS'!$D38="","",'ANEXO INGRESOS'!O38*'ANEXO GASTOS VARIABLES'!$K$17) ->  | L49: =IF('ANEXO INGRESOS'!$D38="","",'ANEXO INGRESOS'!P38*'ANEXO GASTOS VARIABLES'!$K$17) ->  | M49: =IF('ANEXO INGRESOS'!$D38="","",'ANEXO INGRESOS'!Q38*'ANEXO GASTOS VARIABLES'!$K$17) ->  | N49: =IF('ANEXO INGRESOS'!$D38="","",'ANEXO INGRESOS'!R38*'ANEXO GASTOS VARIABLES'!$K$17) ->  | O49: =IF('ANEXO INGRESOS'!$D38="","",'ANEXO INGRESOS'!S38*'ANEXO GASTOS VARIABLES'!$K$17) ->  | P49: =IF(Gastos_variables_producto[[#This Row],[MES/PRODUCTO]]="","",SUM('6.GASTOS VARIABLES'!$C49:$O49)) -> 
B50: =IF(Gastos_variables_producto[[#This Row],[MES/PRODUCTO]]="","",'ANEXO INGRESOS'!C39) ->  | C50: =IF('ANEXO INGRESOS'!D39="","",'ANEXO INGRESOS'!D39) ->  | D50: =IF('ANEXO INGRESOS'!$D39="","",'ANEXO INGRESOS'!H39*'ANEXO GASTOS VARIABLES'!$K$17) ->  | E50: =IF('ANEXO INGRESOS'!$D39="","",'ANEXO INGRESOS'!I39*'ANEXO GASTOS VARIABLES'!$K$17) ->  | F50: =IF('ANEXO INGRESOS'!$D39="","",'ANEXO INGRESOS'!J39*'ANEXO GASTOS VARIABLES'!$K$17) ->  | G50: =IF('ANEXO INGRESOS'!$D39="","",'ANEXO INGRESOS'!K39*'ANEXO GASTOS VARIABLES'!$K$17) ->  | H50: =IF('ANEXO INGRESOS'!$D39="","",'ANEXO INGRESOS'!L39*'ANEXO GASTOS VARIABLES'!$K$17) ->  | I50: =IF('ANEXO INGRESOS'!$D39="","",'ANEXO INGRESOS'!M39*'ANEXO GASTOS VARIABLES'!$K$17) ->  | J50: =IF('ANEXO INGRESOS'!$D39="","",'ANEXO INGRESOS'!N39*'ANEXO GASTOS VARIABLES'!$K$17) ->  | K50: =IF('ANEXO INGRESOS'!$D39="","",'ANEXO INGRESOS'!O39*'ANEXO GASTOS VARIABLES'!$K$17) ->  | L50: =IF('ANEXO INGRESOS'!$D39="","",'ANEXO INGRESOS'!P39*'ANEXO GASTOS VARIABLES'!$K$17) ->  | M50: =IF('ANEXO INGRESOS'!$D39="","",'ANEXO INGRESOS'!Q39*'ANEXO GASTOS VARIABLES'!$K$17) ->  | N50: =IF('ANEXO INGRESOS'!$D39="","",'ANEXO INGRESOS'!R39*'ANEXO GASTOS VARIABLES'!$K$17) ->  | O50: =IF('ANEXO INGRESOS'!$D39="","",'ANEXO INGRESOS'!S39*'ANEXO GASTOS VARIABLES'!$K$17) ->  | P50: =IF(Gastos_variables_producto[[#This Row],[MES/PRODUCTO]]="","",SUM('6.GASTOS VARIABLES'!$C50:$O50)) -> 
B51: =IF(Gastos_variables_producto[[#This Row],[MES/PRODUCTO]]="","",'ANEXO INGRESOS'!C40) ->  | C51: =IF('ANEXO INGRESOS'!D40="","",'ANEXO INGRESOS'!D40) ->  | D51: =IF('ANEXO INGRESOS'!$D40="","",'ANEXO INGRESOS'!H40*'ANEXO GASTOS VARIABLES'!$K$17) ->  | E51: =IF('ANEXO INGRESOS'!$D40="","",'ANEXO INGRESOS'!I40*'ANEXO GASTOS VARIABLES'!$K$17) ->  | F51: =IF('ANEXO INGRESOS'!$D40="","",'ANEXO INGRESOS'!J40*'ANEXO GASTOS VARIABLES'!$K$17) ->  | G51: =IF('ANEXO INGRESOS'!$D40="","",'ANEXO INGRESOS'!K40*'ANEXO GASTOS VARIABLES'!$K$17) ->  | H51: =IF('ANEXO INGRESOS'!$D40="","",'ANEXO INGRESOS'!L40*'ANEXO GASTOS VARIABLES'!$K$17) ->  | I51: =IF('ANEXO INGRESOS'!$D40="","",'ANEXO INGRESOS'!M40*'ANEXO GASTOS VARIABLES'!$K$17) ->  | J51: =IF('ANEXO INGRESOS'!$D40="","",'ANEXO INGRESOS'!N40*'ANEXO GASTOS VARIABLES'!$K$17) ->  | K51: =IF('ANEXO INGRESOS'!$D40="","",'ANEXO INGRESOS'!O40*'ANEXO GASTOS VARIABLES'!$K$17) ->  | L51: =IF('ANEXO INGRESOS'!$D40="","",'ANEXO INGRESOS'!P40*'ANEXO GASTOS VARIABLES'!$K$17) ->  | M51: =IF('ANEXO INGRESOS'!$D40="","",'ANEXO INGRESOS'!Q40*'ANEXO GASTOS VARIABLES'!$K$17) ->  | N51: =IF('ANEXO INGRESOS'!$D40="","",'ANEXO INGRESOS'!R40*'ANEXO GASTOS VARIABLES'!$K$17) ->  | O51: =IF('ANEXO INGRESOS'!$D40="","",'ANEXO INGRESOS'!S40*'ANEXO GASTOS VARIABLES'!$K$17) ->  | P51: =IF(Gastos_variables_producto[[#This Row],[MES/PRODUCTO]]="","",SUM('6.GASTOS VARIABLES'!$C51:$O51)) -> 
C52: TOTAL | D52: =SUM('6.GASTOS VARIABLES'!$D$24:$D$51) -> 0 | E52: =SUM('6.GASTOS VARIABLES'!$E$24:$E$51) -> 0 | F52: =SUM('6.GASTOS VARIABLES'!$F$24:$F$51) -> 0 | G52: =SUM('6.GASTOS VARIABLES'!$G$24:$G$51) -> 0 | H52: =SUM('6.GASTOS VARIABLES'!$H$24:$H$51) -> 0 | I52: =SUM('6.GASTOS VARIABLES'!$I$24:$I$51) -> 0 | J52: =SUM('6.GASTOS VARIABLES'!$J$24:$J$51) -> 0 | K52: =SUM('6.GASTOS VARIABLES'!$K$24:$K$51) -> 0 | L52: =SUM('6.GASTOS VARIABLES'!$L$24:$L$51) -> 0 | M52: =SUM('6.GASTOS VARIABLES'!$M$24:$M$51) -> 0 | N52: =SUM('6.GASTOS VARIABLES'!$N$24:$N$51) -> 0 | O52: =SUM('6.GASTOS VARIABLES'!$O$24:$O$51) -> 0 | P52: =SUM('6.GASTOS VARIABLES'!$O$24:$O$51) -> 0
BT57: TOTAL AÑO 1
B58: IVA | C58: MES/PRODUCTO | D58: TOTAL AÑO 1 | E58: TOTAL AÑO 2 | F58: TOTAL AÑO 3 | G58: TOTAL AÑO 4 | BT58: =IF(Totales_años[[#This Row],[TOTAL AÑO 1 ]]<>"",Totales_años[[#This Row],[TOTAL AÑO 1 ]],NA()) -> 
B59: =IF(C59="","",'ANEXO INGRESOS'!C14) ->  | C59: =IF('ANEXO INGRESOS'!D14="","",'ANEXO INGRESOS'!D14) ->  | D59: =IF(Totales_años[[#This Row],[MES/PRODUCTO]]="","",P25) ->  | E59: =IF(Totales_años[[#This Row],[TOTAL AÑO 1 ]]="","",Totales_años[[#This Row],[TOTAL AÑO 1 ]]*$E$19+Totales_años[[#This Row],[TOTAL AÑO 1 ]]) ->  | F59: =IF(Totales_años[[#This Row],[TOTAL AÑO 1 ]]="","",Totales_años[[#This Row],[TOTAL AÑO 2 ]]*$F$19+Totales_años[[#This Row],[TOTAL AÑO 2 ]]) ->  | G59: =IF(Totales_años[[#This Row],[TOTAL AÑO 1 ]]="","",Totales_años[[#This Row],[TOTAL AÑO 3 ]]*$G$19+Totales_años[[#This Row],[TOTAL AÑO 3 ]]) ->  | BT59: =IF(Totales_años[[#This Row],[TOTAL AÑO 1 ]]<>"",Totales_años[[#This Row],[TOTAL AÑO 1 ]],NA()) -> 
B60: =IF(C60="","",'ANEXO INGRESOS'!C15) ->  | C60: =IF('ANEXO INGRESOS'!D15="","",'ANEXO INGRESOS'!D15) ->  | D60: =IF(Totales_años[[#This Row],[MES/PRODUCTO]]="","",P26) ->  | E60: =IF(Totales_años[[#This Row],[TOTAL AÑO 1 ]]="","",Totales_años[[#This Row],[TOTAL AÑO 1 ]]*$E$19+Totales_años[[#This Row],[TOTAL AÑO 1 ]]) ->  | F60: =IF(Totales_años[[#This Row],[TOTAL AÑO 1 ]]="","",Totales_años[[#This Row],[TOTAL AÑO 2 ]]*$F$19+Totales_años[[#This Row],[TOTAL AÑO 2 ]]) ->  | G60: =IF(Totales_años[[#This Row],[TOTAL AÑO 1 ]]="","",Totales_años[[#This Row],[TOTAL AÑO 3 ]]*$G$19+Totales_años[[#This Row],[TOTAL AÑO 3 ]]) ->  | BT60: =IF(Totales_años[[#This Row],[TOTAL AÑO 1 ]]<>"",Totales_años[[#This Row],[TOTAL AÑO 1 ]],NA()) -> 
B61: =IF(C61="","",'ANEXO INGRESOS'!C16) ->  | C61: =IF('ANEXO INGRESOS'!D16="","",'ANEXO INGRESOS'!D16) ->  | D61: =IF(Totales_años[[#This Row],[MES/PRODUCTO]]="","",P27) ->  | E61: =IF(Totales_años[[#This Row],[TOTAL AÑO 1 ]]="","",Totales_años[[#This Row],[TOTAL AÑO 1 ]]*$E$19+Totales_años[[#This Row],[TOTAL AÑO 1 ]]) ->  | F61: =IF(Totales_años[[#This Row],[TOTAL AÑO 1 ]]="","",Totales_años[[#This Row],[TOTAL AÑO 2 ]]*$F$19+Totales_años[[#This Row],[TOTAL AÑO 2 ]]) ->  | G61: =IF(Totales_años[[#This Row],[TOTAL AÑO 1 ]]="","",Totales_años[[#This Row],[TOTAL AÑO 3 ]]*$G$19+Totales_años[[#This Row],[TOTAL AÑO 3 ]]) ->  | BT61: =IF(Totales_años[[#This Row],[TOTAL AÑO 1 ]]<>"",Totales_años[[#This Row],[TOTAL AÑO 1 ]],NA()) -> 
B62: =IF(C62="","",'ANEXO INGRESOS'!C17) ->  | C62: =IF('ANEXO INGRESOS'!D17="","",'ANEXO INGRESOS'!D17) ->  | D62: =IF(Totales_años[[#This Row],[MES/PRODUCTO]]="","",P28) ->  | E62: =IF(Totales_años[[#This Row],[TOTAL AÑO 1 ]]="","",Totales_años[[#This Row],[TOTAL AÑO 1 ]]*$E$19+Totales_años[[#This Row],[TOTAL AÑO 1 ]]) ->  | F62: =IF(Totales_años[[#This Row],[TOTAL AÑO 1 ]]="","",Totales_años[[#This Row],[TOTAL AÑO 2 ]]*$F$19+Totales_años[[#This Row],[TOTAL AÑO 2 ]]) ->  | G62: =IF(Totales_años[[#This Row],[TOTAL AÑO 1 ]]="","",Totales_años[[#This Row],[TOTAL AÑO 3 ]]*$G$19+Totales_años[[#This Row],[TOTAL AÑO 3 ]]) ->  | BT62: =IF(Totales_años[[#This Row],[TOTAL AÑO 1 ]]<>"",Totales_años[[#This Row],[TOTAL AÑO 1 ]],NA()) -> 
B63: =IF(C63="","",'ANEXO INGRESOS'!C18) ->  | C63: =IF('ANEXO INGRESOS'!D18="","",'ANEXO INGRESOS'!D18) ->  | D63: =IF(Totales_años[[#This Row],[MES/PRODUCTO]]="","",P29) ->  | E63: =IF(Totales_años[[#This Row],[TOTAL AÑO 1 ]]="","",Totales_años[[#This Row],[TOTAL AÑO 1 ]]*$E$19+Totales_años[[#This Row],[TOTAL AÑO 1 ]]) ->  | F63: =IF(Totales_años[[#This Row],[TOTAL AÑO 1 ]]="","",Totales_años[[#This Row],[TOTAL AÑO 2 ]]*$F$19+Totales_años[[#This Row],[TOTAL AÑO 2 ]]) ->  | G63: =IF(Totales_años[[#This Row],[TOTAL AÑO 1 ]]="","",Totales_años[[#This Row],[TOTAL AÑO 3 ]]*$G$19+Totales_años[[#This Row],[TOTAL AÑO 3 ]]) ->  | BT63: =IF(Totales_años[[#This Row],[TOTAL AÑO 1 ]]<>"",Totales_años[[#This Row],[TOTAL AÑO 1 ]],NA()) -> 
B64: =IF(C64="","",'ANEXO INGRESOS'!C19) ->  | C64: =IF('ANEXO INGRESOS'!D19="","",'ANEXO INGRESOS'!D19) ->  | D64: =IF(Totales_años[[#This Row],[MES/PRODUCTO]]="","",P30) ->  | E64: =IF(Totales_años[[#This Row],[TOTAL AÑO 1 ]]="","",Totales_años[[#This Row],[TOTAL AÑO 1 ]]*$E$19+Totales_años[[#This Row],[TOTAL AÑO 1 ]]) ->  | F64: =IF(Totales_años[[#This Row],[TOTAL AÑO 1 ]]="","",Totales_años[[#This Row],[TOTAL AÑO 2 ]]*$F$19+Totales_años[[#This Row],[TOTAL AÑO 2 ]]) ->  | G64: =IF(Totales_años[[#This Row],[TOTAL AÑO 1 ]]="","",Totales_años[[#This Row],[TOTAL AÑO 3 ]]*$G$19+Totales_años[[#This Row],[TOTAL AÑO 3 ]]) ->  | BT64: =IF(Totales_años[[#This Row],[TOTAL AÑO 1 ]]<>"",Totales_años[[#This Row],[TOTAL AÑO 1 ]],NA()) -> 
B65: =IF(C65="","",'ANEXO INGRESOS'!C20) ->  | C65: =IF('ANEXO INGRESOS'!D20="","",'ANEXO INGRESOS'!D20) ->  | D65: =IF(Totales_años[[#This Row],[MES/PRODUCTO]]="","",P31) ->  | E65: =IF(Totales_años[[#This Row],[TOTAL AÑO 1 ]]="","",Totales_años[[#This Row],[TOTAL AÑO 1 ]]*$E$19+Totales_años[[#This Row],[TOTAL AÑO 1 ]]) ->  | F65: =IF(Totales_años[[#This Row],[TOTAL AÑO 1 ]]="","",Totales_años[[#This Row],[TOTAL AÑO 2 ]]*$F$19+Totales_años[[#This Row],[TOTAL AÑO 2 ]]) ->  | G65: =IF(Totales_años[[#This Row],[TOTAL AÑO 1 ]]="","",Totales_años[[#This Row],[TOTAL AÑO 3 ]]*$G$19+Totales_años[[#This Row],[TOTAL AÑO 3 ]]) ->  | BT65: =IF(Totales_años[[#This Row],[TOTAL AÑO 1 ]]<>"",Totales_años[[#This Row],[TOTAL AÑO 1 ]],NA()) -> 
B66: =IF(C66="","",'ANEXO INGRESOS'!C21) ->  | C66: =IF('ANEXO INGRESOS'!D21="","",'ANEXO INGRESOS'!D21) ->  | D66: =IF(Totales_años[[#This Row],[MES/PRODUCTO]]="","",P32) ->  | E66: =IF(Totales_años[[#This Row],[TOTAL AÑO 1 ]]="","",Totales_años[[#This Row],[TOTAL AÑO 1 ]]*$E$19+Totales_años[[#This Row],[TOTAL AÑO 1 ]]) ->  | F66: =IF(Totales_años[[#This Row],[TOTAL AÑO 1 ]]="","",Totales_años[[#This Row],[TOTAL AÑO 2 ]]*$F$19+Totales_años[[#This Row],[TOTAL AÑO 2 ]]) ->  | G66: =IF(Totales_años[[#This Row],[TOTAL AÑO 1 ]]="","",Totales_años[[#This Row],[TOTAL AÑO 3 ]]*$G$19+Totales_años[[#This Row],[TOTAL AÑO 3 ]]) ->  | BT66: =IF(Totales_años[[#This Row],[TOTAL AÑO 1 ]]<>"",Totales_años[[#This Row],[TOTAL AÑO 1 ]],NA()) -> 
B67: =IF(C67="","",'ANEXO INGRESOS'!C22) ->  | C67: =IF('ANEXO INGRESOS'!D22="","",'ANEXO INGRESOS'!D22) ->  | D67: =IF(Totales_años[[#This Row],[MES/PRODUCTO]]="","",P33) ->  | E67: =IF(Totales_años[[#This Row],[TOTAL AÑO 1 ]]="","",Totales_años[[#This Row],[TOTAL AÑO 1 ]]*$E$19+Totales_años[[#This Row],[TOTAL AÑO 1 ]]) ->  | F67: =IF(Totales_años[[#This Row],[TOTAL AÑO 1 ]]="","",Totales_años[[#This Row],[TOTAL AÑO 2 ]]*$F$19+Totales_años[[#This Row],[TOTAL AÑO 2 ]]) ->  | G67: =IF(Totales_años[[#This Row],[TOTAL AÑO 1 ]]="","",Totales_años[[#This Row],[TOTAL AÑO 3 ]]*$G$19+Totales_años[[#This Row],[TOTAL AÑO 3 ]]) ->  | BT67: =IF(Totales_años[[#This Row],[TOTAL AÑO 1 ]]<>"",Totales_años[[#This Row],[TOTAL AÑO 1 ]],NA()) -> 
B68: =IF(C68="","",'ANEXO INGRESOS'!C23) ->  | C68: =IF('ANEXO INGRESOS'!D23="","",'ANEXO INGRESOS'!D23) ->  | D68: =IF(Totales_años[[#This Row],[MES/PRODUCTO]]="","",P34) ->  | E68: =IF(Totales_años[[#This Row],[TOTAL AÑO 1 ]]="","",Totales_años[[#This Row],[TOTAL AÑO 1 ]]*$E$19+Totales_años[[#This Row],[TOTAL AÑO 1 ]]) ->  | F68: =IF(Totales_años[[#This Row],[TOTAL AÑO 1 ]]="","",Totales_años[[#This Row],[TOTAL AÑO 2 ]]*$F$19+Totales_años[[#This Row],[TOTAL AÑO 2 ]]) ->  | G68: =IF(Totales_años[[#This Row],[TOTAL AÑO 1 ]]="","",Totales_años[[#This Row],[TOTAL AÑO 3 ]]*$G$19+Totales_años[[#This Row],[TOTAL AÑO 3 ]]) ->  | BT68: =IF(Totales_años[[#This Row],[TOTAL AÑO 1 ]]<>"",Totales_años[[#This Row],[TOTAL AÑO 1 ]],NA()) -> 
